Workbook

Sheet Summary
C1: Operations | H1: Debt Sizing from | J1: ='Financial Model'!F77 -> DSCR | M1: LLCR Repayment
C3: Capacity Factor (P50) | D3: =InputC!G9 -> 0.27
C4: Capacity Factor (P90) | D4: =InputC!G11 -> 0.2353981077
C5: EPC Cost/kW | D5: =InputC!G16 -> 500
C6: O&M Cost/kWy | D6: =InputC!G24 -> 5
C7: PPA Price (USD/kWh) | D7: =InputC!G20 -> 0.02
C8: Development Fee | D8: =InputC!G18 -> 0
C10: Project IRR P50 | D10: ='Financial Model'!$F$54 -> 0.08233112395
C11: Debt IRR | D11: ='Financial Model'!$F$108 -> 0.06287880242
C13: Debt Tenure | D13: =InputC!$G$38 -> 25
C14: Include Re-financing | D14: =InputC!$F$61 -> FALSE
C15: Year of Re-financing | D15: =InputC!F63 -> 4
C17: Partner Sale | D17: =InputC!F70 -> 0.4
C18: Equity IRR - Development Fees Deducted | D18: ='Financial Model'!$F$173 -> 0.1131396472
C19: Equity IRR - Development Fees Not Deducted | D19: ='Financial Model'!$F$174 -> 0.1131396472 | H19: Uses of Funds | L19: Sources of Funds
C20: Initial Sponsor Equity IRR (Fees Not Deducted) | D20: ='Financial Model'!$F$192 -> 0.1131137788 | H20: Development Cost | J20: ='Financial Model'!F58 -> 5000000 | L20: Debt | M20: ='Financial Model'!E81 -> 0.6973841494 | N20: ='Financial Model'!F81 -> 352178995.4
H21: Development Fee | J21: ='Financial Model'!F59 -> 0 | L21: Developer/Sponsor | M21: ='Financial Model'!E82 -> 0.1815695104 | N21: ='Financial Model'!F82 -> 91692602.75
C22: Equity IRR with Sale of Project | D22: ='Financial Model'!F215 -> 0.1131906676 | H22: EPC Cost | J22: ='Financial Model'!F60 -> 500000000 | L22: Partner | M22: ='Financial Model'!E83 -> 0.1210463403 | N22: ='Financial Model'!F83 -> 61128401.83
H23: Total Uses | J23: ='Financial Model'!F61 -> 505000000 | L23: Total Sources | N23: =SUM(N20:N22) -> 505000000
C24: Project Sale Year | D24: =InputC!F106 -> 39
C25: Buyer Valuation Scenario

Sheet InputC
B2: Timing
D3: Project Life | F3: Years | G3: 30
D4: Development Period | F4: Years | G4: 1
D5: Construction Period | F5: Years | G5: 1 | S5: EBITDA | T5: EIRR | U5: EIRR
B7: Operations
D8: Capacity | F8: MW | G8: 1000
D9: P50 Capacity Factor | F9: % p.a. | G9: 0.27
D10: Standard Deviation as Percent of Generation | F10: % | G10: 0.1
D11: P90 Capacity Factor | F11: % p.a. | G11: =NORMINV(0.1,G9,G10*G9) -> 0.2353981077 | H11: =_xlfn.FORMULATEXT(G11) -> =NORMINV(0.1,G9,G10*G9)
D13: Degradation | F13: % p.a. | G13: 0.005
B15: Capital Expenditures and Operating Expenses
D16: EPC Cost/kWp | F16: USD/kWp | G16: 500
D17: Development Cost | F17: USD/kWp | G17: 3
D18: Development Fee | F18: USD/kWp | G18: 0
D20: PPA Price | F20: USD/kWh | G20: =H20/10000 -> 0.02 | H20: 200
D21: Inflate PPA Price | F21: Flag | G21: TRUE
D22: PPA Inflation Rate | F22: % p.a. | G22: 0.025
D24: O&M Expense - Real | F24: USD/kWh | G24: 5
D25: Administrative Expense - Real | F25: USD/kWh | G25: 2
D26: Insurcance Expense - % of Cost | F26: % | G26: 0.01
D28: O&M Inflation | F28: % | G28: 0.025
D30: EBITDA Sensitivity Factor | F30: % | G30: 1
B32: Financing
C33: Debt Sizing
D34: Maximum Debt to Capital | F34: % | G34: 0.8
D35: Minimum DSCR | F35: x | G35: 1.35
C37: Repayment
D38: Debt Tenure | F38: Years | G38: 25
D39: Apply LLCR in Debt to Capital Case | F39: Flag | G39: TRUE
C41: Interest Rates
D42: Project Year | F42: 0 | G42: 1 | H42: 2 | I42: 3 | J42: 4 | K42: 5 | L42: 6 | M42: 7 | N42: 8 | O42: 9
D43: Credit Spread 1 | G43: 0.015 | H43: =G43 -> 0.015 | I43: 0.0175 | J43: 0.0175 | K43: 0.02 | L43: 0.02 | M43: 0.02 | N43: 0.0225 | O43: 0.0225
D44: Credit Spread 2 | G44: 0.015 | H44: =G44 -> 0.015 | I44: =H44 -> 0.015 | J44: 0.015 | K44: 0.015 | L44: 0.015 | M44: 0.015 | N44: 0.015 | O44: 0.015
D46: =INDEX(D43:D44,$F$46) -> Credit Spread 2 | F46: 2 | G46: =INDEX(G43:G44,$F$46) -> 0.015 | H46: =INDEX(H43:H44,$F$46) -> 0.015 | I46: =INDEX(I43:I44,$F$46) -> 0.015 | J46: =INDEX(J43:J44,$F$46) -> 0.015 | K46: =INDEX(K43:K44,$F$46) -> 0.015 | L46: =INDEX(L43:L44,$F$46) -> 0.015 | M46: =INDEX(M43:M44,$F$46) -> 0.015 | N46: =INDEX(N43:N44,$F$46) -> 0.015 | O46: =INDEX(O43:O44,$F$46) -> 0.015
D49: Percent Fixed | F49: % | G49: 0.6
D51: Fixed Swap Rate | F51: % p.a. | G51: 0.043
G53: 2024 | H53: 2025 | I53: 2026 | J53: 2027 | K53: 2028 | L53: 2029 | M53: 2030
D54: Floating Rate - Base | G54: 0.046 | H54: 0.044 | I54: 0.043 | J54: 0.042 | K54: 0.042 | L54: 0.042 | M54: 0.042
D55: Floating Rate - High | G55: 0.046 | H55: 0.05 | I55: 0.05 | J55: 0.06 | K55: 0.06 | L55: 0.06 | M55: 0.06
D56: Floating Rate - Low | G56: 0.046 | H56: 0.04 | I56: 0.035 | J56: 0.035 | K56: 0.035 | L56: 0.035 | M56: 0.035
D58: =INDEX(D54:D56,$F$58) -> Floating Rate - Base | F58: 1 | G58: =INDEX(G54:G56,$F$58) -> 0.046 | H58: =INDEX(H54:H56,$F$58) -> 0.044 | I58: =INDEX(I54:I56,$F$58) -> 0.043 | J58: =INDEX(J54:J56,$F$58) -> 0.042 | K58: =INDEX(K54:K56,$F$58) -> 0.042 | L58: =INDEX(L54:L56,$F$58) -> 0.042 | M58: =INDEX(M54:M56,$F$58) -> 0.042
B60: Re-finance
D61: Include Re-finance | E61: Flag | F61: FALSE
D62: DSCR for Re-finance | E62: x | F62: 1.2
D63: Year of Re-finance | E63: Year | F63: 4
D64: Tail for Re-Finance | E64: Years | F64: 3
D65: Apply Optionality | E65: Flag | F65: TRUE
D66: Credit Spread for Re-Finance | E66: % | F66: =G43 -> 0.015
D67: Fee for Re-finance | E67: % | F67: 0
B69: Partnership
D70: Partner Investment | E70: % | F70: =G70/100 -> 0.4 | G70: 40
D71: Original Sponsor Investment | E71: % | F71: =1-F70 -> 0.6
C73: Development Inputs
D74: Probability of Success | E74: % | F74: 1
D75: Target Development Profit | E75: % | F75: 0.1
D77: Loss Scenarios | E77: Number | F77: =1/F74-1 -> 0
D78: Costs of Loss from Failures | E78: EUR | F78: =F77*'Financial Model'!F245 -> 0
D80: Target Profit | E80: EUR | F80: 1
D81: Development Fee | E81: EUR | F81: =F80 -> 1
B84: Valuation | F84: 1
D85: Buyer Project IRR Target Scenario | E85: Code | F85: 1
F86: Start | G86: Fin Close | H86: COD | I86: COD + 2 | J86: COD + 4
F87: 1 | G87: =InputC!G4 -> 1 | H87: ='Financial Model'!F8 -> 2 | I87: =H87+2 -> 4 | J87: =I87+2 -> 6
D88: Scenario 1 - Base Case | F88: 0.11 | G88: 0.08 | H88: 0.06 | I88: 0.055 | J88: 0.05
D89: Scenario 2 - Lower Rate | F89: 0.1 | G89: =G88-0.5% -> 0.075 | H89: =H88-0.5% -> 0.055 | I89: =I88-0.5% -> 0.05 | J89: =J88-0.5% -> 0.045
D90: Scenario 3 - Higher IRR | F90: 0.12 | G90: =G88+0.5% -> 0.085 | H90: 0.06 | I90: 0.055 | J90: 0.06
D91: Scenario 4 - Flat IRR | F91: ='Financial Model'!F199 -> 0.08238683953 | G91: =F91 -> 0.08238683953 | H91: =G91 -> 0.08238683953 | I91: =H91 -> 0.08238683953 | J91: =I91 -> 0.08238683953
F92: 1
D93: =INDEX(D88:D91,$F$85) -> Scenario 1 - Base Case | F93: =INDEX(F88:F91,$F$85) -> 0.11 | G93: =INDEX(G88:G91,$F$85) -> 0.08 | H93: =INDEX(H88:H91,$F$85) -> 0.06 | I93: =INDEX(I88:I91,$F$85) -> 0.055 | J93: =INDEX(J88:J91,$F$85) -> 0.05
D95: Buyer Equity IRR Scenario | E95: Code | F95: =F85 -> 1
F96: Start | G96: Fin Close | H96: COD | I96: COD + 2 | J96: COD + 4
F97: 1 | G97: =G87 -> 1 | H97: =H87 -> 2 | I97: =I87 -> 4 | J97: =J87 -> 6
D98: Scenario 1 - Base Case | F98: 1 | G98: 0.09 | H98: 0.07 | I98: 0.065 | J98: 0.06
D99: Scenario 2 - Lower Rate | F99: 0.1 | G99: 0.08 | H99: 0.065 | I99: 0.06 | J99: 0.05
D100: Scenario 3 - Higher IRR | F100: 0.12 | G100: 0.1 | H100: 0.08 | I100: 0.077 | J100: 0.07
D101: Scenario 4 - Flat IRR | F101: ='Financial Model'!J255 -> 0.1131906676 | G101: =$F$101 -> 0.1131906676 | H101: =$F$101 -> 0.1131906676 | I101: =$F$101 -> 0.1131906676 | J101: =$F$101 -> 0.1131906676
D103: =INDEX(D98:D101,$F$95) -> Scenario 1 - Base Case | F103: =INDEX(F98:F101,$F$95) -> 1 | G103: =INDEX(G98:G101,$F$95) -> 0.09 | H103: =INDEX(H98:H101,$F$95) -> 0.07 | I103: =INDEX(I98:I101,$F$95) -> 0.065 | J103: =INDEX(J98:J101,$F$95) -> 0.06
D106: Year of Sale | E106: Year | F106: 39

Sheet Financial Model
B1: Timeline
D2: Date | I2: Sum | J2: 2020-01-01 | K2: =EDATE(J2,12) -> 2021-01-01 | L2: 2022-01-01 | M2: 2023-01-01 | N2: 2024-01-01 | O2: 2025-01-01 | P2: 2026-01-01 | Q2: 2027-01-01 | R2: 2028-01-01 | S2: 2029-01-01 | T2: 2030-01-01 | U2: 2031-01-01 | V2: 2032-01-01 | W2: 2033-01-01 | X2: 2034-01-01 | Y2: 2035-01-01 | Z2: 2036-01-01 | AA2: 2037-01-01 | AB2: 2038-01-01 | AC2: 2039-01-01 | AD2: 2040-01-01 | AE2: 2041-01-01 | AF2: 2042-01-01 | AG2: 2043-01-01 | AH2: 2044-01-01 | AI2: 2045-01-01 | AJ2: 2046-01-01 | AK2: 2047-01-01 | AL2: 2048-01-01 | AM2: 2049-01-01 | AN2: 2050-01-01 | AO2: 2051-01-01 | AP2: 2052-01-01 | AQ2: =EDATE(AP2,12) -> 2053-01-01 | AR2: 2054-01-01 | AS2: 2055-01-01 | AT2: 2056-01-01 | AU2: 2057-01-01 | AV2: 2058-01-01 | AW2: 2059-01-01 | AX2: 2060-01-01 | AY2: 2061-01-01 | AZ2: 2062-01-01 | BA2: 2063-01-01 | BB2: 2064-01-01 | BC2: 2065-01-01 | BD2: 2066-01-01 | BE2: 2067-01-01 | BF2: 2068-01-01 | BG2: 2069-01-01 | BH2: 2070-01-01
D3: Period | K3: 1 | L3: 2 | M3: 3 | N3: 4 | O3: 5 | P3: 6 | Q3: 7 | R3: 8 | S3: 9 | T3: 10 | U3: 11 | V3: 12 | W3: 13 | X3: 14 | Y3: 15 | Z3: 16 | AA3: 17 | AB3: 18 | AC3: 19 | AD3: 20 | AE3: 21 | AF3: 22 | AG3: 23 | AH3: 24 | AI3: 25 | AJ3: 26 | AK3: 27 | AL3: 28 | AM3: 29 | AN3: 30 | AO3: 31 | AP3: 32 | AQ3: 33 | AR3: 34 | AS3: 35 | AT3: 36 | AU3: 37 | AV3: 38 | AW3: 39 | AX3: 40 | AY3: 41 | AZ3: 42 | BA3: 43 | BB3: 44 | BC3: 45 | BD3: 46 | BE3: 47 | BF3: 48 | BG3: 49 | BH3: 50
D4: Development Period | E4: Month | F4: =InputC!G4 -> 1 | K4: =K3<=$F$4 -> TRUE | L4: FALSE | M4: FALSE | N4: FALSE | O4: FALSE | P4: FALSE | Q4: FALSE | R4: FALSE | S4: FALSE | T4: FALSE | U4: FALSE | V4: FALSE | W4: FALSE | X4: FALSE | Y4: FALSE | Z4: FALSE | AA4: FALSE | AB4: FALSE | AC4: FALSE | AD4: FALSE | AE4: FALSE | AF4: FALSE | AG4: FALSE | AH4: FALSE | AI4: FALSE | AJ4: FALSE | AK4: FALSE | AL4: FALSE | AM4: FALSE | AN4: FALSE | AO4: FALSE | AP4: FALSE | AQ4: =AQ3<=$F$4 -> FALSE | AR4: FALSE | AS4: FALSE | AT4: FALSE | AU4: FALSE | AV4: FALSE | AW4: FALSE | AX4: FALSE | AY4: FALSE | AZ4: FALSE | BA4: FALSE | BB4: FALSE | BC4: FALSE | BD4: FALSE | BE4: FALSE | BF4: FALSE | BG4: FALSE | BH4: FALSE
D5: Construction period (Before COD) | E5: Month | F5: =InputC!G5 -> 1 | K5: =AND(K8,NOT(K4)) -> FALSE | L5: TRUE | M5: FALSE | N5: FALSE | O5: FALSE | P5: FALSE | Q5: FALSE | R5: FALSE | S5: FALSE | T5: FALSE | U5: FALSE | V5: FALSE | W5: FALSE | X5: FALSE | Y5: FALSE | Z5: FALSE | AA5: FALSE | AB5: FALSE | AC5: FALSE | AD5: FALSE | AE5: FALSE | AF5: FALSE | AG5: FALSE | AH5: FALSE | AI5: FALSE | AJ5: FALSE | AK5: FALSE | AL5: FALSE | AM5: FALSE | AN5: FALSE | AO5: FALSE | AP5: FALSE | AQ5: =AND(AQ8,NOT(AQ4)) -> FALSE | AR5: FALSE | AS5: FALSE | AT5: FALSE | AU5: FALSE | AV5: FALSE | AW5: FALSE | AX5: FALSE | AY5: FALSE | AZ5: FALSE | BA5: FALSE | BB5: FALSE | BC5: FALSE | BD5: FALSE | BE5: FALSE | BF5: FALSE | BG5: FALSE | BH5: FALSE
D6: Operating period | E6: Years | F6: =InputC!G3 -> 30 | K6: =AND(K7<=$F$6, NOT(K8)) -> FALSE | L6: FALSE | M6: TRUE | N6: TRUE | O6: TRUE | P6: TRUE | Q6: TRUE | R6: TRUE | S6: TRUE | T6: TRUE | U6: TRUE | V6: TRUE | W6: TRUE | X6: TRUE | Y6: TRUE | Z6: TRUE | AA6: TRUE | AB6: TRUE | AC6: TRUE | AD6: TRUE | AE6: TRUE | AF6: TRUE | AG6: TRUE | AH6: TRUE | AI6: TRUE | AJ6: TRUE | AK6: TRUE | AL6: TRUE | AM6: TRUE | AN6: TRUE | AO6: TRUE | AP6: TRUE | AQ6: =AND(AQ7<=$F$6, NOT(AQ8)) -> FALSE | AR6: FALSE | AS6: FALSE | AT6: FALSE | AU6: FALSE | AV6: FALSE | AW6: FALSE | AX6: FALSE | AY6: FALSE | AZ6: FALSE | BA6: FALSE | BB6: FALSE | BC6: FALSE | BD6: FALSE | BE6: FALSE | BF6: FALSE | BG6: FALSE | BH6: FALSE
D7: Age of project | K7: =J7+NOT(K8) -> 0 | L7: 0 | M7: 1 | N7: 2 | O7: 3 | P7: 4 | Q7: 5 | R7: 6 | S7: 7 | T7: 8 | U7: 9 | V7: 10 | W7: 11 | X7: 12 | Y7: 13 | Z7: 14 | AA7: 15 | AB7: 16 | AC7: 17 | AD7: 18 | AE7: 19 | AF7: 20 | AG7: 21 | AH7: 22 | AI7: 23 | AJ7: 24 | AK7: 25 | AL7: 26 | AM7: 27 | AN7: 28 | AO7: 29 | AP7: 30 | AQ7: =AP7+NOT(AQ8) -> 31 | AR7: 32 | AS7: 33 | AT7: 34 | AU7: 35 | AV7: 36 | AW7: 37 | AX7: 38 | AY7: 39 | AZ7: 40 | BA7: 41 | BB7: 42 | BC7: 43 | BD7: 44 | BE7: 45 | BF7: 46 | BG7: 47 | BH7: 48
D8: Pre-COD | E8: Years | F8: =F4+F5 -> 2 | K8: =K3<=$F$8 -> TRUE | L8: TRUE | M8: FALSE | N8: FALSE | O8: FALSE | P8: FALSE | Q8: FALSE | R8: FALSE | S8: FALSE | T8: FALSE | U8: FALSE | V8: FALSE | W8: FALSE | X8: FALSE | Y8: FALSE | Z8: FALSE | AA8: FALSE | AB8: FALSE | AC8: FALSE | AD8: FALSE | AE8: FALSE | AF8: FALSE | AG8: FALSE | AH8: FALSE | AI8: FALSE | AJ8: FALSE | AK8: FALSE | AL8: FALSE | AM8: FALSE | AN8: FALSE | AO8: FALSE | AP8: FALSE | AQ8: =AQ3<=$F$8 -> FALSE | AR8: FALSE | AS8: FALSE | AT8: FALSE | AU8: FALSE | AV8: FALSE | AW8: FALSE | AX8: FALSE | AY8: FALSE | AZ8: FALSE | BA8: FALSE | BB8: FALSE | BC8: FALSE | BD8: FALSE | BE8: FALSE | BF8: FALSE | BG8: FALSE | BH8: FALSE
B10: Operating Cash Flow and Project IRR
D12: Capacity | E12: MW | F12: =InputC!G8 -> 1000 | K12: =$F$12*K6 -> 0 | L12: 0 | M12: 1000 | N12: 1000 | O12: 1000 | P12: 1000 | Q12: 1000 | R12: 1000 | S12: 1000 | T12: 1000 | U12: 1000 | V12: 1000 | W12: 1000 | X12: 1000 | Y12: 1000 | Z12: 1000 | AA12: 1000 | AB12: 1000 | AC12: 1000 | AD12: 1000 | AE12: 1000 | AF12: 1000 | AG12: 1000 | AH12: 1000 | AI12: 1000 | AJ12: 1000 | AK12: 1000 | AL12: 1000 | AM12: 1000 | AN12: 1000 | AO12: 1000 | AP12: 1000 | AQ12: =$F$12*AQ6 -> 0 | AR12: 0 | AS12: 0 | AT12: 0 | AU12: 0 | AV12: 0 | AW12: 0 | AX12: 0 | AY12: 0 | AZ12: 0 | BA12: 0 | BB12: 0 | BC12: 0 | BD12: 0 | BE12: 0 | BF12: 0 | BG12: 0 | BH12: 0
D13: Annual Capacity Factor | E13: % | F13: =InputC!G9 -> 0.27 | K13: =$F$13 -> 0.27 | L13: 0.27 | M13: 0.27 | N13: 0.27 | O13: 0.27 | P13: 0.27 | Q13: 0.27 | R13: 0.27 | S13: 0.27 | T13: 0.27 | U13: 0.27 | V13: 0.27 | W13: 0.27 | X13: 0.27 | Y13: 0.27 | Z13: 0.27 | AA13: 0.27 | AB13: 0.27 | AC13: 0.27 | AD13: 0.27 | AE13: 0.27 | AF13: 0.27 | AG13: 0.27 | AH13: 0.27 | AI13: 0.27 | AJ13: 0.27 | AK13: 0.27 | AL13: 0.27 | AM13: 0.27 | AN13: 0.27 | AO13: 0.27 | AP13: 0.27 | AQ13: =$F$13 -> 0.27 | AR13: 0.27 | AS13: 0.27 | AT13: 0.27 | AU13: 0.27 | AV13: 0.27 | AW13: 0.27 | AX13: 0.27 | AY13: 0.27 | AZ13: 0.27 | BA13: 0.27 | BB13: 0.27 | BC13: 0.27 | BD13: 0.27 | BE13: 0.27 | BF13: 0.27 | BG13: 0.27 | BH13: 0.27
D14: Hours | E14: Hrs | K14: =(K2-J2)*24 -> 8784 | L14: 8760 | M14: 8760 | N14: 8760 | O14: 8784 | P14: 8760 | Q14: 8760 | R14: 8760 | S14: 8784 | T14: 8760 | U14: 8760 | V14: 8760 | W14: 8784 | X14: 8760 | Y14: 8760 | Z14: 8760 | AA14: 8784 | AB14: 8760 | AC14: 8760 | AD14: 8760 | AE14: 8784 | AF14: 8760 | AG14: 8760 | AH14: 8760 | AI14: 8784 | AJ14: 8760 | AK14: 8760 | AL14: 8760 | AM14: 8784 | AN14: 8760 | AO14: 8760 | AP14: 8760 | AQ14: =(AQ2-AP2)*24 -> 8784 | AR14: 8760 | AS14: 8760 | AT14: 8760 | AU14: 8784 | AV14: 8760 | AW14: 8760 | AX14: 8760 | AY14: 8784 | AZ14: 8760 | BA14: 8760 | BB14: 8760 | BC14: 8784 | BD14: 8760 | BE14: 8760 | BF14: 8760 | BG14: 8784 | BH14: 8760
D15: Generation Before Degradation - P50 | E15: kWh | K15: =K12*K13*K14*1000 -> 0 | L15: 0 | M15: 2365200000 | N15: 2365200000 | O15: 2371680000 | P15: 2365200000 | Q15: 2365200000 | R15: 2365200000 | S15: 2371680000 | T15: 2365200000 | U15: 2365200000 | V15: 2365200000 | W15: 2371680000 | X15: 2365200000 | Y15: 2365200000 | Z15: 2365200000 | AA15: 2371680000 | AB15: 2365200000 | AC15: 2365200000 | AD15: 2365200000 | AE15: 2371680000 | AF15: 2365200000 | AG15: 2365200000 | AH15: 2365200000 | AI15: 2371680000 | AJ15: 2365200000 | AK15: 2365200000 | AL15: 2365200000 | AM15: 2371680000 | AN15: 2365200000 | AO15: 2365200000 | AP15: 2365200000 | AQ15: =AQ12*AQ13*AQ14*1000 -> 0 | AR15: 0 | AS15: 0 | AT15: 0 | AU15: 0 | AV15: 0 | AW15: 0 | AX15: 0 | AY15: 0 | AZ15: 0 | BA15: 0 | BB15: 0 | BC15: 0 | BD15: 0 | BE15: 0 | BF15: 0 | BG15: 0 | BH15: 0
D17: Generation Before Degradation - P90 | E17: kWh | F17: =InputC!G11 -> 0.2353981077 | K17: =K12*$F$17*K14*1000 -> 0 | L17: 0 | M17: 2062087424 | N17: 2062087424 | O17: 2067736978 | P17: 2062087424 | Q17: 2062087424 | R17: 2062087424 | S17: 2067736978 | T17: 2062087424 | U17: 2062087424 | V17: 2062087424 | W17: 2067736978 | X17: 2062087424 | Y17: 2062087424 | Z17: 2062087424 | AA17: 2067736978 | AB17: 2062087424 | AC17: 2062087424 | AD17: 2062087424 | AE17: 2067736978 | AF17: 2062087424 | AG17: 2062087424 | AH17: 2062087424 | AI17: 2067736978 | AJ17: 2062087424 | AK17: 2062087424 | AL17: 2062087424 | AM17: 2067736978 | AN17: 2062087424 | AO17: 2062087424 | AP17: 2062087424 | AQ17: =AQ12*$F$17*AQ14*1000 -> 0 | AR17: 0 | AS17: 0 | AT17: 0 | AU17: 0 | AV17: 0 | AW17: 0 | AX17: 0 | AY17: 0 | AZ17: 0 | BA17: 0 | BB17: 0 | BC17: 0 | BD17: 0 | BE17: 0 | BF17: 0 | BG17: 0 | BH17: 0
D19: Degradation Index | E19: % p.a. | F19: =InputC!G13 -> 0.005 | J19: 1 | K19: =J19*(1-$F$19*K6) -> 1 | L19: 1 | M19: 0.995 | N19: 0.990025 | O19: 0.985074875 | P19: 0.9801495006 | Q19: 0.9752487531 | R19: 0.9703725094 | S19: 0.9655206468 | T19: 0.9606930436 | U19: 0.9558895784 | V19: 0.9511101305 | W19: 0.9463545798 | X19: 0.9416228069 | Y19: 0.9369146929 | Z19: 0.9322301194 | AA19: 0.9275689688 | AB19: 0.922931124 | AC19: 0.9183164684 | AD19: 0.913724886 | AE19: 0.9091562616 | AF19: 0.9046104803 | AG19: 0.9000874279 | AH19: 0.8955869907 | AI19: 0.8911090558 | AJ19: 0.8866535105 | AK19: 0.8822202429 | AL19: 0.8778091417 | AM19: 0.873420096 | AN19: 0.8690529955 | AO19: 0.8647077306 | AP19: 0.8603841919 | AQ19: =AP19*(1-$F$19*AQ6) -> 0.8603841919 | AR19: 0.8603841919 | AS19: 0.8603841919 | AT19: 0.8603841919 | AU19: 0.8603841919 | AV19: 0.8603841919 | AW19: 0.8603841919 | AX19: 0.8603841919 | AY19: 0.8603841919 | AZ19: 0.8603841919 | BA19: 0.8603841919 | BB19: 0.8603841919 | BC19: 0.8603841919 | BD19: 0.8603841919 | BE19: 0.8603841919 | BF19: 0.8603841919 | BG19: 0.8603841919 | BH19: 0.8603841919
D20: Generation after Degradation - P50 | E20: kWh | K20: =K15*K19 -> 0 | L20: 0 | M20: 2353374000 | N20: 2341607130 | O20: 2336282380 | P20: 2318249599 | Q20: 2306658351 | R20: 2295125059 | S20: 2289906008 | T20: 2272231187 | U20: 2260870031 | V20: 2249565681 | W20: 2244450230 | X20: 2227126263 | Y20: 2215990632 | Z20: 2204910678 | AA20: 2199896772 | AB20: 2182916694 | AC20: 2172002111 | AD20: 2161142100 | AE20: 2156227722 | AF20: 2139584708 | AG20: 2128886784 | AH20: 2118242350 | AI20: 2113425525 | AJ20: 2097112883 | AK20: 2086627319 | AL20: 2076194182 | AM20: 2071472973 | AN20: 2055484145 | AO20: 2045206724 | AP20: 2034980691 | AQ20: =AQ15*AQ19 -> 0 | AR20: 0 | AS20: 0 | AT20: 0 | AU20: 0 | AV20: 0 | AW20: 0 | AX20: 0 | AY20: 0 | AZ20: 0 | BA20: 0 | BB20: 0 | BC20: 0 | BD20: 0 | BE20: 0 | BF20: 0 | BG20: 0 | BH20: 0
D21: Generation after Degradation - P90 | E21: kWh | K21: =K17*K19 -> 0 | L21: 0 | M21: 2051776987 | N21: 2041518102 | O21: 2036875745 | P21: 2021153959 | Q21: 2011048189 | R21: 2000992948 | S21: 1996442745 | T21: 1981033043 | U21: 1971127878 | V21: 1961272239 | W21: 1956812359 | X21: 1941708548 | Y21: 1932000005 | Z21: 1922340005 | AA21: 1917968657 | AB21: 1903164664 | AC21: 1893648840 | AD21: 1884180596 | AE21: 1879896021 | AF21: 1865385895 | AG21: 1856058965 | AH21: 1846778670 | AI21: 1842579146 | AJ21: 1828357053 | AK21: 1819215268 | AL21: 1810119192 | AM21: 1806003030 | AN21: 1792063253 | AO21: 1783102936 | AP21: 1774187422 | AQ21: =AQ17*AQ19 -> 0 | AR21: 0 | AS21: 0 | AT21: 0 | AU21: 0 | AV21: 0 | AW21: 0 | AX21: 0 | AY21: 0 | AZ21: 0 | BA21: 0 | BB21: 0 | BC21: 0 | BD21: 0 | BE21: 0 | BF21: 0 | BG21: 0 | BH21: 0
D23: Development Cost (EPC) | E23: USD/kW | F23: =InputC!G24 -> 5 | G23: USD | H23: =F23*$F$12*1000 -> 5000000 | I23: =SUM(K23:XFD23) -> 5000000 | K23: =$H$23*K4 -> 5000000 | L23: 0 | M23: 0 | N23: 0 | O23: 0 | P23: 0 | Q23: 0 | R23: 0 | S23: 0 | T23: 0 | U23: 0 | V23: 0 | W23: 0 | X23: 0 | Y23: 0 | Z23: 0 | AA23: 0 | AB23: 0 | AC23: 0 | AD23: 0 | AE23: 0 | AF23: 0 | AG23: 0 | AH23: 0 | AI23: 0 | AJ23: 0 | AK23: 0 | AL23: 0 | AM23: 0 | AN23: 0 | AO23: 0 | AP23: 0 | AQ23: =$H$23*AQ4 -> 0 | AR23: 0 | AS23: 0 | AT23: 0 | AU23: 0 | AV23: 0 | AW23: 0 | AX23: 0 | AY23: 0 | AZ23: 0 | BA23: 0 | BB23: 0 | BC23: 0 | BD23: 0 | BE23: 0 | BF23: 0 | BG23: 0 | BH23: 0
D24: Development Fee | E24: USD/kW | F24: =InputC!G18 -> 0 | G24: USD | H24: =F24*$F$12*1000 -> 0 | I24: =SUM(K24:XFD24) -> 0 | K24: =$H$24*K4 -> 0 | L24: 0 | M24: 0 | N24: 0 | O24: 0 | P24: 0 | Q24: 0 | R24: 0 | S24: 0 | T24: 0 | U24: 0 | V24: 0 | W24: 0 | X24: 0 | Y24: 0 | Z24: 0 | AA24: 0 | AB24: 0 | AC24: 0 | AD24: 0 | AE24: 0 | AF24: 0 | AG24: 0 | AH24: 0 | AI24: 0 | AJ24: 0 | AK24: 0 | AL24: 0 | AM24: 0 | AN24: 0 | AO24: 0 | AP24: 0 | AQ24: =$H$24*AQ4 -> 0 | AR24: 0 | AS24: 0 | AT24: 0 | AU24: 0 | AV24: 0 | AW24: 0 | AX24: 0 | AY24: 0 | AZ24: 0 | BA24: 0 | BB24: 0 | BC24: 0 | BD24: 0 | BE24: 0 | BF24: 0 | BG24: 0 | BH24: 0
D25: EPC cost | E25: USD/kW | F25: =InputC!G16 -> 500 | G25: USD | H25: =F25*$F$12*1000 -> 500000000 | I25: =SUM(K25:XFD25) -> 500000000 | K25: =$H$25*K5 -> 0 | L25: 500000000 | M25: 0 | N25: 0 | O25: 0 | P25: 0 | Q25: 0 | R25: 0 | S25: 0 | T25: 0 | U25: 0 | V25: 0 | W25: 0 | X25: 0 | Y25: 0 | Z25: 0 | AA25: 0 | AB25: 0 | AC25: 0 | AD25: 0 | AE25: 0 | AF25: 0 | AG25: 0 | AH25: 0 | AI25: 0 | AJ25: 0 | AK25: 0 | AL25: 0 | AM25: 0 | AN25: 0 | AO25: 0 | AP25: 0 | AQ25: =$H$25*AQ5 -> 0 | AR25: 0 | AS25: 0 | AT25: 0 | AU25: 0 | AV25: 0 | AW25: 0 | AX25: 0 | AY25: 0 | AZ25: 0 | BA25: 0 | BB25: 0 | BC25: 0 | BD25: 0 | BE25: 0 | BF25: 0 | BG25: 0 | BH25: 0
D26: Total Capital Expenditures | E26: USD | I26: =SUM(K26:XFD26) -> 505000000 | K26: =SUM(K23:K25) -> 5000000 | L26: 500000000 | M26: 0 | N26: 0 | O26: 0 | P26: 0 | Q26: 0 | R26: 0 | S26: 0 | T26: 0 | U26: 0 | V26: 0 | W26: 0 | X26: 0 | Y26: 0 | Z26: 0 | AA26: 0 | AB26: 0 | AC26: 0 | AD26: 0 | AE26: 0 | AF26: 0 | AG26: 0 | AH26: 0 | AI26: 0 | AJ26: 0 | AK26: 0 | AL26: 0 | AM26: 0 | AN26: 0 | AO26: 0 | AP26: 0 | AQ26: =SUM(AQ23:AQ25) -> 0 | AR26: 0 | AS26: 0 | AT26: 0 | AU26: 0 | AV26: 0 | AW26: 0 | AX26: 0 | AY26: 0 | AZ26: 0 | BA26: 0 | BB26: 0 | BC26: 0 | BD26: 0 | BE26: 0 | BF26: 0 | BG26: 0 | BH26: 0
D28: Base PPA Price | E28: USD/kWh | F28: =InputC!G20 -> 0.02 | K28: =$F$28 -> 0.02 | L28: 0.02 | M28: 0.02 | N28: 0.02 | O28: 0.02 | P28: 0.02 | Q28: 0.02 | R28: 0.02 | S28: 0.02 | T28: 0.02 | U28: 0.02 | V28: 0.02 | W28: 0.02 | X28: 0.02 | Y28: 0.02 | Z28: 0.02 | AA28: 0.02 | AB28: 0.02 | AC28: 0.02 | AD28: 0.02 | AE28: 0.02 | AF28: 0.02 | AG28: 0.02 | AH28: 0.02 | AI28: 0.02 | AJ28: 0.02 | AK28: 0.02 | AL28: 0.02 | AM28: 0.02 | AN28: 0.02 | AO28: 0.02 | AP28: 0.02 | AQ28: =$F$28 -> 0.02 | AR28: 0.02 | AS28: 0.02 | AT28: 0.02 | AU28: 0.02 | AV28: 0.02 | AW28: 0.02 | AX28: 0.02 | AY28: 0.02 | AZ28: 0.02 | BA28: 0.02 | BB28: 0.02 | BC28: 0.02 | BD28: 0.02 | BE28: 0.02 | BF28: 0.02 | BG28: 0.02 | BH28: 0.02
D29: Allow PPA Inlfation | E29: Index | F29: =InputC!G21 -> TRUE | G29: =InputC!G22 -> 0.025 | J29: 1 | K29: =J29*(1+$G$29*K6*$F$29) -> 1 | L29: 1 | M29: 1.025 | N29: 1.050625 | O29: 1.076890625 | P29: 1.103812891 | Q29: 1.131408213 | R29: 1.159693418 | S29: 1.188685754 | T29: 1.218402898 | U29: 1.24886297 | V29: 1.280084544 | W29: 1.312086658 | X29: 1.344888824 | Y29: 1.378511045 | Z29: 1.412973821 | AA29: 1.448298166 | AB29: 1.484505621 | AC29: 1.521618261 | AD29: 1.559658718 | AE29: 1.598650186 | AF29: 1.63861644 | AG29: 1.679581851 | AH29: 1.721571398 | AI29: 1.764610683 | AJ29: 1.80872595 | AK29: 1.853944098 | AL29: 1.900292701 | AM29: 1.947800018 | AN29: 1.996495019 | AO29: 2.046407394 | AP29: 2.097567579 | AQ29: =AP29*(1+$G$29*AQ6*$F$29) -> 2.097567579 | AR29: 2.097567579 | AS29: 2.097567579 | AT29: 2.097567579 | AU29: 2.097567579 | AV29: 2.097567579 | AW29: 2.097567579 | AX29: 2.097567579 | AY29: 2.097567579 | AZ29: 2.097567579 | BA29: 2.097567579 | BB29: 2.097567579 | BC29: 2.097567579 | BD29: 2.097567579 | BE29: 2.097567579 | BF29: 2.097567579 | BG29: 2.097567579 | BH29: 2.097567579
D30: Nominal PPA Price | E30: USD/kWh | K30: =K28*K29 -> 0.02 | L30: 0.02 | M30: 0.0205 | N30: 0.0210125 | O30: 0.0215378125 | P30: 0.02207625781 | Q30: 0.02262816426 | R30: 0.02319386836 | S30: 0.02377371507 | T30: 0.02436805795 | U30: 0.0249772594 | V30: 0.02560169088 | W30: 0.02624173316 | X30: 0.02689777648 | Y30: 0.0275702209 | Z30: 0.02825947642 | AA30: 0.02896596333 | AB30: 0.02969011241 | AC30: 0.03043236522 | AD30: 0.03119317435 | AE30: 0.03197300371 | AF30: 0.03277232881 | AG30: 0.03359163703 | AH30: 0.03443142795 | AI30: 0.03529221365 | AJ30: 0.03617451899 | AK30: 0.03707888197 | AL30: 0.03800585402 | AM30: 0.03895600037 | AN30: 0.03992990038 | AO30: 0.04092814788 | AP30: 0.04195135158 | AQ30: =AQ28*AQ29 -> 0.04195135158 | AR30: 0.04195135158 | AS30: 0.04195135158 | AT30: 0.04195135158 | AU30: 0.04195135158 | AV30: 0.04195135158 | AW30: 0.04195135158 | AX30: 0.04195135158 | AY30: 0.04195135158 | AZ30: 0.04195135158 | BA30: 0.04195135158 | BB30: 0.04195135158 | BC30: 0.04195135158 | BD30: 0.04195135158 | BE30: 0.04195135158 | BF30: 0.04195135158 | BG30: 0.04195135158 | BH30: 0.04195135158
D32: Revenues- P50 | E32: USD | I32: =SUM(K32:XFD32) -> 1954580100 | K32: =K20*K30 -> 0 | L32: 0 | M32: 48244167 | N32: 49203019.82 | O32: 50318411.84 | P32: 51178275.82 | Q32: 52195444.05 | R32: 53232828.5 | S32: 54439572.97 | T32: 55369861.23 | U32: 56470337.22 | V32: 57592685.18 | W32: 58898264.01 | X32: 59904744.42 | Y32: 61095351.22 | Z32: 62309621.32 | AA32: 63722129.23 | AB32: 64811042.05 | AC32: 66099161.51 | AD32: 67412882.34 | AE32: 68941076.98 | AF32: 70119173.56 | AG32: 71512792.13 | AH32: 72934108.87 | AI32: 74587465.18 | AJ32: 75862049.82 | AK32: 77369808.06 | AL32: 78907532.99 | AM32: 80696301.91 | AN32: 82075277.14 | AO32: 83706523.27 | AP32: 85370190.42 | AQ32: =AQ20*AQ30 -> 0 | AR32: 0 | AS32: 0 | AT32: 0 | AU32: 0 | AV32: 0 | AW32: 0 | AX32: 0 | AY32: 0 | AZ32: 0 | BA32: 0 | BB32: 0 | BC32: 0 | BD32: 0 | BE32: 0 | BF32: 0 | BG32: 0 | BH32: 0
D33: Revenues- P90 | E33: USD | I33: =SUM(K33:XFD33) -> 1704090581 | K33: =K30*K21 -> 0 | L33: 0 | M33: 42061428.23 | N33: 42897399.11 | O33: 43869847.89 | P33: 44619515.87 | Q33: 45506328.75 | R33: 46410767.03 | S33: 47462860.97 | T33: 48273928 | U33: 49233372.32 | V33: 50211885.59 | W33: 51350147.77 | X33: 52227642.52 | Y33: 53265666.92 | Z33: 54324322.05 | AA33: 55555809.78 | AB33: 56505172.81 | AC33: 57628213.12 | AD33: 58773573.85 | AE33: 60105922.46 | AF33: 61133039.89 | AG33: 62348059.06 | AH33: 63587226.73 | AI33: 65028696.9 | AJ33: 66139936.94 | AK33: 67454468.19 | AL33: 68795125.75 | AM33: 70354654.7 | AN33: 71556907.14 | AO33: 72979100.67 | AP33: 74429560.3 | AQ33: =AQ30*AQ21 -> 0 | AR33: 0 | AS33: 0 | AT33: 0 | AU33: 0 | AV33: 0 | AW33: 0 | AX33: 0 | AY33: 0 | AZ33: 0 | BA33: 0 | BB33: 0 | BC33: 0 | BD33: 0 | BE33: 0 | BF33: 0 | BG33: 0 | BH33: 0
D35: O&M Expenses | E35: USD/kWp | F35: =InputC!G24 -> 5 | K35: =$F$35*K6 -> 0 | L35: 0 | M35: 5 | N35: 5 | O35: 5 | P35: 5 | Q35: 5 | R35: 5 | S35: 5 | T35: 5 | U35: 5 | V35: 5 | W35: 5 | X35: 5 | Y35: 5 | Z35: 5 | AA35: 5 | AB35: 5 | AC35: 5 | AD35: 5 | AE35: 5 | AF35: 5 | AG35: 5 | AH35: 5 | AI35: 5 | AJ35: 5 | AK35: 5 | AL35: 5 | AM35: 5 | AN35: 5 | AO35: 5 | AP35: 5 | AQ35: =$F$35*AQ6 -> 0 | AR35: 0 | AS35: 0 | AT35: 0 | AU35: 0 | AV35: 0 | AW35: 0 | AX35: 0 | AY35: 0 | AZ35: 0 | BA35: 0 | BB35: 0 | BC35: 0 | BD35: 0 | BE35: 0 | BF35: 0 | BG35: 0 | BH35: 0
D36: Administrative Expenses | E36: USD/kWp | F36: =InputC!G25 -> 2 | K36: =$F$36*K6 -> 0 | L36: 0 | M36: 2 | N36: 2 | O36: 2 | P36: 2 | Q36: 2 | R36: 2 | S36: 2 | T36: 2 | U36: 2 | V36: 2 | W36: 2 | X36: 2 | Y36: 2 | Z36: 2 | AA36: 2 | AB36: 2 | AC36: 2 | AD36: 2 | AE36: 2 | AF36: 2 | AG36: 2 | AH36: 2 | AI36: 2 | AJ36: 2 | AK36: 2 | AL36: 2 | AM36: 2 | AN36: 2 | AO36: 2 | AP36: 2 | AQ36: =$F$36*AQ6 -> 0 | AR36: 0 | AS36: 0 | AT36: 0 | AU36: 0 | AV36: 0 | AW36: 0 | AX36: 0 | AY36: 0 | AZ36: 0 | BA36: 0 | BB36: 0 | BC36: 0 | BD36: 0 | BE36: 0 | BF36: 0 | BG36: 0 | BH36: 0
D37: Total Expenses | E37: USD/kWp | F37: =F35+F36 -> 7 | K37: =SUM(K35:K36) -> 0 | L37: 0 | M37: 7 | N37: 7 | O37: 7 | P37: 7 | Q37: 7 | R37: 7 | S37: 7 | T37: 7 | U37: 7 | V37: 7 | W37: 7 | X37: 7 | Y37: 7 | Z37: 7 | AA37: 7 | AB37: 7 | AC37: 7 | AD37: 7 | AE37: 7 | AF37: 7 | AG37: 7 | AH37: 7 | AI37: 7 | AJ37: 7 | AK37: 7 | AL37: 7 | AM37: 7 | AN37: 7 | AO37: 7 | AP37: 7 | AQ37: =SUM(AQ35:AQ36) -> 0 | AR37: 0 | AS37: 0 | AT37: 0 | AU37: 0 | AV37: 0 | AW37: 0 | AX37: 0 | AY37: 0 | AZ37: 0 | BA37: 0 | BB37: 0 | BC37: 0 | BD37: 0 | BE37: 0 | BF37: 0 | BG37: 0 | BH37: 0
D38: Inflation Index | E38: % p.a. | F38: =InputC!G28 -> 0.025 | J38: 1 | K38: =J38*(1+$F$38*K6) -> 1 | L38: 1 | M38: 1.025 | N38: 1.050625 | O38: 1.076890625 | P38: 1.103812891 | Q38: 1.131408213 | R38: 1.159693418 | S38: 1.188685754 | T38: 1.218402898 | U38: 1.24886297 | V38: 1.280084544 | W38: 1.312086658 | X38: 1.344888824 | Y38: 1.378511045 | Z38: 1.412973821 | AA38: 1.448298166 | AB38: 1.484505621 | AC38: 1.521618261 | AD38: 1.559658718 | AE38: 1.598650186 | AF38: 1.63861644 | AG38: 1.679581851 | AH38: 1.721571398 | AI38: 1.764610683 | AJ38: 1.80872595 | AK38: 1.853944098 | AL38: 1.900292701 | AM38: 1.947800018 | AN38: 1.996495019 | AO38: 2.046407394 | AP38: 2.097567579 | AQ38: =AP38*(1+$F$38*AQ6) -> 2.097567579 | AR38: 2.097567579 | AS38: 2.097567579 | AT38: 2.097567579 | AU38: 2.097567579 | AV38: 2.097567579 | AW38: 2.097567579 | AX38: 2.097567579 | AY38: 2.097567579 | AZ38: 2.097567579 | BA38: 2.097567579 | BB38: 2.097567579 | BC38: 2.097567579 | BD38: 2.097567579 | BE38: 2.097567579 | BF38: 2.097567579 | BG38: 2.097567579 | BH38: 2.097567579
D40: Inflated Expenses | E40: USD | I40: =SUM(K40:XFD40) -> 315001895.2 | K40: =K38*K37*K12*1000 -> 0 | L40: 0 | M40: 7175000 | N40: 7354375 | O40: 7538234.375 | P40: 7726690.234 | Q40: 7919857.49 | R40: 8117853.927 | S40: 8320800.276 | T40: 8528820.283 | U40: 8742040.79 | V40: 8960591.809 | W40: 9184606.605 | X40: 9414221.77 | Y40: 9649577.314 | Z40: 9890816.747 | AA40: 10138087.17 | AB40: 10391539.34 | AC40: 10651327.83 | AD40: 10917611.02 | AE40: 11190551.3 | AF40: 11470315.08 | AG40: 11757072.96 | AH40: 12050999.78 | AI40: 12352274.78 | AJ40: 12661081.65 | AK40: 12977608.69 | AL40: 13302048.91 | AM40: 13634600.13 | AN40: 13975465.13 | AO40: 14324851.76 | AP40: 14682973.05 | AQ40: =AQ38*AQ37*AQ12*1000 -> 0 | AR40: 0 | AS40: 0 | AT40: 0 | AU40: 0 | AV40: 0 | AW40: 0 | AX40: 0 | AY40: 0 | AZ40: 0 | BA40: 0 | BB40: 0 | BC40: 0 | BD40: 0 | BE40: 0 | BF40: 0 | BG40: 0 | BH40: 0
D42: Project Cost | E42: USD | F42: =H25 -> 500000000 | K42: =$F$42 -> 500000000 | L42: 500000000 | M42: 500000000 | N42: 500000000 | O42: 500000000 | P42: 500000000 | Q42: 500000000 | R42: 500000000 | S42: 500000000 | T42: 500000000 | U42: 500000000 | V42: 500000000 | W42: 500000000 | X42: 500000000 | Y42: 500000000 | Z42: 500000000 | AA42: 500000000 | AB42: 500000000 | AC42: 500000000 | AD42: 500000000 | AE42: 500000000 | AF42: 500000000 | AG42: 500000000 | AH42: 500000000 | AI42: 500000000 | AJ42: 500000000 | AK42: 500000000 | AL42: 500000000 | AM42: 500000000 | AN42: 500000000 | AO42: 500000000 | AP42: 500000000 | AQ42: =$F$42 -> 500000000 | AR42: 500000000 | AS42: 500000000 | AT42: 500000000 | AU42: 500000000 | AV42: 500000000 | AW42: 500000000 | AX42: 500000000 | AY42: 500000000 | AZ42: 500000000 | BA42: 500000000 | BB42: 500000000 | BC42: 500000000 | BD42: 500000000 | BE42: 500000000 | BF42: 500000000 | BG42: 500000000 | BH42: 500000000
D43: Accumulated Depreciation | E43: USD | F43: =F42/F6 -> 16666666.67 | K43: =$F$43*K6+J43 -> 0 | L43: 0 | M43: 16666666.67 | N43: 33333333.33 | O43: 50000000 | P43: 66666666.67 | Q43: 83333333.33 | R43: 100000000 | S43: 116666666.7 | T43: 133333333.3 | U43: 150000000 | V43: 166666666.7 | W43: 183333333.3 | X43: 200000000 | Y43: 216666666.7 | Z43: 233333333.3 | AA43: 250000000 | AB43: 266666666.7 | AC43: 283333333.3 | AD43: 300000000 | AE43: 316666666.7 | AF43: 333333333.3 | AG43: 350000000 | AH43: 366666666.7 | AI43: 383333333.3 | AJ43: 400000000 | AK43: 416666666.7 | AL43: 433333333.3 | AM43: 450000000 | AN43: 466666666.7 | AO43: 483333333.3 | AP43: 500000000 | AQ43: =$F$43*AQ6+AP43 -> 500000000 | AR43: 500000000 | AS43: 500000000 | AT43: 500000000 | AU43: 500000000 | AV43: 500000000 | AW43: 500000000 | AX43: 500000000 | AY43: 500000000 | AZ43: 500000000 | BA43: 500000000 | BB43: 500000000 | BC43: 500000000 | BD43: 500000000 | BE43: 500000000 | BF43: 500000000 | BG43: 500000000 | BH43: 500000000
D44: Net Cost | K44: =(K42-K43)*K6 -> 0 | L44: 0 | M44: 483333333.3 | N44: 466666666.7 | O44: 450000000 | P44: 433333333.3 | Q44: 416666666.7 | R44: 400000000 | S44: 383333333.3 | T44: 366666666.7 | U44: 350000000 | V44: 333333333.3 | W44: 316666666.7 | X44: 300000000 | Y44: 283333333.3 | Z44: 266666666.7 | AA44: 250000000 | AB44: 233333333.3 | AC44: 216666666.7 | AD44: 200000000 | AE44: 183333333.3 | AF44: 166666666.7 | AG44: 150000000 | AH44: 133333333.3 | AI44: 116666666.7 | AJ44: 100000000 | AK44: 83333333.33 | AL44: 66666666.67 | AM44: 50000000 | AN44: 33333333.33 | AO44: 16666666.67 | AP44: -1.788139343e-07 | AQ44: =(AQ42-AQ43)*AQ6 -> 0 | AR44: 0 | AS44: 0 | AT44: 0 | AU44: 0 | AV44: 0 | AW44: 0 | AX44: 0 | AY44: 0 | AZ44: 0 | BA44: 0 | BB44: 0 | BC44: 0 | BD44: 0 | BE44: 0 | BF44: 0 | BG44: 0 | BH44: 0
D46: Insurance | E46: % | F46: =InputC!G26 -> 0.01 | G46: USD | I46: =SUM(K46:XFD46) -> 72500000 | K46: =$F$46*K44 -> 0 | L46: 0 | M46: 4833333.333 | N46: 4666666.667 | O46: 4500000 | P46: 4333333.333 | Q46: 4166666.667 | R46: 4000000 | S46: 3833333.333 | T46: 3666666.667 | U46: 3500000 | V46: 3333333.333 | W46: 3166666.667 | X46: 3000000 | Y46: 2833333.333 | Z46: 2666666.667 | AA46: 2500000 | AB46: 2333333.333 | AC46: 2166666.667 | AD46: 2000000 | AE46: 1833333.333 | AF46: 1666666.667 | AG46: 1500000 | AH46: 1333333.333 | AI46: 1166666.667 | AJ46: 1000000 | AK46: 833333.3333 | AL46: 666666.6667 | AM46: 500000 | AN46: 333333.3333 | AO46: 166666.6667 | AP46: -1.788139343e-09 | AQ46: =$F$46*AQ44 -> 0 | AR46: 0 | AS46: 0 | AT46: 0 | AU46: 0 | AV46: 0 | AW46: 0 | AX46: 0 | AY46: 0 | AZ46: 0 | BA46: 0 | BB46: 0 | BC46: 0 | BD46: 0 | BE46: 0 | BF46: 0 | BG46: 0 | BH46: 0
D48: Total Operating Expenses | E48: USD | I48: =SUM(K48:XFD48) -> 387501895.2 | K48: =K46+K40 -> 0 | L48: 0 | M48: 12008333.33 | N48: 12021041.67 | O48: 12038234.38 | P48: 12060023.57 | Q48: 12086524.16 | R48: 12117853.93 | S48: 12154133.61 | T48: 12195486.95 | U48: 12242040.79 | V48: 12293925.14 | W48: 12351273.27 | X48: 12414221.77 | Y48: 12482910.65 | Z48: 12557483.41 | AA48: 12638087.17 | AB48: 12724872.68 | AC48: 12817994.49 | AD48: 12917611.02 | AE48: 13023884.63 | AF48: 13136981.75 | AG48: 13257072.96 | AH48: 13384333.12 | AI48: 13518941.44 | AJ48: 13661081.65 | AK48: 13810942.02 | AL48: 13968715.57 | AM48: 14134600.13 | AN48: 14308798.46 | AO48: 14491518.43 | AP48: 14682973.05 | AQ48: =AQ46+AQ40 -> 0 | AR48: 0 | AS48: 0 | AT48: 0 | AU48: 0 | AV48: 0 | AW48: 0 | AX48: 0 | AY48: 0 | AZ48: 0 | BA48: 0 | BB48: 0 | BC48: 0 | BD48: 0 | BE48: 0 | BF48: 0 | BG48: 0 | BH48: 0
D50: EBITDA p.a. - P50 | E50: USD | K50: =K32-K48 -> 0 | L50: 0 | M50: 36235833.67 | N50: 37181978.15 | O50: 38280177.46 | P50: 39118252.25 | Q50: 40108919.89 | R50: 41114974.57 | S50: 42285439.36 | T50: 43174374.28 | U50: 44228296.44 | V50: 45298760.03 | W50: 46546990.74 | X50: 47490522.65 | Y50: 48612440.57 | Z50: 49752137.91 | AA50: 51084042.06 | AB50: 52086169.37 | AC50: 53281167.01 | AD50: 54495271.32 | AE50: 55917192.34 | AF50: 56982191.81 | AG50: 58255719.17 | AH50: 59549775.76 | AI50: 61068523.73 | AJ50: 62200968.17 | AK50: 63558866.03 | AL50: 64938817.42 | AM50: 66561701.78 | AN50: 67766478.67 | AO50: 69215004.84 | AP50: 70687217.36 | AQ50: =AQ32-AQ48 -> 0 | AR50: 0 | AS50: 0 | AT50: 0 | AU50: 0 | AV50: 0 | AW50: 0 | AX50: 0 | AY50: 0 | AZ50: 0 | BA50: 0 | BB50: 0 | BC50: 0 | BD50: 0 | BE50: 0 | BF50: 0 | BG50: 0 | BH50: 0
D51: EBITDA p.a. - P90 | E51: USD | K51: =K33-K48 -> 0 | L51: 0 | M51: 30053094.89 | N51: 30876357.44 | O51: 31831613.52 | P51: 32559492.3 | Q51: 33419804.59 | R51: 34292913.1 | S51: 35308727.36 | T51: 36078441.05 | U51: 36991331.53 | V51: 37917960.45 | W51: 38998874.5 | X51: 39813420.75 | Y51: 40782756.27 | Z51: 41766838.64 | AA51: 42917722.61 | AB51: 43780300.13 | AC51: 44810218.62 | AD51: 45855962.83 | AE51: 47082037.83 | AF51: 47996058.14 | AG51: 49090986.1 | AH51: 50202893.62 | AI51: 51509755.46 | AJ51: 52478855.3 | AK51: 53643526.17 | AL51: 54826410.17 | AM51: 56220054.58 | AN51: 57248108.68 | AO51: 58487582.25 | AP51: 59746587.25 | AQ51: =AQ33-AQ48 -> 0 | AR51: 0 | AS51: 0 | AT51: 0 | AU51: 0 | AV51: 0 | AW51: 0 | AX51: 0 | AY51: 0 | AZ51: 0 | BA51: 0 | BB51: 0 | BC51: 0 | BD51: 0 | BE51: 0 | BF51: 0 | BG51: 0 | BH51: 0
D53: Project Cash Flow - Development Fee Excluded | E53: USD | K53: =K50-K26 -> -5000000 | L53: -500000000 | M53: 36235833.67 | N53: 37181978.15 | O53: 38280177.46 | P53: 39118252.25 | Q53: 40108919.89 | R53: 41114974.57 | S53: 42285439.36 | T53: 43174374.28 | U53: 44228296.44 | V53: 45298760.03 | W53: 46546990.74 | X53: 47490522.65 | Y53: 48612440.57 | Z53: 49752137.91 | AA53: 51084042.06 | AB53: 52086169.37 | AC53: 53281167.01 | AD53: 54495271.32 | AE53: 55917192.34 | AF53: 56982191.81 | AG53: 58255719.17 | AH53: 59549775.76 | AI53: 61068523.73 | AJ53: 62200968.17 | AK53: 63558866.03 | AL53: 64938817.42 | AM53: 66561701.78 | AN53: 67766478.67 | AO53: 69215004.84 | AP53: 70687217.36 | AQ53: =AQ50-AQ26 -> 0 | AR53: 0 | AS53: 0 | AT53: 0 | AU53: 0 | AV53: 0 | AW53: 0 | AX53: 0 | AY53: 0 | AZ53: 0 | BA53: 0 | BB53: 0 | BC53: 0 | BD53: 0 | BE53: 0 | BF53: 0 | BG53: 0 | BH53: 0
D54: Project IRR | E54: % | F54: =XIRR(K53:BH53, K2:BH2) -> 0.08233112395
B56: Debt Sizing
C57: Total Project Cost
D58: Development Cost | F58: =H23 -> 5000000
D59: Development Fee | F59: =H24 -> 0
D60: EPC Cost | F60: =H25 -> 500000000
D61: Total Uses | F61: =SUM(F58:F60) -> 505000000
D63: Debt Size from Debt to Capital | E63: USD | F63: =H63*F61 -> 404000000 | G63: % | H63: =InputC!G34 -> 0.8
C65: Debt Size from Cash Flow and DSCR
D66: Interest Rate | E66: % p.a. | F66: =InputC!$G$51 -> 0.043 | K66: =$F$66 -> 0.043 | L66: 0.043 | M66: 0.043 | N66: 0.043 | O66: 0.043 | P66: 0.043 | Q66: 0.043 | R66: 0.043 | S66: 0.043 | T66: 0.043 | U66: 0.043 | V66: 0.043 | W66: 0.043 | X66: 0.043 | Y66: 0.043 | Z66: 0.043 | AA66: 0.043 | AB66: 0.043 | AC66: 0.043 | AD66: 0.043 | AE66: 0.043 | AF66: 0.043 | AG66: 0.043 | AH66: 0.043 | AI66: 0.043 | AJ66: 0.043 | AK66: 0.043 | AL66: 0.043 | AM66: 0.043 | AN66: 0.043 | AO66: 0.043 | AP66: 0.043 | AQ66: =$F$66 -> 0.043 | AR66: 0.043 | AS66: 0.043 | AT66: 0.043 | AU66: 0.043 | AV66: 0.043 | AW66: 0.043 | AX66: 0.043 | AY66: 0.043 | AZ66: 0.043 | BA66: 0.043 | BB66: 0.043 | BC66: 0.043 | BD66: 0.043 | BE66: 0.043 | BF66: 0.043 | BG66: 0.043 | BH66: 0.043
D67: Credit Spread | E67: % p.a. | F67: Lookup | K67: =LOOKUP(K7,InputC!42:42,InputC!43:43) -> 0 | L67: =LOOKUP(L7,InputC!42:42,InputC!43:43) -> 0 | M67: =LOOKUP(M7,InputC!42:42,InputC!43:43) -> 0.015 | N67: =LOOKUP(N7,InputC!42:42,InputC!43:43) -> 0.015 | O67: =LOOKUP(O7,InputC!42:42,InputC!43:43) -> 0.0175 | P67: =LOOKUP(P7,InputC!42:42,InputC!43:43) -> 0.0175 | Q67: =LOOKUP(Q7,InputC!42:42,InputC!43:43) -> 0.02 | R67: =LOOKUP(R7,InputC!42:42,InputC!43:43) -> 0.02 | S67: =LOOKUP(S7,InputC!42:42,InputC!43:43) -> 0.02 | T67: =LOOKUP(T7,InputC!42:42,InputC!43:43) -> 0.0225 | U67: =LOOKUP(U7,InputC!42:42,InputC!43:43) -> 0.0225 | V67: =LOOKUP(V7,InputC!42:42,InputC!43:43) -> 0.0225 | W67: =LOOKUP(W7,InputC!42:42,InputC!43:43) -> 0.0225 | X67: =LOOKUP(X7,InputC!42:42,InputC!43:43) -> 0.0225 | Y67: =LOOKUP(Y7,InputC!42:42,InputC!43:43) -> 0.0225 | Z67: =LOOKUP(Z7,InputC!42:42,InputC!43:43) -> 0.0225 | AA67: =LOOKUP(AA7,InputC!42:42,InputC!43:43) -> 0.0225 | AB67: =LOOKUP(AB7,InputC!42:42,InputC!43:43) -> 0.0225 | AC67: =LOOKUP(AC7,InputC!42:42,InputC!43:43) -> 0.0225 | AD67: =LOOKUP(AD7,InputC!42:42,InputC!43:43) -> 0.0225 | AE67: =LOOKUP(AE7,InputC!42:42,InputC!43:43) -> 0.0225 | AF67: =LOOKUP(AF7,InputC!42:42,InputC!43:43) -> 0.0225 | AG67: =LOOKUP(AG7,InputC!42:42,InputC!43:43) -> 0.0225 | AH67: =LOOKUP(AH7,InputC!42:42,InputC!43:43) -> 0.0225 | AI67: =LOOKUP(AI7,InputC!42:42,InputC!43:43) -> 0.0225 | AJ67: =LOOKUP(AJ7,InputC!42:42,InputC!43:43) -> 0.0225 | AK67: =LOOKUP(AK7,InputC!42:42,InputC!43:43) -> 0.0225 | AL67: =LOOKUP(AL7,InputC!42:42,InputC!43:43) -> 0.0225 | AM67: =LOOKUP(AM7,InputC!42:42,InputC!43:43) -> 0.0225 | AN67: =LOOKUP(AN7,InputC!42:42,InputC!43:43) -> 0.0225 | AO67: =LOOKUP(AO7,InputC!42:42,InputC!43:43) -> 0.0225 | AP67: =LOOKUP(AP7,InputC!42:42,InputC!43:43) -> 0.0225 | AQ67: =LOOKUP(AQ7,InputC!42:42,InputC!43:43) -> 0.0225 | AR67: =LOOKUP(AR7,InputC!42:42,InputC!43:43) -> 0.0225 | AS67: =LOOKUP(AS7,InputC!42:42,InputC!43:43) -> 0.0225 | AT67: =LOOKUP(AT7,InputC!42:42,InputC!43:43) -> 0.0225 | AU67: =LOOKUP(AU7,InputC!42:42,InputC!43:43) -> 0.0225 | AV67: =LOOKUP(AV7,InputC!42:42,InputC!43:43) -> 0.0225 | AW67: =LOOKUP(AW7,InputC!42:42,InputC!43:43) -> 0.0225 | AX67: =LOOKUP(AX7,InputC!42:42,InputC!43:43) -> 0.0225 | AY67: =LOOKUP(AY7,InputC!42:42,InputC!43:43) -> 0.0225 | AZ67: =LOOKUP(AZ7,InputC!42:42,InputC!43:43) -> 0.0225 | BA67: =LOOKUP(BA7,InputC!42:42,InputC!43:43) -> 0.0225 | BB67: =LOOKUP(BB7,InputC!42:42,InputC!43:43) -> 0.0225 | BC67: =LOOKUP(BC7,InputC!42:42,InputC!43:43) -> 0.0225 | BD67: =LOOKUP(BD7,InputC!42:42,InputC!43:43) -> 0.0225 | BE67: =LOOKUP(BE7,InputC!42:42,InputC!43:43) -> 0.0225 | BF67: =LOOKUP(BF7,InputC!42:42,InputC!43:43) -> 0.0225 | BG67: =LOOKUP(BG7,InputC!42:42,InputC!43:43) -> 0.0225 | BH67: =LOOKUP(BH7,InputC!42:42,InputC!43:43) -> 0.0225
D68: Total Interest Rate | E68: % p.a. | K68: =SUM(K66:K67) -> 0.043 | L68: 0.043 | M68: 0.058 | N68: 0.058 | O68: 0.0605 | P68: 0.0605 | Q68: 0.063 | R68: 0.063 | S68: 0.063 | T68: 0.0655 | U68: 0.0655 | V68: 0.0655 | W68: 0.0655 | X68: 0.0655 | Y68: 0.0655 | Z68: 0.0655 | AA68: 0.0655 | AB68: 0.0655 | AC68: 0.0655 | AD68: 0.0655 | AE68: 0.0655 | AF68: 0.0655 | AG68: 0.0655 | AH68: 0.0655 | AI68: 0.0655 | AJ68: 0.0655 | AK68: 0.0655 | AL68: 0.0655 | AM68: 0.0655 | AN68: 0.0655 | AO68: 0.0655 | AP68: 0.0655 | AQ68: =SUM(AQ66:AQ67) -> 0.0655 | AR68: 0.0655 | AS68: 0.0655 | AT68: 0.0655 | AU68: 0.0655 | AV68: 0.0655 | AW68: 0.0655 | AX68: 0.0655 | AY68: 0.0655 | AZ68: 0.0655 | BA68: 0.0655 | BB68: 0.0655 | BC68: 0.0655 | BD68: 0.0655 | BE68: 0.0655 | BF68: 0.0655 | BG68: 0.0655 | BH68: 0.0655
D70: Interest Rate Index | E70: Index | J70: 1 | K70: =J70*(1+K68*K6) -> 1 | L70: 1 | M70: 1.058 | N70: 1.119364 | O70: 1.187085522 | P70: 1.258904196 | Q70: 1.33821516 | R70: 1.422522716 | S70: 1.512141647 | T70: 1.611186924 | U70: 1.716719668 | V70: 1.829164806 | W70: 1.948975101 | X70: 2.07663297 | Y70: 2.21265243 | Z70: 2.357581164 | AA70: 2.51200273 | AB70: 2.676538909 | AC70: 2.851852208 | AD70: 3.038648527 | AE70: 3.237680006 | AF70: 3.449748046 | AG70: 3.675706543 | AH70: 3.916465322 | AI70: 4.1729938 | AJ70: 4.446324894 | AK70: 4.737559175 | AL70: 5.047869301 | AM70: 5.37850474 | AN70: 5.7307968 | AO70: 6.106163991 | AP70: 6.506117732 | AQ70: =AP70*(1+AQ68*AQ6) -> 6.506117732 | AR70: 6.506117732 | AS70: 6.506117732 | AT70: 6.506117732 | AU70: 6.506117732 | AV70: 6.506117732 | AW70: 6.506117732 | AX70: 6.506117732 | AY70: 6.506117732 | AZ70: 6.506117732 | BA70: 6.506117732 | BB70: 6.506117732 | BC70: 6.506117732 | BD70: 6.506117732 | BE70: 6.506117732 | BF70: 6.506117732 | BG70: 6.506117732 | BH70: 6.506117732
D71: Flag for Debt Tenure | E71: Years | F71: =InputC!G38 -> 25 | K71: =(AND(K7<=$F$71,K6))*1 -> 0 | L71: 0 | M71: 1 | N71: 1 | O71: 1 | P71: 1 | Q71: 1 | R71: 1 | S71: 1 | T71: 1 | U71: 1 | V71: 1 | W71: 1 | X71: 1 | Y71: 1 | Z71: 1 | AA71: 1 | AB71: 1 | AC71: 1 | AD71: 1 | AE71: 1 | AF71: 1 | AG71: 1 | AH71: 1 | AI71: 1 | AJ71: 1 | AK71: 1 | AL71: 0 | AM71: 0 | AN71: 0 | AO71: 0 | AP71: 0 | AQ71: =(AND(AQ7<=$F$71,AQ6))*1 -> 0 | AR71: 0 | AS71: 0 | AT71: 0 | AU71: 0 | AV71: 0 | AW71: 0 | AX71: 0 | AY71: 0 | AZ71: 0 | BA71: 0 | BB71: 0 | BC71: 0 | BD71: 0 | BE71: 0 | BF71: 0 | BG71: 0 | BH71: 0
D72: P90 CFADS (EBITDA for Now) | E72: USD | K72: =K51*K71 -> 0 | L72: 0 | M72: 30053094.89 | N72: 30876357.44 | O72: 31831613.52 | P72: 32559492.3 | Q72: 33419804.59 | R72: 34292913.1 | S72: 35308727.36 | T72: 36078441.05 | U72: 36991331.53 | V72: 37917960.45 | W72: 38998874.5 | X72: 39813420.75 | Y72: 40782756.27 | Z72: 41766838.64 | AA72: 42917722.61 | AB72: 43780300.13 | AC72: 44810218.62 | AD72: 45855962.83 | AE72: 47082037.83 | AF72: 47996058.14 | AG72: 49090986.1 | AH72: 50202893.62 | AI72: 51509755.46 | AJ72: 52478855.3 | AK72: 53643526.17 | AL72: 0 | AM72: 0 | AN72: 0 | AO72: 0 | AP72: 0 | AQ72: =AQ51*AQ71 -> 0 | AR72: 0 | AS72: 0 | AT72: 0 | AU72: 0 | AV72: 0 | AW72: 0 | AX72: 0 | AY72: 0 | AZ72: 0 | BA72: 0 | BB72: 0 | BC72: 0 | BD72: 0 | BE72: 0 | BF72: 0 | BG72: 0 | BH72: 0
D73: Debt Service from P90 | E73: USD | F73: =InputC!G35 -> 1.35 | K73: =K72/$F$73 -> 0 | L73: 0 | M73: 22261551.77 | N73: 22871375.88 | O73: 23578972.97 | P73: 24118142.45 | Q73: 24755410.81 | R73: 25402157.85 | S73: 26154612.86 | T73: 26724771.15 | U73: 27400986.32 | V73: 28087378.11 | W73: 28888055.18 | X73: 29491422.78 | Y73: 30209449.09 | Z73: 30938398.99 | AA73: 31790905.64 | AB73: 32429851.95 | AC73: 33192754.53 | AD73: 33967379.87 | AE73: 34875583.58 | AF73: 35552635.66 | AG73: 36363693.41 | AH73: 37187328.61 | AI73: 38155374.41 | AJ73: 38873226.15 | AK73: 39735945.31 | AL73: 0 | AM73: 0 | AN73: 0 | AO73: 0 | AP73: 0 | AQ73: =AQ72/$F$73 -> 0 | AR73: 0 | AS73: 0 | AT73: 0 | AU73: 0 | AV73: 0 | AW73: 0 | AX73: 0 | AY73: 0 | AZ73: 0 | BA73: 0 | BB73: 0 | BC73: 0 | BD73: 0 | BE73: 0 | BF73: 0 | BG73: 0 | BH73: 0
D74: Debt Size from DSCR (Sumproduct) | E74: USD | F74: =SUMPRODUCT(K73:BH73/K70:BH70) -> 352178995.4
D76: Minimum of Debt/Capital or DSCR | E76: USD | F76: =MIN(F74,F63) -> 352178995.4
D77: Debt Sizing Method Applied | F77: =IF(F76=F74,"DSCR","Debt to Capital") -> DSCR
D78: Debt Sizing Code - 1 Debt/Capital; 2 DSCR | E78: Code | F78: =IF(F76=F74,2,1) -> 2
C80: Sources of Funds
D81: Debt | E81: =F81/F84 -> 0.6973841494 | F81: =F76 -> 352178995.4
D82: Developer/Sponsor | E82: =F82/F84 -> 0.1815695104 | F82: =(F61-F81)*G82 -> 91692602.75 | G82: =InputC!F71 -> 0.6
D83: Partner | E83: =F83/F84 -> 0.1210463403 | F83: =F61-F81-F82 -> 61128401.83 | G83: =InputC!F70 -> 0.4
D84: Total Sources | F84: =SUM(F81:F83) -> 505000000
D86: Equity Funding of EPC | F86: =F61-F81-F59-F58 -> 147821004.6
B88: Cash Flow Waterfall without Re-financing
C89: Overall Cash Flow Waterfall
D90: Flag for Repayment | E90: Flag | K90: =K71 -> 0 | L90: 0 | M90: 1 | N90: 1 | O90: 1 | P90: 1 | Q90: 1 | R90: 1 | S90: 1 | T90: 1 | U90: 1 | V90: 1 | W90: 1 | X90: 1 | Y90: 1 | Z90: 1 | AA90: 1 | AB90: 1 | AC90: 1 | AD90: 1 | AE90: 1 | AF90: 1 | AG90: 1 | AH90: 1 | AI90: 1 | AJ90: 1 | AK90: 1 | AL90: 0 | AM90: 0 | AN90: 0 | AO90: 0 | AP90: 0 | AQ90: =AQ71 -> 0 | AR90: 0 | AS90: 0 | AT90: 0 | AU90: 0 | AV90: 0 | AW90: 0 | AX90: 0 | AY90: 0 | AZ90: 0 | BA90: 0 | BB90: 0 | BC90: 0 | BD90: 0 | BE90: 0 | BF90: 0 | BG90: 0 | BH90: 0
D92: Cash Flow for Repayment (P90) | E92: USD | K92: =K72 -> 0 | L92: 0 | M92: 30053094.89 | N92: 30876357.44 | O92: 31831613.52 | P92: 32559492.3 | Q92: 33419804.59 | R92: 34292913.1 | S92: 35308727.36 | T92: 36078441.05 | U92: 36991331.53 | V92: 37917960.45 | W92: 38998874.5 | X92: 39813420.75 | Y92: 40782756.27 | Z92: 41766838.64 | AA92: 42917722.61 | AB92: 43780300.13 | AC92: 44810218.62 | AD92: 45855962.83 | AE92: 47082037.83 | AF92: 47996058.14 | AG92: 49090986.1 | AH92: 50202893.62 | AI92: 51509755.46 | AJ92: 52478855.3 | AK92: 53643526.17 | AL92: 0 | AM92: 0 | AN92: 0 | AO92: 0 | AP92: 0 | AQ92: =AQ72 -> 0 | AR92: 0 | AS92: 0 | AT92: 0 | AU92: 0 | AV92: 0 | AW92: 0 | AX92: 0 | AY92: 0 | AZ92: 0 | BA92: 0 | BB92: 0 | BC92: 0 | BD92: 0 | BE92: 0 | BF92: 0 | BG92: 0 | BH92: 0
D93: PV of CFADS at Interest Rate | E93: USD | F93: =SUMPRODUCT(K92:BH92/K70:BH70) -> 475441643.8
D94: LLCR for Repayment with Debt/Capital | E94: x | F94: =IF(F81,F93/F81) -> 1.35
D95: Apply LLCR Method | E95: Flag | F95: =InputC!G39 -> TRUE
D96: DSCR Applied for Repayment - Sculpted | E96: USD | F96: =IF(AND(F95,F78),F94,F73) -> 1.35 | I96: =SUMPRODUCT(K96:BH96/K70:BH70) -> 352178995.4 | K96: =IF($F$96,K92/$F$96) -> 0 | L96: 0 | M96: 22261551.77 | N96: 22871375.88 | O96: 23578972.97 | P96: 24118142.45 | Q96: 24755410.81 | R96: 25402157.85 | S96: 26154612.86 | T96: 26724771.15 | U96: 27400986.32 | V96: 28087378.11 | W96: 28888055.18 | X96: 29491422.78 | Y96: 30209449.09 | Z96: 30938398.99 | AA96: 31790905.64 | AB96: 32429851.95 | AC96: 33192754.53 | AD96: 33967379.87 | AE96: 34875583.58 | AF96: 35552635.66 | AG96: 36363693.41 | AH96: 37187328.61 | AI96: 38155374.41 | AJ96: 38873226.15 | AK96: 39735945.31 | AL96: 0 | AM96: 0 | AN96: 0 | AO96: 0 | AP96: 0 | AQ96: =IF($F$96,AQ92/$F$96) -> 0 | AR96: 0 | AS96: 0 | AT96: 0 | AU96: 0 | AV96: 0 | AW96: 0 | AX96: 0 | AY96: 0 | AZ96: 0 | BA96: 0 | BB96: 0 | BC96: 0 | BD96: 0 | BE96: 0 | BF96: 0 | BG96: 0 | BH96: 0
D97: Debt Service Flat | E97: USD
C99: Debt Balance without re-finance
D100: Interest Rate | K100: =K68 -> 0.043 | L100: 0.043 | M100: 0.058 | N100: 0.058 | O100: 0.0605 | P100: 0.0605 | Q100: 0.063 | R100: 0.063 | S100: 0.063 | T100: 0.0655 | U100: 0.0655 | V100: 0.0655 | W100: 0.0655 | X100: 0.0655 | Y100: 0.0655 | Z100: 0.0655 | AA100: 0.0655 | AB100: 0.0655 | AC100: 0.0655 | AD100: 0.0655 | AE100: 0.0655 | AF100: 0.0655 | AG100: 0.0655 | AH100: 0.0655 | AI100: 0.0655 | AJ100: 0.0655 | AK100: 0.0655 | AL100: 0.0655 | AM100: 0.0655 | AN100: 0.0655 | AO100: 0.0655 | AP100: 0.0655 | AQ100: =AQ68 -> 0.0655 | AR100: 0.0655 | AS100: 0.0655 | AT100: 0.0655 | AU100: 0.0655 | AV100: 0.0655 | AW100: 0.0655 | AX100: 0.0655 | AY100: 0.0655 | AZ100: 0.0655 | BA100: 0.0655 | BB100: 0.0655 | BC100: 0.0655 | BD100: 0.0655 | BE100: 0.0655 | BF100: 0.0655 | BG100: 0.0655 | BH100: 0.0655
D101: Opening Balance | K101: =J104 -> 0 | L101: 0 | M101: 352178995.4 | N101: 350343825.4 | O101: 347792391.4 | P101: 345254858.1 | Q101: 342024634.5 | R101: 338816775.7 | S101: 334760074.7 | T101: 329695346.6 | U101: 324565620.6 | V101: 318423682.5 | W101: 311193055.6 | X101: 302688145.5 | Y101: 293022796.3 | Z101: 282006340.3 | AA101: 269539356.6 | AB101: 255403278.8 | AC101: 239702341.7 | AD101: 222210090.5 | AE101: 202797471.6 | AF101: 181205122.4 | AG101: 157521422.2 | AH101: 131475382 | AI101: 102899690.9 | AJ101: 71484246.23 | AK101: 37293238.21 | AL101: -3.203749657e-07 | AM101: -3.413595259e-07 | AN101: -3.637185749e-07 | AO101: -3.875421415e-07 | AP101: -4.129261518e-07 | AQ101: =AP104 -> -4.399728147e-07 | AR101: -4.687910341e-07 | AS101: -4.994968468e-07 | AT101: -5.322138903e-07 | AU101: -5.670739001e-07 | AV101: -6.042172406e-07 | AW101: -6.437934698e-07 | AX101: -6.859619421e-07 | AY101: -7.308924493e-07 | AZ101: -7.787659047e-07 | BA101: -8.297750715e-07 | BB101: -8.841253387e-07 | BC101: -9.420355484e-07 | BD101: -1.003738877e-06 | BE101: -1.069483773e-06 | BF101: -1.13953496e-06 | BG101: -1.2141745e-06 | BH101: -1.29370293e-06
D102: Add: Funding | F102: =F81 -> 352178995.4 | K102: =$F$102*K5 -> 0 | L102: 352178995.4 | M102: 0 | N102: 0 | O102: 0 | P102: 0 | Q102: 0 | R102: 0 | S102: 0 | T102: 0 | U102: 0 | V102: 0 | W102: 0 | X102: 0 | Y102: 0 | Z102: 0 | AA102: 0 | AB102: 0 | AC102: 0 | AD102: 0 | AE102: 0 | AF102: 0 | AG102: 0 | AH102: 0 | AI102: 0 | AJ102: 0 | AK102: 0 | AL102: 0 | AM102: 0 | AN102: 0 | AO102: 0 | AP102: 0 | AQ102: =$F$102*AQ5 -> 0 | AR102: 0 | AS102: 0 | AT102: 0 | AU102: 0 | AV102: 0 | AW102: 0 | AX102: 0 | AY102: 0 | AZ102: 0 | BA102: 0 | BB102: 0 | BC102: 0 | BD102: 0 | BE102: 0 | BF102: 0 | BG102: 0 | BH102: 0
D103: Less: Repayment | K103: =K96-K105 -> 0 | L103: 0 | M103: 1835170.037 | N103: 2551434.013 | O103: 2537533.297 | P103: 3230223.532 | Q103: 3207858.831 | R103: 4056700.984 | S103: 5064728.155 | T103: 5129725.947 | U103: 6141938.166 | V103: 7230626.909 | W103: 8504910.044 | X103: 9665349.25 | Y103: 11016455.94 | Z103: 12466983.7 | AA103: 14136077.78 | AB103: 15700937.18 | AC103: 17492251.16 | AD103: 19412618.94 | AE103: 21592349.19 | AF103: 23683700.15 | AG103: 26046040.25 | AH103: 28575691.09 | AI103: 31415444.66 | AJ103: 34191008.02 | AK103: 37293238.21 | AL103: 2.098456025e-08 | AM103: 2.235904895e-08 | AN103: 2.382356665e-08 | AO103: 2.538401027e-08 | AP103: 2.704666294e-08 | AQ103: =AQ96-AQ105 -> 2.881821936e-08 | AR103: 3.070581273e-08 | AS103: 3.271704347e-08 | AT103: 3.486000981e-08 | AU103: 3.714334046e-08 | AV103: 3.957622926e-08 | AW103: 4.216847227e-08 | AX103: 4.493050721e-08 | AY103: 4.787345543e-08 | AZ103: 5.100916676e-08 | BA103: 5.435026718e-08 | BB103: 5.791020968e-08 | BC103: 6.170332842e-08 | BD103: 6.574489643e-08 | BE103: 7.005118715e-08 | BF103: 7.46395399e-08 | BG103: 7.952842977e-08 | BH103: 8.473754192e-08
D104: Closing Balance | K104: =K101+K102-K103 -> 0 | L104: 352178995.4 | M104: 350343825.4 | N104: 347792391.4 | O104: 345254858.1 | P104: 342024634.5 | Q104: 338816775.7 | R104: 334760074.7 | S104: 329695346.6 | T104: 324565620.6 | U104: 318423682.5 | V104: 311193055.6 | W104: 302688145.5 | X104: 293022796.3 | Y104: 282006340.3 | Z104: 269539356.6 | AA104: 255403278.8 | AB104: 239702341.7 | AC104: 222210090.5 | AD104: 202797471.6 | AE104: 181205122.4 | AF104: 157521422.2 | AG104: 131475382 | AH104: 102899690.9 | AI104: 71484246.23 | AJ104: 37293238.21 | AK104: -3.203749657e-07 | AL104: -3.413595259e-07 | AM104: -3.637185749e-07 | AN104: -3.875421415e-07 | AO104: -4.129261518e-07 | AP104: -4.399728147e-07 | AQ104: =AQ101+AQ102-AQ103 -> -4.687910341e-07 | AR104: -4.994968468e-07 | AS104: -5.322138903e-07 | AT104: -5.670739001e-07 | AU104: -6.042172406e-07 | AV104: -6.437934698e-07 | AW104: -6.859619421e-07 | AX104: -7.308924493e-07 | AY104: -7.787659047e-07 | AZ104: -8.297750715e-07 | BA104: -8.841253387e-07 | BB104: -9.420355484e-07 | BC104: -1.003738877e-06 | BD104: -1.069483773e-06 | BE104: -1.13953496e-06 | BF104: -1.2141745e-06 | BG104: -1.29370293e-06 | BH104: -1.378440472e-06
D105: Interest | K105: =K100*K101 -> 0 | L105: 0 | M105: 20426381.73 | N105: 20319941.87 | O105: 21041439.68 | P105: 20887918.91 | Q105: 21547551.98 | R105: 21345456.87 | S105: 21089884.71 | T105: 21595045.2 | U105: 21259048.15 | V105: 20856751.2 | W105: 20383145.14 | X105: 19826073.53 | Y105: 19192993.15 | Z105: 18471415.29 | AA105: 17654827.86 | AB105: 16728914.76 | AC105: 15700503.38 | AD105: 14554760.93 | AE105: 13283234.39 | AF105: 11868935.52 | AG105: 10317653.16 | AH105: 8611637.519 | AI105: 6739929.753 | AJ105: 4682218.128 | AK105: 2442707.103 | AL105: -2.098456025e-08 | AM105: -2.235904895e-08 | AN105: -2.382356665e-08 | AO105: -2.538401027e-08 | AP105: -2.704666294e-08 | AQ105: =AQ100*AQ101 -> -2.881821936e-08 | AR105: -3.070581273e-08 | AS105: -3.271704347e-08 | AT105: -3.486000981e-08 | AU105: -3.714334046e-08 | AV105: -3.957622926e-08 | AW105: -4.216847227e-08 | AX105: -4.493050721e-08 | AY105: -4.787345543e-08 | AZ105: -5.100916676e-08 | BA105: -5.435026718e-08 | BB105: -5.791020968e-08 | BC105: -6.170332842e-08 | BD105: -6.574489643e-08 | BE105: -7.005118715e-08 | BF105: -7.46395399e-08 | BG105: -7.952842977e-08 | BH105: -8.473754192e-08
D107: Test | E107: Flag | F107: =F71 -> 25 | H107: =ROUND(LOOKUP(F107,7:7,104:104),0)=0 -> TRUE
D108: Debt IRR | E108: % p.a. | F108: =XIRR(K108:BH108,K2:BH2) -> 0.06287880242 | K108: =K105+K103-K102-0.0001 -> -0.0001 | L108: =L105+L103-L102 -> -352178995.4 | M108: 22261551.77 | N108: 22871375.88 | O108: 23578972.97 | P108: 24118142.45 | Q108: 24755410.81 | R108: 25402157.85 | S108: 26154612.86 | T108: 26724771.15 | U108: 27400986.32 | V108: 28087378.11 | W108: 28888055.18 | X108: 29491422.78 | Y108: 30209449.09 | Z108: 30938398.99 | AA108: 31790905.64 | AB108: 32429851.95 | AC108: 33192754.53 | AD108: 33967379.87 | AE108: 34875583.58 | AF108: 35552635.66 | AG108: 36363693.41 | AH108: 37187328.61 | AI108: 38155374.41 | AJ108: 38873226.15 | AK108: 39735945.31 | AL108: 0 | AM108: 0 | AN108: 0 | AO108: 0 | AP108: 0 | AQ108: 0 | AR108: =AR105+AR103-AR102 -> 0 | AS108: 0 | AT108: 0 | AU108: 0 | AV108: 0 | AW108: 0 | AX108: 0 | AY108: 0 | AZ108: 0 | BA108: 0 | BB108: 0 | BC108: 0 | BD108: 0 | BE108: 0 | BF108: 0 | BG108: 0 | BH108: 0
D110: Project Cash Flow - P50 | E110: USD | K110: =K50 -> 0 | L110: 0 | M110: 36235833.67 | N110: 37181978.15 | O110: 38280177.46 | P110: 39118252.25 | Q110: 40108919.89 | R110: 41114974.57 | S110: 42285439.36 | T110: 43174374.28 | U110: 44228296.44 | V110: 45298760.03 | W110: 46546990.74 | X110: 47490522.65 | Y110: 48612440.57 | Z110: 49752137.91 | AA110: 51084042.06 | AB110: 52086169.37 | AC110: 53281167.01 | AD110: 54495271.32 | AE110: 55917192.34 | AF110: 56982191.81 | AG110: 58255719.17 | AH110: 59549775.76 | AI110: 61068523.73 | AJ110: 62200968.17 | AK110: 63558866.03 | AL110: 64938817.42 | AM110: 66561701.78 | AN110: 67766478.67 | AO110: 69215004.84 | AP110: 70687217.36 | AQ110: =AQ50 -> 0 | AR110: 0 | AS110: 0 | AT110: 0 | AU110: 0 | AV110: 0 | AW110: 0 | AX110: 0 | AY110: 0 | AZ110: 0 | BA110: 0 | BB110: 0 | BC110: 0 | BD110: 0 | BE110: 0 | BF110: 0 | BG110: 0 | BH110: 0
D111: Less: Debt Service | E111: USD | H111: =SUM(J111:XFD111) -> 763007365.3 | K111: =K105+K103 -> 0 | L111: 0 | M111: 22261551.77 | N111: 22871375.88 | O111: 23578972.97 | P111: 24118142.45 | Q111: 24755410.81 | R111: 25402157.85 | S111: 26154612.86 | T111: 26724771.15 | U111: 27400986.32 | V111: 28087378.11 | W111: 28888055.18 | X111: 29491422.78 | Y111: 30209449.09 | Z111: 30938398.99 | AA111: 31790905.64 | AB111: 32429851.95 | AC111: 33192754.53 | AD111: 33967379.87 | AE111: 34875583.58 | AF111: 35552635.66 | AG111: 36363693.41 | AH111: 37187328.61 | AI111: 38155374.41 | AJ111: 38873226.15 | AK111: 39735945.31 | AL111: 0 | AM111: 0 | AN111: 0 | AO111: 0 | AP111: 0 | AQ111: =AQ105+AQ103 -> 0 | AR111: 0 | AS111: 0 | AT111: 0 | AU111: 0 | AV111: 0 | AW111: 0 | AX111: 0 | AY111: 0 | AZ111: 0 | BA111: 0 | BB111: 0 | BC111: 0 | BD111: 0 | BE111: 0 | BF111: 0 | BG111: 0 | BH111: 0
D112: Net Cash Flow | E112: USD | H112: =SUM(K112:XFD112) -> 804070839.5 | K112: =K110-K111 -> 0 | L112: 0 | M112: 13974281.89 | N112: 14310602.27 | O112: 14701204.49 | P112: 15000109.81 | Q112: 15353509.09 | R112: 15712816.72 | S112: 16130826.5 | T112: 16449603.14 | U112: 16827310.12 | V112: 17211381.92 | W112: 17658935.56 | X112: 17999099.87 | Y112: 18402991.48 | Z112: 18813738.92 | AA112: 19293136.42 | AB112: 19656317.42 | AC112: 20088412.48 | AD112: 20527891.45 | AE112: 21041608.77 | AF112: 21429556.15 | AG112: 21892025.76 | AH112: 22362447.15 | AI112: 22913149.32 | AJ112: 23327742.02 | AK112: 23822920.72 | AL112: 64938817.42 | AM112: 66561701.78 | AN112: 67766478.67 | AO112: 69215004.84 | AP112: 70687217.36 | AQ112: =AQ110-AQ111 -> 0 | AR112: 0 | AS112: 0 | AT112: 0 | AU112: 0 | AV112: 0 | AW112: 0 | AX112: 0 | AY112: 0 | AZ112: 0 | BA112: 0 | BB112: 0 | BC112: 0 | BD112: 0 | BE112: 0 | BF112: 0 | BG112: 0 | BH112: 0
D113: Equity Cash Flow | E113: USD | H113: =SUM(J113:XFD113) -> 651249834.9 | K113: =K112-K26+K102 -> -5000000 | L113: -147821004.6 | M113: 13974281.89 | N113: 14310602.27 | O113: 14701204.49 | P113: 15000109.81 | Q113: 15353509.09 | R113: 15712816.72 | S113: 16130826.5 | T113: 16449603.14 | U113: 16827310.12 | V113: 17211381.92 | W113: 17658935.56 | X113: 17999099.87 | Y113: 18402991.48 | Z113: 18813738.92 | AA113: 19293136.42 | AB113: 19656317.42 | AC113: 20088412.48 | AD113: 20527891.45 | AE113: 21041608.77 | AF113: 21429556.15 | AG113: 21892025.76 | AH113: 22362447.15 | AI113: 22913149.32 | AJ113: 23327742.02 | AK113: 23822920.72 | AL113: 64938817.42 | AM113: 66561701.78 | AN113: 67766478.67 | AO113: 69215004.84 | AP113: 70687217.36 | AQ113: =AQ112-AQ26+AQ102 -> 0 | AR113: 0 | AS113: 0 | AT113: 0 | AU113: 0 | AV113: 0 | AW113: 0 | AX113: 0 | AY113: 0 | AZ113: 0 | BA113: 0 | BB113: 0 | BC113: 0 | BD113: 0 | BE113: 0 | BF113: 0 | BG113: 0 | BH113: 0
D115: Equity IRR | E115: % p.a. | F115: =XIRR(K113:BH113,K2:BH2) -> 0.1131396472
D116: Equity Cash Flow with Development Fee Added | E116: USD | F116: =XIRR(K116:BH116,K2:BH2) -> 0.1131396472 | K116: =K113+K24 -> -5000000 | L116: -147821004.6 | M116: 13974281.89 | N116: 14310602.27 | O116: 14701204.49 | P116: 15000109.81 | Q116: 15353509.09 | R116: 15712816.72 | S116: 16130826.5 | T116: 16449603.14 | U116: 16827310.12 | V116: 17211381.92 | W116: 17658935.56 | X116: 17999099.87 | Y116: 18402991.48 | Z116: 18813738.92 | AA116: 19293136.42 | AB116: 19656317.42 | AC116: 20088412.48 | AD116: 20527891.45 | AE116: 21041608.77 | AF116: 21429556.15 | AG116: 21892025.76 | AH116: 22362447.15 | AI116: 22913149.32 | AJ116: 23327742.02 | AK116: 23822920.72 | AL116: 64938817.42 | AM116: 66561701.78 | AN116: 67766478.67 | AO116: 69215004.84 | AP116: 70687217.36 | AQ116: =AQ113+AQ24 -> 0 | AR116: 0 | AS116: 0 | AT116: 0 | AU116: 0 | AV116: 0 | AW116: 0 | AX116: 0 | AY116: 0 | AZ116: 0 | BA116: 0 | BB116: 0 | BC116: 0 | BD116: 0 | BE116: 0 | BF116: 0 | BG116: 0 | BH116: 0
B119: Re-finance Section -- Added On Top
C121: Re-finance Flags
D122: Re-finance Flag | E122: Flag | F122: =InputC!F61 -> FALSE
D123: Re-finance Period | E123: Year | F123: =IF(F122,InputC!F63,50) -> 50 | G123: =LOOKUP(F123,7:7,2:2) -> 2070-01-01 | H123: =YEAR(G123) -> 2070 | K123: =$F$123=K7 -> FALSE | L123: FALSE | M123: FALSE | N123: FALSE | O123: FALSE | P123: FALSE | Q123: FALSE | R123: FALSE | S123: FALSE | T123: FALSE | U123: FALSE | V123: FALSE | W123: FALSE | X123: FALSE | Y123: FALSE | Z123: FALSE | AA123: FALSE | AB123: FALSE | AC123: FALSE | AD123: FALSE | AE123: FALSE | AF123: FALSE | AG123: FALSE | AH123: FALSE | AI123: FALSE | AJ123: FALSE | AK123: FALSE | AL123: FALSE | AM123: FALSE | AN123: FALSE | AO123: FALSE | AP123: FALSE | AQ123: =$F$123=AQ7 -> FALSE | AR123: FALSE | AS123: FALSE | AT123: FALSE | AU123: FALSE | AV123: FALSE | AW123: FALSE | AX123: FALSE | AY123: FALSE | AZ123: FALSE | BA123: FALSE | BB123: FALSE | BC123: FALSE | BD123: FALSE | BE123: FALSE | BF123: FALSE | BG123: FALSE | BH123: FALSE
D124: Repayment Flag (Tail) | E124: Flag | F124: =F123+1 -> 51 | G124: =InputC!F64 -> 3 | H124: =F6-G124 -> 27 | K124: =AND(K7>=$F$124,K7<=$H$124) -> FALSE | L124: FALSE | M124: FALSE | N124: FALSE | O124: FALSE | P124: FALSE | Q124: FALSE | R124: FALSE | S124: FALSE | T124: FALSE | U124: FALSE | V124: FALSE | W124: FALSE | X124: FALSE | Y124: FALSE | Z124: FALSE | AA124: FALSE | AB124: FALSE | AC124: FALSE | AD124: FALSE | AE124: FALSE | AF124: FALSE | AG124: FALSE | AH124: FALSE | AI124: FALSE | AJ124: FALSE | AK124: FALSE | AL124: FALSE | AM124: FALSE | AN124: FALSE | AO124: FALSE | AP124: FALSE | AQ124: =AND(AQ7>=$F$124,AQ7<=$H$124) -> FALSE | AR124: FALSE | AS124: FALSE | AT124: FALSE | AU124: FALSE | AV124: FALSE | AW124: FALSE | AX124: FALSE | AY124: FALSE | AZ124: FALSE | BA124: FALSE | BB124: FALSE | BC124: FALSE | BD124: FALSE | BE124: FALSE | BF124: FALSE | BG124: FALSE | BH124: FALSE
D126: Cash Flow for Repayment Period - P50 | K126: =K50*K124 -> 0 | L126: 0 | M126: 0 | N126: 0 | O126: 0 | P126: 0 | Q126: 0 | R126: 0 | S126: 0 | T126: 0 | U126: 0 | V126: 0 | W126: 0 | X126: 0 | Y126: 0 | Z126: 0 | AA126: 0 | AB126: 0 | AC126: 0 | AD126: 0 | AE126: 0 | AF126: 0 | AG126: 0 | AH126: 0 | AI126: 0 | AJ126: 0 | AK126: 0 | AL126: 0 | AM126: 0 | AN126: 0 | AO126: 0 | AP126: 0 | AQ126: =AQ50*AQ124 -> 0 | AR126: 0 | AS126: 0 | AT126: 0 | AU126: 0 | AV126: 0 | AW126: 0 | AX126: 0 | AY126: 0 | AZ126: 0 | BA126: 0 | BB126: 0 | BC126: 0 | BD126: 0 | BE126: 0 | BF126: 0 | BG126: 0 | BH126: 0
D127: Debt Service for Repayment Period | E127: x | F127: =InputC!F62 -> 1.2 | K127: =K126/$F$127 -> 0 | L127: 0 | M127: 0 | N127: 0 | O127: 0 | P127: 0 | Q127: 0 | R127: 0 | S127: 0 | T127: 0 | U127: 0 | V127: 0 | W127: 0 | X127: 0 | Y127: 0 | Z127: 0 | AA127: 0 | AB127: 0 | AC127: 0 | AD127: 0 | AE127: 0 | AF127: 0 | AG127: 0 | AH127: 0 | AI127: 0 | AJ127: 0 | AK127: 0 | AL127: 0 | AM127: 0 | AN127: 0 | AO127: 0 | AP127: 0 | AQ127: =AQ126/$F$127 -> 0 | AR127: 0 | AS127: 0 | AT127: 0 | AU127: 0 | AV127: 0 | AW127: 0 | AX127: 0 | AY127: 0 | AZ127: 0 | BA127: 0 | BB127: 0 | BC127: 0 | BD127: 0 | BE127: 0 | BF127: 0 | BG127: 0 | BH127: 0
D129: Re-Finance Base Rate | E129: % p.a. | F129: =H123 -> 2070 | G129: =LOOKUP(F129,InputC!53:53,InputC!58:58) -> 0.042 | K129: =$G$129 -> 0.042 | L129: 0.042 | M129: 0.042 | N129: 0.042 | O129: 0.042 | P129: 0.042 | Q129: 0.042 | R129: 0.042 | S129: 0.042 | T129: 0.042 | U129: 0.042 | V129: 0.042 | W129: 0.042 | X129: 0.042 | Y129: 0.042 | Z129: 0.042 | AA129: 0.042 | AB129: 0.042 | AC129: 0.042 | AD129: 0.042 | AE129: 0.042 | AF129: 0.042 | AG129: 0.042 | AH129: 0.042 | AI129: 0.042 | AJ129: 0.042 | AK129: 0.042 | AL129: 0.042 | AM129: 0.042 | AN129: 0.042 | AO129: 0.042 | AP129: 0.042 | AQ129: =$G$129 -> 0.042 | AR129: 0.042 | AS129: 0.042 | AT129: 0.042 | AU129: 0.042 | AV129: 0.042 | AW129: 0.042 | AX129: 0.042 | AY129: 0.042 | AZ129: 0.042 | BA129: 0.042 | BB129: 0.042 | BC129: 0.042 | BD129: 0.042 | BE129: 0.042 | BF129: 0.042 | BG129: 0.042 | BH129: 0.042
D130: Re-finance Credit Spread | E130: % p.a. | G130: =InputC!F66 -> 0.015 | K130: =$G$130 -> 0.015 | L130: 0.015 | M130: 0.015 | N130: 0.015 | O130: 0.015 | P130: 0.015 | Q130: 0.015 | R130: 0.015 | S130: 0.015 | T130: 0.015 | U130: 0.015 | V130: 0.015 | W130: 0.015 | X130: 0.015 | Y130: 0.015 | Z130: 0.015 | AA130: 0.015 | AB130: 0.015 | AC130: 0.015 | AD130: 0.015 | AE130: 0.015 | AF130: 0.015 | AG130: 0.015 | AH130: 0.015 | AI130: 0.015 | AJ130: 0.015 | AK130: 0.015 | AL130: 0.015 | AM130: 0.015 | AN130: 0.015 | AO130: 0.015 | AP130: 0.015 | AQ130: =$G$130 -> 0.015 | AR130: 0.015 | AS130: 0.015 | AT130: 0.015 | AU130: 0.015 | AV130: 0.015 | AW130: 0.015 | AX130: 0.015 | AY130: 0.015 | AZ130: 0.015 | BA130: 0.015 | BB130: 0.015 | BC130: 0.015 | BD130: 0.015 | BE130: 0.015 | BF130: 0.015 | BG130: 0.015 | BH130: 0.015
D131: Total Rate | E131: % p.a. | G131: =SUM(G129:G130) -> 0.057 | K131: =SUM(K129:K130) -> 0.057 | L131: 0.057 | M131: 0.057 | N131: 0.057 | O131: 0.057 | P131: 0.057 | Q131: 0.057 | R131: 0.057 | S131: 0.057 | T131: 0.057 | U131: 0.057 | V131: 0.057 | W131: 0.057 | X131: 0.057 | Y131: 0.057 | Z131: 0.057 | AA131: 0.057 | AB131: 0.057 | AC131: 0.057 | AD131: 0.057 | AE131: 0.057 | AF131: 0.057 | AG131: 0.057 | AH131: 0.057 | AI131: 0.057 | AJ131: 0.057 | AK131: 0.057 | AL131: 0.057 | AM131: 0.057 | AN131: 0.057 | AO131: 0.057 | AP131: 0.057 | AQ131: =SUM(AQ129:AQ130) -> 0.057 | AR131: 0.057 | AS131: 0.057 | AT131: 0.057 | AU131: 0.057 | AV131: 0.057 | AW131: 0.057 | AX131: 0.057 | AY131: 0.057 | AZ131: 0.057 | BA131: 0.057 | BB131: 0.057 | BC131: 0.057 | BD131: 0.057 | BE131: 0.057 | BF131: 0.057 | BG131: 0.057 | BH131: 0.057
D133: Interest Rate Factor | E133: Index | J133: 1 | K133: =J133*(1+K131*K124) -> 1 | L133: 1 | M133: 1 | N133: 1 | O133: 1 | P133: 1 | Q133: 1 | R133: 1 | S133: 1 | T133: 1 | U133: 1 | V133: 1 | W133: 1 | X133: 1 | Y133: 1 | Z133: 1 | AA133: 1 | AB133: 1 | AC133: 1 | AD133: 1 | AE133: 1 | AF133: 1 | AG133: 1 | AH133: 1 | AI133: 1 | AJ133: 1 | AK133: 1 | AL133: 1 | AM133: 1 | AN133: 1 | AO133: 1 | AP133: 1 | AQ133: =AP133*(1+AQ131*AQ124) -> 1 | AR133: 1 | AS133: 1 | AT133: 1 | AU133: 1 | AV133: 1 | AW133: 1 | AX133: 1 | AY133: 1 | AZ133: 1 | BA133: 1 | BB133: 1 | BC133: 1 | BD133: 1 | BE133: 1 | BF133: 1 | BG133: 1 | BH133: 1
D134: PV of Debt Service -- Size of Debt | E134: USD | F134: =SUMPRODUCT(K127:BH127/K133:BH133) -> 0
D136: Apply Optionality | E136: Flag | F136: =InputC!F65 -> TRUE
D137: Re-finance | E137: Flag | F137: =IF(F136,F134>F139,TRUE) -> FALSE
D139: Original Debt at Re-finance Date (Closing) | E139: USD | F139: =SUM(K139:BH139) -> 0 | I139: =SUM(K139:XFD139) -> 0 | K139: =K123*K104 -> 0 | L139: 0 | M139: 0 | N139: 0 | O139: 0 | P139: 0 | Q139: 0 | R139: 0 | S139: 0 | T139: 0 | U139: 0 | V139: 0 | W139: 0 | X139: 0 | Y139: 0 | Z139: 0 | AA139: 0 | AB139: 0 | AC139: 0 | AD139: 0 | AE139: 0 | AF139: 0 | AG139: 0 | AH139: 0 | AI139: 0 | AJ139: 0 | AK139: 0 | AL139: 0 | AM139: 0 | AN139: 0 | AO139: 0 | AP139: 0 | AQ139: =AQ123*AQ104 -> 0 | AR139: 0 | AS139: 0 | AT139: 0 | AU139: 0 | AV139: 0 | AW139: 0 | AX139: 0 | AY139: 0 | AZ139: 0 | BA139: 0 | BB139: 0 | BC139: 0 | BD139: 0 | BE139: 0 | BF139: 0 | BG139: 0 | BH139: 0
D140: Original Debt Refinanced (After Optionality) | E140: USD | I140: =SUM(K140:XFD140) -> 0 | K140: =K139*$F$137 -> 0 | L140: 0 | M140: 0 | N140: 0 | O140: 0 | P140: 0 | Q140: 0 | R140: 0 | S140: 0 | T140: 0 | U140: 0 | V140: 0 | W140: 0 | X140: 0 | Y140: 0 | Z140: 0 | AA140: 0 | AB140: 0 | AC140: 0 | AD140: 0 | AE140: 0 | AF140: 0 | AG140: 0 | AH140: 0 | AI140: 0 | AJ140: 0 | AK140: 0 | AL140: 0 | AM140: 0 | AN140: 0 | AO140: 0 | AP140: 0 | AQ140: =AQ139*$F$137 -> 0 | AR140: 0 | AS140: 0 | AT140: 0 | AU140: 0 | AV140: 0 | AW140: 0 | AX140: 0 | AY140: 0 | AZ140: 0 | BA140: 0 | BB140: 0 | BC140: 0 | BD140: 0 | BE140: 0 | BF140: 0 | BG140: 0 | BH140: 0
C142: Debt Balance - Original
D143: Opening Balance | E143: USD | K143: =J147 -> 0 | L143: 0 | M143: 352178995.4 | N143: 350343825.4 | O143: 347792391.4 | P143: 345254858.1 | Q143: 342024634.5 | R143: 338816775.7 | S143: 334760074.7 | T143: 329695346.6 | U143: 324565620.6 | V143: 318423682.5 | W143: 311193055.6 | X143: 302688145.5 | Y143: 293022796.3 | Z143: 282006340.3 | AA143: 269539356.6 | AB143: 255403278.8 | AC143: 239702341.7 | AD143: 222210090.5 | AE143: 202797471.6 | AF143: 181205122.4 | AG143: 157521422.2 | AH143: 131475382 | AI143: 102899690.9 | AJ143: 71484246.23 | AK143: 37293238.21 | AL143: 0 | AM143: 0 | AN143: 0 | AO143: 0 | AP143: 0 | AQ143: =AP147 -> 0 | AR143: 0 | AS143: 0 | AT143: 0 | AU143: 0 | AV143: 0 | AW143: 0 | AX143: 0 | AY143: 0 | AZ143: 0 | BA143: 0 | BB143: 0 | BC143: 0 | BD143: 0 | BE143: 0 | BF143: 0 | BG143: 0 | BH143: 0
D144: Add: Borrowing | E144: USD | F144: =F134 -> 0 | K144: =K102 -> 0 | L144: 352178995.4 | M144: 0 | N144: 0 | O144: 0 | P144: 0 | Q144: 0 | R144: 0 | S144: 0 | T144: 0 | U144: 0 | V144: 0 | W144: 0 | X144: 0 | Y144: 0 | Z144: 0 | AA144: 0 | AB144: 0 | AC144: 0 | AD144: 0 | AE144: 0 | AF144: 0 | AG144: 0 | AH144: 0 | AI144: 0 | AJ144: 0 | AK144: 0 | AL144: 0 | AM144: 0 | AN144: 0 | AO144: 0 | AP144: 0 | AQ144: =AQ102 -> 0 | AR144: 0 | AS144: 0 | AT144: 0 | AU144: 0 | AV144: 0 | AW144: 0 | AX144: 0 | AY144: 0 | AZ144: 0 | BA144: 0 | BB144: 0 | BC144: 0 | BD144: 0 | BE144: 0 | BF144: 0 | BG144: 0 | BH144: 0
D145: Less: Repayment | E145: USD | K145: =MIN(K103,K143) -> 0 | L145: 0 | M145: 1835170.037 | N145: 2551434.013 | O145: 2537533.297 | P145: 3230223.532 | Q145: 3207858.831 | R145: 4056700.984 | S145: 5064728.155 | T145: 5129725.947 | U145: 6141938.166 | V145: 7230626.909 | W145: 8504910.044 | X145: 9665349.25 | Y145: 11016455.94 | Z145: 12466983.7 | AA145: 14136077.78 | AB145: 15700937.18 | AC145: 17492251.16 | AD145: 19412618.94 | AE145: 21592349.19 | AF145: 23683700.15 | AG145: 26046040.25 | AH145: 28575691.09 | AI145: 31415444.66 | AJ145: 34191008.02 | AK145: 37293238.21 | AL145: 0 | AM145: 0 | AN145: 0 | AO145: 0 | AP145: 0 | AQ145: =MIN(AQ103,AQ143) -> 0 | AR145: 0 | AS145: 0 | AT145: 0 | AU145: 0 | AV145: 0 | AW145: 0 | AX145: 0 | AY145: 0 | AZ145: 0 | BA145: 0 | BB145: 0 | BC145: 0 | BD145: 0 | BE145: 0 | BF145: 0 | BG145: 0 | BH145: 0
D146: Less: Repayment at Re-finance | E146: USD | F146: =F137 -> FALSE | K146: =K140 -> 0 | L146: 0 | M146: 0 | N146: 0 | O146: 0 | P146: 0 | Q146: 0 | R146: 0 | S146: 0 | T146: 0 | U146: 0 | V146: 0 | W146: 0 | X146: 0 | Y146: 0 | Z146: 0 | AA146: 0 | AB146: 0 | AC146: 0 | AD146: 0 | AE146: 0 | AF146: 0 | AG146: 0 | AH146: 0 | AI146: 0 | AJ146: 0 | AK146: 0 | AL146: 0 | AM146: 0 | AN146: 0 | AO146: 0 | AP146: 0 | AQ146: =AQ140 -> 0 | AR146: 0 | AS146: 0 | AT146: 0 | AU146: 0 | AV146: 0 | AW146: 0 | AX146: 0 | AY146: 0 | AZ146: 0 | BA146: 0 | BB146: 0 | BC146: 0 | BD146: 0 | BE146: 0 | BF146: 0 | BG146: 0 | BH146: 0
D147: Closing Balance | E147: USD | K147: =K143+K144-K145-K146 -> 0 | L147: 352178995.4 | M147: 350343825.4 | N147: 347792391.4 | O147: 345254858.1 | P147: 342024634.5 | Q147: 338816775.7 | R147: 334760074.7 | S147: 329695346.6 | T147: 324565620.6 | U147: 318423682.5 | V147: 311193055.6 | W147: 302688145.5 | X147: 293022796.3 | Y147: 282006340.3 | Z147: 269539356.6 | AA147: 255403278.8 | AB147: 239702341.7 | AC147: 222210090.5 | AD147: 202797471.6 | AE147: 181205122.4 | AF147: 157521422.2 | AG147: 131475382 | AH147: 102899690.9 | AI147: 71484246.23 | AJ147: 37293238.21 | AK147: 0 | AL147: 0 | AM147: 0 | AN147: 0 | AO147: 0 | AP147: 0 | AQ147: =AQ143+AQ144-AQ145-AQ146 -> 0 | AR147: 0 | AS147: 0 | AT147: 0 | AU147: 0 | AV147: 0 | AW147: 0 | AX147: 0 | AY147: 0 | AZ147: 0 | BA147: 0 | BB147: 0 | BC147: 0 | BD147: 0 | BE147: 0 | BF147: 0 | BG147: 0 | BH147: 0
D148: Interest | E148: USD | K148: =K143*K68 -> 0 | L148: 0 | M148: 20426381.73 | N148: 20319941.87 | O148: 21041439.68 | P148: 20887918.91 | Q148: 21547551.98 | R148: 21345456.87 | S148: 21089884.71 | T148: 21595045.2 | U148: 21259048.15 | V148: 20856751.2 | W148: 20383145.14 | X148: 19826073.53 | Y148: 19192993.15 | Z148: 18471415.29 | AA148: 17654827.86 | AB148: 16728914.76 | AC148: 15700503.38 | AD148: 14554760.93 | AE148: 13283234.39 | AF148: 11868935.52 | AG148: 10317653.16 | AH148: 8611637.519 | AI148: 6739929.753 | AJ148: 4682218.128 | AK148: 2442707.103 | AL148: 0 | AM148: 0 | AN148: 0 | AO148: 0 | AP148: 0 | AQ148: =AQ143*AQ68 -> 0 | AR148: 0 | AS148: 0 | AT148: 0 | AU148: 0 | AV148: 0 | AW148: 0 | AX148: 0 | AY148: 0 | AZ148: 0 | BA148: 0 | BB148: 0 | BC148: 0 | BD148: 0 | BE148: 0 | BF148: 0 | BG148: 0 | BH148: 0
D150: Total Repayment at Re-finance | E150: USD | F150: =SUM(146:146) -> 0
D151: Apply Re-finance | E151: Flag | F151: =F137 -> FALSE
C153: Debt Balance - Re-finance
D154: Re-finance Debt Service | F154: =F151 -> FALSE | K154: =K127*$F$154 -> 0 | L154: 0 | M154: 0 | N154: 0 | O154: 0 | P154: 0 | Q154: 0 | R154: 0 | S154: 0 | T154: 0 | U154: 0 | V154: 0 | W154: 0 | X154: 0 | Y154: 0 | Z154: 0 | AA154: 0 | AB154: 0 | AC154: 0 | AD154: 0 | AE154: 0 | AF154: 0 | AG154: 0 | AH154: 0 | AI154: 0 | AJ154: 0 | AK154: 0 | AL154: 0 | AM154: 0 | AN154: 0 | AO154: 0 | AP154: 0 | AQ154: =AQ127*$F$154 -> 0 | AR154: 0 | AS154: 0 | AT154: 0 | AU154: 0 | AV154: 0 | AW154: 0 | AX154: 0 | AY154: 0 | AZ154: 0 | BA154: 0 | BB154: 0 | BC154: 0 | BD154: 0 | BE154: 0 | BF154: 0 | BG154: 0 | BH154: 0
D156: Opening Balance | K156: =J159 -> 0 | L156: 0 | M156: 0 | N156: 0 | O156: 0 | P156: 0 | Q156: 0 | R156: 0 | S156: 0 | T156: 0 | U156: 0 | V156: 0 | W156: 0 | X156: 0 | Y156: 0 | Z156: 0 | AA156: 0 | AB156: 0 | AC156: 0 | AD156: 0 | AE156: 0 | AF156: 0 | AG156: 0 | AH156: 0 | AI156: 0 | AJ156: 0 | AK156: 0 | AL156: 0 | AM156: 0 | AN156: 0 | AO156: 0 | AP156: 0 | AQ156: =AP159 -> 0 | AR156: 0 | AS156: 0 | AT156: 0 | AU156: 0 | AV156: 0 | AW156: 0 | AX156: 0 | AY156: 0 | AZ156: 0 | BA156: 0 | BB156: 0 | BC156: 0 | BD156: 0 | BE156: 0 | BF156: 0 | BG156: 0 | BH156: 0
D157: Add: Borrowing | F157: =F151*F134 -> 0 | K157: =$F$157*K123 -> 0 | L157: 0 | M157: 0 | N157: 0 | O157: 0 | P157: 0 | Q157: 0 | R157: 0 | S157: 0 | T157: 0 | U157: 0 | V157: 0 | W157: 0 | X157: 0 | Y157: 0 | Z157: 0 | AA157: 0 | AB157: 0 | AC157: 0 | AD157: 0 | AE157: 0 | AF157: 0 | AG157: 0 | AH157: 0 | AI157: 0 | AJ157: 0 | AK157: 0 | AL157: 0 | AM157: 0 | AN157: 0 | AO157: 0 | AP157: 0 | AQ157: =$F$157*AQ123 -> 0 | AR157: 0 | AS157: 0 | AT157: 0 | AU157: 0 | AV157: 0 | AW157: 0 | AX157: 0 | AY157: 0 | AZ157: 0 | BA157: 0 | BB157: 0 | BC157: 0 | BD157: 0 | BE157: 0 | BF157: 0 | BG157: 0 | BH157: 0
D158: Less: Repayment | K158: =K154-K160 -> 0 | L158: 0 | M158: 0 | N158: 0 | O158: 0 | P158: 0 | Q158: 0 | R158: 0 | S158: 0 | T158: 0 | U158: 0 | V158: 0 | W158: 0 | X158: 0 | Y158: 0 | Z158: 0 | AA158: 0 | AB158: 0 | AC158: 0 | AD158: 0 | AE158: 0 | AF158: 0 | AG158: 0 | AH158: 0 | AI158: 0 | AJ158: 0 | AK158: 0 | AL158: 0 | AM158: 0 | AN158: 0 | AO158: 0 | AP158: 0 | AQ158: =AQ154-AQ160 -> 0 | AR158: 0 | AS158: 0 | AT158: 0 | AU158: 0 | AV158: 0 | AW158: 0 | AX158: 0 | AY158: 0 | AZ158: 0 | BA158: 0 | BB158: 0 | BC158: 0 | BD158: 0 | BE158: 0 | BF158: 0 | BG158: 0 | BH158: 0
D159: Closing Balance | K159: =K156+K157-K158 -> 0 | L159: 0 | M159: 0 | N159: 0 | O159: 0 | P159: 0 | Q159: 0 | R159: 0 | S159: 0 | T159: 0 | U159: 0 | V159: 0 | W159: 0 | X159: 0 | Y159: 0 | Z159: 0 | AA159: 0 | AB159: 0 | AC159: 0 | AD159: 0 | AE159: 0 | AF159: 0 | AG159: 0 | AH159: 0 | AI159: 0 | AJ159: 0 | AK159: 0 | AL159: 0 | AM159: 0 | AN159: 0 | AO159: 0 | AP159: 0 | AQ159: =AQ156+AQ157-AQ158 -> 0 | AR159: 0 | AS159: 0 | AT159: 0 | AU159: 0 | AV159: 0 | AW159: 0 | AX159: 0 | AY159: 0 | AZ159: 0 | BA159: 0 | BB159: 0 | BC159: 0 | BD159: 0 | BE159: 0 | BF159: 0 | BG159: 0 | BH159: 0
D160: Interest | K160: =K156*K131 -> 0 | L160: 0 | M160: 0 | N160: 0 | O160: 0 | P160: 0 | Q160: 0 | R160: 0 | S160: 0 | T160: 0 | U160: 0 | V160: 0 | W160: 0 | X160: 0 | Y160: 0 | Z160: 0 | AA160: 0 | AB160: 0 | AC160: 0 | AD160: 0 | AE160: 0 | AF160: 0 | AG160: 0 | AH160: 0 | AI160: 0 | AJ160: 0 | AK160: 0 | AL160: 0 | AM160: 0 | AN160: 0 | AO160: 0 | AP160: 0 | AQ160: =AQ156*AQ131 -> 0 | AR160: 0 | AS160: 0 | AT160: 0 | AU160: 0 | AV160: 0 | AW160: 0 | AX160: 0 | AY160: 0 | AZ160: 0 | BA160: 0 | BB160: 0 | BC160: 0 | BD160: 0 | BE160: 0 | BF160: 0 | BG160: 0 | BH160: 0
C162: Cash Flow Waterfall
D163: Operating Cash Flow (P50) | K163: =K50 -> 0 | L163: 0 | M163: 36235833.67 | N163: 37181978.15 | O163: 38280177.46 | P163: 39118252.25 | Q163: 40108919.89 | R163: 41114974.57 | S163: 42285439.36 | T163: 43174374.28 | U163: 44228296.44 | V163: 45298760.03 | W163: 46546990.74 | X163: 47490522.65 | Y163: 48612440.57 | Z163: 49752137.91 | AA163: 51084042.06 | AB163: 52086169.37 | AC163: 53281167.01 | AD163: 54495271.32 | AE163: 55917192.34 | AF163: 56982191.81 | AG163: 58255719.17 | AH163: 59549775.76 | AI163: 61068523.73 | AJ163: 62200968.17 | AK163: 63558866.03 | AL163: 64938817.42 | AM163: 66561701.78 | AN163: 67766478.67 | AO163: 69215004.84 | AP163: 70687217.36 | AQ163: =AQ50 -> 0 | AR163: 0 | AS163: 0 | AT163: 0 | AU163: 0 | AV163: 0 | AW163: 0 | AX163: 0 | AY163: 0 | AZ163: 0 | BA163: 0 | BB163: 0 | BC163: 0 | BD163: 0 | BE163: 0 | BF163: 0 | BG163: 0 | BH163: 0
D164: Less: Debt Service Original | K164: =K145+K148 -> 0 | L164: 0 | M164: 22261551.77 | N164: 22871375.88 | O164: 23578972.97 | P164: 24118142.45 | Q164: 24755410.81 | R164: 25402157.85 | S164: 26154612.86 | T164: 26724771.15 | U164: 27400986.32 | V164: 28087378.11 | W164: 28888055.18 | X164: 29491422.78 | Y164: 30209449.09 | Z164: 30938398.99 | AA164: 31790905.64 | AB164: 32429851.95 | AC164: 33192754.53 | AD164: 33967379.87 | AE164: 34875583.58 | AF164: 35552635.66 | AG164: 36363693.41 | AH164: 37187328.61 | AI164: 38155374.41 | AJ164: 38873226.15 | AK164: 39735945.31 | AL164: 0 | AM164: 0 | AN164: 0 | AO164: 0 | AP164: 0 | AQ164: =AQ145+AQ148 -> 0 | AR164: 0 | AS164: 0 | AT164: 0 | AU164: 0 | AV164: 0 | AW164: 0 | AX164: 0 | AY164: 0 | AZ164: 0 | BA164: 0 | BB164: 0 | BC164: 0 | BD164: 0 | BE164: 0 | BF164: 0 | BG164: 0 | BH164: 0
D165: Less: Debt Service Re-finance | K165: =K160+K158 -> 0 | L165: 0 | M165: 0 | N165: 0 | O165: 0 | P165: 0 | Q165: 0 | R165: 0 | S165: 0 | T165: 0 | U165: 0 | V165: 0 | W165: 0 | X165: 0 | Y165: 0 | Z165: 0 | AA165: 0 | AB165: 0 | AC165: 0 | AD165: 0 | AE165: 0 | AF165: 0 | AG165: 0 | AH165: 0 | AI165: 0 | AJ165: 0 | AK165: 0 | AL165: 0 | AM165: 0 | AN165: 0 | AO165: 0 | AP165: 0 | AQ165: =AQ160+AQ158 -> 0 | AR165: 0 | AS165: 0 | AT165: 0 | AU165: 0 | AV165: 0 | AW165: 0 | AX165: 0 | AY165: 0 | AZ165: 0 | BA165: 0 | BB165: 0 | BC165: 0 | BD165: 0 | BE165: 0 | BF165: 0 | BG165: 0 | BH165: 0
D166: Net Cash Flow Before Re-financing Adjustments | K166: =K163-K164-K165 -> 0 | L166: 0 | M166: 13974281.89 | N166: 14310602.27 | O166: 14701204.49 | P166: 15000109.81 | Q166: 15353509.09 | R166: 15712816.72 | S166: 16130826.5 | T166: 16449603.14 | U166: 16827310.12 | V166: 17211381.92 | W166: 17658935.56 | X166: 17999099.87 | Y166: 18402991.48 | Z166: 18813738.92 | AA166: 19293136.42 | AB166: 19656317.42 | AC166: 20088412.48 | AD166: 20527891.45 | AE166: 21041608.77 | AF166: 21429556.15 | AG166: 21892025.76 | AH166: 22362447.15 | AI166: 22913149.32 | AJ166: 23327742.02 | AK166: 23822920.72 | AL166: 64938817.42 | AM166: 66561701.78 | AN166: 67766478.67 | AO166: 69215004.84 | AP166: 70687217.36 | AQ166: =AQ163-AQ164-AQ165 -> 0 | AR166: 0 | AS166: 0 | AT166: 0 | AU166: 0 | AV166: 0 | AW166: 0 | AX166: 0 | AY166: 0 | AZ166: 0 | BA166: 0 | BB166: 0 | BC166: 0 | BD166: 0 | BE166: 0 | BF166: 0 | BG166: 0 | BH166: 0
D167: Less: Repayment of Original | K167: =K146 -> 0 | L167: 0 | M167: 0 | N167: 0 | O167: 0 | P167: 0 | Q167: 0 | R167: 0 | S167: 0 | T167: 0 | U167: 0 | V167: 0 | W167: 0 | X167: 0 | Y167: 0 | Z167: 0 | AA167: 0 | AB167: 0 | AC167: 0 | AD167: 0 | AE167: 0 | AF167: 0 | AG167: 0 | AH167: 0 | AI167: 0 | AJ167: 0 | AK167: 0 | AL167: 0 | AM167: 0 | AN167: 0 | AO167: 0 | AP167: 0 | AQ167: =AQ146 -> 0 | AR167: 0 | AS167: 0 | AT167: 0 | AU167: 0 | AV167: 0 | AW167: 0 | AX167: 0 | AY167: 0 | AZ167: 0 | BA167: 0 | BB167: 0 | BC167: 0 | BD167: 0 | BE167: 0 | BF167: 0 | BG167: 0 | BH167: 0
D168: Less: Breakage Fees | F168: =InputC!F67 -> 0 | K168: =$F$168*K167 -> 0 | L168: 0 | M168: 0 | N168: 0 | O168: 0 | P168: 0 | Q168: 0 | R168: 0 | S168: 0 | T168: 0 | U168: 0 | V168: 0 | W168: 0 | X168: 0 | Y168: 0 | Z168: 0 | AA168: 0 | AB168: 0 | AC168: 0 | AD168: 0 | AE168: 0 | AF168: 0 | AG168: 0 | AH168: 0 | AI168: 0 | AJ168: 0 | AK168: 0 | AL168: 0 | AM168: 0 | AN168: 0 | AO168: 0 | AP168: 0 | AQ168: =$F$168*AQ167 -> 0 | AR168: 0 | AS168: 0 | AT168: 0 | AU168: 0 | AV168: 0 | AW168: 0 | AX168: 0 | AY168: 0 | AZ168: 0 | BA168: 0 | BB168: 0 | BC168: 0 | BD168: 0 | BE168: 0 | BF168: 0 | BG168: 0 | BH168: 0
D169: Add: New Financing | K169: =K157 -> 0 | L169: 0 | M169: 0 | N169: 0 | O169: 0 | P169: 0 | Q169: 0 | R169: 0 | S169: 0 | T169: 0 | U169: 0 | V169: 0 | W169: 0 | X169: 0 | Y169: 0 | Z169: 0 | AA169: 0 | AB169: 0 | AC169: 0 | AD169: 0 | AE169: 0 | AF169: 0 | AG169: 0 | AH169: 0 | AI169: 0 | AJ169: 0 | AK169: 0 | AL169: 0 | AM169: 0 | AN169: 0 | AO169: 0 | AP169: 0 | AQ169: =AQ157 -> 0 | AR169: 0 | AS169: 0 | AT169: 0 | AU169: 0 | AV169: 0 | AW169: 0 | AX169: 0 | AY169: 0 | AZ169: 0 | BA169: 0 | BB169: 0 | BC169: 0 | BD169: 0 | BE169: 0 | BF169: 0 | BG169: 0 | BH169: 0
D170: Net Equity Cash Flow | K170: =K166-K167+K169-K168 -> 0 | L170: 0 | M170: 13974281.89 | N170: 14310602.27 | O170: 14701204.49 | P170: 15000109.81 | Q170: 15353509.09 | R170: 15712816.72 | S170: 16130826.5 | T170: 16449603.14 | U170: 16827310.12 | V170: 17211381.92 | W170: 17658935.56 | X170: 17999099.87 | Y170: 18402991.48 | Z170: 18813738.92 | AA170: 19293136.42 | AB170: 19656317.42 | AC170: 20088412.48 | AD170: 20527891.45 | AE170: 21041608.77 | AF170: 21429556.15 | AG170: 21892025.76 | AH170: 22362447.15 | AI170: 22913149.32 | AJ170: 23327742.02 | AK170: 23822920.72 | AL170: 64938817.42 | AM170: 66561701.78 | AN170: 67766478.67 | AO170: 69215004.84 | AP170: 70687217.36 | AQ170: =AQ166-AQ167+AQ169-AQ168 -> 0 | AR170: 0 | AS170: 0 | AT170: 0 | AU170: 0 | AV170: 0 | AW170: 0 | AX170: 0 | AY170: 0 | AZ170: 0 | BA170: 0 | BB170: 0 | BC170: 0 | BD170: 0 | BE170: 0 | BF170: 0 | BG170: 0 | BH170: 0
D172: Equity Funding | K172: =K26-K102 -> 5000000 | L172: 147821004.6 | M172: 0 | N172: 0 | O172: 0 | P172: 0 | Q172: 0 | R172: 0 | S172: 0 | T172: 0 | U172: 0 | V172: 0 | W172: 0 | X172: 0 | Y172: 0 | Z172: 0 | AA172: 0 | AB172: 0 | AC172: 0 | AD172: 0 | AE172: 0 | AF172: 0 | AG172: 0 | AH172: 0 | AI172: 0 | AJ172: 0 | AK172: 0 | AL172: 0 | AM172: 0 | AN172: 0 | AO172: 0 | AP172: 0 | AQ172: =AQ26-AQ102 -> 0 | AR172: 0 | AS172: 0 | AT172: 0 | AU172: 0 | AV172: 0 | AW172: 0 | AX172: 0 | AY172: 0 | AZ172: 0 | BA172: 0 | BB172: 0 | BC172: 0 | BD172: 0 | BE172: 0 | BF172: 0 | BG172: 0 | BH172: 0
D173: Net Equity Cash Flow (Development Fees Deducted) | F173: =XIRR(K173:BH173,K2:BH2) -> 0.1131396472 | K173: =K170-K172 -> -5000000 | L173: -147821004.6 | M173: 13974281.89 | N173: 14310602.27 | O173: 14701204.49 | P173: 15000109.81 | Q173: 15353509.09 | R173: 15712816.72 | S173: 16130826.5 | T173: 16449603.14 | U173: 16827310.12 | V173: 17211381.92 | W173: 17658935.56 | X173: 17999099.87 | Y173: 18402991.48 | Z173: 18813738.92 | AA173: 19293136.42 | AB173: 19656317.42 | AC173: 20088412.48 | AD173: 20527891.45 | AE173: 21041608.77 | AF173: 21429556.15 | AG173: 21892025.76 | AH173: 22362447.15 | AI173: 22913149.32 | AJ173: 23327742.02 | AK173: 23822920.72 | AL173: 64938817.42 | AM173: 66561701.78 | AN173: 67766478.67 | AO173: 69215004.84 | AP173: 70687217.36 | AQ173: =AQ170-AQ172 -> 0 | AR173: 0 | AS173: 0 | AT173: 0 | AU173: 0 | AV173: 0 | AW173: 0 | AX173: 0 | AY173: 0 | AZ173: 0 | BA173: 0 | BB173: 0 | BC173: 0 | BD173: 0 | BE173: 0 | BF173: 0 | BG173: 0 | BH173: 0
D174: Equity IRR without Development Fees Deducted | F174: =XIRR(K174:BH174,K2:BH2) -> 0.1131396472 | K174: =K173+K24 -> -5000000 | L174: -147821004.6 | M174: 13974281.89 | N174: 14310602.27 | O174: 14701204.49 | P174: 15000109.81 | Q174: 15353509.09 | R174: 15712816.72 | S174: 16130826.5 | T174: 16449603.14 | U174: 16827310.12 | V174: 17211381.92 | W174: 17658935.56 | X174: 17999099.87 | Y174: 18402991.48 | Z174: 18813738.92 | AA174: 19293136.42 | AB174: 19656317.42 | AC174: 20088412.48 | AD174: 20527891.45 | AE174: 21041608.77 | AF174: 21429556.15 | AG174: 21892025.76 | AH174: 22362447.15 | AI174: 22913149.32 | AJ174: 23327742.02 | AK174: 23822920.72 | AL174: 64938817.42 | AM174: 66561701.78 | AN174: 67766478.67 | AO174: 69215004.84 | AP174: 70687217.36 | AQ174: =AQ173+AQ24 -> 0 | AR174: 0 | AS174: 0 | AT174: 0 | AU174: 0 | AV174: 0 | AW174: 0 | AX174: 0 | AY174: 0 | AZ174: 0 | BA174: 0 | BB174: 0 | BC174: 0 | BD174: 0 | BE174: 0 | BF174: 0 | BG174: 0 | BH174: 0
D175: Equity IRR with Timing Adjustment | F175: =XIRR(K175:BH175,K2:BH2) -> 0.1135144532 | K175: =-0.00001 -> -1e-05 | L175: =K173+L173 -> -152821004.6 | M175: =M174 -> 13974281.89 | N175: 14310602.27 | O175: 14701204.49 | P175: 15000109.81 | Q175: 15353509.09 | R175: 15712816.72 | S175: 16130826.5 | T175: 16449603.14 | U175: 16827310.12 | V175: 17211381.92 | W175: 17658935.56 | X175: 17999099.87 | Y175: 18402991.48 | Z175: 18813738.92 | AA175: 19293136.42 | AB175: 19656317.42 | AC175: 20088412.48 | AD175: 20527891.45 | AE175: 21041608.77 | AF175: 21429556.15 | AG175: 21892025.76 | AH175: 22362447.15 | AI175: 22913149.32 | AJ175: 23327742.02 | AK175: 23822920.72 | AL175: 64938817.42 | AM175: 66561701.78 | AN175: 67766478.67 | AO175: 69215004.84 | AP175: 70687217.36 | AQ175: 0 | AR175: 0 | AS175: =AS174 -> 0 | AT175: 0 | AU175: 0 | AV175: 0 | AW175: 0 | AX175: 0 | AY175: 0 | AZ175: 0 | BA175: 0 | BB175: 0 | BC175: 0 | BD175: 0 | BE175: 0 | BF175: 0 | BG175: 0 | BH175: 0
D176: Timing Factor for Dividends | F176: =F173/F175 -> 0.9966981656
B178: Partner Analysis
C179: Partner Cash Flow
D180: Total Equity Funded + Development Fee | I180: =SUM(K180:XFD180) -> 152821004.6 | K180: =K172 -> 5000000 | L180: 147821004.6 | M180: 0 | N180: 0 | O180: 0 | P180: 0 | Q180: 0 | R180: 0 | S180: 0 | T180: 0 | U180: 0 | V180: 0 | W180: 0 | X180: 0 | Y180: 0 | Z180: 0 | AA180: 0 | AB180: 0 | AC180: 0 | AD180: 0 | AE180: 0 | AF180: 0 | AG180: 0 | AH180: 0 | AI180: 0 | AJ180: 0 | AK180: 0 | AL180: 0 | AM180: 0 | AN180: 0 | AO180: 0 | AP180: 0 | AQ180: =AQ172 -> 0 | AR180: 0 | AS180: 0 | AT180: 0 | AU180: 0 | AV180: 0 | AW180: 0 | AX180: 0 | AY180: 0 | AZ180: 0 | BA180: 0 | BB180: 0 | BC180: 0 | BD180: 0 | BE180: 0 | BF180: 0 | BG180: 0 | BH180: 0
D181: Partnership Funding | F181: =I180 -> 152821004.6 | G181: =InputC!F70 -> 0.4 | H181: =G181*F181 -> 61128401.83 | K181: =$H$181*K5 -> 0 | L181: 61128401.83 | M181: 0 | N181: 0 | O181: 0 | P181: 0 | Q181: 0 | R181: 0 | S181: 0 | T181: 0 | U181: 0 | V181: 0 | W181: 0 | X181: 0 | Y181: 0 | Z181: 0 | AA181: 0 | AB181: 0 | AC181: 0 | AD181: 0 | AE181: 0 | AF181: 0 | AG181: 0 | AH181: 0 | AI181: 0 | AJ181: 0 | AK181: 0 | AL181: 0 | AM181: 0 | AN181: 0 | AO181: 0 | AP181: 0 | AQ181: =$H$181*AQ5 -> 0 | AR181: 0 | AS181: 0 | AT181: 0 | AU181: 0 | AV181: 0 | AW181: 0 | AX181: 0 | AY181: 0 | AZ181: 0 | BA181: 0 | BB181: 0 | BC181: 0 | BD181: 0 | BE181: 0 | BF181: 0 | BG181: 0 | BH181: 0
D183: Dividends to Partner | F183: =G181 -> 0.4 | G183: =F183*F176 -> 0.3986792662 | I183: =SUM(K183:XFD183) -> 320566372.3 | K183: =K170*$G$183 -> 0 | L183: 0 | M183: 5571256.452 | N183: 5705340.411 | O183: 5861065.418 | P183: 5980232.771 | Q183: 6121125.737 | R183: 6264374.24 | S183: 6431026.072 | T183: 6558115.708 | U183: 6708699.651 | V183: 6861821.116 | W183: 7040251.471 | X183: 7175867.93 | Y183: 7336891.14 | Z183: 7500647.629 | AA183: 7691773.472 | AB183: 7836566.206 | AC183: 8008833.547 | AD183: 8184044.699 | AE183: 8388853.143 | AF183: 8543519.72 | AG183: 8727896.768 | AH183: 8915444.022 | AI183: 9134997.558 | AJ183: 9300287.072 | AK183: 9497704.553 | AL183: 25889760.08 | AM183: 26536770.42 | AN183: 27017089.99 | AO183: 27594587.34 | AP183: 28181527.95 | AQ183: =AQ170*$G$183 -> 0 | AR183: 0 | AS183: 0 | AT183: 0 | AU183: 0 | AV183: 0 | AW183: 0 | AX183: 0 | AY183: 0 | AZ183: 0 | BA183: 0 | BB183: 0 | BC183: 0 | BD183: 0 | BE183: 0 | BF183: 0 | BG183: 0 | BH183: 0
D184: Net Cash Flow to Partner | I184: =SUM(K184:XFD184) -> 259437970.5 | K184: =K183-K181-0.0001 -> -0.0001 | L184: =L183-L181 -> -61128401.83 | M184: 5571256.452 | N184: 5705340.411 | O184: 5861065.418 | P184: 5980232.771 | Q184: 6121125.737 | R184: 6264374.24 | S184: 6431026.072 | T184: 6558115.708 | U184: 6708699.651 | V184: 6861821.116 | W184: 7040251.471 | X184: 7175867.93 | Y184: 7336891.14 | Z184: 7500647.629 | AA184: 7691773.472 | AB184: 7836566.206 | AC184: 8008833.547 | AD184: 8184044.699 | AE184: 8388853.143 | AF184: 8543519.72 | AG184: 8727896.768 | AH184: 8915444.022 | AI184: 9134997.558 | AJ184: 9300287.072 | AK184: 9497704.553 | AL184: 25889760.08 | AM184: 26536770.42 | AN184: 27017089.99 | AO184: 27594587.34 | AP184: 28181527.95 | AQ184: 0 | AR184: =AR183-AR181 -> 0 | AS184: 0 | AT184: 0 | AU184: 0 | AV184: 0 | AW184: 0 | AX184: 0 | AY184: 0 | AZ184: 0 | BA184: 0 | BB184: 0 | BC184: 0 | BD184: 0 | BE184: 0 | BF184: 0 | BG184: 0 | BH184: 0
D186: EIRR to Partner | F186: =XIRR(K184:BH184,K2:BH2) -> 0.1131789267
C188: Cash Flow to Develoer/Sponsor
D189: Total Cash Flow (No Development Fee Outflow) | K189: =K174 -> -5000000 | L189: -147821004.6 | M189: 13974281.89 | N189: 14310602.27 | O189: 14701204.49 | P189: 15000109.81 | Q189: 15353509.09 | R189: 15712816.72 | S189: 16130826.5 | T189: 16449603.14 | U189: 16827310.12 | V189: 17211381.92 | W189: 17658935.56 | X189: 17999099.87 | Y189: 18402991.48 | Z189: 18813738.92 | AA189: 19293136.42 | AB189: 19656317.42 | AC189: 20088412.48 | AD189: 20527891.45 | AE189: 21041608.77 | AF189: 21429556.15 | AG189: 21892025.76 | AH189: 22362447.15 | AI189: 22913149.32 | AJ189: 23327742.02 | AK189: 23822920.72 | AL189: 64938817.42 | AM189: 66561701.78 | AN189: 67766478.67 | AO189: 69215004.84 | AP189: 70687217.36 | AQ189: =AQ174 -> 0 | AR189: 0 | AS189: 0 | AT189: 0 | AU189: 0 | AV189: 0 | AW189: 0 | AX189: 0 | AY189: 0 | AZ189: 0 | BA189: 0 | BB189: 0 | BC189: 0 | BD189: 0 | BE189: 0 | BF189: 0 | BG189: 0 | BH189: 0
D190: Less: Cash Flow from Partner | K190: =K184 -> -0.0001 | L190: -61128401.83 | M190: 5571256.452 | N190: 5705340.411 | O190: 5861065.418 | P190: 5980232.771 | Q190: 6121125.737 | R190: 6264374.24 | S190: 6431026.072 | T190: 6558115.708 | U190: 6708699.651 | V190: 6861821.116 | W190: 7040251.471 | X190: 7175867.93 | Y190: 7336891.14 | Z190: 7500647.629 | AA190: 7691773.472 | AB190: 7836566.206 | AC190: 8008833.547 | AD190: 8184044.699 | AE190: 8388853.143 | AF190: 8543519.72 | AG190: 8727896.768 | AH190: 8915444.022 | AI190: 9134997.558 | AJ190: 9300287.072 | AK190: 9497704.553 | AL190: 25889760.08 | AM190: 26536770.42 | AN190: 27017089.99 | AO190: 27594587.34 | AP190: 28181527.95 | AQ190: =AQ184 -> 0 | AR190: 0 | AS190: 0 | AT190: 0 | AU190: 0 | AV190: 0 | AW190: 0 | AX190: 0 | AY190: 0 | AZ190: 0 | BA190: 0 | BB190: 0 | BC190: 0 | BD190: 0 | BE190: 0 | BF190: 0 | BG190: 0 | BH190: 0
D191: Developer/Sponsor Funding | I191: =SUM(K191:XFD191) -> 391811864.5 | K191: =K189-K190 -> -5000000 | L191: -86692602.75 | M191: 8403025.443 | N191: 8605261.856 | O191: 8840139.07 | P191: 9019877.035 | Q191: 9232383.35 | R191: 9448442.479 | S191: 9699800.426 | T191: 9891487.428 | U191: 10118610.47 | V191: 10349560.81 | W191: 10618684.09 | X191: 10823231.94 | Y191: 11066100.34 | Z191: 11313091.29 | AA191: 11601362.95 | AB191: 11819751.21 | AC191: 12079578.93 | AD191: 12343846.75 | AE191: 12652755.62 | AF191: 12886036.43 | AG191: 13164129 | AH191: 13447003.13 | AI191: 13778151.76 | AJ191: 14027454.95 | AK191: 14325216.17 | AL191: 39049057.34 | AM191: 40024931.35 | AN191: 40749388.68 | AO191: 41620417.5 | AP191: 42505689.41 | AQ191: =AQ189-AQ190 -> 0 | AR191: 0 | AS191: 0 | AT191: 0 | AU191: 0 | AV191: 0 | AW191: 0 | AX191: 0 | AY191: 0 | AZ191: 0 | BA191: 0 | BB191: 0 | BC191: 0 | BD191: 0 | BE191: 0 | BF191: 0 | BG191: 0 | BH191: 0
D192: EIRR to Developer/Sponsor | F192: =XIRR(K191:BH191,K2:BH2) -> 0.1131137788
B194: Project Sale Cases
C195: Plant Sale Flags
D196: Year of Plant Sale | F196: =InputC!F106 -> 39 | K196: =K3=$F$196 -> FALSE | L196: FALSE | M196: FALSE | N196: FALSE | O196: FALSE | P196: FALSE | Q196: FALSE | R196: FALSE | S196: FALSE | T196: FALSE | U196: FALSE | V196: FALSE | W196: FALSE | X196: FALSE | Y196: FALSE | Z196: FALSE | AA196: FALSE | AB196: FALSE | AC196: FALSE | AD196: FALSE | AE196: FALSE | AF196: FALSE | AG196: FALSE | AH196: FALSE | AI196: FALSE | AJ196: FALSE | AK196: FALSE | AL196: FALSE | AM196: FALSE | AN196: FALSE | AO196: FALSE | AP196: FALSE | AQ196: =AQ3=$F$196 -> FALSE | AR196: FALSE | AS196: FALSE | AT196: FALSE | AU196: FALSE | AV196: FALSE | AW196: TRUE | AX196: FALSE | AY196: FALSE | AZ196: FALSE | BA196: FALSE | BB196: FALSE | BC196: FALSE | BD196: FALSE | BE196: FALSE | BF196: FALSE | BG196: FALSE | BH196: FALSE
D197: Holding Period Before Sale | F197: =F196 -> 39 | K197: =K3<=$F$197 -> TRUE | L197: TRUE | M197: TRUE | N197: TRUE | O197: TRUE | P197: TRUE | Q197: TRUE | R197: TRUE | S197: TRUE | T197: TRUE | U197: TRUE | V197: TRUE | W197: TRUE | X197: TRUE | Y197: TRUE | Z197: TRUE | AA197: TRUE | AB197: TRUE | AC197: TRUE | AD197: TRUE | AE197: TRUE | AF197: TRUE | AG197: TRUE | AH197: TRUE | AI197: TRUE | AJ197: TRUE | AK197: TRUE | AL197: TRUE | AM197: TRUE | AN197: TRUE | AO197: TRUE | AP197: TRUE | AQ197: =AQ3<=$F$197 -> TRUE | AR197: TRUE | AS197: TRUE | AT197: TRUE | AU197: TRUE | AV197: TRUE | AW197: TRUE | AX197: FALSE | AY197: FALSE | AZ197: FALSE | BA197: FALSE | BB197: FALSE | BC197: FALSE | BD197: FALSE | BE197: FALSE | BF197: FALSE | BG197: FALSE | BH197: FALSE
D199: Project Cash Flow | F199: =IRR(K199:BH199) -> 0.08238683953 | K199: =K53 -> -5000000 | L199: -500000000 | M199: 36235833.67 | N199: 37181978.15 | O199: 38280177.46 | P199: 39118252.25 | Q199: 40108919.89 | R199: 41114974.57 | S199: 42285439.36 | T199: 43174374.28 | U199: 44228296.44 | V199: 45298760.03 | W199: 46546990.74 | X199: 47490522.65 | Y199: 48612440.57 | Z199: 49752137.91 | AA199: 51084042.06 | AB199: 52086169.37 | AC199: 53281167.01 | AD199: 54495271.32 | AE199: 55917192.34 | AF199: 56982191.81 | AG199: 58255719.17 | AH199: 59549775.76 | AI199: 61068523.73 | AJ199: 62200968.17 | AK199: 63558866.03 | AL199: 64938817.42 | AM199: 66561701.78 | AN199: 67766478.67 | AO199: 69215004.84 | AP199: 70687217.36 | AQ199: =AQ53 -> 0 | AR199: 0 | AS199: 0 | AT199: 0 | AU199: 0 | AV199: 0 | AW199: 0 | AX199: 0 | AY199: 0 | AZ199: 0 | BA199: 0 | BB199: 0 | BC199: 0 | BD199: 0 | BE199: 0 | BF199: 0 | BG199: 0 | BH199: 0
D200: Discount Rate for Project Cash Flow from Index | K200: =LOOKUP(K3,InputC!87:87,InputC!93:93) -> 0.08 | L200: =LOOKUP(L3,InputC!87:87,InputC!93:93) -> 0.06 | M200: =LOOKUP(M3,InputC!87:87,InputC!93:93) -> 0.06 | N200: =LOOKUP(N3,InputC!87:87,InputC!93:93) -> 0.055 | O200: =LOOKUP(O3,InputC!87:87,InputC!93:93) -> 0.055 | P200: =LOOKUP(P3,InputC!87:87,InputC!93:93) -> 0.05 | Q200: =LOOKUP(Q3,InputC!87:87,InputC!93:93) -> 0.05 | R200: =LOOKUP(R3,InputC!87:87,InputC!93:93) -> 0.05 | S200: =LOOKUP(S3,InputC!87:87,InputC!93:93) -> 0.05 | T200: =LOOKUP(T3,InputC!87:87,InputC!93:93) -> 0.05 | U200: =LOOKUP(U3,InputC!87:87,InputC!93:93) -> 0.05 | V200: =LOOKUP(V3,InputC!87:87,InputC!93:93) -> 0.05 | W200: =LOOKUP(W3,InputC!87:87,InputC!93:93) -> 0.05 | X200: =LOOKUP(X3,InputC!87:87,InputC!93:93) -> 0.05 | Y200: =LOOKUP(Y3,InputC!87:87,InputC!93:93) -> 0.05 | Z200: =LOOKUP(Z3,InputC!87:87,InputC!93:93) -> 0.05 | AA200: =LOOKUP(AA3,InputC!87:87,InputC!93:93) -> 0.05 | AB200: =LOOKUP(AB3,InputC!87:87,InputC!93:93) -> 0.05 | AC200: =LOOKUP(AC3,InputC!87:87,InputC!93:93) -> 0.05 | AD200: =LOOKUP(AD3,InputC!87:87,InputC!93:93) -> 0.05 | AE200: =LOOKUP(AE3,InputC!87:87,InputC!93:93) -> 0.05 | AF200: =LOOKUP(AF3,InputC!87:87,InputC!93:93) -> 0.05 | AG200: =LOOKUP(AG3,InputC!87:87,InputC!93:93) -> 0.05 | AH200: =LOOKUP(AH3,InputC!87:87,InputC!93:93) -> 0.05 | AI200: =LOOKUP(AI3,InputC!87:87,InputC!93:93) -> 0.05 | AJ200: =LOOKUP(AJ3,InputC!87:87,InputC!93:93) -> 0.05 | AK200: =LOOKUP(AK3,InputC!87:87,InputC!93:93) -> 0.05 | AL200: =LOOKUP(AL3,InputC!87:87,InputC!93:93) -> 0.05 | AM200: =LOOKUP(AM3,InputC!87:87,InputC!93:93) -> 0.05 | AN200: =LOOKUP(AN3,InputC!87:87,InputC!93:93) -> 0.05 | AO200: =LOOKUP(AO3,InputC!87:87,InputC!93:93) -> 0.05 | AP200: =LOOKUP(AP3,InputC!87:87,InputC!93:93) -> 0.05 | AQ200: =LOOKUP(AQ3,InputC!87:87,InputC!93:93) -> 0.05 | AR200: =LOOKUP(AR3,InputC!87:87,InputC!93:93) -> 0.05 | AS200: =LOOKUP(AS3,InputC!87:87,InputC!93:93) -> 0.05 | AT200: =LOOKUP(AT3,InputC!87:87,InputC!93:93) -> 0.05 | AU200: =LOOKUP(AU3,InputC!87:87,InputC!93:93) -> 0.05 | AV200: =LOOKUP(AV3,InputC!87:87,InputC!93:93) -> 0.05 | AW200: =LOOKUP(AW3,InputC!87:87,InputC!93:93) -> 0.05 | AX200: =LOOKUP(AX3,InputC!87:87,InputC!93:93) -> 0.05 | AY200: =LOOKUP(AY3,InputC!87:87,InputC!93:93) -> 0.05 | AZ200: =LOOKUP(AZ3,InputC!87:87,InputC!93:93) -> 0.05 | BA200: =LOOKUP(BA3,InputC!87:87,InputC!93:93) -> 0.05 | BB200: =LOOKUP(BB3,InputC!87:87,InputC!93:93) -> 0.05 | BC200: =LOOKUP(BC3,InputC!87:87,InputC!93:93) -> 0.05 | BD200: =LOOKUP(BD3,InputC!87:87,InputC!93:93) -> 0.05 | BE200: =LOOKUP(BE3,InputC!87:87,InputC!93:93) -> 0.05 | BF200: =LOOKUP(BF3,InputC!87:87,InputC!93:93) -> 0.05 | BG200: =LOOKUP(BG3,InputC!87:87,InputC!93:93) -> 0.05 | BH200: =LOOKUP(BH3,InputC!87:87,InputC!93:93) -> 0.05
D201: NPV of Future Cash Flows at Date | K201: =NPV(K200,L199:BH199) -> 17115010.37 | L201: 652143776.5 | M201: 655036569.4 | N201: 696760769.5 | O201: 696802434.4 | P201: 736537485.8 | Q201: 733255440.2 | R201: 728803237.7 | S201: 722957960.2 | T201: 715931483.9 | U201: 707499761.7 | V201: 697575989.7 | W201: 685907798.5 | X201: 672712665.8 | Y201: 657735858.5 | Z201: 640870513.5 | AA201: 621829997.1 | AB201: 600835327.6 | AC201: 577595926.9 | AD201: 551980452 | AE201: 523662282.2 | AF201: 492863204.5 | AG201: 459250645.6 | AH201: 422663402.1 | AI201: 382728048.5 | AJ201: 339663482.7 | AK201: 293087790.8 | AL201: 242803363 | AM201: 188381829.3 | AN201: 130034442.1 | AO201: 67321159.39 | AP201: 0 | AQ201: =NPV(AQ200,AR199:CN199) -> 0 | AR201: 0 | AS201: 0 | AT201: 0 | AU201: 0 | AV201: 0 | AW201: 0 | AX201: 0 | AY201: 0 | AZ201: 0 | BA201: 0 | BB201: 0 | BC201: 0 | BD201: 0 | BE201: 0 | BF201: 0 | BG201: 0 | BH201: 0
D203: Holding Period Cash Flow | K203: =K197*K199+K201*K196 -> -5000000 | L203: -500000000 | M203: 36235833.67 | N203: 37181978.15 | O203: 38280177.46 | P203: 39118252.25 | Q203: 40108919.89 | R203: 41114974.57 | S203: 42285439.36 | T203: 43174374.28 | U203: 44228296.44 | V203: 45298760.03 | W203: 46546990.74 | X203: 47490522.65 | Y203: 48612440.57 | Z203: 49752137.91 | AA203: 51084042.06 | AB203: 52086169.37 | AC203: 53281167.01 | AD203: 54495271.32 | AE203: 55917192.34 | AF203: 56982191.81 | AG203: 58255719.17 | AH203: 59549775.76 | AI203: 61068523.73 | AJ203: 62200968.17 | AK203: 63558866.03 | AL203: 64938817.42 | AM203: 66561701.78 | AN203: 67766478.67 | AO203: 69215004.84 | AP203: 70687217.36 | AQ203: =AQ197*AQ199+AQ201*AQ196 -> 0 | AR203: 0 | AS203: 0 | AT203: 0 | AU203: 0 | AV203: 0 | AW203: 0 | AX203: 0 | AY203: 0 | AZ203: 0 | BA203: 0 | BB203: 0 | BC203: 0 | BD203: 0 | BE203: 0 | BF203: 0 | BG203: 0 | BH203: 0
D205: IRR from Selling Project - Project Basis | F205: =XIRR(K203:BH203,K2:BH2) -> 0.08233112395
D206: IRR with Option to Sell | F206: =MAX(F205,F199) -> 0.08238683953
C208: Equity Cash Flow Basis - to Sponsor
D209: Equity Cash Flow | F209: =IFERROR(IRR(K209:BH209),FALSE) -> 0.1131906676 | K209: =K191 -> -5000000 | L209: =L191 -> -86692602.75 | M209: 8403025.443 | N209: 8605261.856 | O209: 8840139.07 | P209: 9019877.035 | Q209: 9232383.35 | R209: 9448442.479 | S209: 9699800.426 | T209: 9891487.428 | U209: 10118610.47 | V209: 10349560.81 | W209: 10618684.09 | X209: 10823231.94 | Y209: 11066100.34 | Z209: 11313091.29 | AA209: 11601362.95 | AB209: 11819751.21 | AC209: 12079578.93 | AD209: 12343846.75 | AE209: 12652755.62 | AF209: 12886036.43 | AG209: 13164129 | AH209: 13447003.13 | AI209: 13778151.76 | AJ209: 14027454.95 | AK209: 14325216.17 | AL209: 39049057.34 | AM209: 40024931.35 | AN209: 40749388.68 | AO209: 41620417.5 | AP209: 42505689.41 | AQ209: 0 | AR209: 0 | AS209: 0 | AT209: 0 | AU209: 0 | AV209: 0 | AW209: 0 | AX209: 0 | AY209: 0 | AZ209: 0 | BA209: 0 | BB209: 0 | BC209: 0 | BD209: 0 | BE209: 0 | BF209: 0 | BG209: 0 | BH209: 0
D210: Discount Rate for Project Cash Flow | K210: =LOOKUP(K3,InputC!97:97,InputC!103:103) -> 0.09 | L210: =LOOKUP(L3,InputC!97:97,InputC!103:103) -> 0.07 | M210: =LOOKUP(M3,InputC!97:97,InputC!103:103) -> 0.07 | N210: =LOOKUP(N3,InputC!97:97,InputC!103:103) -> 0.065 | O210: =LOOKUP(O3,InputC!97:97,InputC!103:103) -> 0.065 | P210: =LOOKUP(P3,InputC!97:97,InputC!103:103) -> 0.06 | Q210: =LOOKUP(Q3,InputC!97:97,InputC!103:103) -> 0.06 | R210: =LOOKUP(R3,InputC!97:97,InputC!103:103) -> 0.06 | S210: =LOOKUP(S3,InputC!97:97,InputC!103:103) -> 0.06 | T210: =LOOKUP(T3,InputC!97:97,InputC!103:103) -> 0.06 | U210: =LOOKUP(U3,InputC!97:97,InputC!103:103) -> 0.06 | V210: =LOOKUP(V3,InputC!97:97,InputC!103:103) -> 0.06 | W210: =LOOKUP(W3,InputC!97:97,InputC!103:103) -> 0.06 | X210: =LOOKUP(X3,InputC!97:97,InputC!103:103) -> 0.06 | Y210: =LOOKUP(Y3,InputC!97:97,InputC!103:103) -> 0.06 | Z210: =LOOKUP(Z3,InputC!97:97,InputC!103:103) -> 0.06 | AA210: =LOOKUP(AA3,InputC!97:97,InputC!103:103) -> 0.06 | AB210: =LOOKUP(AB3,InputC!97:97,InputC!103:103) -> 0.06 | AC210: =LOOKUP(AC3,InputC!97:97,InputC!103:103) -> 0.06 | AD210: =LOOKUP(AD3,InputC!97:97,InputC!103:103) -> 0.06 | AE210: =LOOKUP(AE3,InputC!97:97,InputC!103:103) -> 0.06 | AF210: =LOOKUP(AF3,InputC!97:97,InputC!103:103) -> 0.06 | AG210: =LOOKUP(AG3,InputC!97:97,InputC!103:103) -> 0.06 | AH210: =LOOKUP(AH3,InputC!97:97,InputC!103:103) -> 0.06 | AI210: =LOOKUP(AI3,InputC!97:97,InputC!103:103) -> 0.06 | AJ210: =LOOKUP(AJ3,InputC!97:97,InputC!103:103) -> 0.06 | AK210: =LOOKUP(AK3,InputC!97:97,InputC!103:103) -> 0.06 | AL210: =LOOKUP(AL3,InputC!97:97,InputC!103:103) -> 0.06 | AM210: =LOOKUP(AM3,InputC!97:97,InputC!103:103) -> 0.06 | AN210: =LOOKUP(AN3,InputC!97:97,InputC!103:103) -> 0.06 | AO210: =LOOKUP(AO3,InputC!97:97,InputC!103:103) -> 0.06 | AP210: =LOOKUP(AP3,InputC!97:97,InputC!103:103) -> 0.06 | AQ210: =LOOKUP(AQ3,InputC!97:97,InputC!103:103) -> 0.06 | AR210: =LOOKUP(AR3,InputC!97:97,InputC!103:103) -> 0.06 | AS210: =LOOKUP(AS3,InputC!97:97,InputC!103:103) -> 0.06 | AT210: =LOOKUP(AT3,InputC!97:97,InputC!103:103) -> 0.06 | AU210: =LOOKUP(AU3,InputC!97:97,InputC!103:103) -> 0.06 | AV210: =LOOKUP(AV3,InputC!97:97,InputC!103:103) -> 0.06 | AW210: =LOOKUP(AW3,InputC!97:97,InputC!103:103) -> 0.06 | AX210: =LOOKUP(AX3,InputC!97:97,InputC!103:103) -> 0.06 | AY210: =LOOKUP(AY3,InputC!97:97,InputC!103:103) -> 0.06 | AZ210: =LOOKUP(AZ3,InputC!97:97,InputC!103:103) -> 0.06 | BA210: =LOOKUP(BA3,InputC!97:97,InputC!103:103) -> 0.06 | BB210: =LOOKUP(BB3,InputC!97:97,InputC!103:103) -> 0.06 | BC210: =LOOKUP(BC3,InputC!97:97,InputC!103:103) -> 0.06 | BD210: =LOOKUP(BD3,InputC!97:97,InputC!103:103) -> 0.06 | BE210: =LOOKUP(BE3,InputC!97:97,InputC!103:103) -> 0.06 | BF210: =LOOKUP(BF3,InputC!97:97,InputC!103:103) -> 0.06 | BG210: =LOOKUP(BG3,InputC!97:97,InputC!103:103) -> 0.06 | BH210: =LOOKUP(BH3,InputC!97:97,InputC!103:103) -> 0.06
D211: NPV of Future Equity Cash Flows at Date | K211: =NPV(K210,L209:BH209) -> 28935423.42 | L211: 151505251.1 | M211: 153707593.2 | N211: 166265695.2 | O211: 168232826.3 | P211: 181296679.9 | Q211: 182942097.3 | R211: 184470180.7 | S211: 185838591.1 | T211: 187097419.2 | U211: 188204653.8 | V211: 189147372.3 | W211: 189877530.5 | X211: 190446950.4 | Y211: 190807667.1 | Z211: 190943035.8 | AA211: 190798255 | AB211: 190426399.1 | AC211: 189772404.1 | AD211: 188814901.6 | AE211: 187491040.1 | AF211: 185854466.1 | AG211: 183841605 | AH211: 181425098.2 | AI211: 178532452.3 | AJ211: 175216944.5 | AK211: 171404745 | AL211: 142639972.4 | AM211: 111173439.4 | AN211: 77094457.07 | AO211: 40099706.99 | AP211: 0 | AQ211: =NPV(AQ210,AR209:CN209) -> 0 | AR211: 0 | AS211: 0 | AT211: 0 | AU211: 0 | AV211: 0 | AW211: 0 | AX211: 0 | AY211: 0 | AZ211: 0 | BA211: 0 | BB211: 0 | BC211: 0 | BD211: 0 | BE211: 0 | BF211: 0 | BG211: 0 | BH211: 0
D213: Holding Period Equity Cash Flow | K213: =K209*K197+K211*K196 -> -5000000 | L213: -86692602.75 | M213: 8403025.443 | N213: 8605261.856 | O213: 8840139.07 | P213: 9019877.035 | Q213: 9232383.35 | R213: 9448442.479 | S213: 9699800.426 | T213: 9891487.428 | U213: 10118610.47 | V213: 10349560.81 | W213: 10618684.09 | X213: 10823231.94 | Y213: 11066100.34 | Z213: 11313091.29 | AA213: 11601362.95 | AB213: 11819751.21 | AC213: 12079578.93 | AD213: 12343846.75 | AE213: 12652755.62 | AF213: 12886036.43 | AG213: 13164129 | AH213: 13447003.13 | AI213: 13778151.76 | AJ213: 14027454.95 | AK213: 14325216.17 | AL213: 39049057.34 | AM213: 40024931.35 | AN213: 40749388.68 | AO213: 41620417.5 | AP213: 42505689.41 | AQ213: =AQ209*AQ197+AQ211*AQ196 -> 0 | AR213: 0 | AS213: 0 | AT213: 0 | AU213: 0 | AV213: 0 | AW213: 0 | AX213: 0 | AY213: 0 | AZ213: 0 | BA213: 0 | BB213: 0 | BC213: 0 | BD213: 0 | BE213: 0 | BF213: 0 | BG213: 0 | BH213: 0
D214: IRR from Selling Project - Equity Basis | F214: =IFERROR(IRR(K213:BH213),FALSE) -> 0.1131906676
D215: IRR with Option to Sell | F215: =MAX(F214,F209) -> 0.1131906676
B218: Graph
K219: =K3 -> 1 | L219: =L3 -> 2 | M219: 3 | N219: 4 | O219: 5 | P219: 6 | Q219: 7 | R219: 8 | S219: 9 | T219: 10 | U219: 11 | V219: 12 | W219: 13 | X219: 14 | Y219: 15 | Z219: 16 | AA219: 17 | AB219: 18 | AC219: 19 | AD219: 20 | AE219: 21 | AF219: 22 | AG219: 23 | AH219: 24 | AI219: 25 | AJ219: 26 | AK219: 27 | AL219: 28 | AM219: 29 | AN219: 30 | AO219: 31 | AP219: 32 | AQ219: 33 | AR219: 34 | AS219: 35 | AT219: 36 | AU219: 37 | AV219: 38 | AW219: 39 | AX219: 40 | AY219: 41 | AZ219: 42 | BA219: 43 | BB219: 44 | BC219: 45 | BD219: 46 | BE219: 47 | BF219: 48 | BG219: 49 | BH219: 50
K220: =IF(K6,K2,NA()) ->  | M220: 2023-01-01 | N220: 2024-01-01 | O220: 2025-01-01 | P220: 2026-01-01 | Q220: 2027-01-01 | R220: 2028-01-01 | S220: 2029-01-01 | T220: 2030-01-01 | U220: 2031-01-01 | V220: 2032-01-01 | W220: 2033-01-01 | X220: 2034-01-01 | Y220: 2035-01-01 | Z220: 2036-01-01 | AA220: 2037-01-01 | AB220: 2038-01-01 | AC220: 2039-01-01 | AD220: 2040-01-01 | AE220: 2041-01-01 | AF220: 2042-01-01 | AG220: 2043-01-01 | AH220: 2044-01-01 | AI220: 2045-01-01 | AJ220: 2046-01-01 | AK220: 2047-01-01 | AL220: 2048-01-01 | AM220: 2049-01-01 | AN220: 2050-01-01 | AO220: 2051-01-01 | AP220: 2052-01-01 | AQ220: =IF(AQ6,AQ2,NA()) -> 
D221: CFADS | K221: =K163 -> 0 | L221: 0 | M221: 36235833.67 | N221: 37181978.15 | O221: 38280177.46 | P221: 39118252.25 | Q221: 40108919.89 | R221: 41114974.57 | S221: 42285439.36 | T221: 43174374.28 | U221: 44228296.44 | V221: 45298760.03 | W221: 46546990.74 | X221: 47490522.65 | Y221: 48612440.57 | Z221: 49752137.91 | AA221: 51084042.06 | AB221: 52086169.37 | AC221: 53281167.01 | AD221: 54495271.32 | AE221: 55917192.34 | AF221: 56982191.81 | AG221: 58255719.17 | AH221: 59549775.76 | AI221: 61068523.73 | AJ221: 62200968.17 | AK221: 63558866.03 | AL221: 64938817.42 | AM221: 66561701.78 | AN221: 67766478.67 | AO221: 69215004.84 | AP221: 70687217.36 | AQ221: =AQ163 -> 0 | AR221: 0 | AS221: 0 | AT221: 0 | AU221: 0 | AV221: 0 | AW221: 0 | AX221: 0 | AY221: 0 | AZ221: 0 | BA221: 0 | BB221: 0 | BC221: 0 | BD221: 0 | BE221: 0 | BF221: 0 | BG221: 0 | BH221: 0
D222: Initial Debt Service | K222: =K148+K145 -> 0 | L222: 0 | M222: 22261551.77 | N222: 22871375.88 | O222: 23578972.97 | P222: 24118142.45 | Q222: 24755410.81 | R222: 25402157.85 | S222: 26154612.86 | T222: 26724771.15 | U222: 27400986.32 | V222: 28087378.11 | W222: 28888055.18 | X222: 29491422.78 | Y222: 30209449.09 | Z222: 30938398.99 | AA222: 31790905.64 | AB222: 32429851.95 | AC222: 33192754.53 | AD222: 33967379.87 | AE222: 34875583.58 | AF222: 35552635.66 | AG222: 36363693.41 | AH222: 37187328.61 | AI222: 38155374.41 | AJ222: 38873226.15 | AK222: 39735945.31 | AL222: 0 | AM222: 0 | AN222: 0 | AO222: 0 | AP222: 0 | AQ222: =AQ148+AQ145 -> 0 | AR222: 0 | AS222: 0 | AT222: 0 | AU222: 0 | AV222: 0 | AW222: 0 | AX222: 0 | AY222: 0 | AZ222: 0 | BA222: 0 | BB222: 0 | BC222: 0 | BD222: 0 | BE222: 0 | BF222: 0 | BG222: 0 | BH222: 0
D223: Re-financed Debt Service | K223: =K165 -> 0 | L223: 0 | M223: 0 | N223: 0 | O223: 0 | P223: 0 | Q223: 0 | R223: 0 | S223: 0 | T223: 0 | U223: 0 | V223: 0 | W223: 0 | X223: 0 | Y223: 0 | Z223: 0 | AA223: 0 | AB223: 0 | AC223: 0 | AD223: 0 | AE223: 0 | AF223: 0 | AG223: 0 | AH223: 0 | AI223: 0 | AJ223: 0 | AK223: 0 | AL223: 0 | AM223: 0 | AN223: 0 | AO223: 0 | AP223: 0 | AQ223: =AQ165 -> 0 | AR223: 0 | AS223: 0 | AT223: 0 | AU223: 0 | AV223: 0 | AW223: 0 | AX223: 0 | AY223: 0 | AZ223: 0 | BA223: 0 | BB223: 0 | BC223: 0 | BD223: 0 | BE223: 0 | BF223: 0 | BG223: 0 | BH223: 0
K225: 1 | L225: 2 | M225: 3 | N225: 4 | O225: 5 | P225: 6 | Q225: 7 | R225: 8 | S225: 9 | T225: 10 | U225: 11 | V225: 12 | W225: 13 | X225: 14 | Y225: 15 | Z225: 16 | AA225: 17 | AB225: 18 | AC225: 19 | AD225: 20 | AE225: 21 | AF225: 22 | AG225: 23 | AH225: 24 | AI225: 25 | AJ225: 26 | AK225: 27 | AL225: 28 | AM225: 29 | AN225: 30 | AO225: 31 | AP225: 32 | AQ225: 33 | AR225: 34 | AS225: 35 | AT225: 36 | AU225: 37 | AV225: 38 | AW225: 39 | AX225: 40 | AY225: 41 | AZ225: 42 | BA225: 43 | BB225: 44 | BC225: 45 | BD225: 46 | BE225: 47 | BF225: 48 | BG225: 49 | BH225: 50 | BI225: 51 | BJ225: 52 | BK225: 53 | BL225: 54 | BM225: 55 | BN225: 56 | BO225: 57 | BP225: 58 | BQ225: 59 | BR225: 60 | BS225: 61 | BT225: 62 | BU225: 63 | BV225: 64 | BW225: 65 | BX225: 66 | BY225: 67 | BZ225: 68 | CA225: 69 | CB225: 70 | CC225: 71 | CD225: 72 | CE225: 73 | CF225: 74 | CG225: 75 | CH225: 76 | CI225: 77 | CJ225: 78 | CK225: 79 | CL225: 80 | CM225: 81 | CN225: 82 | CO225: 83 | CP225: 84 | CQ225: 85 | CR225: 86 | CS225: 87 | CT225: 88 | CU225: 89 | CV225: 90 | CW225: 91 | CX225: 92 | CY225: 93 | CZ225: 94 | DA225: 95 | DB225: 96 | DC225: 97 | DD225: 98 | DE225: 99 | DF225: 100
K226: =MOD(K225,2)=1 -> TRUE | L226: =MOD(L225,2)=1 -> FALSE | M226: TRUE | N226: FALSE | O226: TRUE | P226: FALSE | Q226: TRUE | R226: FALSE | S226: TRUE | T226: FALSE | U226: TRUE | V226: FALSE | W226: TRUE | X226: FALSE | Y226: TRUE | Z226: FALSE | AA226: TRUE | AB226: FALSE | AC226: TRUE | AD226: FALSE | AE226: TRUE | AF226: FALSE | AG226: TRUE | AH226: FALSE | AI226: TRUE | AJ226: FALSE | AK226: TRUE | AL226: FALSE | AM226: TRUE | AN226: FALSE | AO226: TRUE | AP226: FALSE | AQ226: TRUE | AR226: FALSE | AS226: TRUE | AT226: FALSE | AU226: TRUE | AV226: FALSE | AW226: TRUE | AX226: FALSE | AY226: TRUE | AZ226: FALSE | BA226: TRUE | BB226: FALSE | BC226: TRUE | BD226: FALSE | BE226: TRUE | BF226: FALSE | BG226: TRUE | BH226: FALSE | BI226: TRUE | BJ226: FALSE | BK226: TRUE | BL226: FALSE | BM226: TRUE | BN226: FALSE | BO226: TRUE | BP226: FALSE | BQ226: TRUE | BR226: FALSE | BS226: TRUE | BT226: FALSE | BU226: TRUE | BV226: FALSE | BW226: TRUE | BX226: =MOD(BX225,2)=1 -> FALSE | BY226: TRUE | BZ226: FALSE | CA226: TRUE | CB226: FALSE | CC226: TRUE | CD226: FALSE | CE226: TRUE | CF226: FALSE | CG226: TRUE | CH226: FALSE | CI226: TRUE | CJ226: FALSE | CK226: TRUE | CL226: FALSE | CM226: TRUE | CN226: FALSE | CO226: TRUE | CP226: FALSE | CQ226: TRUE | CR226: FALSE | CS226: TRUE | CT226: FALSE | CU226: TRUE | CV226: FALSE | CW226: TRUE | CX226: FALSE | CY226: TRUE | CZ226: FALSE | DA226: TRUE | DB226: FALSE | DC226: TRUE | DD226: FALSE | DE226: TRUE | DF226: FALSE
K228: =J228+K226 -> 1 | L228: =K228+L226 -> 1 | M228: 2 | N228: 2 | O228: 3 | P228: 3 | Q228: 4 | R228: 4 | S228: 5 | T228: 5 | U228: 6 | V228: 6 | W228: 7 | X228: 7 | Y228: 8 | Z228: 8 | AA228: 9 | AB228: 9 | AC228: 10 | AD228: 10 | AE228: 11 | AF228: 11 | AG228: 12 | AH228: 12 | AI228: 13 | AJ228: 13 | AK228: 14 | AL228: 14 | AM228: 15 | AN228: 15 | AO228: 16 | AP228: 16 | AQ228: 17 | AR228: 17 | AS228: 18 | AT228: 18 | AU228: 19 | AV228: 19 | AW228: 20 | AX228: 20 | AY228: 21 | AZ228: 21 | BA228: 22 | BB228: 22 | BC228: 23 | BD228: 23 | BE228: 24 | BF228: 24 | BG228: 25 | BH228: 25 | BI228: 26 | BJ228: 26 | BK228: 27 | BL228: 27 | BM228: 28 | BN228: 28 | BO228: 29 | BP228: 29 | BQ228: 30 | BR228: 30 | BS228: 31 | BT228: 31 | BU228: 32 | BV228: 32 | BW228: 33 | BX228: =BW228+BX226 -> 33 | BY228: 34 | BZ228: 34 | CA228: 35 | CB228: 35 | CC228: 36 | CD228: 36 | CE228: 37 | CF228: 37 | CG228: 38 | CH228: 38 | CI228: 39 | CJ228: 39 | CK228: 40 | CL228: 40 | CM228: 41 | CN228: 41 | CO228: 42 | CP228: 42 | CQ228: 43 | CR228: 43 | CS228: 44 | CT228: 44 | CU228: 45 | CV228: 45 | CW228: 46 | CX228: 46 | CY228: 47 | CZ228: 47 | DA228: 48 | DB228: 48 | DC228: 49 | DD228: 49 | DE228: 50 | DF228: 50
K229: =J229+J226 -> 0 | L229: =K229+K226 -> 1 | M229: 1 | N229: 2 | O229: 2 | P229: 3 | Q229: 3 | R229: 4 | S229: 4 | T229: 5 | U229: 5 | V229: 6 | W229: 6 | X229: 7 | Y229: 7 | Z229: 8 | AA229: 8 | AB229: 9 | AC229: 9 | AD229: 10 | AE229: 10 | AF229: 11 | AG229: 11 | AH229: 12 | AI229: 12 | AJ229: 13 | AK229: 13 | AL229: 14 | AM229: 14 | AN229: 15 | AO229: 15 | AP229: 16 | AQ229: 16 | AR229: 17 | AS229: 17 | AT229: 18 | AU229: 18 | AV229: 19 | AW229: 19 | AX229: 20 | AY229: 20 | AZ229: 21 | BA229: 21 | BB229: 22 | BC229: 22 | BD229: 23 | BE229: 23 | BF229: 24 | BG229: 24 | BH229: 25 | BI229: 25 | BJ229: 26 | BK229: 26 | BL229: 27 | BM229: 27 | BN229: 28 | BO229: 28 | BP229: 29 | BQ229: 29 | BR229: 30 | BS229: 30 | BT229: 31 | BU229: 31 | BV229: 32 | BW229: 32 | BX229: =BW229+BW226 -> 33 | BY229: 33 | BZ229: 34 | CA229: 34 | CB229: 35 | CC229: 35 | CD229: 36 | CE229: 36 | CF229: 37 | CG229: 37 | CH229: 38 | CI229: 38 | CJ229: 39 | CK229: 39 | CL229: 40 | CM229: 40 | CN229: 41 | CO229: 41 | CP229: 42 | CQ229: 42 | CR229: 43 | CS229: 43 | CT229: 44 | CU229: 44 | CV229: 45 | CW229: 45 | CX229: 46 | CY229: 46 | CZ229: 47 | DA229: 47 | DB229: 48 | DC229: 48 | DD229: 49 | DE229: 49 | DF229: 50
K230: =INDEX($K$220:$BH$220,K228) ->  | L230: =INDEX($K$220:$BH$220,L228) ->  | M230: =INDEX($K$220:$BH$220,M228) ->  | N230: =INDEX($K$220:$BH$220,N228) ->  | O230: =INDEX($K$220:$BH$220,O228) -> 2023-01-01 | P230: =INDEX($K$220:$BH$220,P228) -> 2023-01-01 | Q230: =INDEX($K$220:$BH$220,Q228) -> 2024-01-01 | R230: =INDEX($K$220:$BH$220,R228) -> 2024-01-01 | S230: =INDEX($K$220:$BH$220,S228) -> 2025-01-01 | T230: =INDEX($K$220:$BH$220,T228) -> 2025-01-01 | U230: =INDEX($K$220:$BH$220,U228) -> 2026-01-01 | V230: =INDEX($K$220:$BH$220,V228) -> 2026-01-01 | W230: =INDEX($K$220:$BH$220,W228) -> 2027-01-01 | X230: =INDEX($K$220:$BH$220,X228) -> 2027-01-01 | Y230: =INDEX($K$220:$BH$220,Y228) -> 2028-01-01 | Z230: =INDEX($K$220:$BH$220,Z228) -> 2028-01-01 | AA230: =INDEX($K$220:$BH$220,AA228) -> 2029-01-01 | AB230: =INDEX($K$220:$BH$220,AB228) -> 2029-01-01 | AC230: =INDEX($K$220:$BH$220,AC228) -> 2030-01-01 | AD230: =INDEX($K$220:$BH$220,AD228) -> 2030-01-01 | AE230: =INDEX($K$220:$BH$220,AE228) -> 2031-01-01 | AF230: =INDEX($K$220:$BH$220,AF228) -> 2031-01-01 | AG230: =INDEX($K$220:$BH$220,AG228) -> 2032-01-01 | AH230: =INDEX($K$220:$BH$220,AH228) -> 2032-01-01 | AI230: =INDEX($K$220:$BH$220,AI228) -> 2033-01-01 | AJ230: =INDEX($K$220:$BH$220,AJ228) -> 2033-01-01 | AK230: =INDEX($K$220:$BH$220,AK228) -> 2034-01-01 | AL230: =INDEX($K$220:$BH$220,AL228) -> 2034-01-01 | AM230: =INDEX($K$220:$BH$220,AM228) -> 2035-01-01 | AN230: =INDEX($K$220:$BH$220,AN228) -> 2035-01-01 | AO230: =INDEX($K$220:$BH$220,AO228) -> 2036-01-01 | AP230: =INDEX($K$220:$BH$220,AP228) -> 2036-01-01 | AQ230: =INDEX($K$220:$BH$220,AQ228) -> 2037-01-01 | AR230: =INDEX($K$220:$BH$220,AR228) -> 2037-01-01 | AS230: =INDEX($K$220:$BH$220,AS228) -> 2038-01-01 | AT230: =INDEX($K$220:$BH$220,AT228) -> 2038-01-01 | AU230: =INDEX($K$220:$BH$220,AU228) -> 2039-01-01 | AV230: =INDEX($K$220:$BH$220,AV228) -> 2039-01-01 | AW230: =INDEX($K$220:$BH$220,AW228) -> 2040-01-01 | AX230: =INDEX($K$220:$BH$220,AX228) -> 2040-01-01 | AY230: =INDEX($K$220:$BH$220,AY228) -> 2041-01-01 | AZ230: =INDEX($K$220:$BH$220,AZ228) -> 2041-01-01 | BA230: =INDEX($K$220:$BH$220,BA228) -> 2042-01-01 | BB230: =INDEX($K$220:$BH$220,BB228) -> 2042-01-01 | BC230: =INDEX($K$220:$BH$220,BC228) -> 2043-01-01 | BD230: =INDEX($K$220:$BH$220,BD228) -> 2043-01-01 | BE230: =INDEX($K$220:$BH$220,BE228) -> 2044-01-01 | BF230: =INDEX($K$220:$BH$220,BF228) -> 2044-01-01 | BG230: =INDEX($K$220:$BH$220,BG228) -> 2045-01-01 | BH230: =INDEX($K$220:$BH$220,BH228) -> 2045-01-01 | BI230: =INDEX($K$220:$BH$220,BI228) -> 2046-01-01 | BJ230: =INDEX($K$220:$BH$220,BJ228) -> 2046-01-01 | BK230: =INDEX($K$220:$BH$220,BK228) -> 2047-01-01 | BL230: =INDEX($K$220:$BH$220,BL228) -> 2047-01-01 | BM230: =INDEX($K$220:$BH$220,BM228) -> 2048-01-01 | BN230: =INDEX($K$220:$BH$220,BN228) -> 2048-01-01 | BO230: =INDEX($K$220:$BH$220,BO228) -> 2049-01-01 | BP230: =INDEX($K$220:$BH$220,BP228) -> 2049-01-01 | BQ230: =INDEX($K$220:$BH$220,BQ228) -> 2050-01-01 | BR230: =INDEX($K$220:$BH$220,BR228) -> 2050-01-01 | BS230: =INDEX($K$220:$BH$220,BS228) -> 2051-01-01 | BT230: =INDEX($K$220:$BH$220,BT228) -> 2051-01-01 | BU230: =INDEX($K$220:$BH$220,BU228) -> 2052-01-01 | BV230: =INDEX($K$220:$BH$220,BV228) -> 2052-01-01 | BW230: =INDEX($K$220:$BH$220,BW228) ->  | BX230: =INDEX($K$220:$BH$220,BX228) ->  | BY230: =INDEX($K$220:$BH$220,BY228) ->  | BZ230: =INDEX($K$220:$BH$220,BZ228) ->  | CA230: =INDEX($K$220:$BH$220,CA228) ->  | CB230: =INDEX($K$220:$BH$220,CB228) ->  | CC230: =INDEX($K$220:$BH$220,CC228) ->  | CD230: =INDEX($K$220:$BH$220,CD228) ->  | CE230: =INDEX($K$220:$BH$220,CE228) ->  | CF230: =INDEX($K$220:$BH$220,CF228) ->  | CG230: =INDEX($K$220:$BH$220,CG228) ->  | CH230: =INDEX($K$220:$BH$220,CH228) ->  | CI230: =INDEX($K$220:$BH$220,CI228) ->  | CJ230: =INDEX($K$220:$BH$220,CJ228) ->  | CK230: =INDEX($K$220:$BH$220,CK228) ->  | CL230: =INDEX($K$220:$BH$220,CL228) ->  | CM230: =INDEX($K$220:$BH$220,CM228) ->  | CN230: =INDEX($K$220:$BH$220,CN228) ->  | CO230: =INDEX($K$220:$BH$220,CO228) ->  | CP230: =INDEX($K$220:$BH$220,CP228) ->  | CQ230: =INDEX($K$220:$BH$220,CQ228) ->  | CR230: =INDEX($K$220:$BH$220,CR228) ->  | CS230: =INDEX($K$220:$BH$220,CS228) ->  | CT230: =INDEX($K$220:$BH$220,CT228) ->  | CU230: =INDEX($K$220:$BH$220,CU228) ->  | CV230: =INDEX($K$220:$BH$220,CV228) ->  | CW230: =INDEX($K$220:$BH$220,CW228) ->  | CX230: =INDEX($K$220:$BH$220,CX228) ->  | CY230: =INDEX($K$220:$BH$220,CY228) ->  | CZ230: =INDEX($K$220:$BH$220,CZ228) ->  | DA230: =INDEX($K$220:$BH$220,DA228) ->  | DB230: =INDEX($K$220:$BH$220,DB228) ->  | DC230: =INDEX($K$220:$BH$220,DC228) ->  | DD230: =INDEX($K$220:$BH$220,DD228) ->  | DE230: =INDEX($K$220:$BH$220,DE228) ->  | DF230: =INDEX($K$220:$BH$220,DF228) -> 
L231: =INDEX($K$221:$BG$221,L229) -> 0 | M231: =INDEX($K$221:$BG$221,M229) -> 0 | N231: =INDEX($K$221:$BG$221,N229) -> 0 | O231: =INDEX($K$221:$BG$221,O229) -> 0 | P231: =INDEX($K$221:$BG$221,P229) -> 36235833.67 | Q231: =INDEX($K$221:$BG$221,Q229) -> 36235833.67 | R231: =INDEX($K$221:$BG$221,R229) -> 37181978.15 | S231: =INDEX($K$221:$BG$221,S229) -> 37181978.15 | T231: =INDEX($K$221:$BG$221,T229) -> 38280177.46 | U231: =INDEX($K$221:$BG$221,U229) -> 38280177.46 | V231: =INDEX($K$221:$BG$221,V229) -> 39118252.25 | W231: =INDEX($K$221:$BG$221,W229) -> 39118252.25 | X231: =INDEX($K$221:$BG$221,X229) -> 40108919.89 | Y231: =INDEX($K$221:$BG$221,Y229) -> 40108919.89 | Z231: =INDEX($K$221:$BG$221,Z229) -> 41114974.57 | AA231: =INDEX($K$221:$BG$221,AA229) -> 41114974.57 | AB231: =INDEX($K$221:$BG$221,AB229) -> 42285439.36 | AC231: =INDEX($K$221:$BG$221,AC229) -> 42285439.36 | AD231: =INDEX($K$221:$BG$221,AD229) -> 43174374.28 | AE231: =INDEX($K$221:$BG$221,AE229) -> 43174374.28 | AF231: =INDEX($K$221:$BG$221,AF229) -> 44228296.44 | AG231: =INDEX($K$221:$BG$221,AG229) -> 44228296.44 | AH231: =INDEX($K$221:$BG$221,AH229) -> 45298760.03 | AI231: =INDEX($K$221:$BG$221,AI229) -> 45298760.03 | AJ231: =INDEX($K$221:$BG$221,AJ229) -> 46546990.74 | AK231: =INDEX($K$221:$BG$221,AK229) -> 46546990.74 | AL231: =INDEX($K$221:$BG$221,AL229) -> 47490522.65 | AM231: =INDEX($K$221:$BG$221,AM229) -> 47490522.65 | AN231: =INDEX($K$221:$BG$221,AN229) -> 48612440.57 | AO231: =INDEX($K$221:$BG$221,AO229) -> 48612440.57 | AP231: =INDEX($K$221:$BG$221,AP229) -> 49752137.91 | AQ231: =INDEX($K$221:$BG$221,AQ229) -> 49752137.91 | AR231: =INDEX($K$221:$BG$221,AR229) -> 51084042.06 | AS231: =INDEX($K$221:$BG$221,AS229) -> 51084042.06 | AT231: =INDEX($K$221:$BG$221,AT229) -> 52086169.37 | AU231: =INDEX($K$221:$BG$221,AU229) -> 52086169.37 | AV231: =INDEX($K$221:$BG$221,AV229) -> 53281167.01 | AW231: =INDEX($K$221:$BG$221,AW229) -> 53281167.01 | AX231: =INDEX($K$221:$BG$221,AX229) -> 54495271.32 | AY231: =INDEX($K$221:$BG$221,AY229) -> 54495271.32 | AZ231: =INDEX($K$221:$BG$221,AZ229) -> 55917192.34 | BA231: =INDEX($K$221:$BG$221,BA229) -> 55917192.34 | BB231: =INDEX($K$221:$BG$221,BB229) -> 56982191.81 | BC231: =INDEX($K$221:$BG$221,BC229) -> 56982191.81 | BD231: =INDEX($K$221:$BG$221,BD229) -> 58255719.17 | BE231: =INDEX($K$221:$BG$221,BE229) -> 58255719.17 | BF231: =INDEX($K$221:$BG$221,BF229) -> 59549775.76 | BG231: =INDEX($K$221:$BG$221,BG229) -> 59549775.76 | BH231: =INDEX($K$221:$BG$221,BH229) -> 61068523.73 | BI231: =INDEX($K$221:$BG$221,BI229) -> 61068523.73 | BJ231: =INDEX($K$221:$BG$221,BJ229) -> 62200968.17 | BK231: =INDEX($K$221:$BG$221,BK229) -> 62200968.17 | BL231: =INDEX($K$221:$BG$221,BL229) -> 63558866.03 | BM231: =INDEX($K$221:$BG$221,BM229) -> 63558866.03 | BN231: =INDEX($K$221:$BG$221,BN229) -> 64938817.42 | BO231: =INDEX($K$221:$BG$221,BO229) -> 64938817.42 | BP231: =INDEX($K$221:$BG$221,BP229) -> 66561701.78 | BQ231: =INDEX($K$221:$BG$221,BQ229) -> 66561701.78 | BR231: =INDEX($K$221:$BG$221,BR229) -> 67766478.67 | BS231: =INDEX($K$221:$BG$221,BS229) -> 67766478.67 | BT231: =INDEX($K$221:$BG$221,BT229) -> 69215004.84 | BU231: =INDEX($K$221:$BG$221,BU229) -> 69215004.84 | BV231: =INDEX($K$221:$BG$221,BV229) -> 70687217.36 | BW231: =INDEX($K$221:$BG$221,BW229) -> 70687217.36 | BX231: =INDEX($K$221:$BG$221,BX229) -> 0 | BY231: =INDEX($K$221:$BG$221,BY229) -> 0 | BZ231: =INDEX($K$221:$BG$221,BZ229) -> 0 | CA231: =INDEX($K$221:$BG$221,CA229) -> 0 | CB231: =INDEX($K$221:$BG$221,CB229) -> 0 | CC231: =INDEX($K$221:$BG$221,CC229) -> 0 | CD231: =INDEX($K$221:$BG$221,CD229) -> 0 | CE231: =INDEX($K$221:$BG$221,CE229) -> 0 | CF231: =INDEX($K$221:$BG$221,CF229) -> 0 | CG231: =INDEX($K$221:$BG$221,CG229) -> 0 | CH231: =INDEX($K$221:$BG$221,CH229) -> 0 | CI231: =INDEX($K$221:$BG$221,CI229) -> 0 | CJ231: =INDEX($K$221:$BG$221,CJ229) -> 0 | CK231: =INDEX($K$221:$BG$221,CK229) -> 0 | CL231: =INDEX($K$221:$BG$221,CL229) -> 0 | CM231: =INDEX($K$221:$BG$221,CM229) -> 0 | CN231: =INDEX($K$221:$BG$221,CN229) -> 0 | CO231: =INDEX($K$221:$BG$221,CO229) -> 0 | CP231: =INDEX($K$221:$BG$221,CP229) -> 0 | CQ231: =INDEX($K$221:$BG$221,CQ229) -> 0 | CR231: =INDEX($K$221:$BG$221,CR229) -> 0 | CS231: =INDEX($K$221:$BG$221,CS229) -> 0 | CT231: =INDEX($K$221:$BG$221,CT229) -> 0 | CU231: =INDEX($K$221:$BG$221,CU229) -> 0 | CV231: =INDEX($K$221:$BG$221,CV229) -> 0 | CW231: =INDEX($K$221:$BG$221,CW229) -> 0 | CX231: =INDEX($K$221:$BG$221,CX229) -> 0 | CY231: =INDEX($K$221:$BG$221,CY229) -> 0 | CZ231: =INDEX($K$221:$BG$221,CZ229) -> 0 | DA231: =INDEX($K$221:$BG$221,DA229) -> 0 | DB231: =INDEX($K$221:$BG$221,DB229) -> 0 | DC231: =INDEX($K$221:$BG$221,DC229) -> 0 | DD231: =INDEX($K$221:$BG$221,DD229) -> 0 | DE231: =INDEX($K$221:$BG$221,DE229) -> 0 | DF231: =INDEX($K$221:$BG$221,DF229) -> 
K233: =K220 ->  | M233: 2023-01-01 | N233: 2024-01-01 | O233: 2025-01-01 | P233: 2026-01-01 | Q233: 2027-01-01 | R233: 2028-01-01 | S233: 2029-01-01 | T233: 2030-01-01 | U233: 2031-01-01 | V233: 2032-01-01 | W233: 2033-01-01 | X233: 2034-01-01 | Y233: 2035-01-01 | Z233: 2036-01-01 | AA233: 2037-01-01 | AB233: 2038-01-01 | AC233: 2039-01-01 | AD233: 2040-01-01 | AE233: 2041-01-01 | AF233: 2042-01-01 | AG233: 2043-01-01 | AH233: 2044-01-01 | AI233: 2045-01-01 | AJ233: 2046-01-01 | AK233: 2047-01-01 | AL233: 2048-01-01 | AM233: 2049-01-01 | AN233: 2050-01-01 | AO233: 2051-01-01 | AP233: 2052-01-01 | AQ233: =AQ220 -> 
D234: Project Value | K234: =IF(K6,K201,NA()) ->  | M234: 655036569.4 | N234: 696760769.5 | O234: 696802434.4 | P234: 736537485.8 | Q234: 733255440.2 | R234: 728803237.7 | S234: 722957960.2 | T234: 715931483.9 | U234: 707499761.7 | V234: 697575989.7 | W234: 685907798.5 | X234: 672712665.8 | Y234: 657735858.5 | Z234: 640870513.5 | AA234: 621829997.1 | AB234: 600835327.6 | AC234: 577595926.9 | AD234: 551980452 | AE234: 523662282.2 | AF234: 492863204.5 | AG234: 459250645.6 | AH234: 422663402.1 | AI234: 382728048.5 | AJ234: 339663482.7 | AK234: 293087790.8 | AL234: 242803363 | AM234: 188381829.3 | AN234: 130034442.1 | AO234: 67321159.39 | AP234: 0 | AQ234: =IF(AQ6,AQ201,NA()) -> 
K237: =K233 ->  | M237: 2023-01-01 | N237: 2024-01-01 | O237: 2025-01-01 | P237: 2026-01-01 | Q237: 2027-01-01 | R237: 2028-01-01 | S237: 2029-01-01 | T237: 2030-01-01 | U237: 2031-01-01 | V237: 2032-01-01 | W237: 2033-01-01 | X237: 2034-01-01 | Y237: 2035-01-01 | Z237: 2036-01-01 | AA237: 2037-01-01 | AB237: 2038-01-01 | AC237: 2039-01-01 | AD237: 2040-01-01 | AE237: 2041-01-01 | AF237: 2042-01-01 | AG237: 2043-01-01 | AH237: 2044-01-01 | AI237: 2045-01-01 | AJ237: 2046-01-01 | AK237: 2047-01-01 | AL237: 2048-01-01 | AM237: 2049-01-01 | AN237: 2050-01-01 | AO237: 2051-01-01 | AP237: 2052-01-01 | AQ237: =AQ233 -> 
D238: Equity Value | K238: =K211 -> 28935423.42 | L238: 151505251.1 | M238: 153707593.2 | N238: 166265695.2 | O238: 168232826.3 | P238: 181296679.9 | Q238: 182942097.3 | R238: 184470180.7 | S238: 185838591.1 | T238: 187097419.2 | U238: 188204653.8 | V238: 189147372.3 | W238: 189877530.5 | X238: 190446950.4 | Y238: 190807667.1 | Z238: 190943035.8 | AA238: 190798255 | AB238: 190426399.1 | AC238: 189772404.1 | AD238: 188814901.6 | AE238: 187491040.1 | AF238: 185854466.1 | AG238: 183841605 | AH238: 181425098.2 | AI238: 178532452.3 | AJ238: 175216944.5 | AK238: 171404745 | AL238: 142639972.4 | AM238: 111173439.4 | AN238: 77094457.07 | AO238: 40099706.99 | AP238: 0 | AQ238: =AQ211 -> 0 | AR238: 0 | AS238: 0 | AT238: 0 | AU238: 0 | AV238: 0 | AW238: 0 | AX238: 0 | AY238: 0 | AZ238: 0 | BA238: 0 | BB238: 0 | BC238: 0 | BD238: 0 | BE238: 0 | BF238: 0 | BG238: 0 | BH238: 0
C242: General Inputs | S242: Sale Period | T242: =InputC!F106 -> 39
D245: Development Cost (actual) | E245: EUR | F245: 20000 | T245: No Sale | U245: Sale | V245: PIRR | W245: Probabilkty
D246: EPC Cost | E246: EUR | F246: 400000 | S246: 13000 | T246: -0.03480727061 | U246: -0.03480727061 | V246: 0.02014860809 | W246: 0.15
D247: EBITDA p.a. | E247: EUR | F247: 15000 | S247: =S246+3000 -> 16000 | T247: 0.03099442347 | U247: 0.03099442347 | V247: 0.03403179348 | W247: 0.2
D248: EBITDA Growth | E248: % | F248: 0.025 | S248: =S247+3000 -> 19000 | T248: 0.0571541675 | U248: 0.1087200486 | V248: 0.04643649757 | W248: 0.3
D249: Re-invesment Rate | E249: % | F249: 0.1 | S249: =S248+3000 -> 22000 | T249: 0.08027604944 | U249: 0.2111129277 | V249: 0.05779884756 | W249: 0.2
S250: =S249+3000 -> 25000 | T250: 0.1028493199 | U250: 0.2948371136 | V250: 0.06839130223 | W250: 0.15 | X250: Output
C251: Initial Financing Inputs
S252: Expected | T252: =SUMPRODUCT(T246:T250,$W$246:$W$250) -> 0.04960665222 | U252: =SUMPRODUCT(U246:U250,$W$246:$W$250) -> 0.1200419613 | V252: =SUMPRODUCT(W246:W250,$V$246:$V$250) -> 0.04557806402
F253: 1
F254: 1 | G254: PIRR - Cash Basis | J254: =F199 -> 0.08238683953
G255: EIRR with Re-Finance | J255: =F209 -> 0.1131906676 | K255: EIRR NO
C256: Re-Financing Inputs
G257: PIRR with Plant Sale | J257: =F206 -> 0.08238683953
F258: 1 | G258: EIRR with Plant Sale | J258: =F215 -> 0.1131906676 | K258: EIRR SALE
F260: 1 | G260: PIRR with Sale - No Opt | J260: =F205 -> 0.08233112395
F261: 1 | G261: EIRR with Sale - No Opt | J261: =F214 -> 0.1131906676
C263: Plant Sale
F265: 1
F266: 1
... 1 more rows

Sheet Debt Analysis
C4: You are evaluating options with the bank.
D5: You are considering either:
D6: 1. Reducing the step-up in the credit spread
D7: 2. Leaving the credit spread but eliminating the pre-payment penalty
C9: Assume the debt is fixed with debt to capital
D10: You can potentially lower the credit spread, or
D11: You can potentially increase the tenure
D12: Which do you think would be better
D13: Demonstrate this with the model
D15: Assume you can either:
D16: Increase the Debt Tenure or
D17: Increase the Development Fee
D18: Which do you think would be better
D19: Demonstrate this with the model

Sheet EPC Analysis
C4: The ECP contract has the following liquidated damage penalty for delay
C6: EPC LD | D6: 1200 | E6: MW/Day
C8: In the market, there are the follwing costs of electricty
C9: Marginal Cost of Gas | D9: 3 | E9: USD/MMBTU
C10: Average Heat Rate | D10: 70 | E10: MMBTU/MWH
C12: Calculate Fair LD Rate from Off-taker Cost
C13: Assume the PPA tariff is | D13: 2 | E13: USD Cents/kWh
C16: What is your suggestion in terms of negotiating the EPC Contract
C18: Discuss how this could affect the EPC cost and Include an alternative EPC Cost in the model
C20: The EPC has a completion test for the performance ratio
C21: Comment on how this test should be designed

Sheet Resource Analysis
C2: The current resource analysis has the following standarddev
E4: Standard Deviation
E5: Percent
C7: Semi-Annual Variation | E7: 0.045
C8: Degradation | E8: 0.025
C9: Modelling Error | E9: 0.035
C10: Wiring Losses | E10: 0.015
C11: Temprature Coefficient | E11: 0.04
C13: Total | E13: =SUM(E7:E11) -> 0.16
C15: Compute Mean Square Error
C17: Revise the assumptions above and compute the P90
C19: Comment on alternative ways to compute the capacity factor

Sheet Investor
C4: Typically seven companies bid on these proposals
C5: The development cost is USD | G5: ='Financial Model'!I23 -> 5000000
C7: How would you compute the development fee
C10: Should Project and Equity IRR be computed with Development Fee as a Cost
C12: If you have include partner, what if any arguments would you make for the partner to pay a percent of development fees
C14: Compute the IRR with and without development fees and explain the effects

Sheet EBL Analysis
B1: Timeline
D2: Date | I2: 2020-01-01 | J2: =EDATE(I2, J9) -> 2020-02-01 | K2: 2020-03-01 | L2: 2020-04-01 | M2: 2020-05-01 | N2: 2020-06-01 | O2: 2020-07-01 | P2: 2020-08-01 | Q2: 2020-09-01 | R2: 2020-10-01 | S2: 2020-11-01 | T2: 2020-12-01 | U2: 2021-01-01 | V2: 2021-02-01 | W2: 2021-03-01 | X2: 2021-04-01 | Y2: 2021-05-01 | Z2: 2021-06-01 | AA2: 2021-07-01 | AB2: 2021-08-01 | AC2: 2021-09-01 | AD2: 2021-10-01 | AE2: 2021-11-01 | AF2: 2021-12-01 | AG2: 2022-01-01 | AH2: 2022-02-01 | AI2: 2022-03-01 | AJ2: 2022-04-01 | AK2: 2022-05-01 | AL2: 2022-06-01 | AM2: 2022-07-01 | AN2: 2022-08-01 | AO2: 2022-09-01 | AP2: =EDATE(AO2, AP9) -> 2022-10-01 | AQ2: 2022-11-01 | AR2: 2022-12-01 | AS2: 2023-01-01 | AT2: 2023-02-01 | AU2: 2023-03-01 | AV2: 2023-04-01 | AW2: 2023-05-01 | AX2: 2023-06-01 | AY2: 2023-07-01 | AZ2: 2023-08-01 | BA2: 2024-08-01 | BB2: 2025-08-01 | BC2: 2026-08-01 | BD2: 2027-08-01 | BE2: 2028-08-01 | BF2: 2029-08-01 | BG2: 2030-08-01 | BH2: 2031-08-01 | BI2: 2032-08-01 | BJ2: 2033-08-01 | BK2: 2034-08-01 | BL2: 2035-08-01 | BM2: 2036-08-01 | BN2: 2037-08-01 | BO2: 2038-08-01 | BP2: 2039-08-01 | BQ2: 2040-08-01 | BR2: 2041-08-01 | BS2: 2042-08-01 | BT2: 2043-08-01 | BU2: 2044-08-01 | BV2: =EDATE(BU2, BV9) -> 2045-08-01 | BW2: 2046-08-01 | BX2: 2047-08-01 | BY2: 2048-08-01 | BZ2: 2049-08-01 | CA2: 2050-08-01 | CB2: 2051-08-01 | CC2: 2052-08-01 | CD2: 2053-08-01 | CE2: 2054-08-01 | CF2: 2055-08-01 | CG2: 2056-08-01 | CH2: 2057-08-01 | CI2: 2058-08-01 | CJ2: 2059-08-01 | CK2: 2060-08-01 | CL2: 2061-08-01 | CM2: 2062-08-01 | CN2: 2063-08-01 | CO2: 2064-08-01 | CP2: 2065-08-01 | CQ2: 2066-08-01 | CR2: 2067-08-01 | CS2: 2068-08-01 | CT2: 2069-08-01 | CU2: 2070-08-01 | CV2: 2071-08-01 | CW2: 2072-08-01 | CX2: 2073-08-01 | CY2: 2074-08-01 | CZ2: 2075-08-01 | DA2: 2076-08-01 | DB2: =EDATE(DA2, DB9) -> 2077-08-01 | DC2: 2078-08-01 | DD2: 2079-08-01 | DE2: 2080-08-01 | DF2: 2081-08-01 | DG2: 2082-08-01 | DH2: 2083-08-01 | DI2: 2084-08-01 | DJ2: 2085-08-01 | DK2: 2086-08-01 | DL2: 2087-08-01 | DM2: 2088-08-01 | DN2: 2089-08-01 | DO2: 2090-08-01 | DP2: 2091-08-01 | DQ2: 2092-08-01 | DR2: 2093-08-01 | DS2: 2094-08-01 | DT2: 2095-08-01 | DU2: 2096-08-01 | DV2: 2097-08-01 | DW2: 2098-08-01 | DX2: 2099-08-01 | DY2: 2100-08-01 | DZ2: 2101-08-01 | EA2: 2102-08-01 | EB2: 2103-08-01 | EC2: 2104-08-01 | ED2: 2105-08-01 | EE2: 2106-08-01 | EF2: 2107-08-01 | EG2: 2108-08-01 | EH2: =EDATE(EG2, EH9) -> 2109-08-01 | EI2: 2110-08-01 | EJ2: 2111-08-01 | EK2: 2112-08-01 | EL2: 2113-08-01 | EM2: 2114-08-01 | EN2: 2115-08-01 | EO2: 2116-08-01 | EP2: 2117-08-01 | EQ2: 2118-08-01 | ER2: 2119-08-01 | ES2: 2120-08-01 | ET2: 2121-08-01 | EU2: 2122-08-01 | EV2: 2123-08-01 | EW2: 2124-08-01 | EX2: 2125-08-01 | EY2: 2126-08-01 | EZ2: 2127-08-01 | FA2: 2128-08-01 | FB2: 2129-08-01 | FC2: 2130-08-01 | FD2: 2131-08-01 | FE2: 2132-08-01 | FF2: 2133-08-01 | FG2: 2134-08-01 | FH2: 2135-08-01 | FI2: 2136-08-01 | FJ2: 2137-08-01 | FK2: 2138-08-01 | FL2: 2139-08-01 | FM2: 2140-08-01 | FN2: =EDATE(FM2, FN9) -> 2141-08-01 | FO2: 2142-08-01 | FP2: 2143-08-01 | FQ2: 2144-08-01 | FR2: 2145-08-01 | FS2: 2146-08-01 | FT2: 2147-08-01 | FU2: 2148-08-01 | FV2: 2149-08-01 | FW2: 2150-08-01 | FX2: 2151-08-01 | FY2: 2152-08-01 | FZ2: 2153-08-01 | GA2: 2154-08-01 | GB2: 2155-08-01 | GC2: 2156-08-01 | GD2: 2157-08-01 | GE2: 2158-08-01 | GF2: 2159-08-01 | GG2: 2160-08-01 | GH2: 2161-08-01 | GI2: 2162-08-01 | GJ2: 2163-08-01 | GK2: 2164-08-01 | GL2: 2165-08-01 | GM2: 2166-08-01 | GN2: 2167-08-01 | GO2: 2168-08-01 | GP2: 2169-08-01 | GQ2: 2170-08-01 | GR2: 2171-08-01 | GS2: 2172-08-01 | GT2: =EDATE(GS2, GT9) -> 2173-08-01 | GU2: 2174-08-01 | GV2: 2175-08-01 | GW2: 2176-08-01 | GX2: 2177-08-01 | GY2: 2178-08-01 | GZ2: 2179-08-01 | HA2: 2180-08-01
D3: Development Period | E3: Month | F3: =F14 -> 13 | J3: =J7<=$F$3 -> TRUE | K3: TRUE | L3: TRUE | M3: TRUE | N3: TRUE | O3: TRUE | P3: TRUE | Q3: TRUE | R3: TRUE | S3: TRUE | T3: TRUE | U3: TRUE | V3: TRUE | W3: FALSE | X3: FALSE | Y3: FALSE | Z3: FALSE | AA3: FALSE | AB3: FALSE | AC3: FALSE | AD3: FALSE | AE3: FALSE | AF3: FALSE | AG3: FALSE | AH3: FALSE | AI3: FALSE | AJ3: FALSE | AK3: FALSE | AL3: FALSE | AM3: FALSE | AN3: FALSE | AO3: FALSE | AP3: =AP7<=$F$3 -> FALSE | AQ3: FALSE | AR3: FALSE | AS3: FALSE | AT3: FALSE | AU3: FALSE | AV3: FALSE | AW3: FALSE | AX3: FALSE | AY3: FALSE | AZ3: FALSE | BA3: FALSE | BB3: FALSE | BC3: FALSE | BD3: FALSE | BE3: FALSE | BF3: FALSE | BG3: FALSE | BH3: FALSE | BI3: FALSE | BJ3: FALSE | BK3: FALSE | BL3: FALSE | BM3: FALSE | BN3: FALSE | BO3: FALSE | BP3: FALSE | BQ3: FALSE | BR3: FALSE | BS3: FALSE | BT3: FALSE | BU3: FALSE | BV3: =BV7<=$F$3 -> FALSE | BW3: FALSE | BX3: FALSE | BY3: FALSE | BZ3: FALSE | CA3: FALSE | CB3: FALSE | CC3: FALSE | CD3: FALSE | CE3: FALSE | CF3: FALSE | CG3: FALSE | CH3: FALSE | CI3: FALSE | CJ3: FALSE | CK3: FALSE | CL3: FALSE | CM3: FALSE | CN3: FALSE | CO3: FALSE | CP3: FALSE | CQ3: FALSE | CR3: FALSE | CS3: FALSE | CT3: FALSE | CU3: FALSE | CV3: FALSE | CW3: FALSE | CX3: FALSE | CY3: FALSE | CZ3: FALSE | DA3: FALSE | DB3: =DB7<=$F$3 -> FALSE | DC3: FALSE | DD3: FALSE | DE3: FALSE | DF3: FALSE | DG3: FALSE | DH3: FALSE | DI3: FALSE | DJ3: FALSE | DK3: FALSE | DL3: FALSE | DM3: FALSE | DN3: FALSE | DO3: FALSE | DP3: FALSE | DQ3: FALSE | DR3: FALSE | DS3: FALSE | DT3: FALSE | DU3: FALSE | DV3: FALSE | DW3: FALSE | DX3: FALSE | DY3: FALSE | DZ3: FALSE | EA3: FALSE | EB3: FALSE | EC3: FALSE | ED3: FALSE | EE3: FALSE | EF3: FALSE | EG3: FALSE | EH3: =EH7<=$F$3 -> FALSE | EI3: FALSE | EJ3: FALSE | EK3: FALSE | EL3: FALSE | EM3: FALSE | EN3: FALSE | EO3: FALSE | EP3: FALSE | EQ3: FALSE | ER3: FALSE | ES3: FALSE | ET3: FALSE | EU3: FALSE | EV3: FALSE | EW3: FALSE | EX3: FALSE | EY3: FALSE | EZ3: FALSE | FA3: FALSE | FB3: FALSE | FC3: FALSE | FD3: FALSE | FE3: FALSE | FF3: FALSE | FG3: FALSE | FH3: FALSE | FI3: FALSE | FJ3: FALSE | FK3: FALSE | FL3: FALSE | FM3: FALSE | FN3: =FN7<=$F$3 -> FALSE | FO3: FALSE | FP3: FALSE | FQ3: FALSE | FR3: FALSE | FS3: FALSE | FT3: FALSE | FU3: FALSE | FV3: FALSE | FW3: FALSE | FX3: FALSE | FY3: FALSE | FZ3: FALSE | GA3: FALSE | GB3: FALSE | GC3: FALSE | GD3: FALSE | GE3: FALSE | GF3: FALSE | GG3: FALSE | GH3: FALSE | GI3: FALSE | GJ3: FALSE | GK3: FALSE | GL3: FALSE | GM3: FALSE | GN3: FALSE | GO3: FALSE | GP3: FALSE | GQ3: FALSE | GR3: FALSE | GS3: FALSE | GT3: =GT7<=$F$3 -> FALSE | GU3: FALSE | GV3: FALSE | GW3: FALSE | GX3: FALSE | GY3: FALSE | GZ3: FALSE | HA3: FALSE
D4: Construction period | E4: Month | F4: =F15 -> 30 | J4: =AND(J8,NOT(J3)) -> FALSE | K4: FALSE | L4: FALSE | M4: FALSE | N4: FALSE | O4: FALSE | P4: FALSE | Q4: FALSE | R4: FALSE | S4: FALSE | T4: FALSE | U4: FALSE | V4: FALSE | W4: TRUE | X4: TRUE | Y4: TRUE | Z4: TRUE | AA4: TRUE | AB4: TRUE | AC4: TRUE | AD4: TRUE | AE4: TRUE | AF4: TRUE | AG4: TRUE | AH4: TRUE | AI4: TRUE | AJ4: TRUE | AK4: TRUE | AL4: TRUE | AM4: TRUE | AN4: TRUE | AO4: TRUE | AP4: =AND(AP8,NOT(AP3)) -> TRUE | AQ4: TRUE | AR4: TRUE | AS4: TRUE | AT4: TRUE | AU4: TRUE | AV4: TRUE | AW4: TRUE | AX4: TRUE | AY4: TRUE | AZ4: TRUE | BA4: FALSE | BB4: FALSE | BC4: FALSE | BD4: FALSE | BE4: FALSE | BF4: FALSE | BG4: FALSE | BH4: FALSE | BI4: FALSE | BJ4: FALSE | BK4: FALSE | BL4: FALSE | BM4: FALSE | BN4: FALSE | BO4: FALSE | BP4: FALSE | BQ4: FALSE | BR4: FALSE | BS4: FALSE | BT4: FALSE | BU4: FALSE | BV4: =AND(BV8,NOT(BV3)) -> FALSE | BW4: FALSE | BX4: FALSE | BY4: FALSE | BZ4: FALSE | CA4: FALSE | CB4: FALSE | CC4: FALSE | CD4: FALSE | CE4: FALSE | CF4: FALSE | CG4: FALSE | CH4: FALSE | CI4: FALSE | CJ4: FALSE | CK4: FALSE | CL4: FALSE | CM4: FALSE | CN4: FALSE | CO4: FALSE | CP4: FALSE | CQ4: FALSE | CR4: FALSE | CS4: FALSE | CT4: FALSE | CU4: FALSE | CV4: FALSE | CW4: FALSE | CX4: FALSE | CY4: FALSE | CZ4: FALSE | DA4: FALSE | DB4: =AND(DB8,NOT(DB3)) -> FALSE | DC4: FALSE | DD4: FALSE | DE4: FALSE | DF4: FALSE | DG4: FALSE | DH4: FALSE | DI4: FALSE | DJ4: FALSE | DK4: FALSE | DL4: FALSE | DM4: FALSE | DN4: FALSE | DO4: FALSE | DP4: FALSE | DQ4: FALSE | DR4: FALSE | DS4: FALSE | DT4: FALSE | DU4: FALSE | DV4: FALSE | DW4: FALSE | DX4: FALSE | DY4: FALSE | DZ4: FALSE | EA4: FALSE | EB4: FALSE | EC4: FALSE | ED4: FALSE | EE4: FALSE | EF4: FALSE | EG4: FALSE | EH4: =AND(EH8,NOT(EH3)) -> FALSE | EI4: FALSE | EJ4: FALSE | EK4: FALSE | EL4: FALSE | EM4: FALSE | EN4: FALSE | EO4: FALSE | EP4: FALSE | EQ4: FALSE | ER4: FALSE | ES4: FALSE | ET4: FALSE | EU4: FALSE | EV4: FALSE | EW4: FALSE | EX4: FALSE | EY4: FALSE | EZ4: FALSE | FA4: FALSE | FB4: FALSE | FC4: FALSE | FD4: FALSE | FE4: FALSE | FF4: FALSE | FG4: FALSE | FH4: FALSE | FI4: FALSE | FJ4: FALSE | FK4: FALSE | FL4: FALSE | FM4: FALSE | FN4: =AND(FN8,NOT(FN3)) -> FALSE | FO4: FALSE | FP4: FALSE | FQ4: FALSE | FR4: FALSE | FS4: FALSE | FT4: FALSE | FU4: FALSE | FV4: FALSE | FW4: FALSE | FX4: FALSE | FY4: FALSE | FZ4: FALSE | GA4: FALSE | GB4: FALSE | GC4: FALSE | GD4: FALSE | GE4: FALSE | GF4: FALSE | GG4: FALSE | GH4: FALSE | GI4: FALSE | GJ4: FALSE | GK4: FALSE | GL4: FALSE | GM4: FALSE | GN4: FALSE | GO4: FALSE | GP4: FALSE | GQ4: FALSE | GR4: FALSE | GS4: FALSE | GT4: =AND(GT8,NOT(GT3)) -> FALSE | GU4: FALSE | GV4: FALSE | GW4: FALSE | GX4: FALSE | GY4: FALSE | GZ4: FALSE | HA4: FALSE
D5: Age of project | J5: =I5+NOT(J8) -> 0 | K5: 0 | L5: 0 | M5: 0 | N5: 0 | O5: 0 | P5: 0 | Q5: 0 | R5: 0 | S5: 0 | T5: 0 | U5: 0 | V5: 0 | W5: 0 | X5: 0 | Y5: 0 | Z5: 0 | AA5: 0 | AB5: 0 | AC5: 0 | AD5: 0 | AE5: 0 | AF5: 0 | AG5: 0 | AH5: 0 | AI5: 0 | AJ5: 0 | AK5: 0 | AL5: 0 | AM5: 0 | AN5: 0 | AO5: 0 | AP5: =AO5+NOT(AP8) -> 0 | AQ5: 0 | AR5: 0 | AS5: 0 | AT5: 0 | AU5: 0 | AV5: 0 | AW5: 0 | AX5: 0 | AY5: 0 | AZ5: 0 | BA5: 1 | BB5: 2 | BC5: 3 | BD5: 4 | BE5: 5 | BF5: 6 | BG5: 7 | BH5: 8 | BI5: 9 | BJ5: 10 | BK5: 11 | BL5: 12 | BM5: 13 | BN5: 14 | BO5: 15 | BP5: 16 | BQ5: 17 | BR5: 18 | BS5: 19 | BT5: 20 | BU5: 21 | BV5: =BU5+NOT(BV8) -> 22 | BW5: 23 | BX5: 24 | BY5: 25 | BZ5: 26 | CA5: 27 | CB5: 28 | CC5: 29 | CD5: 30 | CE5: 31 | CF5: 32 | CG5: 33 | CH5: 34 | CI5: 35 | CJ5: 36 | CK5: 37 | CL5: 38 | CM5: 39 | CN5: 40 | CO5: 41 | CP5: 42 | CQ5: 43 | CR5: 44 | CS5: 45 | CT5: 46 | CU5: 47 | CV5: 48 | CW5: 49 | CX5: 50 | CY5: 51 | CZ5: 52 | DA5: 53 | DB5: =DA5+NOT(DB8) -> 54 | DC5: 55 | DD5: 56 | DE5: 57 | DF5: 58 | DG5: 59 | DH5: 60 | DI5: 61 | DJ5: 62 | DK5: 63 | DL5: 64 | DM5: 65 | DN5: 66 | DO5: 67 | DP5: 68 | DQ5: 69 | DR5: 70 | DS5: 71 | DT5: 72 | DU5: 73 | DV5: 74 | DW5: 75 | DX5: 76 | DY5: 77 | DZ5: 78 | EA5: 79 | EB5: 80 | EC5: 81 | ED5: 82 | EE5: 83 | EF5: 84 | EG5: 85 | EH5: =EG5+NOT(EH8) -> 86 | EI5: 87 | EJ5: 88 | EK5: 89 | EL5: 90 | EM5: 91 | EN5: 92 | EO5: 93 | EP5: 94 | EQ5: 95 | ER5: 96 | ES5: 97 | ET5: 98 | EU5: 99 | EV5: 100 | EW5: 101 | EX5: 102 | EY5: 103 | EZ5: 104 | FA5: 105 | FB5: 106 | FC5: 107 | FD5: 108 | FE5: 109 | FF5: 110 | FG5: 111 | FH5: 112 | FI5: 113 | FJ5: 114 | FK5: 115 | FL5: 116 | FM5: 117 | FN5: =FM5+NOT(FN8) -> 118 | FO5: 119 | FP5: 120 | FQ5: 121 | FR5: 122 | FS5: 123 | FT5: 124 | FU5: 125 | FV5: 126 | FW5: 127 | FX5: 128 | FY5: 129 | FZ5: 130 | GA5: 131 | GB5: 132 | GC5: 133 | GD5: 134 | GE5: 135 | GF5: 136 | GG5: 137 | GH5: 138 | GI5: 139 | GJ5: 140 | GK5: 141 | GL5: 142 | GM5: 143 | GN5: 144 | GO5: 145 | GP5: 146 | GQ5: 147 | GR5: 148 | GS5: 149 | GT5: =GS5+NOT(GT8) -> 150 | GU5: 151 | GV5: 152 | GW5: 153 | GX5: 154 | GY5: 155 | GZ5: 156 | HA5: 157
D6: Operating period | E6: Years | F6: 30 | J6: =AND(J5<=$F$6, NOT(J8)) -> FALSE | K6: FALSE | L6: FALSE | M6: FALSE | N6: FALSE | O6: FALSE | P6: FALSE | Q6: FALSE | R6: FALSE | S6: FALSE | T6: FALSE | U6: FALSE | V6: FALSE | W6: FALSE | X6: FALSE | Y6: FALSE | Z6: FALSE | AA6: FALSE | AB6: FALSE | AC6: FALSE | AD6: FALSE | AE6: FALSE | AF6: FALSE | AG6: FALSE | AH6: FALSE | AI6: FALSE | AJ6: FALSE | AK6: FALSE | AL6: FALSE | AM6: FALSE | AN6: FALSE | AO6: FALSE | AP6: =AND(AP5<=$F$6, NOT(AP8)) -> FALSE | AQ6: FALSE | AR6: FALSE | AS6: FALSE | AT6: FALSE | AU6: FALSE | AV6: FALSE | AW6: FALSE | AX6: FALSE | AY6: FALSE | AZ6: FALSE | BA6: TRUE | BB6: TRUE | BC6: TRUE | BD6: TRUE | BE6: TRUE | BF6: TRUE | BG6: TRUE | BH6: TRUE | BI6: TRUE | BJ6: TRUE | BK6: TRUE | BL6: TRUE | BM6: TRUE | BN6: TRUE | BO6: TRUE | BP6: TRUE | BQ6: TRUE | BR6: TRUE | BS6: TRUE | BT6: TRUE | BU6: TRUE | BV6: =AND(BV5<=$F$6, NOT(BV8)) -> TRUE | BW6: TRUE | BX6: TRUE | BY6: TRUE | BZ6: TRUE | CA6: TRUE | CB6: TRUE | CC6: TRUE | CD6: TRUE | CE6: FALSE | CF6: FALSE | CG6: FALSE | CH6: FALSE | CI6: FALSE | CJ6: FALSE | CK6: FALSE | CL6: FALSE | CM6: FALSE | CN6: FALSE | CO6: FALSE | CP6: FALSE | CQ6: FALSE | CR6: FALSE | CS6: FALSE | CT6: FALSE | CU6: FALSE | CV6: FALSE | CW6: FALSE | CX6: FALSE | CY6: FALSE | CZ6: FALSE | DA6: FALSE | DB6: =AND(DB5<=$F$6, NOT(DB8)) -> FALSE | DC6: FALSE | DD6: FALSE | DE6: FALSE | DF6: FALSE | DG6: FALSE | DH6: FALSE | DI6: FALSE | DJ6: FALSE | DK6: FALSE | DL6: FALSE | DM6: FALSE | DN6: FALSE | DO6: FALSE | DP6: FALSE | DQ6: FALSE | DR6: FALSE | DS6: FALSE | DT6: FALSE | DU6: FALSE | DV6: FALSE | DW6: FALSE | DX6: FALSE | DY6: FALSE | DZ6: FALSE | EA6: FALSE | EB6: FALSE | EC6: FALSE | ED6: FALSE | EE6: FALSE | EF6: FALSE | EG6: FALSE | EH6: =AND(EH5<=$F$6, NOT(EH8)) -> FALSE | EI6: FALSE | EJ6: FALSE | EK6: FALSE | EL6: FALSE | EM6: FALSE | EN6: FALSE | EO6: FALSE | EP6: FALSE | EQ6: FALSE | ER6: FALSE | ES6: FALSE | ET6: FALSE | EU6: FALSE | EV6: FALSE | EW6: FALSE | EX6: FALSE | EY6: FALSE | EZ6: FALSE | FA6: FALSE | FB6: FALSE | FC6: FALSE | FD6: FALSE | FE6: FALSE | FF6: FALSE | FG6: FALSE | FH6: FALSE | FI6: FALSE | FJ6: FALSE | FK6: FALSE | FL6: FALSE | FM6: FALSE | FN6: =AND(FN5<=$F$6, NOT(FN8)) -> FALSE | FO6: FALSE | FP6: FALSE | FQ6: FALSE | FR6: FALSE | FS6: FALSE | FT6: FALSE | FU6: FALSE | FV6: FALSE | FW6: FALSE | FX6: FALSE | FY6: FALSE | FZ6: FALSE | GA6: FALSE | GB6: FALSE | GC6: FALSE | GD6: FALSE | GE6: FALSE | GF6: FALSE | GG6: FALSE | GH6: FALSE | GI6: FALSE | GJ6: FALSE | GK6: FALSE | GL6: FALSE | GM6: FALSE | GN6: FALSE | GO6: FALSE | GP6: FALSE | GQ6: FALSE | GR6: FALSE | GS6: FALSE | GT6: =AND(GT5<=$F$6, NOT(GT8)) -> FALSE | GU6: FALSE | GV6: FALSE | GW6: FALSE | GX6: FALSE | GY6: FALSE | GZ6: FALSE | HA6: FALSE
D7: Period | J7: 1 | K7: 2 | L7: 3 | M7: 4 | N7: 5 | O7: 6 | P7: 7 | Q7: 8 | R7: 9 | S7: 10 | T7: 11 | U7: 12 | V7: 13 | W7: 14 | X7: 15 | Y7: 16 | Z7: 17 | AA7: 18 | AB7: 19 | AC7: 20 | AD7: 21 | AE7: 22 | AF7: 23 | AG7: 24 | AH7: 25 | AI7: 26 | AJ7: 27 | AK7: 28 | AL7: 29 | AM7: 30 | AN7: 31 | AO7: 32 | AP7: 33 | AQ7: 34 | AR7: 35 | AS7: 36 | AT7: 37 | AU7: 38 | AV7: 39 | AW7: 40 | AX7: 41 | AY7: 42 | AZ7: 43 | BA7: 44 | BB7: 45 | BC7: 46 | BD7: 47 | BE7: 48 | BF7: 49 | BG7: 50 | BH7: 51 | BI7: 52 | BJ7: 53 | BK7: 54 | BL7: 55 | BM7: 56 | BN7: 57 | BO7: 58 | BP7: 59 | BQ7: 60 | BR7: 61 | BS7: 62 | BT7: 63 | BU7: 64 | BV7: 65 | BW7: 66 | BX7: 67 | BY7: 68 | BZ7: 69 | CA7: 70 | CB7: 71 | CC7: 72 | CD7: 73 | CE7: 74 | CF7: 75 | CG7: 76 | CH7: 77 | CI7: 78 | CJ7: 79 | CK7: 80 | CL7: 81 | CM7: 82 | CN7: 83 | CO7: 84 | CP7: 85 | CQ7: 86 | CR7: 87 | CS7: 88 | CT7: 89 | CU7: 90 | CV7: 91 | CW7: 92 | CX7: 93 | CY7: 94 | CZ7: 95 | DA7: 96 | DB7: 97 | DC7: 98 | DD7: 99 | DE7: 100 | DF7: 101 | DG7: 102 | DH7: 103 | DI7: 104 | DJ7: 105 | DK7: 106 | DL7: 107 | DM7: 108 | DN7: 109 | DO7: 110 | DP7: 111 | DQ7: 112 | DR7: 113 | DS7: 114 | DT7: 115 | DU7: 116 | DV7: 117 | DW7: 118 | DX7: 119 | DY7: 120 | DZ7: 121 | EA7: 122 | EB7: 123 | EC7: 124 | ED7: 125 | EE7: 126 | EF7: 127 | EG7: 128 | EH7: 129 | EI7: 130 | EJ7: 131 | EK7: 132 | EL7: 133 | EM7: 134 | EN7: 135 | EO7: 136 | EP7: 137 | EQ7: 138 | ER7: 139 | ES7: 140 | ET7: 141 | EU7: 142 | EV7: 143 | EW7: 144 | EX7: 145 | EY7: 146 | EZ7: 147 | FA7: 148 | FB7: 149 | FC7: 150 | FD7: 151 | FE7: 152 | FF7: 153 | FG7: 154 | FH7: 155 | FI7: 156 | FJ7: 157 | FK7: 158 | FL7: 159 | FM7: 160 | FN7: 161 | FO7: 162 | FP7: 163 | FQ7: 164 | FR7: 165 | FS7: 166 | FT7: 167 | FU7: 168 | FV7: 169 | FW7: 170 | FX7: 171 | FY7: 172 | FZ7: 173 | GA7: 174 | GB7: 175 | GC7: 176 | GD7: 177 | GE7: 178 | GF7: 179 | GG7: 180 | GH7: 181 | GI7: 182 | GJ7: 183 | GK7: 184 | GL7: 185 | GM7: 186 | GN7: 187 | GO7: 188 | GP7: 189 | GQ7: 190 | GR7: 191 | GS7: 192 | GT7: 193 | GU7: 194 | GV7: 195 | GW7: 196 | GX7: 197 | GY7: 198 | GZ7: 199 | HA7: 200
D8: Pre-COD | E8: Months Pre | F8: =F3+F4 -> 43 | J8: =J7<=$F$8 -> TRUE | K8: TRUE | L8: TRUE | M8: TRUE | N8: TRUE | O8: TRUE | P8: TRUE | Q8: TRUE | R8: TRUE | S8: TRUE | T8: TRUE | U8: TRUE | V8: TRUE | W8: TRUE | X8: TRUE | Y8: TRUE | Z8: TRUE | AA8: TRUE | AB8: TRUE | AC8: TRUE | AD8: TRUE | AE8: TRUE | AF8: TRUE | AG8: TRUE | AH8: TRUE | AI8: TRUE | AJ8: TRUE | AK8: TRUE | AL8: TRUE | AM8: TRUE | AN8: TRUE | AO8: TRUE | AP8: =AP7<=$F$8 -> TRUE | AQ8: TRUE | AR8: TRUE | AS8: TRUE | AT8: TRUE | AU8: TRUE | AV8: TRUE | AW8: TRUE | AX8: TRUE | AY8: TRUE | AZ8: TRUE | BA8: FALSE | BB8: FALSE | BC8: FALSE | BD8: FALSE | BE8: FALSE | BF8: FALSE | BG8: FALSE | BH8: FALSE | BI8: FALSE | BJ8: FALSE | BK8: FALSE | BL8: FALSE | BM8: FALSE | BN8: FALSE | BO8: FALSE | BP8: FALSE | BQ8: FALSE | BR8: FALSE | BS8: FALSE | BT8: FALSE | BU8: FALSE | BV8: =BV7<=$F$8 -> FALSE | BW8: FALSE | BX8: FALSE | BY8: FALSE | BZ8: FALSE | CA8: FALSE | CB8: FALSE | CC8: FALSE | CD8: FALSE | CE8: FALSE | CF8: FALSE | CG8: FALSE | CH8: FALSE | CI8: FALSE | CJ8: FALSE | CK8: FALSE | CL8: FALSE | CM8: FALSE | CN8: FALSE | CO8: FALSE | CP8: FALSE | CQ8: FALSE | CR8: FALSE | CS8: FALSE | CT8: FALSE | CU8: FALSE | CV8: FALSE | CW8: FALSE | CX8: FALSE | CY8: FALSE | CZ8: FALSE | DA8: FALSE | DB8: =DB7<=$F$8 -> FALSE | DC8: FALSE | DD8: FALSE | DE8: FALSE | DF8: FALSE | DG8: FALSE | DH8: FALSE | DI8: FALSE | DJ8: FALSE | DK8: FALSE | DL8: FALSE | DM8: FALSE | DN8: FALSE | DO8: FALSE | DP8: FALSE | DQ8: FALSE | DR8: FALSE | DS8: FALSE | DT8: FALSE | DU8: FALSE | DV8: FALSE | DW8: FALSE | DX8: FALSE | DY8: FALSE | DZ8: FALSE | EA8: FALSE | EB8: FALSE | EC8: FALSE | ED8: FALSE | EE8: FALSE | EF8: FALSE | EG8: FALSE | EH8: =EH7<=$F$8 -> FALSE | EI8: FALSE | EJ8: FALSE | EK8: FALSE | EL8: FALSE | EM8: FALSE | EN8: FALSE | EO8: FALSE | EP8: FALSE | EQ8: FALSE | ER8: FALSE | ES8: FALSE | ET8: FALSE | EU8: FALSE | EV8: FALSE | EW8: FALSE | EX8: FALSE | EY8: FALSE | EZ8: FALSE | FA8: FALSE | FB8: FALSE | FC8: FALSE | FD8: FALSE | FE8: FALSE | FF8: FALSE | FG8: FALSE | FH8: FALSE | FI8: FALSE | FJ8: FALSE | FK8: FALSE | FL8: FALSE | FM8: FALSE | FN8: =FN7<=$F$8 -> FALSE | FO8: FALSE | FP8: FALSE | FQ8: FALSE | FR8: FALSE | FS8: FALSE | FT8: FALSE | FU8: FALSE | FV8: FALSE | FW8: FALSE | FX8: FALSE | FY8: FALSE | FZ8: FALSE | GA8: FALSE | GB8: FALSE | GC8: FALSE | GD8: FALSE | GE8: FALSE | GF8: FALSE | GG8: FALSE | GH8: FALSE | GI8: FALSE | GJ8: FALSE | GK8: FALSE | GL8: FALSE | GM8: FALSE | GN8: FALSE | GO8: FALSE | GP8: FALSE | GQ8: FALSE | GR8: FALSE | GS8: FALSE | GT8: =GT7<=$F$8 -> FALSE | GU8: FALSE | GV8: FALSE | GW8: FALSE | GX8: FALSE | GY8: FALSE | GZ8: FALSE | HA8: FALSE
D9: Month | E9: Model Period | F9: 1 | G9: 12 | J9: =IF(J8, $F$9, $G$9) -> 1 | K9: 1 | L9: 1 | M9: 1 | N9: 1 | O9: 1 | P9: 1 | Q9: 1 | R9: 1 | S9: 1 | T9: 1 | U9: 1 | V9: 1 | W9: 1 | X9: 1 | Y9: 1 | Z9: 1 | AA9: 1 | AB9: 1 | AC9: 1 | AD9: 1 | AE9: 1 | AF9: 1 | AG9: 1 | AH9: 1 | AI9: 1 | AJ9: 1 | AK9: 1 | AL9: 1 | AM9: 1 | AN9: 1 | AO9: 1 | AP9: =IF(AP8, $F$9, $G$9) -> 1 | AQ9: 1 | AR9: 1 | AS9: 1 | AT9: 1 | AU9: 1 | AV9: 1 | AW9: 1 | AX9: 1 | AY9: 1 | AZ9: 1 | BA9: 12 | BB9: 12 | BC9: 12 | BD9: 12 | BE9: 12 | BF9: 12 | BG9: 12 | BH9: 12 | BI9: 12 | BJ9: 12 | BK9: 12 | BL9: 12 | BM9: 12 | BN9: 12 | BO9: 12 | BP9: 12 | BQ9: 12 | BR9: 12 | BS9: 12 | BT9: 12 | BU9: 12 | BV9: =IF(BV8, $F$9, $G$9) -> 12 | BW9: 12 | BX9: 12 | BY9: 12 | BZ9: 12 | CA9: 12 | CB9: 12 | CC9: 12 | CD9: 12 | CE9: 12 | CF9: 12 | CG9: 12 | CH9: 12 | CI9: 12 | CJ9: 12 | CK9: 12 | CL9: 12 | CM9: 12 | CN9: 12 | CO9: 12 | CP9: 12 | CQ9: 12 | CR9: 12 | CS9: 12 | CT9: 12 | CU9: 12 | CV9: 12 | CW9: 12 | CX9: 12 | CY9: 12 | CZ9: 12 | DA9: 12 | DB9: =IF(DB8, $F$9, $G$9) -> 12 | DC9: 12 | DD9: 12 | DE9: 12 | DF9: 12 | DG9: 12 | DH9: 12 | DI9: 12 | DJ9: 12 | DK9: 12 | DL9: 12 | DM9: 12 | DN9: 12 | DO9: 12 | DP9: 12 | DQ9: 12 | DR9: 12 | DS9: 12 | DT9: 12 | DU9: 12 | DV9: 12 | DW9: 12 | DX9: 12 | DY9: 12 | DZ9: 12 | EA9: 12 | EB9: 12 | EC9: 12 | ED9: 12 | EE9: 12 | EF9: 12 | EG9: 12 | EH9: =IF(EH8, $F$9, $G$9) -> 12 | EI9: 12 | EJ9: 12 | EK9: 12 | EL9: 12 | EM9: 12 | EN9: 12 | EO9: 12 | EP9: 12 | EQ9: 12 | ER9: 12 | ES9: 12 | ET9: 12 | EU9: 12 | EV9: 12 | EW9: 12 | EX9: 12 | EY9: 12 | EZ9: 12 | FA9: 12 | FB9: 12 | FC9: 12 | FD9: 12 | FE9: 12 | FF9: 12 | FG9: 12 | FH9: 12 | FI9: 12 | FJ9: 12 | FK9: 12 | FL9: 12 | FM9: 12 | FN9: =IF(FN8, $F$9, $G$9) -> 12 | FO9: 12 | FP9: 12 | FQ9: 12 | FR9: 12 | FS9: 12 | FT9: 12 | FU9: 12 | FV9: 12 | FW9: 12 | FX9: 12 | FY9: 12 | FZ9: 12 | GA9: 12 | GB9: 12 | GC9: 12 | GD9: 12 | GE9: 12 | GF9: 12 | GG9: 12 | GH9: 12 | GI9: 12 | GJ9: 12 | GK9: 12 | GL9: 12 | GM9: 12 | GN9: 12 | GO9: 12 | GP9: 12 | GQ9: 12 | GR9: 12 | GS9: 12 | GT9: =IF(GT8, $F$9, $G$9) -> 12 | GU9: 12 | GV9: 12 | GW9: 12 | GX9: 12 | GY9: 12 | GZ9: 12 | HA9: 12
B11: Inputs
C13: General Inputs
D14: Development Period | E14: Months | F14: 13 | H14: IRR | I14: =F33 -> 0.07815356553
D15: Construction Period | E15: Months | F15: 30
D16: Development Cost (actual) | E16: EUR | F16: 10000 | H16: IRR with EBL | I16: =F45 -> 0.1893155992
D17: EPC Cost | E17: EUR | F17: 400000
D18: EBITDA p.a. | E18: EUR | F18: 30000
D19: EBITDA Growth | E19: % | F19: 0.025
D21: EBL | E21: flag | F21: TRUE
D22: Interest Rate on EBL | E22: % p.a. | F22: 0.03
D23: Repayment date for EBL | E23: Years | F23: 5
B25: Fundamental Cash Flow Analysis
D27: Development Cost (actual) | E27: EUR | F27: =F16 -> 10000 | G27: =F3 -> 13 | J27: =$F$27/$G$27*J3 -> 769.2307692 | K27: =$F$27/$F$3*K3 -> 769.2307692 | L27: 769.2307692 | M27: 769.2307692 | N27: 769.2307692 | O27: 769.2307692 | P27: 769.2307692 | Q27: 769.2307692 | R27: 769.2307692 | S27: 769.2307692 | T27: 769.2307692 | U27: 769.2307692 | V27: 769.2307692 | W27: 0 | X27: 0 | Y27: 0 | Z27: 0 | AA27: 0 | AB27: 0 | AC27: 0 | AD27: 0 | AE27: 0 | AF27: 0 | AG27: 0 | AH27: 0 | AI27: 0 | AJ27: 0 | AK27: 0 | AL27: 0 | AM27: 0 | AN27: 0 | AO27: 0 | AP27: 0 | AQ27: =$F$27/$F$3*AQ3 -> 0 | AR27: 0 | AS27: 0 | AT27: 0 | AU27: 0 | AV27: 0 | AW27: 0 | AX27: 0 | AY27: 0 | AZ27: 0 | BA27: 0 | BB27: 0 | BC27: 0 | BD27: 0 | BE27: 0 | BF27: 0 | BG27: 0 | BH27: 0 | BI27: 0 | BJ27: 0 | BK27: 0 | BL27: 0 | BM27: 0 | BN27: 0 | BO27: 0 | BP27: 0 | BQ27: 0 | BR27: 0 | BS27: 0 | BT27: 0 | BU27: 0 | BV27: 0 | BW27: =$F$27/$F$3*BW3 -> 0 | BX27: 0 | BY27: 0 | BZ27: 0 | CA27: 0 | CB27: 0 | CC27: 0 | CD27: 0 | CE27: 0 | CF27: 0 | CG27: 0 | CH27: 0 | CI27: 0 | CJ27: 0 | CK27: 0 | CL27: 0 | CM27: 0 | CN27: 0 | CO27: 0 | CP27: 0 | CQ27: 0 | CR27: 0 | CS27: 0 | CT27: 0 | CU27: 0 | CV27: 0 | CW27: 0 | CX27: 0 | CY27: 0 | CZ27: 0 | DA27: 0 | DB27: 0 | DC27: =$F$27/$F$3*DC3 -> 0 | DD27: 0 | DE27: 0 | DF27: 0 | DG27: 0 | DH27: 0 | DI27: 0 | DJ27: 0 | DK27: 0 | DL27: 0 | DM27: 0 | DN27: 0 | DO27: 0 | DP27: 0 | DQ27: 0 | DR27: 0 | DS27: 0 | DT27: 0 | DU27: 0 | DV27: 0 | DW27: 0 | DX27: 0 | DY27: 0 | DZ27: 0 | EA27: 0 | EB27: 0 | EC27: 0 | ED27: 0 | EE27: 0 | EF27: 0 | EG27: 0 | EH27: 0 | EI27: =$F$27/$F$3*EI3 -> 0 | EJ27: 0 | EK27: 0 | EL27: 0 | EM27: 0 | EN27: 0 | EO27: 0 | EP27: 0 | EQ27: 0 | ER27: 0 | ES27: 0 | ET27: 0 | EU27: 0 | EV27: 0 | EW27: 0 | EX27: 0 | EY27: 0 | EZ27: 0 | FA27: 0 | FB27: 0 | FC27: 0 | FD27: 0 | FE27: 0 | FF27: 0 | FG27: 0 | FH27: 0 | FI27: 0 | FJ27: 0 | FK27: 0 | FL27: 0 | FM27: 0 | FN27: 0 | FO27: =$F$27/$F$3*FO3 -> 0 | FP27: 0 | FQ27: 0 | FR27: 0 | FS27: 0 | FT27: 0 | FU27: 0 | FV27: 0 | FW27: 0 | FX27: 0 | FY27: 0 | FZ27: 0 | GA27: 0 | GB27: 0 | GC27: 0 | GD27: 0 | GE27: 0 | GF27: 0 | GG27: 0 | GH27: 0 | GI27: 0 | GJ27: 0 | GK27: 0 | GL27: 0 | GM27: 0 | GN27: 0 | GO27: 0 | GP27: 0 | GQ27: 0 | GR27: 0 | GS27: 0 | GT27: 0 | GU27: =$F$27/$F$3*GU3 -> 0 | GV27: 0 | GW27: 0 | GX27: 0 | GY27: 0 | GZ27: 0 | HA27: 0
D28: EPC cost | E28: EUR | F28: =F17 -> 400000 | J28: =$F$28/$F$4*J4 -> 0 | K28: 0 | L28: 0 | M28: 0 | N28: 0 | O28: 0 | P28: 0 | Q28: 0 | R28: 0 | S28: 0 | T28: 0 | U28: 0 | V28: 0 | W28: 13333.33333 | X28: 13333.33333 | Y28: 13333.33333 | Z28: 13333.33333 | AA28: 13333.33333 | AB28: 13333.33333 | AC28: 13333.33333 | AD28: 13333.33333 | AE28: 13333.33333 | AF28: 13333.33333 | AG28: 13333.33333 | AH28: 13333.33333 | AI28: 13333.33333 | AJ28: 13333.33333 | AK28: 13333.33333 | AL28: 13333.33333 | AM28: 13333.33333 | AN28: 13333.33333 | AO28: 13333.33333 | AP28: =$F$28/$F$4*AP4 -> 13333.33333 | AQ28: 13333.33333 | AR28: 13333.33333 | AS28: 13333.33333 | AT28: 13333.33333 | AU28: 13333.33333 | AV28: 13333.33333 | AW28: 13333.33333 | AX28: 13333.33333 | AY28: 13333.33333 | AZ28: 13333.33333 | BA28: 0 | BB28: 0 | BC28: 0 | BD28: 0 | BE28: 0 | BF28: 0 | BG28: 0 | BH28: 0 | BI28: 0 | BJ28: 0 | BK28: 0 | BL28: 0 | BM28: 0 | BN28: 0 | BO28: 0 | BP28: 0 | BQ28: 0 | BR28: 0 | BS28: 0 | BT28: 0 | BU28: 0 | BV28: =$F$28/$F$4*BV4 -> 0 | BW28: 0 | BX28: 0 | BY28: 0 | BZ28: 0 | CA28: 0 | CB28: 0 | CC28: 0 | CD28: 0 | CE28: 0 | CF28: 0 | CG28: 0 | CH28: 0 | CI28: 0 | CJ28: 0 | CK28: 0 | CL28: 0 | CM28: 0 | CN28: 0 | CO28: 0 | CP28: 0 | CQ28: 0 | CR28: 0 | CS28: 0 | CT28: 0 | CU28: 0 | CV28: 0 | CW28: 0 | CX28: 0 | CY28: 0 | CZ28: 0 | DA28: 0 | DB28: =$F$28/$F$4*DB4 -> 0 | DC28: 0 | DD28: 0 | DE28: 0 | DF28: 0 | DG28: 0 | DH28: 0 | DI28: 0 | DJ28: 0 | DK28: 0 | DL28: 0 | DM28: 0 | DN28: 0 | DO28: 0 | DP28: 0 | DQ28: 0 | DR28: 0 | DS28: 0 | DT28: 0 | DU28: 0 | DV28: 0 | DW28: 0 | DX28: 0 | DY28: 0 | DZ28: 0 | EA28: 0 | EB28: 0 | EC28: 0 | ED28: 0 | EE28: 0 | EF28: 0 | EG28: 0 | EH28: =$F$28/$F$4*EH4 -> 0 | EI28: 0 | EJ28: 0 | EK28: 0 | EL28: 0 | EM28: 0 | EN28: 0 | EO28: 0 | EP28: 0 | EQ28: 0 | ER28: 0 | ES28: 0 | ET28: 0 | EU28: 0 | EV28: 0 | EW28: 0 | EX28: 0 | EY28: 0 | EZ28: 0 | FA28: 0 | FB28: 0 | FC28: 0 | FD28: 0 | FE28: 0 | FF28: 0 | FG28: 0 | FH28: 0 | FI28: 0 | FJ28: 0 | FK28: 0 | FL28: 0 | FM28: 0 | FN28: =$F$28/$F$4*FN4 -> 0 | FO28: 0 | FP28: 0 | FQ28: 0 | FR28: 0 | FS28: 0 | FT28: 0 | FU28: 0 | FV28: 0 | FW28: 0 | FX28: 0 | FY28: 0 | FZ28: 0 | GA28: 0 | GB28: 0 | GC28: 0 | GD28: 0 | GE28: 0 | GF28: 0 | GG28: 0 | GH28: 0 | GI28: 0 | GJ28: 0 | GK28: 0 | GL28: 0 | GM28: 0 | GN28: 0 | GO28: 0 | GP28: 0 | GQ28: 0 | GR28: 0 | GS28: 0 | GT28: =$F$28/$F$4*GT4 -> 0 | GU28: 0 | GV28: 0 | GW28: 0 | GX28: 0 | GY28: 0 | GZ28: 0 | HA28: 0
D29: Growth Index | E29: Index | F29: =F19 -> 0.025 | I29: 1 | J29: =I29*(1+$F$29*J6) -> 1 | K29: 1 | L29: 1 | M29: 1 | N29: 1 | O29: 1 | P29: 1 | Q29: 1 | R29: 1 | S29: 1 | T29: 1 | U29: 1 | V29: 1 | W29: 1 | X29: 1 | Y29: 1 | Z29: 1 | AA29: 1 | AB29: 1 | AC29: 1 | AD29: 1 | AE29: 1 | AF29: 1 | AG29: 1 | AH29: 1 | AI29: 1 | AJ29: 1 | AK29: 1 | AL29: 1 | AM29: 1 | AN29: 1 | AO29: 1 | AP29: =AO29*(1+$F$29*AP6) -> 1 | AQ29: 1 | AR29: 1 | AS29: 1 | AT29: 1 | AU29: 1 | AV29: 1 | AW29: 1 | AX29: 1 | AY29: 1 | AZ29: 1 | BA29: 1.025 | BB29: 1.050625 | BC29: 1.076890625 | BD29: 1.103812891 | BE29: 1.131408213 | BF29: 1.159693418 | BG29: 1.188685754 | BH29: 1.218402898 | BI29: 1.24886297 | BJ29: 1.280084544 | BK29: 1.312086658 | BL29: 1.344888824 | BM29: 1.378511045 | BN29: 1.412973821 | BO29: 1.448298166 | BP29: 1.484505621 | BQ29: 1.521618261 | BR29: 1.559658718 | BS29: 1.598650186 | BT29: 1.63861644 | BU29: 1.679581851 | BV29: =BU29*(1+$F$29*BV6) -> 1.721571398 | BW29: 1.764610683 | BX29: 1.80872595 | BY29: 1.853944098 | BZ29: 1.900292701 | CA29: 1.947800018 | CB29: 1.996495019 | CC29: 2.046407394 | CD29: 2.097567579 | CE29: 2.097567579 | CF29: 2.097567579 | CG29: 2.097567579 | CH29: 2.097567579 | CI29: 2.097567579 | CJ29: 2.097567579 | CK29: 2.097567579 | CL29: 2.097567579 | CM29: 2.097567579 | CN29: 2.097567579 | CO29: 2.097567579 | CP29: 2.097567579 | CQ29: 2.097567579 | CR29: 2.097567579 | CS29: 2.097567579 | CT29: 2.097567579 | CU29: 2.097567579 | CV29: 2.097567579 | CW29: 2.097567579 | CX29: 2.097567579 | CY29: 2.097567579 | CZ29: 2.097567579 | DA29: 2.097567579 | DB29: =DA29*(1+$F$29*DB6) -> 2.097567579 | DC29: 2.097567579 | DD29: 2.097567579 | DE29: 2.097567579 | DF29: 2.097567579 | DG29: 2.097567579 | DH29: 2.097567579 | DI29: 2.097567579 | DJ29: 2.097567579 | DK29: 2.097567579 | DL29: 2.097567579 | DM29: 2.097567579 | DN29: 2.097567579 | DO29: 2.097567579 | DP29: 2.097567579 | DQ29: 2.097567579 | DR29: 2.097567579 | DS29: 2.097567579 | DT29: 2.097567579 | DU29: 2.097567579 | DV29: 2.097567579 | DW29: 2.097567579 | DX29: 2.097567579 | DY29: 2.097567579 | DZ29: 2.097567579 | EA29: 2.097567579 | EB29: 2.097567579 | EC29: 2.097567579 | ED29: 2.097567579 | EE29: 2.097567579 | EF29: 2.097567579 | EG29: 2.097567579 | EH29: =EG29*(1+$F$29*EH6) -> 2.097567579 | EI29: 2.097567579 | EJ29: 2.097567579 | EK29: 2.097567579 | EL29: 2.097567579 | EM29: 2.097567579 | EN29: 2.097567579 | EO29: 2.097567579 | EP29: 2.097567579 | EQ29: 2.097567579 | ER29: 2.097567579 | ES29: 2.097567579 | ET29: 2.097567579 | EU29: 2.097567579 | EV29: 2.097567579 | EW29: 2.097567579 | EX29: 2.097567579 | EY29: 2.097567579 | EZ29: 2.097567579 | FA29: 2.097567579 | FB29: 2.097567579 | FC29: 2.097567579 | FD29: 2.097567579 | FE29: 2.097567579 | FF29: 2.097567579 | FG29: 2.097567579 | FH29: 2.097567579 | FI29: 2.097567579 | FJ29: 2.097567579 | FK29: 2.097567579 | FL29: 2.097567579 | FM29: 2.097567579 | FN29: =FM29*(1+$F$29*FN6) -> 2.097567579 | FO29: 2.097567579 | FP29: 2.097567579 | FQ29: 2.097567579 | FR29: 2.097567579 | FS29: 2.097567579 | FT29: 2.097567579 | FU29: 2.097567579 | FV29: 2.097567579 | FW29: 2.097567579 | FX29: 2.097567579 | FY29: 2.097567579 | FZ29: 2.097567579 | GA29: 2.097567579 | GB29: 2.097567579 | GC29: 2.097567579 | GD29: 2.097567579 | GE29: 2.097567579 | GF29: 2.097567579 | GG29: 2.097567579 | GH29: 2.097567579 | GI29: 2.097567579 | GJ29: 2.097567579 | GK29: 2.097567579 | GL29: 2.097567579 | GM29: 2.097567579 | GN29: 2.097567579 | GO29: 2.097567579 | GP29: 2.097567579 | GQ29: 2.097567579 | GR29: 2.097567579 | GS29: 2.097567579 | GT29: =GS29*(1+$F$29*GT6) -> 2.097567579 | GU29: 2.097567579 | GV29: 2.097567579 | GW29: 2.097567579 | GX29: 2.097567579 | GY29: 2.097567579 | GZ29: 2.097567579 | HA29: 2.097567579
D30: EBITDA p.a. | E30: EUR | F30: =F18 -> 30000 | J30: =$F$30*J6*J29 -> 0 | K30: 0 | L30: 0 | M30: 0 | N30: 0 | O30: 0 | P30: 0 | Q30: 0 | R30: 0 | S30: 0 | T30: 0 | U30: 0 | V30: 0 | W30: 0 | X30: 0 | Y30: 0 | Z30: 0 | AA30: 0 | AB30: 0 | AC30: 0 | AD30: 0 | AE30: 0 | AF30: 0 | AG30: 0 | AH30: 0 | AI30: 0 | AJ30: 0 | AK30: 0 | AL30: 0 | AM30: 0 | AN30: 0 | AO30: 0 | AP30: =$F$30*AP6*AP29 -> 0 | AQ30: 0 | AR30: 0 | AS30: 0 | AT30: 0 | AU30: 0 | AV30: 0 | AW30: 0 | AX30: 0 | AY30: 0 | AZ30: 0 | BA30: 30750 | BB30: 31518.75 | BC30: 32306.71875 | BD30: 33114.38672 | BE30: 33942.24639 | BF30: 34790.80255 | BG30: 35660.57261 | BH30: 36552.08693 | BI30: 37465.8891 | BJ30: 38402.53633 | BK30: 39362.59973 | BL30: 40346.66473 | BM30: 41355.33135 | BN30: 42389.21463 | BO30: 43448.94499 | BP30: 44535.16862 | BQ30: 45648.54784 | BR30: 46789.76153 | BS30: 47959.50557 | BT30: 49158.49321 | BU30: 50387.45554 | BV30: =$F$30*BV6*BV29 -> 51647.14193 | BW30: 52938.32048 | BX30: 54261.77849 | BY30: 55618.32295 | BZ30: 57008.78102 | CA30: 58434.00055 | CB30: 59894.85056 | CC30: 61392.22183 | CD30: 62927.02737 | CE30: 0 | CF30: 0 | CG30: 0 | CH30: 0 | CI30: 0 | CJ30: 0 | CK30: 0 | CL30: 0 | CM30: 0 | CN30: 0 | CO30: 0 | CP30: 0 | CQ30: 0 | CR30: 0 | CS30: 0 | CT30: 0 | CU30: 0 | CV30: 0 | CW30: 0 | CX30: 0 | CY30: 0 | CZ30: 0 | DA30: 0 | DB30: =$F$30*DB6*DB29 -> 0 | DC30: 0 | DD30: 0 | DE30: 0 | DF30: 0 | DG30: 0 | DH30: 0 | DI30: 0 | DJ30: 0 | DK30: 0 | DL30: 0 | DM30: 0 | DN30: 0 | DO30: 0 | DP30: 0 | DQ30: 0 | DR30: 0 | DS30: 0 | DT30: 0 | DU30: 0 | DV30: 0 | DW30: 0 | DX30: 0 | DY30: 0 | DZ30: 0 | EA30: 0 | EB30: 0 | EC30: 0 | ED30: 0 | EE30: 0 | EF30: 0 | EG30: 0 | EH30: =$F$30*EH6*EH29 -> 0 | EI30: 0 | EJ30: 0 | EK30: 0 | EL30: 0 | EM30: 0 | EN30: 0 | EO30: 0 | EP30: 0 | EQ30: 0 | ER30: 0 | ES30: 0 | ET30: 0 | EU30: 0 | EV30: 0 | EW30: 0 | EX30: 0 | EY30: 0 | EZ30: 0 | FA30: 0 | FB30: 0 | FC30: 0 | FD30: 0 | FE30: 0 | FF30: 0 | FG30: 0 | FH30: 0 | FI30: 0 | FJ30: 0 | FK30: 0 | FL30: 0 | FM30: 0 | FN30: =$F$30*FN6*FN29 -> 0 | FO30: 0 | FP30: 0 | FQ30: 0 | FR30: 0 | FS30: 0 | FT30: 0 | FU30: 0 | FV30: 0 | FW30: 0 | FX30: 0 | FY30: 0 | FZ30: 0 | GA30: 0 | GB30: 0 | GC30: 0 | GD30: 0 | GE30: 0 | GF30: 0 | GG30: 0 | GH30: 0 | GI30: 0 | GJ30: 0 | GK30: 0 | GL30: 0 | GM30: 0 | GN30: 0 | GO30: 0 | GP30: 0 | GQ30: 0 | GR30: 0 | GS30: 0 | GT30: =$F$30*GT6*GT29 -> 0 | GU30: 0 | GV30: 0 | GW30: 0 | GX30: 0 | GY30: 0 | GZ30: 0 | HA30: 0
D32: Project Cash Flow | E32: EUR | J32: =J30-J28-J27 -> -769.2307692 | K32: =K30-K28-K27 -> -769.2307692 | L32: -769.2307692 | M32: -769.2307692 | N32: -769.2307692 | O32: -769.2307692 | P32: -769.2307692 | Q32: -769.2307692 | R32: -769.2307692 | S32: -769.2307692 | T32: -769.2307692 | U32: -769.2307692 | V32: -769.2307692 | W32: -13333.33333 | X32: -13333.33333 | Y32: -13333.33333 | Z32: -13333.33333 | AA32: -13333.33333 | AB32: -13333.33333 | AC32: -13333.33333 | AD32: -13333.33333 | AE32: -13333.33333 | AF32: -13333.33333 | AG32: -13333.33333 | AH32: -13333.33333 | AI32: -13333.33333 | AJ32: -13333.33333 | AK32: -13333.33333 | AL32: -13333.33333 | AM32: -13333.33333 | AN32: -13333.33333 | AO32: -13333.33333 | AP32: -13333.33333 | AQ32: -13333.33333 | AR32: -13333.33333 | AS32: -13333.33333 | AT32: -13333.33333 | AU32: -13333.33333 | AV32: -13333.33333 | AW32: -13333.33333 | AX32: -13333.33333 | AY32: -13333.33333 | AZ32: -13333.33333 | BA32: 30750 | BB32: 31518.75 | BC32: 32306.71875 | BD32: 33114.38672 | BE32: 33942.24639 | BF32: 34790.80255 | BG32: 35660.57261 | BH32: 36552.08693 | BI32: 37465.8891 | BJ32: 38402.53633 | BK32: 39362.59973 | BL32: 40346.66473 | BM32: 41355.33135 | BN32: 42389.21463 | BO32: 43448.94499 | BP32: 44535.16862 | BQ32: 45648.54784 | BR32: 46789.76153 | BS32: 47959.50557 | BT32: 49158.49321 | BU32: 50387.45554 | BV32: 51647.14193 | BW32: =BW30-BW28-BW27 -> 52938.32048 | BX32: 54261.77849 | BY32: 55618.32295 | BZ32: 57008.78102 | CA32: 58434.00055 | CB32: 59894.85056 | CC32: 61392.22183 | CD32: 62927.02737 | CE32: 0 | CF32: 0 | CG32: 0 | CH32: 0 | CI32: 0 | CJ32: 0 | CK32: 0 | CL32: 0 | CM32: 0 | CN32: 0 | CO32: 0 | CP32: 0 | CQ32: 0 | CR32: 0 | CS32: 0 | CT32: 0 | CU32: 0 | CV32: 0 | CW32: 0 | CX32: 0 | CY32: 0 | CZ32: 0 | DA32: 0 | DB32: 0 | DC32: 0 | DD32: 0 | DE32: 0 | DF32: 0 | DG32: 0 | DH32: 0 | DI32: 0 | DJ32: 0 | DK32: 0 | DL32: 0 | DM32: 0 | DN32: 0 | DO32: 0 | DP32: 0 | DQ32: 0 | DR32: 0 | DS32: 0 | DT32: 0 | DU32: 0 | DV32: 0 | DW32: 0 | DX32: 0 | DY32: 0 | DZ32: 0 | EA32: 0 | EB32: 0 | EC32: 0 | ED32: 0 | EE32: 0 | EF32: 0 | EG32: 0 | EH32: 0 | EI32: =EI30-EI28-EI27 -> 0 | EJ32: 0 | EK32: 0 | EL32: 0 | EM32: 0 | EN32: 0 | EO32: 0 | EP32: 0 | EQ32: 0 | ER32: 0 | ES32: 0 | ET32: 0 | EU32: 0 | EV32: 0 | EW32: 0 | EX32: 0 | EY32: 0 | EZ32: 0 | FA32: 0 | FB32: 0 | FC32: 0 | FD32: 0 | FE32: 0 | FF32: 0 | FG32: 0 | FH32: 0 | FI32: 0 | FJ32: 0 | FK32: 0 | FL32: 0 | FM32: 0 | FN32: 0 | FO32: 0 | FP32: 0 | FQ32: 0 | FR32: 0 | FS32: 0 | FT32: 0 | FU32: 0 | FV32: 0 | FW32: 0 | FX32: 0 | FY32: 0 | FZ32: 0 | GA32: 0 | GB32: 0 | GC32: 0 | GD32: 0 | GE32: 0 | GF32: 0 | GG32: 0 | GH32: 0 | GI32: 0 | GJ32: 0 | GK32: 0 | GL32: 0 | GM32: 0 | GN32: 0 | GO32: 0 | GP32: 0 | GQ32: 0 | GR32: 0 | GS32: 0 | GT32: 0 | GU32: =GU30-GU28-GU27 -> 0 | GV32: 0 | GW32: 0 | GX32: 0 | GY32: 0 | GZ32: 0 | HA32: 0
D33: Project IRR | E33: % | F33: =XIRR(J32:HA32, J2:HA2) -> 0.07815356553
B35: EBL Loan
D37: Repayment date for EBL | F37: =F23 -> 5 | J37: =J5=$F$37 -> FALSE | K37: FALSE | L37: FALSE | M37: FALSE | N37: FALSE | O37: FALSE | P37: FALSE | Q37: FALSE | R37: FALSE | S37: FALSE | T37: FALSE | U37: FALSE | V37: FALSE | W37: FALSE | X37: FALSE | Y37: FALSE | Z37: FALSE | AA37: FALSE | AB37: FALSE | AC37: FALSE | AD37: FALSE | AE37: FALSE | AF37: FALSE | AG37: FALSE | AH37: FALSE | AI37: FALSE | AJ37: FALSE | AK37: FALSE | AL37: FALSE | AM37: FALSE | AN37: FALSE | AO37: FALSE | AP37: =AP5=$F$37 -> FALSE | AQ37: FALSE | AR37: FALSE | AS37: FALSE | AT37: FALSE | AU37: FALSE | AV37: FALSE | AW37: FALSE | AX37: FALSE | AY37: FALSE | AZ37: FALSE | BA37: FALSE | BB37: FALSE | BC37: FALSE | BD37: FALSE | BE37: TRUE | BF37: FALSE | BG37: FALSE | BH37: FALSE | BI37: FALSE | BJ37: FALSE | BK37: FALSE | BL37: FALSE | BM37: FALSE | BN37: FALSE | BO37: FALSE | BP37: FALSE | BQ37: FALSE | BR37: FALSE | BS37: FALSE | BT37: FALSE | BU37: FALSE | BV37: =BV5=$F$37 -> FALSE | BW37: FALSE | BX37: FALSE | BY37: FALSE | BZ37: FALSE | CA37: FALSE | CB37: FALSE | CC37: FALSE | CD37: FALSE | CE37: FALSE | CF37: FALSE | CG37: FALSE | CH37: FALSE | CI37: FALSE | CJ37: FALSE | CK37: FALSE | CL37: FALSE | CM37: FALSE | CN37: FALSE | CO37: FALSE | CP37: FALSE | CQ37: FALSE | CR37: FALSE | CS37: FALSE | CT37: FALSE | CU37: FALSE | CV37: FALSE | CW37: FALSE | CX37: FALSE | CY37: FALSE | CZ37: FALSE | DA37: FALSE | DB37: =DB5=$F$37 -> FALSE | DC37: FALSE | DD37: FALSE | DE37: FALSE | DF37: FALSE | DG37: FALSE | DH37: FALSE | DI37: FALSE | DJ37: FALSE | DK37: FALSE | DL37: FALSE | DM37: FALSE | DN37: FALSE | DO37: FALSE | DP37: FALSE | DQ37: FALSE | DR37: FALSE | DS37: FALSE | DT37: FALSE | DU37: FALSE | DV37: FALSE | DW37: FALSE | DX37: FALSE | DY37: FALSE | DZ37: FALSE | EA37: FALSE | EB37: FALSE | EC37: FALSE | ED37: FALSE | EE37: FALSE | EF37: FALSE | EG37: FALSE | EH37: =EH5=$F$37 -> FALSE | EI37: FALSE | EJ37: FALSE | EK37: FALSE | EL37: FALSE | EM37: FALSE | EN37: FALSE | EO37: FALSE | EP37: FALSE | EQ37: FALSE | ER37: FALSE | ES37: FALSE | ET37: FALSE | EU37: FALSE | EV37: FALSE | EW37: FALSE | EX37: FALSE | EY37: FALSE | EZ37: FALSE | FA37: FALSE | FB37: FALSE | FC37: FALSE | FD37: FALSE | FE37: FALSE | FF37: FALSE | FG37: FALSE | FH37: FALSE | FI37: FALSE | FJ37: FALSE | FK37: FALSE | FL37: FALSE | FM37: FALSE | FN37: =FN5=$F$37 -> FALSE | FO37: FALSE | FP37: FALSE | FQ37: FALSE | FR37: FALSE | FS37: FALSE | FT37: FALSE | FU37: FALSE | FV37: FALSE | FW37: FALSE | FX37: FALSE | FY37: FALSE | FZ37: FALSE | GA37: FALSE | GB37: FALSE | GC37: FALSE | GD37: FALSE | GE37: FALSE | GF37: FALSE | GG37: FALSE | GH37: FALSE | GI37: FALSE | GJ37: FALSE | GK37: FALSE | GL37: FALSE | GM37: FALSE | GN37: FALSE | GO37: FALSE | GP37: FALSE | GQ37: FALSE | GR37: FALSE | GS37: FALSE | GT37: =GT5=$F$37 -> FALSE | GU37: FALSE | GV37: FALSE | GW37: FALSE | GX37: FALSE | GY37: FALSE | GZ37: FALSE | HA37: FALSE
D38: Opening Balance | E38: EUR | J38: =I41 -> 0 | K38: =J41 -> 0 | L38: 0 | M38: 0 | N38: 0 | O38: 0 | P38: 0 | Q38: 0 | R38: 0 | S38: 0 | T38: 0 | U38: 0 | V38: 0 | W38: 0 | X38: 13333.33333 | Y38: 26666.66667 | Z38: 40000 | AA38: 53333.33333 | AB38: 66666.66667 | AC38: 80000 | AD38: 93333.33333 | AE38: 106666.6667 | AF38: 120000 | AG38: 133333.3333 | AH38: 146666.6667 | AI38: 160000 | AJ38: 173333.3333 | AK38: 186666.6667 | AL38: 200000 | AM38: 213333.3333 | AN38: 226666.6667 | AO38: 240000 | AP38: 253333.3333 | AQ38: 266666.6667 | AR38: 280000 | AS38: 293333.3333 | AT38: 306666.6667 | AU38: 320000 | AV38: 333333.3333 | AW38: 346666.6667 | AX38: 360000 | AY38: 373333.3333 | AZ38: 386666.6667 | BA38: 400000 | BB38: 400000 | BC38: 400000 | BD38: 400000 | BE38: 400000 | BF38: 0 | BG38: 0 | BH38: 0 | BI38: 0 | BJ38: 0 | BK38: 0 | BL38: 0 | BM38: 0 | BN38: 0 | BO38: 0 | BP38: 0 | BQ38: 0 | BR38: 0 | BS38: 0 | BT38: 0 | BU38: 0 | BV38: 0 | BW38: =BV41 -> 0 | BX38: 0 | BY38: 0 | BZ38: 0 | CA38: 0 | CB38: 0 | CC38: 0 | CD38: 0 | CE38: 0 | CF38: 0 | CG38: 0 | CH38: 0 | CI38: 0 | CJ38: 0 | CK38: 0 | CL38: 0 | CM38: 0 | CN38: 0 | CO38: 0 | CP38: 0 | CQ38: 0 | CR38: 0 | CS38: 0 | CT38: 0 | CU38: 0 | CV38: 0 | CW38: 0 | CX38: 0 | CY38: 0 | CZ38: 0 | DA38: 0 | DB38: 0 | DC38: 0 | DD38: 0 | DE38: 0 | DF38: 0 | DG38: 0 | DH38: 0 | DI38: 0 | DJ38: 0 | DK38: 0 | DL38: 0 | DM38: 0 | DN38: 0 | DO38: 0 | DP38: 0 | DQ38: 0 | DR38: 0 | DS38: 0 | DT38: 0 | DU38: 0 | DV38: 0 | DW38: 0 | DX38: 0 | DY38: 0 | DZ38: 0 | EA38: 0 | EB38: 0 | EC38: 0 | ED38: 0 | EE38: 0 | EF38: 0 | EG38: 0 | EH38: 0 | EI38: =EH41 -> 0 | EJ38: 0 | EK38: 0 | EL38: 0 | EM38: 0 | EN38: 0 | EO38: 0 | EP38: 0 | EQ38: 0 | ER38: 0 | ES38: 0 | ET38: 0 | EU38: 0 | EV38: 0 | EW38: 0 | EX38: 0 | EY38: 0 | EZ38: 0 | FA38: 0 | FB38: 0 | FC38: 0 | FD38: 0 | FE38: 0 | FF38: 0 | FG38: 0 | FH38: 0 | FI38: 0 | FJ38: 0 | FK38: 0 | FL38: 0 | FM38: 0 | FN38: 0 | FO38: 0 | FP38: 0 | FQ38: 0 | FR38: 0 | FS38: 0 | FT38: 0 | FU38: 0 | FV38: 0 | FW38: 0 | FX38: 0 | FY38: 0 | FZ38: 0 | GA38: 0 | GB38: 0 | GC38: 0 | GD38: 0 | GE38: 0 | GF38: 0 | GG38: 0 | GH38: 0 | GI38: 0 | GJ38: 0 | GK38: 0 | GL38: 0 | GM38: 0 | GN38: 0 | GO38: 0 | GP38: 0 | GQ38: 0 | GR38: 0 | GS38: 0 | GT38: 0 | GU38: =GT41 -> 0 | GV38: 0 | GW38: 0 | GX38: 0 | GY38: 0 | GZ38: 0 | HA38: 0
D39: Borrowing during Construction | E39: EUR | J39: =J28 -> 0 | K39: =K28 -> 0 | L39: 0 | M39: 0 | N39: 0 | O39: 0 | P39: 0 | Q39: 0 | R39: 0 | S39: 0 | T39: 0 | U39: 0 | V39: 0 | W39: 13333.33333 | X39: 13333.33333 | Y39: 13333.33333 | Z39: 13333.33333 | AA39: 13333.33333 | AB39: 13333.33333 | AC39: 13333.33333 | AD39: 13333.33333 | AE39: 13333.33333 | AF39: 13333.33333 | AG39: 13333.33333 | AH39: 13333.33333 | AI39: 13333.33333 | AJ39: 13333.33333 | AK39: 13333.33333 | AL39: 13333.33333 | AM39: 13333.33333 | AN39: 13333.33333 | AO39: 13333.33333 | AP39: 13333.33333 | AQ39: 13333.33333 | AR39: 13333.33333 | AS39: 13333.33333 | AT39: 13333.33333 | AU39: 13333.33333 | AV39: 13333.33333 | AW39: 13333.33333 | AX39: 13333.33333 | AY39: 13333.33333 | AZ39: 13333.33333 | BA39: 0 | BB39: 0 | BC39: 0 | BD39: 0 | BE39: 0 | BF39: 0 | BG39: 0 | BH39: 0 | BI39: 0 | BJ39: 0 | BK39: 0 | BL39: 0 | BM39: 0 | BN39: 0 | BO39: 0 | BP39: 0 | BQ39: 0 | BR39: 0 | BS39: 0 | BT39: 0 | BU39: 0 | BV39: 0 | BW39: =BW28 -> 0 | BX39: 0 | BY39: 0 | BZ39: 0 | CA39: 0 | CB39: 0 | CC39: 0 | CD39: 0 | CE39: 0 | CF39: 0 | CG39: 0 | CH39: 0 | CI39: 0 | CJ39: 0 | CK39: 0 | CL39: 0 | CM39: 0 | CN39: 0 | CO39: 0 | CP39: 0 | CQ39: 0 | CR39: 0 | CS39: 0 | CT39: 0 | CU39: 0 | CV39: 0 | CW39: 0 | CX39: 0 | CY39: 0 | CZ39: 0 | DA39: 0 | DB39: 0 | DC39: 0 | DD39: 0 | DE39: 0 | DF39: 0 | DG39: 0 | DH39: 0 | DI39: 0 | DJ39: 0 | DK39: 0 | DL39: 0 | DM39: 0 | DN39: 0 | DO39: 0 | DP39: 0 | DQ39: 0 | DR39: 0 | DS39: 0 | DT39: 0 | DU39: 0 | DV39: 0 | DW39: 0 | DX39: 0 | DY39: 0 | DZ39: 0 | EA39: 0 | EB39: 0 | EC39: 0 | ED39: 0 | EE39: 0 | EF39: 0 | EG39: 0 | EH39: 0 | EI39: =EI28 -> 0 | EJ39: 0 | EK39: 0 | EL39: 0 | EM39: 0 | EN39: 0 | EO39: 0 | EP39: 0 | EQ39: 0 | ER39: 0 | ES39: 0 | ET39: 0 | EU39: 0 | EV39: 0 | EW39: 0 | EX39: 0 | EY39: 0 | EZ39: 0 | FA39: 0 | FB39: 0 | FC39: 0 | FD39: 0 | FE39: 0 | FF39: 0 | FG39: 0 | FH39: 0 | FI39: 0 | FJ39: 0 | FK39: 0 | FL39: 0 | FM39: 0 | FN39: 0 | FO39: 0 | FP39: 0 | FQ39: 0 | FR39: 0 | FS39: 0 | FT39: 0 | FU39: 0 | FV39: 0 | FW39: 0 | FX39: 0 | FY39: 0 | FZ39: 0 | GA39: 0 | GB39: 0 | GC39: 0 | GD39: 0 | GE39: 0 | GF39: 0 | GG39: 0 | GH39: 0 | GI39: 0 | GJ39: 0 | GK39: 0 | GL39: 0 | GM39: 0 | GN39: 0 | GO39: 0 | GP39: 0 | GQ39: 0 | GR39: 0 | GS39: 0 | GT39: 0 | GU39: =GU28 -> 0 | GV39: 0 | GW39: 0 | GX39: 0 | GY39: 0 | GZ39: 0 | HA39: 0
D40: Repayment | E40: EUR | J40: =(J38+J39)*J37 -> 0 | K40: =(K38+K39)*K37 -> 0 | L40: 0 | M40: 0 | N40: 0 | O40: 0 | P40: 0 | Q40: 0 | R40: 0 | S40: 0 | T40: 0 | U40: 0 | V40: 0 | W40: 0 | X40: 0 | Y40: 0 | Z40: 0 | AA40: 0 | AB40: 0 | AC40: 0 | AD40: 0 | AE40: 0 | AF40: 0 | AG40: 0 | AH40: 0 | AI40: 0 | AJ40: 0 | AK40: 0 | AL40: 0 | AM40: 0 | AN40: 0 | AO40: 0 | AP40: 0 | AQ40: 0 | AR40: 0 | AS40: 0 | AT40: 0 | AU40: 0 | AV40: 0 | AW40: 0 | AX40: 0 | AY40: 0 | AZ40: 0 | BA40: 0 | BB40: 0 | BC40: 0 | BD40: 0 | BE40: 400000 | BF40: 0 | BG40: 0 | BH40: 0 | BI40: 0 | BJ40: 0 | BK40: 0 | BL40: 0 | BM40: 0 | BN40: 0 | BO40: 0 | BP40: 0 | BQ40: 0 | BR40: 0 | BS40: 0 | BT40: 0 | BU40: 0 | BV40: 0 | BW40: =(BW38+BW39)*BW37 -> 0 | BX40: 0 | BY40: 0 | BZ40: 0 | CA40: 0 | CB40: 0 | CC40: 0 | CD40: 0 | CE40: 0 | CF40: 0 | CG40: 0 | CH40: 0 | CI40: 0 | CJ40: 0 | CK40: 0 | CL40: 0 | CM40: 0 | CN40: 0 | CO40: 0 | CP40: 0 | CQ40: 0 | CR40: 0 | CS40: 0 | CT40: 0 | CU40: 0 | CV40: 0 | CW40: 0 | CX40: 0 | CY40: 0 | CZ40: 0 | DA40: 0 | DB40: 0 | DC40: 0 | DD40: 0 | DE40: 0 | DF40: 0 | DG40: 0 | DH40: 0 | DI40: 0 | DJ40: 0 | DK40: 0 | DL40: 0 | DM40: 0 | DN40: 0 | DO40: 0 | DP40: 0 | DQ40: 0 | DR40: 0 | DS40: 0 | DT40: 0 | DU40: 0 | DV40: 0 | DW40: 0 | DX40: 0 | DY40: 0 | DZ40: 0 | EA40: 0 | EB40: 0 | EC40: 0 | ED40: 0 | EE40: 0 | EF40: 0 | EG40: 0 | EH40: 0 | EI40: =(EI38+EI39)*EI37 -> 0 | EJ40: 0 | EK40: 0 | EL40: 0 | EM40: 0 | EN40: 0 | EO40: 0 | EP40: 0 | EQ40: 0 | ER40: 0 | ES40: 0 | ET40: 0 | EU40: 0 | EV40: 0 | EW40: 0 | EX40: 0 | EY40: 0 | EZ40: 0 | FA40: 0 | FB40: 0 | FC40: 0 | FD40: 0 | FE40: 0 | FF40: 0 | FG40: 0 | FH40: 0 | FI40: 0 | FJ40: 0 | FK40: 0 | FL40: 0 | FM40: 0 | FN40: 0 | FO40: 0 | FP40: 0 | FQ40: 0 | FR40: 0 | FS40: 0 | FT40: 0 | FU40: 0 | FV40: 0 | FW40: 0 | FX40: 0 | FY40: 0 | FZ40: 0 | GA40: 0 | GB40: 0 | GC40: 0 | GD40: 0 | GE40: 0 | GF40: 0 | GG40: 0 | GH40: 0 | GI40: 0 | GJ40: 0 | GK40: 0 | GL40: 0 | GM40: 0 | GN40: 0 | GO40: 0 | GP40: 0 | GQ40: 0 | GR40: 0 | GS40: 0 | GT40: 0 | GU40: =(GU38+GU39)*GU37 -> 0 | GV40: 0 | GW40: 0 | GX40: 0 | GY40: 0 | GZ40: 0 | HA40: 0
D41: Closing Balance | E41: EUR | J41: =J38+J39-J40 -> 0 | K41: =K38+K39-K40 -> 0 | L41: 0 | M41: 0 | N41: 0 | O41: 0 | P41: 0 | Q41: 0 | R41: 0 | S41: 0 | T41: 0 | U41: 0 | V41: 0 | W41: 13333.33333 | X41: 26666.66667 | Y41: 40000 | Z41: 53333.33333 | AA41: 66666.66667 | AB41: 80000 | AC41: 93333.33333 | AD41: 106666.6667 | AE41: 120000 | AF41: 133333.3333 | AG41: 146666.6667 | AH41: 160000 | AI41: 173333.3333 | AJ41: 186666.6667 | AK41: 200000 | AL41: 213333.3333 | AM41: 226666.6667 | AN41: 240000 | AO41: 253333.3333 | AP41: 266666.6667 | AQ41: 280000 | AR41: 293333.3333 | AS41: 306666.6667 | AT41: 320000 | AU41: 333333.3333 | AV41: 346666.6667 | AW41: 360000 | AX41: 373333.3333 | AY41: 386666.6667 | AZ41: 400000 | BA41: 400000 | BB41: 400000 | BC41: 400000 | BD41: 400000 | BE41: 0 | BF41: 0 | BG41: 0 | BH41: 0 | BI41: 0 | BJ41: 0 | BK41: 0 | BL41: 0 | BM41: 0 | BN41: 0 | BO41: 0 | BP41: 0 | BQ41: 0 | BR41: 0 | BS41: 0 | BT41: 0 | BU41: 0 | BV41: 0 | BW41: =BW38+BW39-BW40 -> 0 | BX41: 0 | BY41: 0 | BZ41: 0 | CA41: 0 | CB41: 0 | CC41: 0 | CD41: 0 | CE41: 0 | CF41: 0 | CG41: 0 | CH41: 0 | CI41: 0 | CJ41: 0 | CK41: 0 | CL41: 0 | CM41: 0 | CN41: 0 | CO41: 0 | CP41: 0 | CQ41: 0 | CR41: 0 | CS41: 0 | CT41: 0 | CU41: 0 | CV41: 0 | CW41: 0 | CX41: 0 | CY41: 0 | CZ41: 0 | DA41: 0 | DB41: 0 | DC41: 0 | DD41: 0 | DE41: 0 | DF41: 0 | DG41: 0 | DH41: 0 | DI41: 0 | DJ41: 0 | DK41: 0 | DL41: 0 | DM41: 0 | DN41: 0 | DO41: 0 | DP41: 0 | DQ41: 0 | DR41: 0 | DS41: 0 | DT41: 0 | DU41: 0 | DV41: 0 | DW41: 0 | DX41: 0 | DY41: 0 | DZ41: 0 | EA41: 0 | EB41: 0 | EC41: 0 | ED41: 0 | EE41: 0 | EF41: 0 | EG41: 0 | EH41: 0 | EI41: =EI38+EI39-EI40 -> 0 | EJ41: 0 | EK41: 0 | EL41: 0 | EM41: 0 | EN41: 0 | EO41: 0 | EP41: 0 | EQ41: 0 | ER41: 0 | ES41: 0 | ET41: 0 | EU41: 0 | EV41: 0 | EW41: 0 | EX41: 0 | EY41: 0 | EZ41: 0 | FA41: 0 | FB41: 0 | FC41: 0 | FD41: 0 | FE41: 0 | FF41: 0 | FG41: 0 | FH41: 0 | FI41: 0 | FJ41: 0 | FK41: 0 | FL41: 0 | FM41: 0 | FN41: 0 | FO41: 0 | FP41: 0 | FQ41: 0 | FR41: 0 | FS41: 0 | FT41: 0 | FU41: 0 | FV41: 0 | FW41: 0 | FX41: 0 | FY41: 0 | FZ41: 0 | GA41: 0 | GB41: 0 | GC41: 0 | GD41: 0 | GE41: 0 | GF41: 0 | GG41: 0 | GH41: 0 | GI41: 0 | GJ41: 0 | GK41: 0 | GL41: 0 | GM41: 0 | GN41: 0 | GO41: 0 | GP41: 0 | GQ41: 0 | GR41: 0 | GS41: 0 | GT41: 0 | GU41: =GU38+GU39-GU40 -> 0 | GV41: 0 | GW41: 0 | GX41: 0 | GY41: 0 | GZ41: 0 | HA41: 0
D42: Periodic Interest Cost | E42: % | F42: =F22*1 -> 0.03 | J42: =$F$42/12*J9*J38 -> 0 | K42: 0 | L42: 0 | M42: 0 | N42: 0 | O42: 0 | P42: 0 | Q42: 0 | R42: 0 | S42: 0 | T42: 0 | U42: 0 | V42: 0 | W42: 0 | X42: 33.33333333 | Y42: 66.66666667 | Z42: 100 | AA42: 133.3333333 | AB42: 166.6666667 | AC42: 200 | AD42: 233.3333333 | AE42: 266.6666667 | AF42: 300 | AG42: 333.3333333 | AH42: 366.6666667 | AI42: 400 | AJ42: 433.3333333 | AK42: 466.6666667 | AL42: 500 | AM42: 533.3333333 | AN42: 566.6666667 | AO42: 600 | AP42: =$F$42/12*AP9*AP38 -> 633.3333333 | AQ42: 666.6666667 | AR42: 700 | AS42: 733.3333333 | AT42: 766.6666667 | AU42: 800 | AV42: 833.3333333 | AW42: 866.6666667 | AX42: 900 | AY42: 933.3333333 | AZ42: 966.6666667 | BA42: 12000 | BB42: 12000 | BC42: 12000 | BD42: 12000 | BE42: 12000 | BF42: 0 | BG42: 0 | BH42: 0 | BI42: 0 | BJ42: 0 | BK42: 0 | BL42: 0 | BM42: 0 | BN42: 0 | BO42: 0 | BP42: 0 | BQ42: 0 | BR42: 0 | BS42: 0 | BT42: 0 | BU42: 0 | BV42: =$F$42/12*BV9*BV38 -> 0 | BW42: 0 | BX42: 0 | BY42: 0 | BZ42: 0 | CA42: 0 | CB42: 0 | CC42: 0 | CD42: 0 | CE42: 0 | CF42: 0 | CG42: 0 | CH42: 0 | CI42: 0 | CJ42: 0 | CK42: 0 | CL42: 0 | CM42: 0 | CN42: 0 | CO42: 0 | CP42: 0 | CQ42: 0 | CR42: 0 | CS42: 0 | CT42: 0 | CU42: 0 | CV42: 0 | CW42: 0 | CX42: 0 | CY42: 0 | CZ42: 0 | DA42: 0 | DB42: =$F$42/12*DB9*DB38 -> 0 | DC42: 0 | DD42: 0 | DE42: 0 | DF42: 0 | DG42: 0 | DH42: 0 | DI42: 0 | DJ42: 0 | DK42: 0 | DL42: 0 | DM42: 0 | DN42: 0 | DO42: 0 | DP42: 0 | DQ42: 0 | DR42: 0 | DS42: 0 | DT42: 0 | DU42: 0 | DV42: 0 | DW42: 0 | DX42: 0 | DY42: 0 | DZ42: 0 | EA42: 0 | EB42: 0 | EC42: 0 | ED42: 0 | EE42: 0 | EF42: 0 | EG42: 0 | EH42: =$F$42/12*EH9*EH38 -> 0 | EI42: 0 | EJ42: 0 | EK42: 0 | EL42: 0 | EM42: 0 | EN42: 0 | EO42: 0 | EP42: 0 | EQ42: 0 | ER42: 0 | ES42: 0 | ET42: 0 | EU42: 0 | EV42: 0 | EW42: 0 | EX42: 0 | EY42: 0 | EZ42: 0 | FA42: 0 | FB42: 0 | FC42: 0 | FD42: 0 | FE42: 0 | FF42: 0 | FG42: 0 | FH42: 0 | FI42: 0 | FJ42: 0 | FK42: 0 | FL42: 0 | FM42: 0 | FN42: =$F$42/12*FN9*FN38 -> 0 | FO42: 0 | FP42: 0 | FQ42: 0 | FR42: 0 | FS42: 0 | FT42: 0 | FU42: 0 | FV42: 0 | FW42: 0 | FX42: 0 | FY42: 0 | FZ42: 0 | GA42: 0 | GB42: 0 | GC42: 0 | GD42: 0 | GE42: 0 | GF42: 0 | GG42: 0 | GH42: 0 | GI42: 0 | GJ42: 0 | GK42: 0 | GL42: 0 | GM42: 0 | GN42: 0 | GO42: 0 | GP42: 0 | GQ42: 0 | GR42: 0 | GS42: 0 | GT42: =$F$42/12*GT9*GT38 -> 0 | GU42: 0 | GV42: 0 | GW42: 0 | GX42: 0 | GY42: 0 | GZ42: 0 | HA42: 0
D44: Cash Flow after EBL | E44: EUR | J44: =J32+J39-J40 -> -769.2307692 | K44: =K32+K39-K40 -> -769.2307692 | L44: -769.2307692 | M44: -769.2307692 | N44: -769.2307692 | O44: -769.2307692 | P44: -769.2307692 | Q44: -769.2307692 | R44: -769.2307692 | S44: -769.2307692 | T44: -769.2307692 | U44: -769.2307692 | V44: -769.2307692 | W44: 0 | X44: 0 | Y44: 0 | Z44: 0 | AA44: 0 | AB44: 0 | AC44: 0 | AD44: 0 | AE44: 0 | AF44: 0 | AG44: 0 | AH44: 0 | AI44: 0 | AJ44: 0 | AK44: 0 | AL44: 0 | AM44: 0 | AN44: 0 | AO44: 0 | AP44: 0 | AQ44: 0 | AR44: 0 | AS44: 0 | AT44: 0 | AU44: 0 | AV44: 0 | AW44: 0 | AX44: 0 | AY44: 0 | AZ44: 0 | BA44: 30750 | BB44: 31518.75 | BC44: 32306.71875 | BD44: 33114.38672 | BE44: -366057.7536 | BF44: 34790.80255 | BG44: 35660.57261 | BH44: 36552.08693 | BI44: 37465.8891 | BJ44: 38402.53633 | BK44: 39362.59973 | BL44: 40346.66473 | BM44: 41355.33135 | BN44: 42389.21463 | BO44: 43448.94499 | BP44: 44535.16862 | BQ44: 45648.54784 | BR44: 46789.76153 | BS44: 47959.50557 | BT44: 49158.49321 | BU44: 50387.45554 | BV44: 51647.14193 | BW44: =BW32+BW39-BW40 -> 52938.32048 | BX44: 54261.77849 | BY44: 55618.32295 | BZ44: 57008.78102 | CA44: 58434.00055 | CB44: 59894.85056 | CC44: 61392.22183 | CD44: 62927.02737 | CE44: 0 | CF44: 0 | CG44: 0 | CH44: 0 | CI44: 0 | CJ44: 0 | CK44: 0 | CL44: 0 | CM44: 0 | CN44: 0 | CO44: 0 | CP44: 0 | CQ44: 0 | CR44: 0 | CS44: 0 | CT44: 0 | CU44: 0 | CV44: 0 | CW44: 0 | CX44: 0 | CY44: 0 | CZ44: 0 | DA44: 0 | DB44: 0 | DC44: 0 | DD44: 0 | DE44: 0 | DF44: 0 | DG44: 0 | DH44: 0 | DI44: 0 | DJ44: 0 | DK44: 0 | DL44: 0 | DM44: 0 | DN44: 0 | DO44: 0 | DP44: 0 | DQ44: 0 | DR44: 0 | DS44: 0 | DT44: 0 | DU44: 0 | DV44: 0 | DW44: 0 | DX44: 0 | DY44: 0 | DZ44: 0 | EA44: 0 | EB44: 0 | EC44: 0 | ED44: 0 | EE44: 0 | EF44: 0 | EG44: 0 | EH44: 0 | EI44: =EI32+EI39-EI40 -> 0 | EJ44: 0 | EK44: 0 | EL44: 0 | EM44: 0 | EN44: 0 | EO44: 0 | EP44: 0 | EQ44: 0 | ER44: 0 | ES44: 0 | ET44: 0 | EU44: 0 | EV44: 0 | EW44: 0 | EX44: 0 | EY44: 0 | EZ44: 0 | FA44: 0 | FB44: 0 | FC44: 0 | FD44: 0 | FE44: 0 | FF44: 0 | FG44: 0 | FH44: 0 | FI44: 0 | FJ44: 0 | FK44: 0 | FL44: 0 | FM44: 0 | FN44: 0 | FO44: 0 | FP44: 0 | FQ44: 0 | FR44: 0 | FS44: 0 | FT44: 0 | FU44: 0 | FV44: 0 | FW44: 0 | FX44: 0 | FY44: 0 | FZ44: 0 | GA44: 0 | GB44: 0 | GC44: 0 | GD44: 0 | GE44: 0 | GF44: 0 | GG44: 0 | GH44: 0 | GI44: 0 | GJ44: 0 | GK44: 0 | GL44: 0 | GM44: 0 | GN44: 0 | GO44: 0 | GP44: 0 | GQ44: 0 | GR44: 0 | GS44: 0 | GT44: 0 | GU44: =GU32+GU39-GU40 -> 0 | GV44: 0 | GW44: 0 | GX44: 0 | GY44: 0 | GZ44: 0 | HA44: 0
D45: Project IRR with EBL | E45: % | F45: =IFERROR(XIRR(J44:HA44,J2:HA2),FALSE) -> 0.1893155992

Sheet ROIC Analysis
B1: Timeline
D2: Date | I2: 2020-01-01 | J2: =EDATE(I2, J9) -> 2020-02-01 | K2: 2020-03-01 | L2: 2021-03-01 | M2: 2022-03-01 | N2: 2023-03-01 | O2: 2024-03-01 | P2: 2025-03-01 | Q2: 2026-03-01 | R2: 2027-03-01 | S2: 2028-03-01 | T2: 2029-03-01 | U2: 2030-03-01 | V2: 2031-03-01 | W2: 2032-03-01 | X2: 2033-03-01 | Y2: 2034-03-01 | Z2: 2035-03-01 | AA2: 2036-03-01 | AB2: 2037-03-01 | AC2: 2038-03-01 | AD2: 2039-03-01 | AE2: 2040-03-01 | AF2: 2041-03-01 | AG2: 2042-03-01 | AH2: 2043-03-01 | AI2: 2044-03-01 | AJ2: 2045-03-01 | AK2: 2046-03-01 | AL2: 2047-03-01 | AM2: 2048-03-01 | AN2: 2049-03-01 | AO2: 2050-03-01 | AP2: =EDATE(AO2, AP9) -> 2051-03-01 | AQ2: 2052-03-01 | AR2: 2053-03-01 | AS2: 2054-03-01 | AT2: 2055-03-01 | AU2: 2056-03-01 | AV2: 2057-03-01 | AW2: 2058-03-01 | AX2: 2059-03-01 | AY2: 2060-03-01 | AZ2: 2061-03-01 | BA2: 2062-03-01 | BB2: 2063-03-01 | BC2: 2064-03-01 | BD2: 2065-03-01 | BE2: 2066-03-01 | BF2: 2067-03-01 | BG2: 2068-03-01 | BH2: 2069-03-01 | BI2: 2070-03-01 | BJ2: 2071-03-01 | BK2: 2072-03-01 | BL2: 2073-03-01 | BM2: 2074-03-01 | BN2: 2075-03-01 | BO2: 2076-03-01 | BP2: 2077-03-01 | BQ2: 2078-03-01 | BR2: 2079-03-01 | BS2: 2080-03-01 | BT2: 2081-03-01 | BU2: 2082-03-01 | BV2: =EDATE(BU2, BV9) -> 2083-03-01 | BW2: 2084-03-01 | BX2: 2085-03-01 | BY2: 2086-03-01 | BZ2: 2087-03-01 | CA2: 2088-03-01 | CB2: 2089-03-01 | CC2: 2090-03-01 | CD2: 2091-03-01 | CE2: 2092-03-01 | CF2: 2093-03-01 | CG2: 2094-03-01 | CH2: 2095-03-01 | CI2: 2096-03-01 | CJ2: 2097-03-01 | CK2: 2098-03-01 | CL2: 2099-03-01 | CM2: 2100-03-01 | CN2: 2101-03-01 | CO2: 2102-03-01 | CP2: 2103-03-01 | CQ2: 2104-03-01 | CR2: 2105-03-01 | CS2: 2106-03-01 | CT2: 2107-03-01 | CU2: 2108-03-01 | CV2: 2109-03-01 | CW2: 2110-03-01 | CX2: 2111-03-01 | CY2: 2112-03-01 | CZ2: 2113-03-01 | DA2: 2114-03-01 | DB2: =EDATE(DA2, DB9) -> 2115-03-01 | DC2: 2116-03-01 | DD2: 2117-03-01 | DE2: 2118-03-01 | DF2: 2119-03-01 | DG2: 2120-03-01 | DH2: 2121-03-01 | DI2: 2122-03-01 | DJ2: 2123-03-01 | DK2: 2124-03-01 | DL2: 2125-03-01 | DM2: 2126-03-01 | DN2: 2127-03-01 | DO2: 2128-03-01 | DP2: 2129-03-01 | DQ2: 2130-03-01 | DR2: 2131-03-01 | DS2: 2132-03-01 | DT2: 2133-03-01 | DU2: 2134-03-01 | DV2: 2135-03-01 | DW2: 2136-03-01 | DX2: 2137-03-01 | DY2: 2138-03-01 | DZ2: 2139-03-01 | EA2: 2140-03-01 | EB2: 2141-03-01 | EC2: 2142-03-01 | ED2: 2143-03-01 | EE2: 2144-03-01 | EF2: 2145-03-01 | EG2: 2146-03-01 | EH2: =EDATE(EG2, EH9) -> 2147-03-01 | EI2: 2148-03-01 | EJ2: 2149-03-01 | EK2: 2150-03-01 | EL2: 2151-03-01 | EM2: 2152-03-01 | EN2: 2153-03-01 | EO2: 2154-03-01 | EP2: 2155-03-01 | EQ2: 2156-03-01 | ER2: 2157-03-01 | ES2: 2158-03-01 | ET2: 2159-03-01 | EU2: 2160-03-01 | EV2: 2161-03-01 | EW2: 2162-03-01 | EX2: 2163-03-01 | EY2: 2164-03-01 | EZ2: 2165-03-01 | FA2: 2166-03-01 | FB2: 2167-03-01 | FC2: 2168-03-01 | FD2: 2169-03-01 | FE2: 2170-03-01 | FF2: 2171-03-01 | FG2: 2172-03-01 | FH2: 2173-03-01 | FI2: 2174-03-01 | FJ2: 2175-03-01 | FK2: 2176-03-01 | FL2: 2177-03-01 | FM2: 2178-03-01 | FN2: =EDATE(FM2, FN9) -> 2179-03-01 | FO2: 2180-03-01 | FP2: 2181-03-01 | FQ2: 2182-03-01 | FR2: 2183-03-01 | FS2: 2184-03-01 | FT2: 2185-03-01 | FU2: 2186-03-01 | FV2: 2187-03-01 | FW2: 2188-03-01 | FX2: 2189-03-01 | FY2: 2190-03-01 | FZ2: 2191-03-01 | GA2: 2192-03-01 | GB2: 2193-03-01 | GC2: 2194-03-01 | GD2: 2195-03-01 | GE2: 2196-03-01 | GF2: 2197-03-01 | GG2: 2198-03-01 | GH2: 2199-03-01 | GI2: 2200-03-01 | GJ2: 2201-03-01 | GK2: 2202-03-01 | GL2: 2203-03-01 | GM2: 2204-03-01 | GN2: 2205-03-01 | GO2: 2206-03-01 | GP2: 2207-03-01 | GQ2: 2208-03-01 | GR2: 2209-03-01 | GS2: 2210-03-01 | GT2: =EDATE(GS2, GT9) -> 2211-03-01 | GU2: 2212-03-01 | GV2: 2213-03-01 | GW2: 2214-03-01 | GX2: 2215-03-01 | GY2: 2216-03-01 | GZ2: 2217-03-01 | HA2: 2218-03-01
D3: Development Period | E3: Month | F3: 1 | J3: =J7<=$F$3 -> TRUE | K3: FALSE | L3: FALSE | M3: FALSE | N3: FALSE | O3: FALSE | P3: FALSE | Q3: FALSE | R3: FALSE | S3: FALSE | T3: FALSE | U3: FALSE | V3: FALSE | W3: FALSE | X3: FALSE | Y3: FALSE | Z3: FALSE | AA3: FALSE | AB3: FALSE | AC3: FALSE | AD3: FALSE | AE3: FALSE | AF3: FALSE | AG3: FALSE | AH3: FALSE | AI3: FALSE | AJ3: FALSE | AK3: FALSE | AL3: FALSE | AM3: FALSE | AN3: FALSE | AO3: FALSE | AP3: =AP7<=$F$3 -> FALSE | AQ3: FALSE | AR3: FALSE | AS3: FALSE | AT3: FALSE | AU3: FALSE | AV3: FALSE | AW3: FALSE | AX3: FALSE | AY3: FALSE | AZ3: FALSE | BA3: FALSE | BB3: FALSE | BC3: FALSE | BD3: FALSE | BE3: FALSE | BF3: FALSE | BG3: FALSE | BH3: FALSE | BI3: FALSE | BJ3: FALSE | BK3: FALSE | BL3: FALSE | BM3: FALSE | BN3: FALSE | BO3: FALSE | BP3: FALSE | BQ3: FALSE | BR3: FALSE | BS3: FALSE | BT3: FALSE | BU3: FALSE | BV3: =BV7<=$F$3 -> FALSE | BW3: FALSE | BX3: FALSE | BY3: FALSE | BZ3: FALSE | CA3: FALSE | CB3: FALSE | CC3: FALSE | CD3: FALSE | CE3: FALSE | CF3: FALSE | CG3: FALSE | CH3: FALSE | CI3: FALSE | CJ3: FALSE | CK3: FALSE | CL3: FALSE | CM3: FALSE | CN3: FALSE | CO3: FALSE | CP3: FALSE | CQ3: FALSE | CR3: FALSE | CS3: FALSE | CT3: FALSE | CU3: FALSE | CV3: FALSE | CW3: FALSE | CX3: FALSE | CY3: FALSE | CZ3: FALSE | DA3: FALSE | DB3: =DB7<=$F$3 -> FALSE | DC3: FALSE | DD3: FALSE | DE3: FALSE | DF3: FALSE | DG3: FALSE | DH3: FALSE | DI3: FALSE | DJ3: FALSE | DK3: FALSE | DL3: FALSE | DM3: FALSE | DN3: FALSE | DO3: FALSE | DP3: FALSE | DQ3: FALSE | DR3: FALSE | DS3: FALSE | DT3: FALSE | DU3: FALSE | DV3: FALSE | DW3: FALSE | DX3: FALSE | DY3: FALSE | DZ3: FALSE | EA3: FALSE | EB3: FALSE | EC3: FALSE | ED3: FALSE | EE3: FALSE | EF3: FALSE | EG3: FALSE | EH3: =EH7<=$F$3 -> FALSE | EI3: FALSE | EJ3: FALSE | EK3: FALSE | EL3: FALSE | EM3: FALSE | EN3: FALSE | EO3: FALSE | EP3: FALSE | EQ3: FALSE | ER3: FALSE | ES3: FALSE | ET3: FALSE | EU3: FALSE | EV3: FALSE | EW3: FALSE | EX3: FALSE | EY3: FALSE | EZ3: FALSE | FA3: FALSE | FB3: FALSE | FC3: FALSE | FD3: FALSE | FE3: FALSE | FF3: FALSE | FG3: FALSE | FH3: FALSE | FI3: FALSE | FJ3: FALSE | FK3: FALSE | FL3: FALSE | FM3: FALSE | FN3: =FN7<=$F$3 -> FALSE | FO3: FALSE | FP3: FALSE | FQ3: FALSE | FR3: FALSE | FS3: FALSE | FT3: FALSE | FU3: FALSE | FV3: FALSE | FW3: FALSE | FX3: FALSE | FY3: FALSE | FZ3: FALSE | GA3: FALSE | GB3: FALSE | GC3: FALSE | GD3: FALSE | GE3: FALSE | GF3: FALSE | GG3: FALSE | GH3: FALSE | GI3: FALSE | GJ3: FALSE | GK3: FALSE | GL3: FALSE | GM3: FALSE | GN3: FALSE | GO3: FALSE | GP3: FALSE | GQ3: FALSE | GR3: FALSE | GS3: FALSE | GT3: =GT7<=$F$3 -> FALSE | GU3: FALSE | GV3: FALSE | GW3: FALSE | GX3: FALSE | GY3: FALSE | GZ3: FALSE | HA3: FALSE
D4: Construction period | E4: Month | F4: 1 | J4: =AND(J8,NOT(J3)) -> FALSE | K4: TRUE | L4: FALSE | M4: FALSE | N4: FALSE | O4: FALSE | P4: FALSE | Q4: FALSE | R4: FALSE | S4: FALSE | T4: FALSE | U4: FALSE | V4: FALSE | W4: FALSE | X4: FALSE | Y4: FALSE | Z4: FALSE | AA4: FALSE | AB4: FALSE | AC4: FALSE | AD4: FALSE | AE4: FALSE | AF4: FALSE | AG4: FALSE | AH4: FALSE | AI4: FALSE | AJ4: FALSE | AK4: FALSE | AL4: FALSE | AM4: FALSE | AN4: FALSE | AO4: FALSE | AP4: =AND(AP8,NOT(AP3)) -> FALSE | AQ4: FALSE | AR4: FALSE | AS4: FALSE | AT4: FALSE | AU4: FALSE | AV4: FALSE | AW4: FALSE | AX4: FALSE | AY4: FALSE | AZ4: FALSE | BA4: FALSE | BB4: FALSE | BC4: FALSE | BD4: FALSE | BE4: FALSE | BF4: FALSE | BG4: FALSE | BH4: FALSE | BI4: FALSE | BJ4: FALSE | BK4: FALSE | BL4: FALSE | BM4: FALSE | BN4: FALSE | BO4: FALSE | BP4: FALSE | BQ4: FALSE | BR4: FALSE | BS4: FALSE | BT4: FALSE | BU4: FALSE | BV4: =AND(BV8,NOT(BV3)) -> FALSE | BW4: FALSE | BX4: FALSE | BY4: FALSE | BZ4: FALSE | CA4: FALSE | CB4: FALSE | CC4: FALSE | CD4: FALSE | CE4: FALSE | CF4: FALSE | CG4: FALSE | CH4: FALSE | CI4: FALSE | CJ4: FALSE | CK4: FALSE | CL4: FALSE | CM4: FALSE | CN4: FALSE | CO4: FALSE | CP4: FALSE | CQ4: FALSE | CR4: FALSE | CS4: FALSE | CT4: FALSE | CU4: FALSE | CV4: FALSE | CW4: FALSE | CX4: FALSE | CY4: FALSE | CZ4: FALSE | DA4: FALSE | DB4: =AND(DB8,NOT(DB3)) -> FALSE | DC4: FALSE | DD4: FALSE | DE4: FALSE | DF4: FALSE | DG4: FALSE | DH4: FALSE | DI4: FALSE | DJ4: FALSE | DK4: FALSE | DL4: FALSE | DM4: FALSE | DN4: FALSE | DO4: FALSE | DP4: FALSE | DQ4: FALSE | DR4: FALSE | DS4: FALSE | DT4: FALSE | DU4: FALSE | DV4: FALSE | DW4: FALSE | DX4: FALSE | DY4: FALSE | DZ4: FALSE | EA4: FALSE | EB4: FALSE | EC4: FALSE | ED4: FALSE | EE4: FALSE | EF4: FALSE | EG4: FALSE | EH4: =AND(EH8,NOT(EH3)) -> FALSE | EI4: FALSE | EJ4: FALSE | EK4: FALSE | EL4: FALSE | EM4: FALSE | EN4: FALSE | EO4: FALSE | EP4: FALSE | EQ4: FALSE | ER4: FALSE | ES4: FALSE | ET4: FALSE | EU4: FALSE | EV4: FALSE | EW4: FALSE | EX4: FALSE | EY4: FALSE | EZ4: FALSE | FA4: FALSE | FB4: FALSE | FC4: FALSE | FD4: FALSE | FE4: FALSE | FF4: FALSE | FG4: FALSE | FH4: FALSE | FI4: FALSE | FJ4: FALSE | FK4: FALSE | FL4: FALSE | FM4: FALSE | FN4: =AND(FN8,NOT(FN3)) -> FALSE | FO4: FALSE | FP4: FALSE | FQ4: FALSE | FR4: FALSE | FS4: FALSE | FT4: FALSE | FU4: FALSE | FV4: FALSE | FW4: FALSE | FX4: FALSE | FY4: FALSE | FZ4: FALSE | GA4: FALSE | GB4: FALSE | GC4: FALSE | GD4: FALSE | GE4: FALSE | GF4: FALSE | GG4: FALSE | GH4: FALSE | GI4: FALSE | GJ4: FALSE | GK4: FALSE | GL4: FALSE | GM4: FALSE | GN4: FALSE | GO4: FALSE | GP4: FALSE | GQ4: FALSE | GR4: FALSE | GS4: FALSE | GT4: =AND(GT8,NOT(GT3)) -> FALSE | GU4: FALSE | GV4: FALSE | GW4: FALSE | GX4: FALSE | GY4: FALSE | GZ4: FALSE | HA4: FALSE
D5: Age of project | J5: =I5+NOT(J8) -> 0 | K5: 0 | L5: 1 | M5: 2 | N5: 3 | O5: 4 | P5: 5 | Q5: 6 | R5: 7 | S5: 8 | T5: 9 | U5: 10 | V5: 11 | W5: 12 | X5: 13 | Y5: 14 | Z5: 15 | AA5: 16 | AB5: 17 | AC5: 18 | AD5: 19 | AE5: 20 | AF5: 21 | AG5: 22 | AH5: 23 | AI5: 24 | AJ5: 25 | AK5: 26 | AL5: 27 | AM5: 28 | AN5: 29 | AO5: 30 | AP5: =AO5+NOT(AP8) -> 31 | AQ5: 32 | AR5: 33 | AS5: 34 | AT5: 35 | AU5: 36 | AV5: 37 | AW5: 38 | AX5: 39 | AY5: 40 | AZ5: 41 | BA5: 42 | BB5: 43 | BC5: 44 | BD5: 45 | BE5: 46 | BF5: 47 | BG5: 48 | BH5: 49 | BI5: 50 | BJ5: 51 | BK5: 52 | BL5: 53 | BM5: 54 | BN5: 55 | BO5: 56 | BP5: 57 | BQ5: 58 | BR5: 59 | BS5: 60 | BT5: 61 | BU5: 62 | BV5: =BU5+NOT(BV8) -> 63 | BW5: 64 | BX5: 65 | BY5: 66 | BZ5: 67 | CA5: 68 | CB5: 69 | CC5: 70 | CD5: 71 | CE5: 72 | CF5: 73 | CG5: 74 | CH5: 75 | CI5: 76 | CJ5: 77 | CK5: 78 | CL5: 79 | CM5: 80 | CN5: 81 | CO5: 82 | CP5: 83 | CQ5: 84 | CR5: 85 | CS5: 86 | CT5: 87 | CU5: 88 | CV5: 89 | CW5: 90 | CX5: 91 | CY5: 92 | CZ5: 93 | DA5: 94 | DB5: =DA5+NOT(DB8) -> 95 | DC5: 96 | DD5: 97 | DE5: 98 | DF5: 99 | DG5: 100 | DH5: 101 | DI5: 102 | DJ5: 103 | DK5: 104 | DL5: 105 | DM5: 106 | DN5: 107 | DO5: 108 | DP5: 109 | DQ5: 110 | DR5: 111 | DS5: 112 | DT5: 113 | DU5: 114 | DV5: 115 | DW5: 116 | DX5: 117 | DY5: 118 | DZ5: 119 | EA5: 120 | EB5: 121 | EC5: 122 | ED5: 123 | EE5: 124 | EF5: 125 | EG5: 126 | EH5: =EG5+NOT(EH8) -> 127 | EI5: 128 | EJ5: 129 | EK5: 130 | EL5: 131 | EM5: 132 | EN5: 133 | EO5: 134 | EP5: 135 | EQ5: 136 | ER5: 137 | ES5: 138 | ET5: 139 | EU5: 140 | EV5: 141 | EW5: 142 | EX5: 143 | EY5: 144 | EZ5: 145 | FA5: 146 | FB5: 147 | FC5: 148 | FD5: 149 | FE5: 150 | FF5: 151 | FG5: 152 | FH5: 153 | FI5: 154 | FJ5: 155 | FK5: 156 | FL5: 157 | FM5: 158 | FN5: =FM5+NOT(FN8) -> 159 | FO5: 160 | FP5: 161 | FQ5: 162 | FR5: 163 | FS5: 164 | FT5: 165 | FU5: 166 | FV5: 167 | FW5: 168 | FX5: 169 | FY5: 170 | FZ5: 171 | GA5: 172 | GB5: 173 | GC5: 174 | GD5: 175 | GE5: 176 | GF5: 177 | GG5: 178 | GH5: 179 | GI5: 180 | GJ5: 181 | GK5: 182 | GL5: 183 | GM5: 184 | GN5: 185 | GO5: 186 | GP5: 187 | GQ5: 188 | GR5: 189 | GS5: 190 | GT5: =GS5+NOT(GT8) -> 191 | GU5: 192 | GV5: 193 | GW5: 194 | GX5: 195 | GY5: 196 | GZ5: 197 | HA5: 198
D6: Operating period | E6: Years | F6: 30 | J6: =AND(J5<=$F$6, NOT(J8)) -> FALSE | K6: FALSE | L6: TRUE | M6: TRUE | N6: TRUE | O6: TRUE | P6: TRUE | Q6: TRUE | R6: TRUE | S6: TRUE | T6: TRUE | U6: TRUE | V6: TRUE | W6: TRUE | X6: TRUE | Y6: TRUE | Z6: TRUE | AA6: TRUE | AB6: TRUE | AC6: TRUE | AD6: TRUE | AE6: TRUE | AF6: TRUE | AG6: TRUE | AH6: TRUE | AI6: TRUE | AJ6: TRUE | AK6: TRUE | AL6: TRUE | AM6: TRUE | AN6: TRUE | AO6: TRUE | AP6: =AND(AP5<=$F$6, NOT(AP8)) -> FALSE | AQ6: FALSE | AR6: FALSE | AS6: FALSE | AT6: FALSE | AU6: FALSE | AV6: FALSE | AW6: FALSE | AX6: FALSE | AY6: FALSE | AZ6: FALSE | BA6: FALSE | BB6: FALSE | BC6: FALSE | BD6: FALSE | BE6: FALSE | BF6: FALSE | BG6: FALSE | BH6: FALSE | BI6: FALSE | BJ6: FALSE | BK6: FALSE | BL6: FALSE | BM6: FALSE | BN6: FALSE | BO6: FALSE | BP6: FALSE | BQ6: FALSE | BR6: FALSE | BS6: FALSE | BT6: FALSE | BU6: FALSE | BV6: =AND(BV5<=$F$6, NOT(BV8)) -> FALSE | BW6: FALSE | BX6: FALSE | BY6: FALSE | BZ6: FALSE | CA6: FALSE | CB6: FALSE | CC6: FALSE | CD6: FALSE | CE6: FALSE | CF6: FALSE | CG6: FALSE | CH6: FALSE | CI6: FALSE | CJ6: FALSE | CK6: FALSE | CL6: FALSE | CM6: FALSE | CN6: FALSE | CO6: FALSE | CP6: FALSE | CQ6: FALSE | CR6: FALSE | CS6: FALSE | CT6: FALSE | CU6: FALSE | CV6: FALSE | CW6: FALSE | CX6: FALSE | CY6: FALSE | CZ6: FALSE | DA6: FALSE | DB6: =AND(DB5<=$F$6, NOT(DB8)) -> FALSE | DC6: FALSE | DD6: FALSE | DE6: FALSE | DF6: FALSE | DG6: FALSE | DH6: FALSE | DI6: FALSE | DJ6: FALSE | DK6: FALSE | DL6: FALSE | DM6: FALSE | DN6: FALSE | DO6: FALSE | DP6: FALSE | DQ6: FALSE | DR6: FALSE | DS6: FALSE | DT6: FALSE | DU6: FALSE | DV6: FALSE | DW6: FALSE | DX6: FALSE | DY6: FALSE | DZ6: FALSE | EA6: FALSE | EB6: FALSE | EC6: FALSE | ED6: FALSE | EE6: FALSE | EF6: FALSE | EG6: FALSE | EH6: =AND(EH5<=$F$6, NOT(EH8)) -> FALSE | EI6: FALSE | EJ6: FALSE | EK6: FALSE | EL6: FALSE | EM6: FALSE | EN6: FALSE | EO6: FALSE | EP6: FALSE | EQ6: FALSE | ER6: FALSE | ES6: FALSE | ET6: FALSE | EU6: FALSE | EV6: FALSE | EW6: FALSE | EX6: FALSE | EY6: FALSE | EZ6: FALSE | FA6: FALSE | FB6: FALSE | FC6: FALSE | FD6: FALSE | FE6: FALSE | FF6: FALSE | FG6: FALSE | FH6: FALSE | FI6: FALSE | FJ6: FALSE | FK6: FALSE | FL6: FALSE | FM6: FALSE | FN6: =AND(FN5<=$F$6, NOT(FN8)) -> FALSE | FO6: FALSE | FP6: FALSE | FQ6: FALSE | FR6: FALSE | FS6: FALSE | FT6: FALSE | FU6: FALSE | FV6: FALSE | FW6: FALSE | FX6: FALSE | FY6: FALSE | FZ6: FALSE | GA6: FALSE | GB6: FALSE | GC6: FALSE | GD6: FALSE | GE6: FALSE | GF6: FALSE | GG6: FALSE | GH6: FALSE | GI6: FALSE | GJ6: FALSE | GK6: FALSE | GL6: FALSE | GM6: FALSE | GN6: FALSE | GO6: FALSE | GP6: FALSE | GQ6: FALSE | GR6: FALSE | GS6: FALSE | GT6: =AND(GT5<=$F$6, NOT(GT8)) -> FALSE | GU6: FALSE | GV6: FALSE | GW6: FALSE | GX6: FALSE | GY6: FALSE | GZ6: FALSE | HA6: FALSE
D7: Period | J7: 1 | K7: 2 | L7: 3 | M7: 4 | N7: 5 | O7: 6 | P7: 7 | Q7: 8 | R7: 9 | S7: 10 | T7: 11 | U7: 12 | V7: 13 | W7: 14 | X7: 15 | Y7: 16 | Z7: 17 | AA7: 18 | AB7: 19 | AC7: 20 | AD7: 21 | AE7: 22 | AF7: 23 | AG7: 24 | AH7: 25 | AI7: 26 | AJ7: 27 | AK7: 28 | AL7: 29 | AM7: 30 | AN7: 31 | AO7: 32 | AP7: 33 | AQ7: 34 | AR7: 35 | AS7: 36 | AT7: 37 | AU7: 38 | AV7: 39 | AW7: 40 | AX7: 41 | AY7: 42 | AZ7: 43 | BA7: 44 | BB7: 45 | BC7: 46 | BD7: 47 | BE7: 48 | BF7: 49 | BG7: 50 | BH7: 51 | BI7: 52 | BJ7: 53 | BK7: 54 | BL7: 55 | BM7: 56 | BN7: 57 | BO7: 58 | BP7: 59 | BQ7: 60 | BR7: 61 | BS7: 62 | BT7: 63 | BU7: 64 | BV7: 65 | BW7: 66 | BX7: 67 | BY7: 68 | BZ7: 69 | CA7: 70 | CB7: 71 | CC7: 72 | CD7: 73 | CE7: 74 | CF7: 75 | CG7: 76 | CH7: 77 | CI7: 78 | CJ7: 79 | CK7: 80 | CL7: 81 | CM7: 82 | CN7: 83 | CO7: 84 | CP7: 85 | CQ7: 86 | CR7: 87 | CS7: 88 | CT7: 89 | CU7: 90 | CV7: 91 | CW7: 92 | CX7: 93 | CY7: 94 | CZ7: 95 | DA7: 96 | DB7: 97 | DC7: 98 | DD7: 99 | DE7: 100 | DF7: 101 | DG7: 102 | DH7: 103 | DI7: 104 | DJ7: 105 | DK7: 106 | DL7: 107 | DM7: 108 | DN7: 109 | DO7: 110 | DP7: 111 | DQ7: 112 | DR7: 113 | DS7: 114 | DT7: 115 | DU7: 116 | DV7: 117 | DW7: 118 | DX7: 119 | DY7: 120 | DZ7: 121 | EA7: 122 | EB7: 123 | EC7: 124 | ED7: 125 | EE7: 126 | EF7: 127 | EG7: 128 | EH7: 129 | EI7: 130 | EJ7: 131 | EK7: 132 | EL7: 133 | EM7: 134 | EN7: 135 | EO7: 136 | EP7: 137 | EQ7: 138 | ER7: 139 | ES7: 140 | ET7: 141 | EU7: 142 | EV7: 143 | EW7: 144 | EX7: 145 | EY7: 146 | EZ7: 147 | FA7: 148 | FB7: 149 | FC7: 150 | FD7: 151 | FE7: 152 | FF7: 153 | FG7: 154 | FH7: 155 | FI7: 156 | FJ7: 157 | FK7: 158 | FL7: 159 | FM7: 160 | FN7: 161 | FO7: 162 | FP7: 163 | FQ7: 164 | FR7: 165 | FS7: 166 | FT7: 167 | FU7: 168 | FV7: 169 | FW7: 170 | FX7: 171 | FY7: 172 | FZ7: 173 | GA7: 174 | GB7: 175 | GC7: 176 | GD7: 177 | GE7: 178 | GF7: 179 | GG7: 180 | GH7: 181 | GI7: 182 | GJ7: 183 | GK7: 184 | GL7: 185 | GM7: 186 | GN7: 187 | GO7: 188 | GP7: 189 | GQ7: 190 | GR7: 191 | GS7: 192 | GT7: 193 | GU7: 194 | GV7: 195 | GW7: 196 | GX7: 197 | GY7: 198 | GZ7: 199 | HA7: 200
D8: Pre-COD | E8: Months Pre | F8: =F3+F4 -> 2 | J8: =J7<=$F$8 -> TRUE | K8: TRUE | L8: FALSE | M8: FALSE | N8: FALSE | O8: FALSE | P8: FALSE | Q8: FALSE | R8: FALSE | S8: FALSE | T8: FALSE | U8: FALSE | V8: FALSE | W8: FALSE | X8: FALSE | Y8: FALSE | Z8: FALSE | AA8: FALSE | AB8: FALSE | AC8: FALSE | AD8: FALSE | AE8: FALSE | AF8: FALSE | AG8: FALSE | AH8: FALSE | AI8: FALSE | AJ8: FALSE | AK8: FALSE | AL8: FALSE | AM8: FALSE | AN8: FALSE | AO8: FALSE | AP8: =AP7<=$F$8 -> FALSE | AQ8: FALSE | AR8: FALSE | AS8: FALSE | AT8: FALSE | AU8: FALSE | AV8: FALSE | AW8: FALSE | AX8: FALSE | AY8: FALSE | AZ8: FALSE | BA8: FALSE | BB8: FALSE | BC8: FALSE | BD8: FALSE | BE8: FALSE | BF8: FALSE | BG8: FALSE | BH8: FALSE | BI8: FALSE | BJ8: FALSE | BK8: FALSE | BL8: FALSE | BM8: FALSE | BN8: FALSE | BO8: FALSE | BP8: FALSE | BQ8: FALSE | BR8: FALSE | BS8: FALSE | BT8: FALSE | BU8: FALSE | BV8: =BV7<=$F$8 -> FALSE | BW8: FALSE | BX8: FALSE | BY8: FALSE | BZ8: FALSE | CA8: FALSE | CB8: FALSE | CC8: FALSE | CD8: FALSE | CE8: FALSE | CF8: FALSE | CG8: FALSE | CH8: FALSE | CI8: FALSE | CJ8: FALSE | CK8: FALSE | CL8: FALSE | CM8: FALSE | CN8: FALSE | CO8: FALSE | CP8: FALSE | CQ8: FALSE | CR8: FALSE | CS8: FALSE | CT8: FALSE | CU8: FALSE | CV8: FALSE | CW8: FALSE | CX8: FALSE | CY8: FALSE | CZ8: FALSE | DA8: FALSE | DB8: =DB7<=$F$8 -> FALSE | DC8: FALSE | DD8: FALSE | DE8: FALSE | DF8: FALSE | DG8: FALSE | DH8: FALSE | DI8: FALSE | DJ8: FALSE | DK8: FALSE | DL8: FALSE | DM8: FALSE | DN8: FALSE | DO8: FALSE | DP8: FALSE | DQ8: FALSE | DR8: FALSE | DS8: FALSE | DT8: FALSE | DU8: FALSE | DV8: FALSE | DW8: FALSE | DX8: FALSE | DY8: FALSE | DZ8: FALSE | EA8: FALSE | EB8: FALSE | EC8: FALSE | ED8: FALSE | EE8: FALSE | EF8: FALSE | EG8: FALSE | EH8: =EH7<=$F$8 -> FALSE | EI8: FALSE | EJ8: FALSE | EK8: FALSE | EL8: FALSE | EM8: FALSE | EN8: FALSE | EO8: FALSE | EP8: FALSE | EQ8: FALSE | ER8: FALSE | ES8: FALSE | ET8: FALSE | EU8: FALSE | EV8: FALSE | EW8: FALSE | EX8: FALSE | EY8: FALSE | EZ8: FALSE | FA8: FALSE | FB8: FALSE | FC8: FALSE | FD8: FALSE | FE8: FALSE | FF8: FALSE | FG8: FALSE | FH8: FALSE | FI8: FALSE | FJ8: FALSE | FK8: FALSE | FL8: FALSE | FM8: FALSE | FN8: =FN7<=$F$8 -> FALSE | FO8: FALSE | FP8: FALSE | FQ8: FALSE | FR8: FALSE | FS8: FALSE | FT8: FALSE | FU8: FALSE | FV8: FALSE | FW8: FALSE | FX8: FALSE | FY8: FALSE | FZ8: FALSE | GA8: FALSE | GB8: FALSE | GC8: FALSE | GD8: FALSE | GE8: FALSE | GF8: FALSE | GG8: FALSE | GH8: FALSE | GI8: FALSE | GJ8: FALSE | GK8: FALSE | GL8: FALSE | GM8: FALSE | GN8: FALSE | GO8: FALSE | GP8: FALSE | GQ8: FALSE | GR8: FALSE | GS8: FALSE | GT8: =GT7<=$F$8 -> FALSE | GU8: FALSE | GV8: FALSE | GW8: FALSE | GX8: FALSE | GY8: FALSE | GZ8: FALSE | HA8: FALSE
D9: Month | E9: Model Period | F9: 1 | G9: 12 | J9: =IF(J8, $F$9, $G$9) -> 1 | K9: 1 | L9: 12 | M9: 12 | N9: 12 | O9: 12 | P9: 12 | Q9: 12 | R9: 12 | S9: 12 | T9: 12 | U9: 12 | V9: 12 | W9: 12 | X9: 12 | Y9: 12 | Z9: 12 | AA9: 12 | AB9: 12 | AC9: 12 | AD9: 12 | AE9: 12 | AF9: 12 | AG9: 12 | AH9: 12 | AI9: 12 | AJ9: 12 | AK9: 12 | AL9: 12 | AM9: 12 | AN9: 12 | AO9: 12 | AP9: =IF(AP8, $F$9, $G$9) -> 12 | AQ9: 12 | AR9: 12 | AS9: 12 | AT9: 12 | AU9: 12 | AV9: 12 | AW9: 12 | AX9: 12 | AY9: 12 | AZ9: 12 | BA9: 12 | BB9: 12 | BC9: 12 | BD9: 12 | BE9: 12 | BF9: 12 | BG9: 12 | BH9: 12 | BI9: 12 | BJ9: 12 | BK9: 12 | BL9: 12 | BM9: 12 | BN9: 12 | BO9: 12 | BP9: 12 | BQ9: 12 | BR9: 12 | BS9: 12 | BT9: 12 | BU9: 12 | BV9: =IF(BV8, $F$9, $G$9) -> 12 | BW9: 12 | BX9: 12 | BY9: 12 | BZ9: 12 | CA9: 12 | CB9: 12 | CC9: 12 | CD9: 12 | CE9: 12 | CF9: 12 | CG9: 12 | CH9: 12 | CI9: 12 | CJ9: 12 | CK9: 12 | CL9: 12 | CM9: 12 | CN9: 12 | CO9: 12 | CP9: 12 | CQ9: 12 | CR9: 12 | CS9: 12 | CT9: 12 | CU9: 12 | CV9: 12 | CW9: 12 | CX9: 12 | CY9: 12 | CZ9: 12 | DA9: 12 | DB9: =IF(DB8, $F$9, $G$9) -> 12 | DC9: 12 | DD9: 12 | DE9: 12 | DF9: 12 | DG9: 12 | DH9: 12 | DI9: 12 | DJ9: 12 | DK9: 12 | DL9: 12 | DM9: 12 | DN9: 12 | DO9: 12 | DP9: 12 | DQ9: 12 | DR9: 12 | DS9: 12 | DT9: 12 | DU9: 12 | DV9: 12 | DW9: 12 | DX9: 12 | DY9: 12 | DZ9: 12 | EA9: 12 | EB9: 12 | EC9: 12 | ED9: 12 | EE9: 12 | EF9: 12 | EG9: 12 | EH9: =IF(EH8, $F$9, $G$9) -> 12 | EI9: 12 | EJ9: 12 | EK9: 12 | EL9: 12 | EM9: 12 | EN9: 12 | EO9: 12 | EP9: 12 | EQ9: 12 | ER9: 12 | ES9: 12 | ET9: 12 | EU9: 12 | EV9: 12 | EW9: 12 | EX9: 12 | EY9: 12 | EZ9: 12 | FA9: 12 | FB9: 12 | FC9: 12 | FD9: 12 | FE9: 12 | FF9: 12 | FG9: 12 | FH9: 12 | FI9: 12 | FJ9: 12 | FK9: 12 | FL9: 12 | FM9: 12 | FN9: =IF(FN8, $F$9, $G$9) -> 12 | FO9: 12 | FP9: 12 | FQ9: 12 | FR9: 12 | FS9: 12 | FT9: 12 | FU9: 12 | FV9: 12 | FW9: 12 | FX9: 12 | FY9: 12 | FZ9: 12 | GA9: 12 | GB9: 12 | GC9: 12 | GD9: 12 | GE9: 12 | GF9: 12 | GG9: 12 | GH9: 12 | GI9: 12 | GJ9: 12 | GK9: 12 | GL9: 12 | GM9: 12 | GN9: 12 | GO9: 12 | GP9: 12 | GQ9: 12 | GR9: 12 | GS9: 12 | GT9: =IF(GT8, $F$9, $G$9) -> 12 | GU9: 12 | GV9: 12 | GW9: 12 | GX9: 12 | GY9: 12 | GZ9: 12 | HA9: 12
B11: Inputs
D13: Development Period | E13: Months | F13: 13 | H13: IRR | I13: =F28 -> 0.07995270789
D14: Construction Period | E14: Months | F14: 30 | H14: MIRR | I14: =#REF! -> 
D15: Development Cost (actual) | E15: EUR | F15: 50000 | H15: Accum Cash | I15: =F43 -> 4527399.514
D16: EPC Cost | E16: EUR | F16: 400000
D17: EBITDA p.a. | E17: EUR | F17: 40000
D18: Re-invesment Rate | E18: % | F18: 0.1
B20: Project Cash Flow Analysis
D22: Development Cost (actual) | E22: EUR | F22: =F15 -> 50000 | G22: =F3 -> 1 | J22: =$F$22/$G$22*J3 -> 50000 | K22: =$F$22/$F$3*K3 -> 0 | L22: 0 | M22: 0 | N22: 0 | O22: 0 | P22: 0 | Q22: 0 | R22: 0 | S22: 0 | T22: 0 | U22: 0 | V22: 0 | W22: 0 | X22: 0 | Y22: 0 | Z22: 0 | AA22: 0 | AB22: 0 | AC22: 0 | AD22: 0 | AE22: 0 | AF22: 0 | AG22: 0 | AH22: 0 | AI22: 0 | AJ22: 0 | AK22: 0 | AL22: 0 | AM22: 0 | AN22: 0 | AO22: 0 | AP22: 0 | AQ22: =$F$22/$F$3*AQ3 -> 0 | AR22: 0 | AS22: 0 | AT22: 0 | AU22: 0 | AV22: 0 | AW22: 0 | AX22: 0 | AY22: 0 | AZ22: 0 | BA22: 0 | BB22: 0 | BC22: 0 | BD22: 0 | BE22: 0 | BF22: 0 | BG22: 0 | BH22: 0 | BI22: 0 | BJ22: 0 | BK22: 0 | BL22: 0 | BM22: 0 | BN22: 0 | BO22: 0 | BP22: 0 | BQ22: 0 | BR22: 0 | BS22: 0 | BT22: 0 | BU22: 0 | BV22: 0 | BW22: =$F$22/$F$3*BW3 -> 0 | BX22: 0 | BY22: 0 | BZ22: 0 | CA22: 0 | CB22: 0 | CC22: 0 | CD22: 0 | CE22: 0 | CF22: 0 | CG22: 0 | CH22: 0 | CI22: 0 | CJ22: 0 | CK22: 0 | CL22: 0 | CM22: 0 | CN22: 0 | CO22: 0 | CP22: 0 | CQ22: 0 | CR22: 0 | CS22: 0 | CT22: 0 | CU22: 0 | CV22: 0 | CW22: 0 | CX22: 0 | CY22: 0 | CZ22: 0 | DA22: 0 | DB22: 0 | DC22: =$F$22/$F$3*DC3 -> 0 | DD22: 0 | DE22: 0 | DF22: 0 | DG22: 0 | DH22: 0 | DI22: 0 | DJ22: 0 | DK22: 0 | DL22: 0 | DM22: 0 | DN22: 0 | DO22: 0 | DP22: 0 | DQ22: 0 | DR22: 0 | DS22: 0 | DT22: 0 | DU22: 0 | DV22: 0 | DW22: 0 | DX22: 0 | DY22: 0 | DZ22: 0 | EA22: 0 | EB22: 0 | EC22: 0 | ED22: 0 | EE22: 0 | EF22: 0 | EG22: 0 | EH22: 0 | EI22: =$F$22/$F$3*EI3 -> 0 | EJ22: 0 | EK22: 0 | EL22: 0 | EM22: 0 | EN22: 0 | EO22: 0 | EP22: 0 | EQ22: 0 | ER22: 0 | ES22: 0 | ET22: 0 | EU22: 0 | EV22: 0 | EW22: 0 | EX22: 0 | EY22: 0 | EZ22: 0 | FA22: 0 | FB22: 0 | FC22: 0 | FD22: 0 | FE22: 0 | FF22: 0 | FG22: 0 | FH22: 0 | FI22: 0 | FJ22: 0 | FK22: 0 | FL22: 0 | FM22: 0 | FN22: 0 | FO22: =$F$22/$F$3*FO3 -> 0 | FP22: 0 | FQ22: 0 | FR22: 0 | FS22: 0 | FT22: 0 | FU22: 0 | FV22: 0 | FW22: 0 | FX22: 0 | FY22: 0 | FZ22: 0 | GA22: 0 | GB22: 0 | GC22: 0 | GD22: 0 | GE22: 0 | GF22: 0 | GG22: 0 | GH22: 0 | GI22: 0 | GJ22: 0 | GK22: 0 | GL22: 0 | GM22: 0 | GN22: 0 | GO22: 0 | GP22: 0 | GQ22: 0 | GR22: 0 | GS22: 0 | GT22: 0 | GU22: =$F$22/$F$3*GU3 -> 0 | GV22: 0 | GW22: 0 | GX22: 0 | GY22: 0 | GZ22: 0 | HA22: 0
D23: EPC cost | E23: EUR | F23: =F16 -> 400000 | J23: =$F$23/$F$4*J4 -> 0 | K23: 400000 | L23: 0 | M23: 0 | N23: 0 | O23: 0 | P23: 0 | Q23: 0 | R23: 0 | S23: 0 | T23: 0 | U23: 0 | V23: 0 | W23: 0 | X23: 0 | Y23: 0 | Z23: 0 | AA23: 0 | AB23: 0 | AC23: 0 | AD23: 0 | AE23: 0 | AF23: 0 | AG23: 0 | AH23: 0 | AI23: 0 | AJ23: 0 | AK23: 0 | AL23: 0 | AM23: 0 | AN23: 0 | AO23: 0 | AP23: =$F$23/$F$4*AP4 -> 0 | AQ23: 0 | AR23: 0 | AS23: 0 | AT23: 0 | AU23: 0 | AV23: 0 | AW23: 0 | AX23: 0 | AY23: 0 | AZ23: 0 | BA23: 0 | BB23: 0 | BC23: 0 | BD23: 0 | BE23: 0 | BF23: 0 | BG23: 0 | BH23: 0 | BI23: 0 | BJ23: 0 | BK23: 0 | BL23: 0 | BM23: 0 | BN23: 0 | BO23: 0 | BP23: 0 | BQ23: 0 | BR23: 0 | BS23: 0 | BT23: 0 | BU23: 0 | BV23: =$F$23/$F$4*BV4 -> 0 | BW23: 0 | BX23: 0 | BY23: 0 | BZ23: 0 | CA23: 0 | CB23: 0 | CC23: 0 | CD23: 0 | CE23: 0 | CF23: 0 | CG23: 0 | CH23: 0 | CI23: 0 | CJ23: 0 | CK23: 0 | CL23: 0 | CM23: 0 | CN23: 0 | CO23: 0 | CP23: 0 | CQ23: 0 | CR23: 0 | CS23: 0 | CT23: 0 | CU23: 0 | CV23: 0 | CW23: 0 | CX23: 0 | CY23: 0 | CZ23: 0 | DA23: 0 | DB23: =$F$23/$F$4*DB4 -> 0 | DC23: 0 | DD23: 0 | DE23: 0 | DF23: 0 | DG23: 0 | DH23: 0 | DI23: 0 | DJ23: 0 | DK23: 0 | DL23: 0 | DM23: 0 | DN23: 0 | DO23: 0 | DP23: 0 | DQ23: 0 | DR23: 0 | DS23: 0 | DT23: 0 | DU23: 0 | DV23: 0 | DW23: 0 | DX23: 0 | DY23: 0 | DZ23: 0 | EA23: 0 | EB23: 0 | EC23: 0 | ED23: 0 | EE23: 0 | EF23: 0 | EG23: 0 | EH23: =$F$23/$F$4*EH4 -> 0 | EI23: 0 | EJ23: 0 | EK23: 0 | EL23: 0 | EM23: 0 | EN23: 0 | EO23: 0 | EP23: 0 | EQ23: 0 | ER23: 0 | ES23: 0 | ET23: 0 | EU23: 0 | EV23: 0 | EW23: 0 | EX23: 0 | EY23: 0 | EZ23: 0 | FA23: 0 | FB23: 0 | FC23: 0 | FD23: 0 | FE23: 0 | FF23: 0 | FG23: 0 | FH23: 0 | FI23: 0 | FJ23: 0 | FK23: 0 | FL23: 0 | FM23: 0 | FN23: =$F$23/$F$4*FN4 -> 0 | FO23: 0 | FP23: 0 | FQ23: 0 | FR23: 0 | FS23: 0 | FT23: 0 | FU23: 0 | FV23: 0 | FW23: 0 | FX23: 0 | FY23: 0 | FZ23: 0 | GA23: 0 | GB23: 0 | GC23: 0 | GD23: 0 | GE23: 0 | GF23: 0 | GG23: 0 | GH23: 0 | GI23: 0 | GJ23: 0 | GK23: 0 | GL23: 0 | GM23: 0 | GN23: 0 | GO23: 0 | GP23: 0 | GQ23: 0 | GR23: 0 | GS23: 0 | GT23: =$F$23/$F$4*GT4 -> 0 | GU23: 0 | GV23: 0 | GW23: 0 | GX23: 0 | GY23: 0 | GZ23: 0 | HA23: 0
D24: EBITDA p.a. | E24: EUR | F24: =F17 -> 40000 | J24: =$F$24*J6 -> 0 | K24: 0 | L24: 40000 | M24: 40000 | N24: 40000 | O24: 40000 | P24: 40000 | Q24: 40000 | R24: 40000 | S24: 40000 | T24: 40000 | U24: 40000 | V24: 40000 | W24: 40000 | X24: 40000 | Y24: 40000 | Z24: 40000 | AA24: 40000 | AB24: 40000 | AC24: 40000 | AD24: 40000 | AE24: 40000 | AF24: 40000 | AG24: 40000 | AH24: 40000 | AI24: 40000 | AJ24: 40000 | AK24: 40000 | AL24: 40000 | AM24: 40000 | AN24: 40000 | AO24: 40000 | AP24: =$F$24*AP6 -> 0 | AQ24: 0 | AR24: 0 | AS24: 0 | AT24: 0 | AU24: 0 | AV24: 0 | AW24: 0 | AX24: 0 | AY24: 0 | AZ24: 0 | BA24: 0 | BB24: 0 | BC24: 0 | BD24: 0 | BE24: 0 | BF24: 0 | BG24: 0 | BH24: 0 | BI24: 0 | BJ24: 0 | BK24: 0 | BL24: 0 | BM24: 0 | BN24: 0 | BO24: 0 | BP24: 0 | BQ24: 0 | BR24: 0 | BS24: 0 | BT24: 0 | BU24: 0 | BV24: =$F$24*BV6 -> 0 | BW24: 0 | BX24: 0 | BY24: 0 | BZ24: 0 | CA24: 0 | CB24: 0 | CC24: 0 | CD24: 0 | CE24: 0 | CF24: 0 | CG24: 0 | CH24: 0 | CI24: 0 | CJ24: 0 | CK24: 0 | CL24: 0 | CM24: 0 | CN24: 0 | CO24: 0 | CP24: 0 | CQ24: 0 | CR24: 0 | CS24: 0 | CT24: 0 | CU24: 0 | CV24: 0 | CW24: 0 | CX24: 0 | CY24: 0 | CZ24: 0 | DA24: 0 | DB24: =$F$24*DB6 -> 0 | DC24: 0 | DD24: 0 | DE24: 0 | DF24: 0 | DG24: 0 | DH24: 0 | DI24: 0 | DJ24: 0 | DK24: 0 | DL24: 0 | DM24: 0 | DN24: 0 | DO24: 0 | DP24: 0 | DQ24: 0 | DR24: 0 | DS24: 0 | DT24: 0 | DU24: 0 | DV24: 0 | DW24: 0 | DX24: 0 | DY24: 0 | DZ24: 0 | EA24: 0 | EB24: 0 | EC24: 0 | ED24: 0 | EE24: 0 | EF24: 0 | EG24: 0 | EH24: =$F$24*EH6 -> 0 | EI24: 0 | EJ24: 0 | EK24: 0 | EL24: 0 | EM24: 0 | EN24: 0 | EO24: 0 | EP24: 0 | EQ24: 0 | ER24: 0 | ES24: 0 | ET24: 0 | EU24: 0 | EV24: 0 | EW24: 0 | EX24: 0 | EY24: 0 | EZ24: 0 | FA24: 0 | FB24: 0 | FC24: 0 | FD24: 0 | FE24: 0 | FF24: 0 | FG24: 0 | FH24: 0 | FI24: 0 | FJ24: 0 | FK24: 0 | FL24: 0 | FM24: 0 | FN24: =$F$24*FN6 -> 0 | FO24: 0 | FP24: 0 | FQ24: 0 | FR24: 0 | FS24: 0 | FT24: 0 | FU24: 0 | FV24: 0 | FW24: 0 | FX24: 0 | FY24: 0 | FZ24: 0 | GA24: 0 | GB24: 0 | GC24: 0 | GD24: 0 | GE24: 0 | GF24: 0 | GG24: 0 | GH24: 0 | GI24: 0 | GJ24: 0 | GK24: 0 | GL24: 0 | GM24: 0 | GN24: 0 | GO24: 0 | GP24: 0 | GQ24: 0 | GR24: 0 | GS24: 0 | GT24: =$F$24*GT6 -> 0 | GU24: 0 | GV24: 0 | GW24: 0 | GX24: 0 | GY24: 0 | GZ24: 0 | HA24: 0
D26: Episoln | E26: EUR | F26: 1e-07 | J26: =F26 -> 1e-07 | K26: =G26 -> 0 | L26: 0 | M26: 0 | N26: 1e-07 | O26: 0 | P26: 0 | Q26: 0 | R26: 1e-07 | S26: 0 | T26: 0 | U26: 0 | V26: 1e-07 | W26: 0 | X26: 0 | Y26: 0 | Z26: 1e-07 | AA26: 0 | AB26: 0 | AC26: 0 | AD26: 1e-07 | AE26: 0 | AF26: 0 | AG26: 0 | AH26: 1e-07 | AI26: 0 | AJ26: 0 | AK26: 0 | AL26: 1e-07 | AM26: 0 | AN26: 0 | AO26: 0 | AP26: 1e-07 | AQ26: 0 | AR26: 0 | AS26: 0 | AT26: 1e-07 | AU26: 0 | AV26: 0 | AW26: 0 | AX26: 1e-07 | AY26: 0 | AZ26: 0 | BA26: 0 | BB26: 1e-07 | BC26: 0 | BD26: 0 | BE26: 0 | BF26: 1e-07 | BG26: 0 | BH26: 0 | BI26: 0 | BJ26: 1e-07 | BK26: 0 | BL26: 0 | BM26: 0 | BN26: 1e-07 | BO26: 0 | BP26: 0 | BQ26: 0 | BR26: 1e-07 | BS26: 0 | BT26: 0 | BU26: 0 | BV26: 1e-07 | BW26: =BS26 -> 0 | BX26: 0 | BY26: 0 | BZ26: 1e-07 | CA26: 0 | CB26: 0 | CC26: 0 | CD26: 1e-07 | CE26: 0 | CF26: 0 | CG26: 0 | CH26: 1e-07 | CI26: 0 | CJ26: 0 | CK26: 0 | CL26: 1e-07 | CM26: 0 | CN26: 0 | CO26: 0 | CP26: 1e-07 | CQ26: 0 | CR26: 0 | CS26: 0 | CT26: 1e-07 | CU26: 0 | CV26: 0 | CW26: 0 | CX26: 1e-07 | CY26: 0 | CZ26: 0 | DA26: 0 | DB26: 1e-07 | DC26: 0 | DD26: 0 | DE26: 0 | DF26: 1e-07 | DG26: 0 | DH26: 0 | DI26: 0 | DJ26: 1e-07 | DK26: 0 | DL26: 0 | DM26: 0 | DN26: 1e-07 | DO26: 0 | DP26: 0 | DQ26: 0 | DR26: 1e-07 | DS26: 0 | DT26: 0 | DU26: 0 | DV26: 1e-07 | DW26: 0 | DX26: 0 | DY26: 0 | DZ26: 1e-07 | EA26: 0 | EB26: 0 | EC26: 0 | ED26: 1e-07 | EE26: 0 | EF26: 0 | EG26: 0 | EH26: 1e-07 | EI26: =EE26 -> 0 | EJ26: 0 | EK26: 0 | EL26: 1e-07 | EM26: 0 | EN26: 0 | EO26: 0 | EP26: 1e-07 | EQ26: 0 | ER26: 0 | ES26: 0 | ET26: 1e-07 | EU26: 0 | EV26: 0 | EW26: 0 | EX26: 1e-07 | EY26: 0 | EZ26: 0 | FA26: 0 | FB26: 1e-07 | FC26: 0 | FD26: 0 | FE26: 0 | FF26: 1e-07 | FG26: 0 | FH26: 0 | FI26: 0 | FJ26: 1e-07 | FK26: 0 | FL26: 0 | FM26: 0 | FN26: 1e-07 | FO26: 0 | FP26: 0 | FQ26: 0 | FR26: 1e-07 | FS26: 0 | FT26: 0 | FU26: 0 | FV26: 1e-07 | FW26: 0 | FX26: 0 | FY26: 0 | FZ26: 1e-07 | GA26: 0 | GB26: 0 | GC26: 0 | GD26: 1e-07 | GE26: 0 | GF26: 0 | GG26: 0 | GH26: 1e-07 | GI26: 0 | GJ26: 0 | GK26: 0 | GL26: 1e-07 | GM26: 0 | GN26: 0 | GO26: 0 | GP26: 1e-07 | GQ26: 0 | GR26: 0 | GS26: 0 | GT26: 1e-07 | GU26: =GQ26 -> 0 | GV26: 0 | GW26: 0 | GX26: 1e-07 | GY26: 0 | GZ26: 0 | HA26: 0
D27: Project Cash Flow | E27: EUR | J27: =J24-J23-J22-J26 -> -50000 | K27: -400000 | L27: 40000 | M27: 40000 | N27: 40000 | O27: 40000 | P27: 40000 | Q27: 40000 | R27: 40000 | S27: 40000 | T27: 40000 | U27: 40000 | V27: 40000 | W27: 40000 | X27: 40000 | Y27: 40000 | Z27: 40000 | AA27: 40000 | AB27: 40000 | AC27: 40000 | AD27: 40000 | AE27: 40000 | AF27: 40000 | AG27: 40000 | AH27: 40000 | AI27: 40000 | AJ27: 40000 | AK27: 40000 | AL27: 40000 | AM27: 40000 | AN27: 40000 | AO27: 40000 | AP27: =AP24-AP23-AP22-AP26 -> -1e-07 | AQ27: 0 | AR27: 0 | AS27: 0 | AT27: -1e-07 | AU27: 0 | AV27: 0 | AW27: 0 | AX27: -1e-07 | AY27: 0 | AZ27: 0 | BA27: 0 | BB27: -1e-07 | BC27: 0 | BD27: 0 | BE27: 0 | BF27: -1e-07 | BG27: 0 | BH27: 0 | BI27: 0 | BJ27: -1e-07 | BK27: 0 | BL27: 0 | BM27: 0 | BN27: -1e-07 | BO27: 0 | BP27: 0 | BQ27: 0 | BR27: -1e-07 | BS27: 0 | BT27: 0 | BU27: 0 | BV27: =BV24-BV23-BV22-BV26 -> -1e-07 | BW27: 0 | BX27: 0 | BY27: 0 | BZ27: -1e-07 | CA27: 0 | CB27: 0 | CC27: 0 | CD27: -1e-07 | CE27: 0 | CF27: 0 | CG27: 0 | CH27: -1e-07 | CI27: 0 | CJ27: 0 | CK27: 0 | CL27: -1e-07 | CM27: 0 | CN27: 0 | CO27: 0 | CP27: -1e-07 | CQ27: 0 | CR27: 0 | CS27: 0 | CT27: -1e-07 | CU27: 0 | CV27: 0 | CW27: 0 | CX27: -1e-07 | CY27: 0 | CZ27: 0 | DA27: 0 | DB27: =DB24-DB23-DB22-DB26 -> -1e-07 | DC27: 0 | DD27: 0 | DE27: 0 | DF27: -1e-07 | DG27: 0 | DH27: 0 | DI27: 0 | DJ27: -1e-07 | DK27: 0 | DL27: 0 | DM27: 0 | DN27: -1e-07 | DO27: 0 | DP27: 0 | DQ27: 0 | DR27: -1e-07 | DS27: 0 | DT27: 0 | DU27: 0 | DV27: -1e-07 | DW27: 0 | DX27: 0 | DY27: 0 | DZ27: -1e-07 | EA27: 0 | EB27: 0 | EC27: 0 | ED27: -1e-07 | EE27: 0 | EF27: 0 | EG27: 0 | EH27: =EH24-EH23-EH22-EH26 -> -1e-07 | EI27: 0 | EJ27: 0 | EK27: 0 | EL27: -1e-07 | EM27: 0 | EN27: 0 | EO27: 0 | EP27: -1e-07 | EQ27: 0 | ER27: 0 | ES27: 0 | ET27: -1e-07 | EU27: 0 | EV27: 0 | EW27: 0 | EX27: -1e-07 | EY27: 0 | EZ27: 0 | FA27: 0 | FB27: -1e-07 | FC27: 0 | FD27: 0 | FE27: 0 | FF27: -1e-07 | FG27: 0 | FH27: 0 | FI27: 0 | FJ27: -1e-07 | FK27: 0 | FL27: 0 | FM27: 0 | FN27: =FN24-FN23-FN22-FN26 -> -1e-07 | FO27: 0 | FP27: 0 | FQ27: 0 | FR27: -1e-07 | FS27: 0 | FT27: 0 | FU27: 0 | FV27: -1e-07 | FW27: 0 | FX27: 0 | FY27: 0 | FZ27: -1e-07 | GA27: 0 | GB27: 0 | GC27: 0 | GD27: -1e-07 | GE27: 0 | GF27: 0 | GG27: 0 | GH27: -1e-07 | GI27: 0 | GJ27: 0 | GK27: 0 | GL27: -1e-07 | GM27: 0 | GN27: 0 | GO27: 0 | GP27: -1e-07 | GQ27: 0 | GR27: 0 | GS27: 0 | GT27: =GT24-GT23-GT22-GT26 -> -1e-07 | GU27: 0 | GV27: 0 | GW27: 0 | GX27: -1e-07 | GY27: 0 | GZ27: 0 | HA27: 0
D28: Project IRR | E28: % | F28: =XIRR(J27:HA27, J2:HA2) -> 0.07995270789
B30: Cash Account - Pre-COD | J30: =J2-I2-1 -> 30 | K30: =K2-J2-1 -> 28 | L30: =L2-K2-1 -> 364 | M30: =M2-L2-1 -> 364 | N30: =N2-M2-1 -> 364 | O30: =O2-N2-1 -> 365 | P30: =P2-O2-1 -> 364 | Q30: =Q2-P2-1 -> 364 | R30: =R2-Q2-1 -> 364 | S30: =S2-R2-1 -> 365 | T30: =T2-S2-1 -> 364 | U30: =U2-T2-1 -> 364 | V30: =V2-U2-1 -> 364 | W30: =W2-V2-1 -> 365 | X30: =X2-W2-1 -> 364 | Y30: =Y2-X2-1 -> 364 | Z30: =Z2-Y2-1 -> 364 | AA30: =AA2-Z2-1 -> 365 | AB30: =AB2-AA2-1 -> 364 | AC30: =AC2-AB2-1 -> 364 | AD30: =AD2-AC2-1 -> 364 | AE30: =AE2-AD2-1 -> 365 | AF30: =AF2-AE2-1 -> 364 | AG30: =AG2-AF2-1 -> 364 | AH30: =AH2-AG2-1 -> 364 | AI30: =AI2-AH2-1 -> 365 | AJ30: =AJ2-AI2-1 -> 364 | AK30: =AK2-AJ2-1 -> 364 | AL30: =AL2-AK2-1 -> 364 | AM30: =AM2-AL2-1 -> 365 | AN30: =AN2-AM2-1 -> 364 | AO30: =AO2-AN2-1 -> 364 | AP30: =AP2-AO2-1 -> 364 | AQ30: =AQ2-AP2-1 -> 365 | AR30: =AR2-AQ2-1 -> 364 | AS30: =AS2-AR2-1 -> 364 | AT30: =AT2-AS2-1 -> 364 | AU30: =AU2-AT2-1 -> 365 | AV30: =AV2-AU2-1 -> 364 | AW30: =AW2-AV2-1 -> 364 | AX30: =AX2-AW2-1 -> 364 | AY30: =AY2-AX2-1 -> 365 | AZ30: =AZ2-AY2-1 -> 364 | BA30: =BA2-AZ2-1 -> 364 | BB30: =BB2-BA2-1 -> 364 | BC30: =BC2-BB2-1 -> 365 | BD30: =BD2-BC2-1 -> 364 | BE30: =BE2-BD2-1 -> 364 | BF30: =BF2-BE2-1 -> 364 | BG30: =BG2-BF2-1 -> 365 | BH30: =BH2-BG2-1 -> 364 | BI30: =BI2-BH2-1 -> 364 | BJ30: =BJ2-BI2-1 -> 364 | BK30: =BK2-BJ2-1 -> 365 | BL30: =BL2-BK2-1 -> 364 | BM30: =BM2-BL2-1 -> 364 | BN30: =BN2-BM2-1 -> 364 | BO30: =BO2-BN2-1 -> 365 | BP30: =BP2-BO2-1 -> 364 | BQ30: =BQ2-BP2-1 -> 364 | BR30: =BR2-BQ2-1 -> 364 | BS30: =BS2-BR2-1 -> 365 | BT30: =BT2-BS2-1 -> 364 | BU30: =BU2-BT2-1 -> 364 | BV30: =BV2-BU2-1 -> 364 | BW30: =BW2-BV2-1 -> 365 | BX30: =BX2-BW2-1 -> 364 | BY30: =BY2-BX2-1 -> 364 | BZ30: =BZ2-BY2-1 -> 364 | CA30: =CA2-BZ2-1 -> 365 | CB30: =CB2-CA2-1 -> 364 | CC30: =CC2-CB2-1 -> 364 | CD30: =CD2-CC2-1 -> 364 | CE30: =CE2-CD2-1 -> 365 | CF30: =CF2-CE2-1 -> 364 | CG30: =CG2-CF2-1 -> 364 | CH30: =CH2-CG2-1 -> 364 | CI30: =CI2-CH2-1 -> 365 | CJ30: =CJ2-CI2-1 -> 364 | CK30: =CK2-CJ2-1 -> 364 | CL30: =CL2-CK2-1 -> 364 | CM30: =CM2-CL2-1 -> 364 | CN30: =CN2-CM2-1 -> 364 | CO30: =CO2-CN2-1 -> 364 | CP30: =CP2-CO2-1 -> 364 | CQ30: =CQ2-CP2-1 -> 365 | CR30: =CR2-CQ2-1 -> 364 | CS30: =CS2-CR2-1 -> 364 | CT30: =CT2-CS2-1 -> 364 | CU30: =CU2-CT2-1 -> 365 | CV30: =CV2-CU2-1 -> 364 | CW30: =CW2-CV2-1 -> 364 | CX30: =CX2-CW2-1 -> 364 | CY30: =CY2-CX2-1 -> 365 | CZ30: =CZ2-CY2-1 -> 364 | DA30: =DA2-CZ2-1 -> 364 | DB30: =DB2-DA2-1 -> 364 | DC30: =DC2-DB2-1 -> 365 | DD30: =DD2-DC2-1 -> 364 | DE30: =DE2-DD2-1 -> 364 | DF30: =DF2-DE2-1 -> 364 | DG30: =DG2-DF2-1 -> 365 | DH30: =DH2-DG2-1 -> 364 | DI30: =DI2-DH2-1 -> 364 | DJ30: =DJ2-DI2-1 -> 364 | DK30: =DK2-DJ2-1 -> 365 | DL30: =DL2-DK2-1 -> 364 | DM30: =DM2-DL2-1 -> 364 | DN30: =DN2-DM2-1 -> 364 | DO30: =DO2-DN2-1 -> 365 | DP30: =DP2-DO2-1 -> 364 | DQ30: =DQ2-DP2-1 -> 364 | DR30: =DR2-DQ2-1 -> 364 | DS30: =DS2-DR2-1 -> 365 | DT30: =DT2-DS2-1 -> 364 | DU30: =DU2-DT2-1 -> 364 | DV30: =DV2-DU2-1 -> 364 | DW30: =DW2-DV2-1 -> 365 | DX30: =DX2-DW2-1 -> 364 | DY30: =DY2-DX2-1 -> 364 | DZ30: =DZ2-DY2-1 -> 364 | EA30: =EA2-DZ2-1 -> 365 | EB30: =EB2-EA2-1 -> 364 | EC30: =EC2-EB2-1 -> 364 | ED30: =ED2-EC2-1 -> 364 | EE30: =EE2-ED2-1 -> 365 | EF30: =EF2-EE2-1 -> 364 | EG30: =EG2-EF2-1 -> 364 | EH30: =EH2-EG2-1 -> 364 | EI30: =EI2-EH2-1 -> 365 | EJ30: =EJ2-EI2-1 -> 364 | EK30: =EK2-EJ2-1 -> 364 | EL30: =EL2-EK2-1 -> 364 | EM30: =EM2-EL2-1 -> 365 | EN30: =EN2-EM2-1 -> 364 | EO30: =EO2-EN2-1 -> 364 | EP30: =EP2-EO2-1 -> 364 | EQ30: =EQ2-EP2-1 -> 365 | ER30: =ER2-EQ2-1 -> 364 | ES30: =ES2-ER2-1 -> 364 | ET30: =ET2-ES2-1 -> 364 | EU30: =EU2-ET2-1 -> 365 | EV30: =EV2-EU2-1 -> 364 | EW30: =EW2-EV2-1 -> 364 | EX30: =EX2-EW2-1 -> 364 | EY30: =EY2-EX2-1 -> 365 | EZ30: =EZ2-EY2-1 -> 364 | FA30: =FA2-EZ2-1 -> 364 | FB30: =FB2-FA2-1 -> 364 | FC30: =FC2-FB2-1 -> 365 | FD30: =FD2-FC2-1 -> 364 | FE30: =FE2-FD2-1 -> 364 | FF30: =FF2-FE2-1 -> 364 | FG30: =FG2-FF2-1 -> 365 | FH30: =FH2-FG2-1 -> 364 | FI30: =FI2-FH2-1 -> 364 | FJ30: =FJ2-FI2-1 -> 364 | FK30: =FK2-FJ2-1 -> 365 | FL30: =FL2-FK2-1 -> 364 | FM30: =FM2-FL2-1 -> 364 | FN30: =FN2-FM2-1 -> 364 | FO30: =FO2-FN2-1 -> 365 | FP30: =FP2-FO2-1 -> 364 | FQ30: =FQ2-FP2-1 -> 364 | FR30: =FR2-FQ2-1 -> 364 | FS30: =FS2-FR2-1 -> 365 | FT30: =FT2-FS2-1 -> 364 | FU30: =FU2-FT2-1 -> 364 | FV30: =FV2-FU2-1 -> 364 | FW30: =FW2-FV2-1 -> 365 | FX30: =FX2-FW2-1 -> 364 | FY30: =FY2-FX2-1 -> 364 | FZ30: =FZ2-FY2-1 -> 364 | GA30: =GA2-FZ2-1 -> 365 | GB30: =GB2-GA2-1 -> 364 | GC30: =GC2-GB2-1 -> 364 | GD30: =GD2-GC2-1 -> 364 | GE30: =GE2-GD2-1 -> 365 | GF30: =GF2-GE2-1 -> 364 | GG30: =GG2-GF2-1 -> 364 | GH30: =GH2-GG2-1 -> 364 | GI30: =GI2-GH2-1 -> 364 | GJ30: =GJ2-GI2-1 -> 364 | GK30: =GK2-GJ2-1 -> 364 | GL30: =GL2-GK2-1 -> 364 | GM30: =GM2-GL2-1 -> 365 | GN30: =GN2-GM2-1 -> 364 | GO30: =GO2-GN2-1 -> 364 | GP30: =GP2-GO2-1 -> 364 | GQ30: =GQ2-GP2-1 -> 365 | GR30: =GR2-GQ2-1 -> 364 | GS30: =GS2-GR2-1 -> 364 | GT30: =GT2-GS2-1 -> 364 | GU30: =GU2-GT2-1 -> 365 | GV30: =GV2-GU2-1 -> 364 | GW30: =GW2-GV2-1 -> 364 | GX30: =GX2-GW2-1 -> 364 | GY30: =GY2-GX2-1 -> 365 | GZ30: =GZ2-GY2-1 -> 364 | HA30: =HA2-GZ2-1 -> 364
D31: Openining Balance | E31: EUR | J31: =I34 -> 0 | K31: =J34 -> -50000 | L31: -450321.5179 | M31: -450321.5179 | N31: -450321.5179 | O31: -450321.5179 | P31: -450321.5179 | Q31: -450321.5179 | R31: -450321.5179 | S31: -450321.5179 | T31: -450321.5179 | U31: -450321.5179 | V31: -450321.5179 | W31: -450321.5179 | X31: -450321.5179 | Y31: -450321.5179 | Z31: -450321.5179 | AA31: -450321.5179 | AB31: -450321.5179 | AC31: -450321.5179 | AD31: -450321.5179 | AE31: -450321.5179 | AF31: -450321.5179 | AG31: -450321.5179 | AH31: -450321.5179 | AI31: -450321.5179 | AJ31: -450321.5179 | AK31: -450321.5179 | AL31: -450321.5179 | AM31: -450321.5179 | AN31: -450321.5179 | AO31: -450321.5179 | AP31: -450321.5179 | AQ31: -450321.5179 | AR31: -450321.5179 | AS31: -450321.5179 | AT31: -450321.5179 | AU31: -450321.5179 | AV31: -450321.5179 | AW31: -450321.5179 | AX31: -450321.5179 | AY31: -450321.5179 | AZ31: -450321.5179 | BA31: -450321.5179 | BB31: -450321.5179 | BC31: -450321.5179 | BD31: -450321.5179 | BE31: -450321.5179 | BF31: -450321.5179 | BG31: -450321.5179 | BH31: -450321.5179 | BI31: -450321.5179 | BJ31: -450321.5179 | BK31: -450321.5179 | BL31: -450321.5179 | BM31: -450321.5179 | BN31: -450321.5179 | BO31: -450321.5179 | BP31: -450321.5179 | BQ31: -450321.5179 | BR31: -450321.5179 | BS31: -450321.5179 | BT31: -450321.5179 | BU31: -450321.5179 | BV31: -450321.5179 | BW31: =BV34 -> -450321.5179 | BX31: -450321.5179 | BY31: -450321.5179 | BZ31: -450321.5179 | CA31: -450321.5179 | CB31: -450321.5179 | CC31: -450321.5179 | CD31: -450321.5179 | CE31: -450321.5179 | CF31: -450321.5179 | CG31: -450321.5179 | CH31: -450321.5179 | CI31: -450321.5179 | CJ31: -450321.5179 | CK31: -450321.5179 | CL31: -450321.5179 | CM31: -450321.5179 | CN31: -450321.5179 | CO31: -450321.5179 | CP31: -450321.5179 | CQ31: -450321.5179 | CR31: -450321.5179 | CS31: -450321.5179 | CT31: -450321.5179 | CU31: -450321.5179 | CV31: -450321.5179 | CW31: -450321.5179 | CX31: -450321.5179 | CY31: -450321.5179 | CZ31: -450321.5179 | DA31: -450321.5179 | DB31: -450321.5179 | DC31: -450321.5179 | DD31: -450321.5179 | DE31: -450321.5179 | DF31: -450321.5179 | DG31: -450321.5179 | DH31: -450321.5179 | DI31: -450321.5179 | DJ31: -450321.5179 | DK31: -450321.5179 | DL31: -450321.5179 | DM31: -450321.5179 | DN31: -450321.5179 | DO31: -450321.5179 | DP31: -450321.5179 | DQ31: -450321.5179 | DR31: -450321.5179 | DS31: -450321.5179 | DT31: -450321.5179 | DU31: -450321.5179 | DV31: -450321.5179 | DW31: -450321.5179 | DX31: -450321.5179 | DY31: -450321.5179 | DZ31: -450321.5179 | EA31: -450321.5179 | EB31: -450321.5179 | EC31: -450321.5179 | ED31: -450321.5179 | EE31: -450321.5179 | EF31: -450321.5179 | EG31: -450321.5179 | EH31: -450321.5179 | EI31: =EH34 -> -450321.5179 | EJ31: -450321.5179 | EK31: -450321.5179 | EL31: -450321.5179 | EM31: -450321.5179 | EN31: -450321.5179 | EO31: -450321.5179 | EP31: -450321.5179 | EQ31: -450321.5179 | ER31: -450321.5179 | ES31: -450321.5179 | ET31: -450321.5179 | EU31: -450321.5179 | EV31: -450321.5179 | EW31: -450321.5179 | EX31: -450321.5179 | EY31: -450321.5179 | EZ31: -450321.5179 | FA31: -450321.5179 | FB31: -450321.5179 | FC31: -450321.5179 | FD31: -450321.5179 | FE31: -450321.5179 | FF31: -450321.5179 | FG31: -450321.5179 | FH31: -450321.5179 | FI31: -450321.5179 | FJ31: -450321.5179 | FK31: -450321.5179 | FL31: -450321.5179 | FM31: -450321.5179 | FN31: -450321.5179 | FO31: -450321.5179 | FP31: -450321.5179 | FQ31: -450321.5179 | FR31: -450321.5179 | FS31: -450321.5179 | FT31: -450321.5179 | FU31: -450321.5179 | FV31: -450321.5179 | FW31: -450321.5179 | FX31: -450321.5179 | FY31: -450321.5179 | FZ31: -450321.5179 | GA31: -450321.5179 | GB31: -450321.5179 | GC31: -450321.5179 | GD31: -450321.5179 | GE31: -450321.5179 | GF31: -450321.5179 | GG31: -450321.5179 | GH31: -450321.5179 | GI31: -450321.5179 | GJ31: -450321.5179 | GK31: -450321.5179 | GL31: -450321.5179 | GM31: -450321.5179 | GN31: -450321.5179 | GO31: -450321.5179 | GP31: -450321.5179 | GQ31: -450321.5179 | GR31: -450321.5179 | GS31: -450321.5179 | GT31: -450321.5179 | GU31: =GT34 -> -450321.5179 | GV31: -450321.5179 | GW31: -450321.5179 | GX31: -450321.5179 | GY31: -450321.5179 | GZ31: -450321.5179 | HA31: -450321.5179
D32: Re-investment/Opportunity Cost | E32: EUR | F32: =(1+F28)^(1/12)-1 -> 0.006430357475 | J32: =J31*$F$32*J8 -> 0 | K32: =K31*$F$32*K8 -> -321.5178738 | L32: =L31*$F$32*L8 -> 0 | M32: =M31*$F$32*M8 -> 0 | N32: =N31*$F$32*N8 -> 0 | O32: =O31*$F$32*O8 -> 0 | P32: =P31*$F$32*P8 -> 0 | Q32: =Q31*$F$32*Q8 -> 0 | R32: =R31*$F$32*R8 -> 0 | S32: =S31*$F$32*S8 -> 0 | T32: =T31*$F$32*T8 -> 0 | U32: =U31*$F$32*U8 -> 0 | V32: =V31*$F$32*V8 -> 0 | W32: =W31*$F$32*W8 -> 0 | X32: =X31*$F$32*X8 -> 0 | Y32: =Y31*$F$32*Y8 -> 0 | Z32: =Z31*$F$32*Z8 -> 0 | AA32: =AA31*$F$32*AA8 -> 0 | AB32: =AB31*$F$32*AB8 -> 0 | AC32: =AC31*$F$32*AC8 -> 0 | AD32: =AD31*$F$32*AD8 -> 0 | AE32: =AE31*$F$32*AE8 -> 0 | AF32: =AF31*$F$32*AF8 -> 0 | AG32: =AG31*$F$32*AG8 -> 0 | AH32: =AH31*$F$32*AH8 -> 0 | AI32: =AI31*$F$32*AI8 -> 0 | AJ32: =AJ31*$F$32*AJ8 -> 0 | AK32: =AK31*$F$32*AK8 -> 0 | AL32: =AL31*$F$32*AL8 -> 0 | AM32: =AM31*$F$32*AM8 -> 0 | AN32: =AN31*$F$32*AN8 -> 0 | AO32: =AO31*$F$32*AO8 -> 0 | AP32: =AP31*$F$32*AP8 -> 0 | AQ32: =AQ31*$F$32*AQ8 -> 0 | AR32: =AR31*$F$32*AR8 -> 0 | AS32: =AS31*$F$32*AS8 -> 0 | AT32: =AT31*$F$32*AT8 -> 0 | AU32: =AU31*$F$32*AU8 -> 0 | AV32: =AV31*$F$32*AV8 -> 0 | AW32: =AW31*$F$32*AW8 -> 0 | AX32: =AX31*$F$32*AX8 -> 0 | AY32: =AY31*$F$32*AY8 -> 0 | AZ32: =AZ31*$F$32*AZ8 -> 0 | BA32: =BA31*$F$32*BA8 -> 0 | BB32: =BB31*$F$32*BB8 -> 0 | BC32: =BC31*$F$32*BC8 -> 0 | BD32: =BD31*$F$32*BD8 -> 0 | BE32: =BE31*$F$32*BE8 -> 0 | BF32: =BF31*$F$32*BF8 -> 0 | BG32: =BG31*$F$32*BG8 -> 0 | BH32: =BH31*$F$32*BH8 -> 0 | BI32: =BI31*$F$32*BI8 -> 0 | BJ32: =BJ31*$F$32*BJ8 -> 0 | BK32: =BK31*$F$32*BK8 -> 0 | BL32: =BL31*$F$32*BL8 -> 0 | BM32: =BM31*$F$32*BM8 -> 0 | BN32: =BN31*$F$32*BN8 -> 0 | BO32: =BO31*$F$32*BO8 -> 0 | BP32: =BP31*$F$32*BP8 -> 0 | BQ32: =BQ31*$F$32*BQ8 -> 0 | BR32: =BR31*$F$32*BR8 -> 0 | BS32: =BS31*$F$32*BS8 -> 0 | BT32: =BT31*$F$32*BT8 -> 0 | BU32: =BU31*$F$32*BU8 -> 0 | BV32: =BV31*$F$32*BV8 -> 0 | BW32: =BW31*$F$32*BW8 -> 0 | BX32: =BX31*$F$32*BX8 -> 0 | BY32: =BY31*$F$32*BY8 -> 0 | BZ32: =BZ31*$F$32*BZ8 -> 0 | CA32: =CA31*$F$32*CA8 -> 0 | CB32: =CB31*$F$32*CB8 -> 0 | CC32: =CC31*$F$32*CC8 -> 0 | CD32: =CD31*$F$32*CD8 -> 0 | CE32: =CE31*$F$32*CE8 -> 0 | CF32: =CF31*$F$32*CF8 -> 0 | CG32: =CG31*$F$32*CG8 -> 0 | CH32: =CH31*$F$32*CH8 -> 0 | CI32: =CI31*$F$32*CI8 -> 0 | CJ32: =CJ31*$F$32*CJ8 -> 0 | CK32: =CK31*$F$32*CK8 -> 0 | CL32: =CL31*$F$32*CL8 -> 0 | CM32: =CM31*$F$32*CM8 -> 0 | CN32: =CN31*$F$32*CN8 -> 0 | CO32: =CO31*$F$32*CO8 -> 0 | CP32: =CP31*$F$32*CP8 -> 0 | CQ32: =CQ31*$F$32*CQ8 -> 0 | CR32: =CR31*$F$32*CR8 -> 0 | CS32: =CS31*$F$32*CS8 -> 0 | CT32: =CT31*$F$32*CT8 -> 0 | CU32: =CU31*$F$32*CU8 -> 0 | CV32: =CV31*$F$32*CV8 -> 0 | CW32: =CW31*$F$32*CW8 -> 0 | CX32: =CX31*$F$32*CX8 -> 0 | CY32: =CY31*$F$32*CY8 -> 0 | CZ32: =CZ31*$F$32*CZ8 -> 0 | DA32: =DA31*$F$32*DA8 -> 0 | DB32: =DB31*$F$32*DB8 -> 0 | DC32: =DC31*$F$32*DC8 -> 0 | DD32: =DD31*$F$32*DD8 -> 0 | DE32: =DE31*$F$32*DE8 -> 0 | DF32: =DF31*$F$32*DF8 -> 0 | DG32: =DG31*$F$32*DG8 -> 0 | DH32: =DH31*$F$32*DH8 -> 0 | DI32: =DI31*$F$32*DI8 -> 0 | DJ32: =DJ31*$F$32*DJ8 -> 0 | DK32: =DK31*$F$32*DK8 -> 0 | DL32: =DL31*$F$32*DL8 -> 0 | DM32: =DM31*$F$32*DM8 -> 0 | DN32: =DN31*$F$32*DN8 -> 0 | DO32: =DO31*$F$32*DO8 -> 0 | DP32: =DP31*$F$32*DP8 -> 0 | DQ32: =DQ31*$F$32*DQ8 -> 0 | DR32: =DR31*$F$32*DR8 -> 0 | DS32: =DS31*$F$32*DS8 -> 0 | DT32: =DT31*$F$32*DT8 -> 0 | DU32: =DU31*$F$32*DU8 -> 0 | DV32: =DV31*$F$32*DV8 -> 0 | DW32: =DW31*$F$32*DW8 -> 0 | DX32: =DX31*$F$32*DX8 -> 0 | DY32: =DY31*$F$32*DY8 -> 0 | DZ32: =DZ31*$F$32*DZ8 -> 0 | EA32: =EA31*$F$32*EA8 -> 0 | EB32: =EB31*$F$32*EB8 -> 0 | EC32: =EC31*$F$32*EC8 -> 0 | ED32: =ED31*$F$32*ED8 -> 0 | EE32: =EE31*$F$32*EE8 -> 0 | EF32: =EF31*$F$32*EF8 -> 0 | EG32: =EG31*$F$32*EG8 -> 0 | EH32: =EH31*$F$32*EH8 -> 0 | EI32: =EI31*$F$32*EI8 -> 0 | EJ32: =EJ31*$F$32*EJ8 -> 0 | EK32: =EK31*$F$32*EK8 -> 0 | EL32: =EL31*$F$32*EL8 -> 0 | EM32: =EM31*$F$32*EM8 -> 0 | EN32: =EN31*$F$32*EN8 -> 0 | EO32: =EO31*$F$32*EO8 -> 0 | EP32: =EP31*$F$32*EP8 -> 0 | EQ32: =EQ31*$F$32*EQ8 -> 0 | ER32: =ER31*$F$32*ER8 -> 0 | ES32: =ES31*$F$32*ES8 -> 0 | ET32: =ET31*$F$32*ET8 -> 0 | EU32: =EU31*$F$32*EU8 -> 0 | EV32: =EV31*$F$32*EV8 -> 0 | EW32: =EW31*$F$32*EW8 -> 0 | EX32: =EX31*$F$32*EX8 -> 0 | EY32: =EY31*$F$32*EY8 -> 0 | EZ32: =EZ31*$F$32*EZ8 -> 0 | FA32: =FA31*$F$32*FA8 -> 0 | FB32: =FB31*$F$32*FB8 -> 0 | FC32: =FC31*$F$32*FC8 -> 0 | FD32: =FD31*$F$32*FD8 -> 0 | FE32: =FE31*$F$32*FE8 -> 0 | FF32: =FF31*$F$32*FF8 -> 0 | FG32: =FG31*$F$32*FG8 -> 0 | FH32: =FH31*$F$32*FH8 -> 0 | FI32: =FI31*$F$32*FI8 -> 0 | FJ32: =FJ31*$F$32*FJ8 -> 0 | FK32: =FK31*$F$32*FK8 -> 0 | FL32: =FL31*$F$32*FL8 -> 0 | FM32: =FM31*$F$32*FM8 -> 0 | FN32: =FN31*$F$32*FN8 -> 0 | FO32: =FO31*$F$32*FO8 -> 0 | FP32: =FP31*$F$32*FP8 -> 0 | FQ32: =FQ31*$F$32*FQ8 -> 0 | FR32: =FR31*$F$32*FR8 -> 0 | FS32: =FS31*$F$32*FS8 -> 0 | FT32: =FT31*$F$32*FT8 -> 0 | FU32: =FU31*$F$32*FU8 -> 0 | FV32: =FV31*$F$32*FV8 -> 0 | FW32: =FW31*$F$32*FW8 -> 0 | FX32: =FX31*$F$32*FX8 -> 0 | FY32: =FY31*$F$32*FY8 -> 0 | FZ32: =FZ31*$F$32*FZ8 -> 0 | GA32: =GA31*$F$32*GA8 -> 0 | GB32: =GB31*$F$32*GB8 -> 0 | GC32: =GC31*$F$32*GC8 -> 0 | GD32: =GD31*$F$32*GD8 -> 0 | GE32: =GE31*$F$32*GE8 -> 0 | GF32: =GF31*$F$32*GF8 -> 0 | GG32: =GG31*$F$32*GG8 -> 0 | GH32: =GH31*$F$32*GH8 -> 0 | GI32: =GI31*$F$32*GI8 -> 0 | GJ32: =GJ31*$F$32*GJ8 -> 0 | GK32: =GK31*$F$32*GK8 -> 0 | GL32: =GL31*$F$32*GL8 -> 0 | GM32: =GM31*$F$32*GM8 -> 0 | GN32: =GN31*$F$32*GN8 -> 0 | GO32: =GO31*$F$32*GO8 -> 0 | GP32: =GP31*$F$32*GP8 -> 0 | GQ32: =GQ31*$F$32*GQ8 -> 0 | GR32: =GR31*$F$32*GR8 -> 0 | GS32: =GS31*$F$32*GS8 -> 0 | GT32: =GT31*$F$32*GT8 -> 0 | GU32: =GU31*$F$32*GU8 -> 0 | GV32: =GV31*$F$32*GV8 -> 0 | GW32: =GW31*$F$32*GW8 -> 0 | GX32: =GX31*$F$32*GX8 -> 0 | GY32: =GY31*$F$32*GY8 -> 0 | GZ32: =GZ31*$F$32*GZ8 -> 0 | HA32: =HA31*$F$32*HA8 -> 0
D33: Cash Flow Invested/Received | E33: EUR | J33: =J27*J8 -> -50000 | K33: =K27*K8 -> -400000 | L33: =L27*L8 -> 0 | M33: =M27*M8 -> 0 | N33: =N27*N8 -> 0 | O33: =O27*O8 -> 0 | P33: =P27*P8 -> 0 | Q33: =Q27*Q8 -> 0 | R33: =R27*R8 -> 0 | S33: =S27*S8 -> 0 | T33: =T27*T8 -> 0 | U33: =U27*U8 -> 0 | V33: =V27*V8 -> 0 | W33: =W27*W8 -> 0 | X33: =X27*X8 -> 0 | Y33: =Y27*Y8 -> 0 | Z33: =Z27*Z8 -> 0 | AA33: =AA27*AA8 -> 0 | AB33: =AB27*AB8 -> 0 | AC33: =AC27*AC8 -> 0 | AD33: =AD27*AD8 -> 0 | AE33: =AE27*AE8 -> 0 | AF33: =AF27*AF8 -> 0 | AG33: =AG27*AG8 -> 0 | AH33: =AH27*AH8 -> 0 | AI33: =AI27*AI8 -> 0 | AJ33: =AJ27*AJ8 -> 0 | AK33: =AK27*AK8 -> 0 | AL33: =AL27*AL8 -> 0 | AM33: =AM27*AM8 -> 0 | AN33: =AN27*AN8 -> 0 | AO33: =AO27*AO8 -> 0 | AP33: =AP27*AP8 -> 0 | AQ33: =AQ27*AQ8 -> 0 | AR33: =AR27*AR8 -> 0 | AS33: =AS27*AS8 -> 0 | AT33: =AT27*AT8 -> 0 | AU33: =AU27*AU8 -> 0 | AV33: =AV27*AV8 -> 0 | AW33: =AW27*AW8 -> 0 | AX33: =AX27*AX8 -> 0 | AY33: =AY27*AY8 -> 0 | AZ33: =AZ27*AZ8 -> 0 | BA33: =BA27*BA8 -> 0 | BB33: =BB27*BB8 -> 0 | BC33: =BC27*BC8 -> 0 | BD33: =BD27*BD8 -> 0 | BE33: =BE27*BE8 -> 0 | BF33: =BF27*BF8 -> 0 | BG33: =BG27*BG8 -> 0 | BH33: =BH27*BH8 -> 0 | BI33: =BI27*BI8 -> 0 | BJ33: =BJ27*BJ8 -> 0 | BK33: =BK27*BK8 -> 0 | BL33: =BL27*BL8 -> 0 | BM33: =BM27*BM8 -> 0 | BN33: =BN27*BN8 -> 0 | BO33: =BO27*BO8 -> 0 | BP33: =BP27*BP8 -> 0 | BQ33: =BQ27*BQ8 -> 0 | BR33: =BR27*BR8 -> 0 | BS33: =BS27*BS8 -> 0 | BT33: =BT27*BT8 -> 0 | BU33: =BU27*BU8 -> 0 | BV33: =BV27*BV8 -> 0 | BW33: =BW27*BW8 -> 0 | BX33: =BX27*BX8 -> 0 | BY33: =BY27*BY8 -> 0 | BZ33: =BZ27*BZ8 -> 0 | CA33: =CA27*CA8 -> 0 | CB33: =CB27*CB8 -> 0 | CC33: =CC27*CC8 -> 0 | CD33: =CD27*CD8 -> 0 | CE33: =CE27*CE8 -> 0 | CF33: =CF27*CF8 -> 0 | CG33: =CG27*CG8 -> 0 | CH33: =CH27*CH8 -> 0 | CI33: =CI27*CI8 -> 0 | CJ33: =CJ27*CJ8 -> 0 | CK33: =CK27*CK8 -> 0 | CL33: =CL27*CL8 -> 0 | CM33: =CM27*CM8 -> 0 | CN33: =CN27*CN8 -> 0 | CO33: =CO27*CO8 -> 0 | CP33: =CP27*CP8 -> 0 | CQ33: =CQ27*CQ8 -> 0 | CR33: =CR27*CR8 -> 0 | CS33: =CS27*CS8 -> 0 | CT33: =CT27*CT8 -> 0 | CU33: =CU27*CU8 -> 0 | CV33: =CV27*CV8 -> 0 | CW33: =CW27*CW8 -> 0 | CX33: =CX27*CX8 -> 0 | CY33: =CY27*CY8 -> 0 | CZ33: =CZ27*CZ8 -> 0 | DA33: =DA27*DA8 -> 0 | DB33: =DB27*DB8 -> 0 | DC33: =DC27*DC8 -> 0 | DD33: =DD27*DD8 -> 0 | DE33: =DE27*DE8 -> 0 | DF33: =DF27*DF8 -> 0 | DG33: =DG27*DG8 -> 0 | DH33: =DH27*DH8 -> 0 | DI33: =DI27*DI8 -> 0 | DJ33: =DJ27*DJ8 -> 0 | DK33: =DK27*DK8 -> 0 | DL33: =DL27*DL8 -> 0 | DM33: =DM27*DM8 -> 0 | DN33: =DN27*DN8 -> 0 | DO33: =DO27*DO8 -> 0 | DP33: =DP27*DP8 -> 0 | DQ33: =DQ27*DQ8 -> 0 | DR33: =DR27*DR8 -> 0 | DS33: =DS27*DS8 -> 0 | DT33: =DT27*DT8 -> 0 | DU33: =DU27*DU8 -> 0 | DV33: =DV27*DV8 -> 0 | DW33: =DW27*DW8 -> 0 | DX33: =DX27*DX8 -> 0 | DY33: =DY27*DY8 -> 0 | DZ33: =DZ27*DZ8 -> 0 | EA33: =EA27*EA8 -> 0 | EB33: =EB27*EB8 -> 0 | EC33: =EC27*EC8 -> 0 | ED33: =ED27*ED8 -> 0 | EE33: =EE27*EE8 -> 0 | EF33: =EF27*EF8 -> 0 | EG33: =EG27*EG8 -> 0 | EH33: =EH27*EH8 -> 0 | EI33: =EI27*EI8 -> 0 | EJ33: =EJ27*EJ8 -> 0 | EK33: =EK27*EK8 -> 0 | EL33: =EL27*EL8 -> 0 | EM33: =EM27*EM8 -> 0 | EN33: =EN27*EN8 -> 0 | EO33: =EO27*EO8 -> 0 | EP33: =EP27*EP8 -> 0 | EQ33: =EQ27*EQ8 -> 0 | ER33: =ER27*ER8 -> 0 | ES33: =ES27*ES8 -> 0 | ET33: =ET27*ET8 -> 0 | EU33: =EU27*EU8 -> 0 | EV33: =EV27*EV8 -> 0 | EW33: =EW27*EW8 -> 0 | EX33: =EX27*EX8 -> 0 | EY33: =EY27*EY8 -> 0 | EZ33: =EZ27*EZ8 -> 0 | FA33: =FA27*FA8 -> 0 | FB33: =FB27*FB8 -> 0 | FC33: =FC27*FC8 -> 0 | FD33: =FD27*FD8 -> 0 | FE33: =FE27*FE8 -> 0 | FF33: =FF27*FF8 -> 0 | FG33: =FG27*FG8 -> 0 | FH33: =FH27*FH8 -> 0 | FI33: =FI27*FI8 -> 0 | FJ33: =FJ27*FJ8 -> 0 | FK33: =FK27*FK8 -> 0 | FL33: =FL27*FL8 -> 0 | FM33: =FM27*FM8 -> 0 | FN33: =FN27*FN8 -> 0 | FO33: =FO27*FO8 -> 0 | FP33: =FP27*FP8 -> 0 | FQ33: =FQ27*FQ8 -> 0 | FR33: =FR27*FR8 -> 0 | FS33: =FS27*FS8 -> 0 | FT33: =FT27*FT8 -> 0 | FU33: =FU27*FU8 -> 0 | FV33: =FV27*FV8 -> 0 | FW33: =FW27*FW8 -> 0 | FX33: =FX27*FX8 -> 0 | FY33: =FY27*FY8 -> 0 | FZ33: =FZ27*FZ8 -> 0 | GA33: =GA27*GA8 -> 0 | GB33: =GB27*GB8 -> 0 | GC33: =GC27*GC8 -> 0 | GD33: =GD27*GD8 -> 0 | GE33: =GE27*GE8 -> 0 | GF33: =GF27*GF8 -> 0 | GG33: =GG27*GG8 -> 0 | GH33: =GH27*GH8 -> 0 | GI33: =GI27*GI8 -> 0 | GJ33: =GJ27*GJ8 -> 0 | GK33: =GK27*GK8 -> 0 | GL33: =GL27*GL8 -> 0 | GM33: =GM27*GM8 -> 0 | GN33: =GN27*GN8 -> 0 | GO33: =GO27*GO8 -> 0 | GP33: =GP27*GP8 -> 0 | GQ33: =GQ27*GQ8 -> 0 | GR33: =GR27*GR8 -> 0 | GS33: =GS27*GS8 -> 0 | GT33: =GT27*GT8 -> 0 | GU33: =GU27*GU8 -> 0 | GV33: =GV27*GV8 -> 0 | GW33: =GW27*GW8 -> 0 | GX33: =GX27*GX8 -> 0 | GY33: =GY27*GY8 -> 0 | GZ33: =GZ27*GZ8 -> 0 | HA33: =HA27*HA8 -> 0
D34: Closing Balance | E34: EUR | J34: =J31+J32+J33 -> -50000 | K34: =K31+K32+K33 -> -450321.5179 | L34: -450321.5179 | M34: -450321.5179 | N34: -450321.5179 | O34: -450321.5179 | P34: -450321.5179 | Q34: -450321.5179 | R34: -450321.5179 | S34: -450321.5179 | T34: -450321.5179 | U34: -450321.5179 | V34: -450321.5179 | W34: -450321.5179 | X34: -450321.5179 | Y34: -450321.5179 | Z34: -450321.5179 | AA34: -450321.5179 | AB34: -450321.5179 | AC34: -450321.5179 | AD34: -450321.5179 | AE34: -450321.5179 | AF34: -450321.5179 | AG34: -450321.5179 | AH34: -450321.5179 | AI34: -450321.5179 | AJ34: -450321.5179 | AK34: -450321.5179 | AL34: -450321.5179 | AM34: -450321.5179 | AN34: -450321.5179 | AO34: -450321.5179 | AP34: -450321.5179 | AQ34: -450321.5179 | AR34: -450321.5179 | AS34: -450321.5179 | AT34: -450321.5179 | AU34: -450321.5179 | AV34: -450321.5179 | AW34: -450321.5179 | AX34: -450321.5179 | AY34: -450321.5179 | AZ34: -450321.5179 | BA34: -450321.5179 | BB34: -450321.5179 | BC34: -450321.5179 | BD34: -450321.5179 | BE34: -450321.5179 | BF34: -450321.5179 | BG34: -450321.5179 | BH34: -450321.5179 | BI34: -450321.5179 | BJ34: -450321.5179 | BK34: -450321.5179 | BL34: -450321.5179 | BM34: -450321.5179 | BN34: -450321.5179 | BO34: -450321.5179 | BP34: -450321.5179 | BQ34: -450321.5179 | BR34: -450321.5179 | BS34: -450321.5179 | BT34: -450321.5179 | BU34: -450321.5179 | BV34: -450321.5179 | BW34: =BW31+BW32+BW33 -> -450321.5179 | BX34: -450321.5179 | BY34: -450321.5179 | BZ34: -450321.5179 | CA34: -450321.5179 | CB34: -450321.5179 | CC34: -450321.5179 | CD34: -450321.5179 | CE34: -450321.5179 | CF34: -450321.5179 | CG34: -450321.5179 | CH34: -450321.5179 | CI34: -450321.5179 | CJ34: -450321.5179 | CK34: -450321.5179 | CL34: -450321.5179 | CM34: -450321.5179 | CN34: -450321.5179 | CO34: -450321.5179 | CP34: -450321.5179 | CQ34: -450321.5179 | CR34: -450321.5179 | CS34: -450321.5179 | CT34: -450321.5179 | CU34: -450321.5179 | CV34: -450321.5179 | CW34: -450321.5179 | CX34: -450321.5179 | CY34: -450321.5179 | CZ34: -450321.5179 | DA34: -450321.5179 | DB34: -450321.5179 | DC34: -450321.5179 | DD34: -450321.5179 | DE34: -450321.5179 | DF34: -450321.5179 | DG34: -450321.5179 | DH34: -450321.5179 | DI34: -450321.5179 | DJ34: -450321.5179 | DK34: -450321.5179 | DL34: -450321.5179 | DM34: -450321.5179 | DN34: -450321.5179 | DO34: -450321.5179 | DP34: -450321.5179 | DQ34: -450321.5179 | DR34: -450321.5179 | DS34: -450321.5179 | DT34: -450321.5179 | DU34: -450321.5179 | DV34: -450321.5179 | DW34: -450321.5179 | DX34: -450321.5179 | DY34: -450321.5179 | DZ34: -450321.5179 | EA34: -450321.5179 | EB34: -450321.5179 | EC34: -450321.5179 | ED34: -450321.5179 | EE34: -450321.5179 | EF34: -450321.5179 | EG34: -450321.5179 | EH34: -450321.5179 | EI34: =EI31+EI32+EI33 -> -450321.5179 | EJ34: -450321.5179 | EK34: -450321.5179 | EL34: -450321.5179 | EM34: -450321.5179 | EN34: -450321.5179 | EO34: -450321.5179 | EP34: -450321.5179 | EQ34: -450321.5179 | ER34: -450321.5179 | ES34: -450321.5179 | ET34: -450321.5179 | EU34: -450321.5179 | EV34: -450321.5179 | EW34: -450321.5179 | EX34: -450321.5179 | EY34: -450321.5179 | EZ34: -450321.5179 | FA34: -450321.5179 | FB34: -450321.5179 | FC34: -450321.5179 | FD34: -450321.5179 | FE34: -450321.5179 | FF34: -450321.5179 | FG34: -450321.5179 | FH34: -450321.5179 | FI34: -450321.5179 | FJ34: -450321.5179 | FK34: -450321.5179 | FL34: -450321.5179 | FM34: -450321.5179 | FN34: -450321.5179 | FO34: -450321.5179 | FP34: -450321.5179 | FQ34: -450321.5179 | FR34: -450321.5179 | FS34: -450321.5179 | FT34: -450321.5179 | FU34: -450321.5179 | FV34: -450321.5179 | FW34: -450321.5179 | FX34: -450321.5179 | FY34: -450321.5179 | FZ34: -450321.5179 | GA34: -450321.5179 | GB34: -450321.5179 | GC34: -450321.5179 | GD34: -450321.5179 | GE34: -450321.5179 | GF34: -450321.5179 | GG34: -450321.5179 | GH34: -450321.5179 | GI34: -450321.5179 | GJ34: -450321.5179 | GK34: -450321.5179 | GL34: -450321.5179 | GM34: -450321.5179 | GN34: -450321.5179 | GO34: -450321.5179 | GP34: -450321.5179 | GQ34: -450321.5179 | GR34: -450321.5179 | GS34: -450321.5179 | GT34: -450321.5179 | GU34: =GU31+GU32+GU33 -> -450321.5179 | GV34: -450321.5179 | GW34: -450321.5179 | GX34: -450321.5179 | GY34: -450321.5179 | GZ34: -450321.5179 | HA34: -450321.5179
D36: Cash Account - Post COD
D37: Opening Balance | E37: EUR | J37: =I40 -> 0 | K37: =J40 -> 0 | L37: 0 | M37: 40000 | N37: 83198.10832 | O37: 129850.0224 | P37: 180231.8833 | Q37: 234641.9104 | R37: 293402.1665 | S37: 356860.4642 | T37: 425392.4247 | U37: 499403.7009 | V37: 579332.3792 | W37: 665651.5716 | X37: 758872.2173 | Y37: 859546.106 | Z37: 968269.1447 | AA37: 1085684.885 | AB37: 1212488.331 | AC37: 1349430.057 | AD37: 1497320.644 | AE37: 1657035.484 | AF37: 1829519.958 | AG37: 2015795.033 | AH37: 2216963.304 | AI37: 2434215.523 | AJ37: 2668837.646 | AK37: 2922218.443 | AL37: 3195857.72 | AM37: 3491375.199 | AN37: 3810520.101 | AO37: 4155181.501 | AP37: 4527399.514 | AQ37: 4527399.514 | AR37: 4527399.514 | AS37: 4527399.514 | AT37: 4527399.514 | AU37: 4527399.514 | AV37: 4527399.514 | AW37: 4527399.514 | AX37: 4527399.514 | AY37: 4527399.514 | AZ37: 4527399.514 | BA37: 4527399.514 | BB37: 4527399.514 | BC37: 4527399.514 | BD37: 4527399.514 | BE37: 4527399.514 | BF37: 4527399.514 | BG37: 4527399.514 | BH37: 4527399.514 | BI37: 4527399.514 | BJ37: 4527399.514 | BK37: 4527399.514 | BL37: 4527399.514 | BM37: 4527399.514 | BN37: 4527399.514 | BO37: 4527399.514 | BP37: 4527399.514 | BQ37: 4527399.514 | BR37: 4527399.514 | BS37: 4527399.514 | BT37: 4527399.514 | BU37: 4527399.514 | BV37: 4527399.514 | BW37: =BV40 -> 4527399.514 | BX37: 4527399.514 | BY37: 4527399.514 | BZ37: 4527399.514 | CA37: 4527399.514 | CB37: 4527399.514 | CC37: 4527399.514 | CD37: 4527399.514 | CE37: 4527399.514 | CF37: 4527399.514 | CG37: 4527399.514 | CH37: 4527399.514 | CI37: 4527399.514 | CJ37: 4527399.514 | CK37: 4527399.514 | CL37: 4527399.514 | CM37: 4527399.514 | CN37: 4527399.514 | CO37: 4527399.514 | CP37: 4527399.514 | CQ37: 4527399.514 | CR37: 4527399.514 | CS37: 4527399.514 | CT37: 4527399.514 | CU37: 4527399.514 | CV37: 4527399.514 | CW37: 4527399.514 | CX37: 4527399.514 | CY37: 4527399.514 | CZ37: 4527399.514 | DA37: 4527399.514 | DB37: 4527399.514 | DC37: 4527399.514 | DD37: 4527399.514 | DE37: 4527399.514 | DF37: 4527399.514 | DG37: 4527399.514 | DH37: 4527399.514 | DI37: 4527399.514 | DJ37: 4527399.514 | DK37: 4527399.514 | DL37: 4527399.514 | DM37: 4527399.514 | DN37: 4527399.514 | DO37: 4527399.514 | DP37: 4527399.514 | DQ37: 4527399.514 | DR37: 4527399.514 | DS37: 4527399.514 | DT37: 4527399.514 | DU37: 4527399.514 | DV37: 4527399.514 | DW37: 4527399.514 | DX37: 4527399.514 | DY37: 4527399.514 | DZ37: 4527399.514 | EA37: 4527399.514 | EB37: 4527399.514 | EC37: 4527399.514 | ED37: 4527399.514 | EE37: 4527399.514 | EF37: 4527399.514 | EG37: 4527399.514 | EH37: 4527399.514 | EI37: =EH40 -> 4527399.514 | EJ37: 4527399.514 | EK37: 4527399.514 | EL37: 4527399.514 | EM37: 4527399.514 | EN37: 4527399.514 | EO37: 4527399.514 | EP37: 4527399.514 | EQ37: 4527399.514 | ER37: 4527399.514 | ES37: 4527399.514 | ET37: 4527399.514 | EU37: 4527399.514 | EV37: 4527399.514 | EW37: 4527399.514 | EX37: 4527399.514 | EY37: 4527399.514 | EZ37: 4527399.514 | FA37: 4527399.514 | FB37: 4527399.514 | FC37: 4527399.514 | FD37: 4527399.514 | FE37: 4527399.514 | FF37: 4527399.514 | FG37: 4527399.514 | FH37: 4527399.514 | FI37: 4527399.514 | FJ37: 4527399.514 | FK37: 4527399.514 | FL37: 4527399.514 | FM37: 4527399.514 | FN37: 4527399.514 | FO37: 4527399.514 | FP37: 4527399.514 | FQ37: 4527399.514 | FR37: 4527399.514 | FS37: 4527399.514 | FT37: 4527399.514 | FU37: 4527399.514 | FV37: 4527399.514 | FW37: 4527399.514 | FX37: 4527399.514 | FY37: 4527399.514 | FZ37: 4527399.514 | GA37: 4527399.514 | GB37: 4527399.514 | GC37: 4527399.514 | GD37: 4527399.514 | GE37: 4527399.514 | GF37: 4527399.514 | GG37: 4527399.514 | GH37: 4527399.514 | GI37: 4527399.514 | GJ37: 4527399.514 | GK37: 4527399.514 | GL37: 4527399.514 | GM37: 4527399.514 | GN37: 4527399.514 | GO37: 4527399.514 | GP37: 4527399.514 | GQ37: 4527399.514 | GR37: 4527399.514 | GS37: 4527399.514 | GT37: 4527399.514 | GU37: =GT40 -> 4527399.514 | GV37: 4527399.514 | GW37: 4527399.514 | GX37: 4527399.514 | GY37: 4527399.514 | GZ37: 4527399.514 | HA37: 4527399.514
D38: Add: Re-investment Income | E38: EUR | F38: =F28 -> 0.07995270789 | J38: =J37*$F$38*J6 -> 0 | K38: =K37*$F$38*K6 -> 0 | L38: =L37*$F$38*L6 -> 0 | M38: =M37*$F$38*M6 -> 3198.108315 | N38: =N37*$F$38*N6 -> 6651.914051 | O38: =O37*$F$38*O6 -> 10381.86091 | P38: =P37*$F$38*P6 -> 14410.02712 | Q38: =Q37*$F$38*Q6 -> 18760.25612 | R38: =R37*$F$38*R6 -> 23458.29771 | S38: =S37*$F$38*S6 -> 28531.96045 | T38: =T37*$F$38*T6 -> 34011.27627 | U38: =U37*$F$38*U6 -> 39928.67822 | V38: =V37*$F$38*V6 -> 46319.19248 | W38: =W37*$F$38*W6 -> 53220.64566 | X38: =X37*$F$38*X6 -> 60673.88871 | Y38: =Y37*$F$38*Y6 -> 68723.03873 | Z38: =Z37*$F$38*Z6 -> 77415.74009 | AA38: =AA37*$F$38*AA6 -> 86803.44645 | AB38: =AB37*$F$38*AB6 -> 96941.72537 | AC38: =AC37*$F$38*AC6 -> 107890.5871 | AD38: =AD37*$F$38*AD6 -> 119714.84 | AE38: =AE37*$F$38*AE6 -> 132484.474 | AF38: =AF37*$F$38*AF6 -> 146275.0748 | AG38: =AG37*$F$38*AG6 -> 161168.2714 | AH38: =AH37*$F$38*AH6 -> 177252.2194 | AI38: =AI37*$F$38*AI6 -> 194622.1227 | AJ38: =AJ37*$F$38*AJ6 -> 213380.7967 | AK38: =AK37*$F$38*AK6 -> 233639.2775 | AL38: =AL37*$F$38*AL6 -> 255517.4788 | AM38: =AM37*$F$38*AM6 -> 279144.9014 | AN38: =AN37*$F$38*AN6 -> 304661.4005 | AO38: =AO37*$F$38*AO6 -> 332218.0128 | AP38: =AP37*$F$38*AP6 -> 0 | AQ38: =AQ37*$F$38*AQ6 -> 0 | AR38: =AR37*$F$38*AR6 -> 0 | AS38: =AS37*$F$38*AS6 -> 0 | AT38: =AT37*$F$38*AT6 -> 0 | AU38: =AU37*$F$38*AU6 -> 0 | AV38: =AV37*$F$38*AV6 -> 0 | AW38: =AW37*$F$38*AW6 -> 0 | AX38: =AX37*$F$38*AX6 -> 0 | AY38: =AY37*$F$38*AY6 -> 0 | AZ38: =AZ37*$F$38*AZ6 -> 0 | BA38: =BA37*$F$38*BA6 -> 0 | BB38: =BB37*$F$38*BB6 -> 0 | BC38: =BC37*$F$38*BC6 -> 0 | BD38: =BD37*$F$38*BD6 -> 0 | BE38: =BE37*$F$38*BE6 -> 0 | BF38: =BF37*$F$38*BF6 -> 0 | BG38: =BG37*$F$38*BG6 -> 0 | BH38: =BH37*$F$38*BH6 -> 0 | BI38: =BI37*$F$38*BI6 -> 0 | BJ38: =BJ37*$F$38*BJ6 -> 0 | BK38: =BK37*$F$38*BK6 -> 0 | BL38: =BL37*$F$38*BL6 -> 0 | BM38: =BM37*$F$38*BM6 -> 0 | BN38: =BN37*$F$38*BN6 -> 0 | BO38: =BO37*$F$38*BO6 -> 0 | BP38: =BP37*$F$38*BP6 -> 0 | BQ38: =BQ37*$F$38*BQ6 -> 0 | BR38: =BR37*$F$38*BR6 -> 0 | BS38: =BS37*$F$38*BS6 -> 0 | BT38: =BT37*$F$38*BT6 -> 0 | BU38: =BU37*$F$38*BU6 -> 0 | BV38: =BV37*$F$38*BV6 -> 0 | BW38: =BW37*$F$38*BW6 -> 0 | BX38: =BX37*$F$38*BX6 -> 0 | BY38: =BY37*$F$38*BY6 -> 0 | BZ38: =BZ37*$F$38*BZ6 -> 0 | CA38: =CA37*$F$38*CA6 -> 0 | CB38: =CB37*$F$38*CB6 -> 0 | CC38: =CC37*$F$38*CC6 -> 0 | CD38: =CD37*$F$38*CD6 -> 0 | CE38: =CE37*$F$38*CE6 -> 0 | CF38: =CF37*$F$38*CF6 -> 0 | CG38: =CG37*$F$38*CG6 -> 0 | CH38: =CH37*$F$38*CH6 -> 0 | CI38: =CI37*$F$38*CI6 -> 0 | CJ38: =CJ37*$F$38*CJ6 -> 0 | CK38: =CK37*$F$38*CK6 -> 0 | CL38: =CL37*$F$38*CL6 -> 0 | CM38: =CM37*$F$38*CM6 -> 0 | CN38: =CN37*$F$38*CN6 -> 0 | CO38: =CO37*$F$38*CO6 -> 0 | CP38: =CP37*$F$38*CP6 -> 0 | CQ38: =CQ37*$F$38*CQ6 -> 0 | CR38: =CR37*$F$38*CR6 -> 0 | CS38: =CS37*$F$38*CS6 -> 0 | CT38: =CT37*$F$38*CT6 -> 0 | CU38: =CU37*$F$38*CU6 -> 0 | CV38: =CV37*$F$38*CV6 -> 0 | CW38: =CW37*$F$38*CW6 -> 0 | CX38: =CX37*$F$38*CX6 -> 0 | CY38: =CY37*$F$38*CY6 -> 0 | CZ38: =CZ37*$F$38*CZ6 -> 0 | DA38: =DA37*$F$38*DA6 -> 0 | DB38: =DB37*$F$38*DB6 -> 0 | DC38: =DC37*$F$38*DC6 -> 0 | DD38: =DD37*$F$38*DD6 -> 0 | DE38: =DE37*$F$38*DE6 -> 0 | DF38: =DF37*$F$38*DF6 -> 0 | DG38: =DG37*$F$38*DG6 -> 0 | DH38: =DH37*$F$38*DH6 -> 0 | DI38: =DI37*$F$38*DI6 -> 0 | DJ38: =DJ37*$F$38*DJ6 -> 0 | DK38: =DK37*$F$38*DK6 -> 0 | DL38: =DL37*$F$38*DL6 -> 0 | DM38: =DM37*$F$38*DM6 -> 0 | DN38: =DN37*$F$38*DN6 -> 0 | DO38: =DO37*$F$38*DO6 -> 0 | DP38: =DP37*$F$38*DP6 -> 0 | DQ38: =DQ37*$F$38*DQ6 -> 0 | DR38: =DR37*$F$38*DR6 -> 0 | DS38: =DS37*$F$38*DS6 -> 0 | DT38: =DT37*$F$38*DT6 -> 0 | DU38: =DU37*$F$38*DU6 -> 0 | DV38: =DV37*$F$38*DV6 -> 0 | DW38: =DW37*$F$38*DW6 -> 0 | DX38: =DX37*$F$38*DX6 -> 0 | DY38: =DY37*$F$38*DY6 -> 0 | DZ38: =DZ37*$F$38*DZ6 -> 0 | EA38: =EA37*$F$38*EA6 -> 0 | EB38: =EB37*$F$38*EB6 -> 0 | EC38: =EC37*$F$38*EC6 -> 0 | ED38: =ED37*$F$38*ED6 -> 0 | EE38: =EE37*$F$38*EE6 -> 0 | EF38: =EF37*$F$38*EF6 -> 0 | EG38: =EG37*$F$38*EG6 -> 0 | EH38: =EH37*$F$38*EH6 -> 0 | EI38: =EI37*$F$38*EI6 -> 0 | EJ38: =EJ37*$F$38*EJ6 -> 0 | EK38: =EK37*$F$38*EK6 -> 0 | EL38: =EL37*$F$38*EL6 -> 0 | EM38: =EM37*$F$38*EM6 -> 0 | EN38: =EN37*$F$38*EN6 -> 0 | EO38: =EO37*$F$38*EO6 -> 0 | EP38: =EP37*$F$38*EP6 -> 0 | EQ38: =EQ37*$F$38*EQ6 -> 0 | ER38: =ER37*$F$38*ER6 -> 0 | ES38: =ES37*$F$38*ES6 -> 0 | ET38: =ET37*$F$38*ET6 -> 0 | EU38: =EU37*$F$38*EU6 -> 0 | EV38: =EV37*$F$38*EV6 -> 0 | EW38: =EW37*$F$38*EW6 -> 0 | EX38: =EX37*$F$38*EX6 -> 0 | EY38: =EY37*$F$38*EY6 -> 0 | EZ38: =EZ37*$F$38*EZ6 -> 0 | FA38: =FA37*$F$38*FA6 -> 0 | FB38: =FB37*$F$38*FB6 -> 0 | FC38: =FC37*$F$38*FC6 -> 0 | FD38: =FD37*$F$38*FD6 -> 0 | FE38: =FE37*$F$38*FE6 -> 0 | FF38: =FF37*$F$38*FF6 -> 0 | FG38: =FG37*$F$38*FG6 -> 0 | FH38: =FH37*$F$38*FH6 -> 0 | FI38: =FI37*$F$38*FI6 -> 0 | FJ38: =FJ37*$F$38*FJ6 -> 0 | FK38: =FK37*$F$38*FK6 -> 0 | FL38: =FL37*$F$38*FL6 -> 0 | FM38: =FM37*$F$38*FM6 -> 0 | FN38: =FN37*$F$38*FN6 -> 0 | FO38: =FO37*$F$38*FO6 -> 0 | FP38: =FP37*$F$38*FP6 -> 0 | FQ38: =FQ37*$F$38*FQ6 -> 0 | FR38: =FR37*$F$38*FR6 -> 0 | FS38: =FS37*$F$38*FS6 -> 0 | FT38: =FT37*$F$38*FT6 -> 0 | FU38: =FU37*$F$38*FU6 -> 0 | FV38: =FV37*$F$38*FV6 -> 0 | FW38: =FW37*$F$38*FW6 -> 0 | FX38: =FX37*$F$38*FX6 -> 0 | FY38: =FY37*$F$38*FY6 -> 0 | FZ38: =FZ37*$F$38*FZ6 -> 0 | GA38: =GA37*$F$38*GA6 -> 0 | GB38: =GB37*$F$38*GB6 -> 0 | GC38: =GC37*$F$38*GC6 -> 0 | GD38: =GD37*$F$38*GD6 -> 0 | GE38: =GE37*$F$38*GE6 -> 0 | GF38: =GF37*$F$38*GF6 -> 0 | GG38: =GG37*$F$38*GG6 -> 0 | GH38: =GH37*$F$38*GH6 -> 0 | GI38: =GI37*$F$38*GI6 -> 0 | GJ38: =GJ37*$F$38*GJ6 -> 0 | GK38: =GK37*$F$38*GK6 -> 0 | GL38: =GL37*$F$38*GL6 -> 0 | GM38: =GM37*$F$38*GM6 -> 0 | GN38: =GN37*$F$38*GN6 -> 0 | GO38: =GO37*$F$38*GO6 -> 0 | GP38: =GP37*$F$38*GP6 -> 0 | GQ38: =GQ37*$F$38*GQ6 -> 0 | GR38: =GR37*$F$38*GR6 -> 0 | GS38: =GS37*$F$38*GS6 -> 0 | GT38: =GT37*$F$38*GT6 -> 0 | GU38: =GU37*$F$38*GU6 -> 0 | GV38: =GV37*$F$38*GV6 -> 0 | GW38: =GW37*$F$38*GW6 -> 0 | GX38: =GX37*$F$38*GX6 -> 0 | GY38: =GY37*$F$38*GY6 -> 0 | GZ38: =GZ37*$F$38*GZ6 -> 0 | HA38: =HA37*$F$38*HA6 -> 0
D39: Add: Cash Flow | E39: EUR | J39: =J27*J6 -> 0 | K39: =K27*K6 -> 0 | L39: =L27*L6 -> 40000 | M39: =M27*M6 -> 40000 | N39: =N27*N6 -> 40000 | O39: =O27*O6 -> 40000 | P39: =P27*P6 -> 40000 | Q39: =Q27*Q6 -> 40000 | R39: =R27*R6 -> 40000 | S39: =S27*S6 -> 40000 | T39: =T27*T6 -> 40000 | U39: =U27*U6 -> 40000 | V39: =V27*V6 -> 40000 | W39: =W27*W6 -> 40000 | X39: =X27*X6 -> 40000 | Y39: =Y27*Y6 -> 40000 | Z39: =Z27*Z6 -> 40000 | AA39: =AA27*AA6 -> 40000 | AB39: =AB27*AB6 -> 40000 | AC39: =AC27*AC6 -> 40000 | AD39: =AD27*AD6 -> 40000 | AE39: =AE27*AE6 -> 40000 | AF39: =AF27*AF6 -> 40000 | AG39: =AG27*AG6 -> 40000 | AH39: =AH27*AH6 -> 40000 | AI39: =AI27*AI6 -> 40000 | AJ39: =AJ27*AJ6 -> 40000 | AK39: =AK27*AK6 -> 40000 | AL39: =AL27*AL6 -> 40000 | AM39: =AM27*AM6 -> 40000 | AN39: =AN27*AN6 -> 40000 | AO39: =AO27*AO6 -> 40000 | AP39: =AP27*AP6 -> 0 | AQ39: =AQ27*AQ6 -> 0 | AR39: =AR27*AR6 -> 0 | AS39: =AS27*AS6 -> 0 | AT39: =AT27*AT6 -> 0 | AU39: =AU27*AU6 -> 0 | AV39: =AV27*AV6 -> 0 | AW39: =AW27*AW6 -> 0 | AX39: =AX27*AX6 -> 0 | AY39: =AY27*AY6 -> 0 | AZ39: =AZ27*AZ6 -> 0 | BA39: =BA27*BA6 -> 0 | BB39: =BB27*BB6 -> 0 | BC39: =BC27*BC6 -> 0 | BD39: =BD27*BD6 -> 0 | BE39: =BE27*BE6 -> 0 | BF39: =BF27*BF6 -> 0 | BG39: =BG27*BG6 -> 0 | BH39: =BH27*BH6 -> 0 | BI39: =BI27*BI6 -> 0 | BJ39: =BJ27*BJ6 -> 0 | BK39: =BK27*BK6 -> 0 | BL39: =BL27*BL6 -> 0 | BM39: =BM27*BM6 -> 0 | BN39: =BN27*BN6 -> 0 | BO39: =BO27*BO6 -> 0 | BP39: =BP27*BP6 -> 0 | BQ39: =BQ27*BQ6 -> 0 | BR39: =BR27*BR6 -> 0 | BS39: =BS27*BS6 -> 0 | BT39: =BT27*BT6 -> 0 | BU39: =BU27*BU6 -> 0 | BV39: =BV27*BV6 -> 0 | BW39: =BW27*BW6 -> 0 | BX39: =BX27*BX6 -> 0 | BY39: =BY27*BY6 -> 0 | BZ39: =BZ27*BZ6 -> 0 | CA39: =CA27*CA6 -> 0 | CB39: =CB27*CB6 -> 0 | CC39: =CC27*CC6 -> 0 | CD39: =CD27*CD6 -> 0 | CE39: =CE27*CE6 -> 0 | CF39: =CF27*CF6 -> 0 | CG39: =CG27*CG6 -> 0 | CH39: =CH27*CH6 -> 0 | CI39: =CI27*CI6 -> 0 | CJ39: =CJ27*CJ6 -> 0 | CK39: =CK27*CK6 -> 0 | CL39: =CL27*CL6 -> 0 | CM39: =CM27*CM6 -> 0 | CN39: =CN27*CN6 -> 0 | CO39: =CO27*CO6 -> 0 | CP39: =CP27*CP6 -> 0 | CQ39: =CQ27*CQ6 -> 0 | CR39: =CR27*CR6 -> 0 | CS39: =CS27*CS6 -> 0 | CT39: =CT27*CT6 -> 0 | CU39: =CU27*CU6 -> 0 | CV39: =CV27*CV6 -> 0 | CW39: =CW27*CW6 -> 0 | CX39: =CX27*CX6 -> 0 | CY39: =CY27*CY6 -> 0 | CZ39: =CZ27*CZ6 -> 0 | DA39: =DA27*DA6 -> 0 | DB39: =DB27*DB6 -> 0 | DC39: =DC27*DC6 -> 0 | DD39: =DD27*DD6 -> 0 | DE39: =DE27*DE6 -> 0 | DF39: =DF27*DF6 -> 0 | DG39: =DG27*DG6 -> 0 | DH39: =DH27*DH6 -> 0 | DI39: =DI27*DI6 -> 0 | DJ39: =DJ27*DJ6 -> 0 | DK39: =DK27*DK6 -> 0 | DL39: =DL27*DL6 -> 0 | DM39: =DM27*DM6 -> 0 | DN39: =DN27*DN6 -> 0 | DO39: =DO27*DO6 -> 0 | DP39: =DP27*DP6 -> 0 | DQ39: =DQ27*DQ6 -> 0 | DR39: =DR27*DR6 -> 0 | DS39: =DS27*DS6 -> 0 | DT39: =DT27*DT6 -> 0 | DU39: =DU27*DU6 -> 0 | DV39: =DV27*DV6 -> 0 | DW39: =DW27*DW6 -> 0 | DX39: =DX27*DX6 -> 0 | DY39: =DY27*DY6 -> 0 | DZ39: =DZ27*DZ6 -> 0 | EA39: =EA27*EA6 -> 0 | EB39: =EB27*EB6 -> 0 | EC39: =EC27*EC6 -> 0 | ED39: =ED27*ED6 -> 0 | EE39: =EE27*EE6 -> 0 | EF39: =EF27*EF6 -> 0 | EG39: =EG27*EG6 -> 0 | EH39: =EH27*EH6 -> 0 | EI39: =EI27*EI6 -> 0 | EJ39: =EJ27*EJ6 -> 0 | EK39: =EK27*EK6 -> 0 | EL39: =EL27*EL6 -> 0 | EM39: =EM27*EM6 -> 0 | EN39: =EN27*EN6 -> 0 | EO39: =EO27*EO6 -> 0 | EP39: =EP27*EP6 -> 0 | EQ39: =EQ27*EQ6 -> 0 | ER39: =ER27*ER6 -> 0 | ES39: =ES27*ES6 -> 0 | ET39: =ET27*ET6 -> 0 | EU39: =EU27*EU6 -> 0 | EV39: =EV27*EV6 -> 0 | EW39: =EW27*EW6 -> 0 | EX39: =EX27*EX6 -> 0 | EY39: =EY27*EY6 -> 0 | EZ39: =EZ27*EZ6 -> 0 | FA39: =FA27*FA6 -> 0 | FB39: =FB27*FB6 -> 0 | FC39: =FC27*FC6 -> 0 | FD39: =FD27*FD6 -> 0 | FE39: =FE27*FE6 -> 0 | FF39: =FF27*FF6 -> 0 | FG39: =FG27*FG6 -> 0 | FH39: =FH27*FH6 -> 0 | FI39: =FI27*FI6 -> 0 | FJ39: =FJ27*FJ6 -> 0 | FK39: =FK27*FK6 -> 0 | FL39: =FL27*FL6 -> 0 | FM39: =FM27*FM6 -> 0 | FN39: =FN27*FN6 -> 0 | FO39: =FO27*FO6 -> 0 | FP39: =FP27*FP6 -> 0 | FQ39: =FQ27*FQ6 -> 0 | FR39: =FR27*FR6 -> 0 | FS39: =FS27*FS6 -> 0 | FT39: =FT27*FT6 -> 0 | FU39: =FU27*FU6 -> 0 | FV39: =FV27*FV6 -> 0 | FW39: =FW27*FW6 -> 0 | FX39: =FX27*FX6 -> 0 | FY39: =FY27*FY6 -> 0 | FZ39: =FZ27*FZ6 -> 0 | GA39: =GA27*GA6 -> 0 | GB39: =GB27*GB6 -> 0 | GC39: =GC27*GC6 -> 0 | GD39: =GD27*GD6 -> 0 | GE39: =GE27*GE6 -> 0 | GF39: =GF27*GF6 -> 0 | GG39: =GG27*GG6 -> 0 | GH39: =GH27*GH6 -> 0 | GI39: =GI27*GI6 -> 0 | GJ39: =GJ27*GJ6 -> 0 | GK39: =GK27*GK6 -> 0 | GL39: =GL27*GL6 -> 0 | GM39: =GM27*GM6 -> 0 | GN39: =GN27*GN6 -> 0 | GO39: =GO27*GO6 -> 0 | GP39: =GP27*GP6 -> 0 | GQ39: =GQ27*GQ6 -> 0 | GR39: =GR27*GR6 -> 0 | GS39: =GS27*GS6 -> 0 | GT39: =GT27*GT6 -> 0 | GU39: =GU27*GU6 -> 0 | GV39: =GV27*GV6 -> 0 | GW39: =GW27*GW6 -> 0 | GX39: =GX27*GX6 -> 0 | GY39: =GY27*GY6 -> 0 | GZ39: =GZ27*GZ6 -> 0 | HA39: =HA27*HA6 -> 0
D40: Closing Balance | E40: EUR | J40: =J37+J38+J39 -> 0 | K40: =K37+K38+K39 -> 0 | L40: 40000 | M40: 83198.10832 | N40: 129850.0224 | O40: 180231.8833 | P40: 234641.9104 | Q40: 293402.1665 | R40: 356860.4642 | S40: 425392.4247 | T40: 499403.7009 | U40: 579332.3792 | V40: 665651.5716 | W40: 758872.2173 | X40: 859546.106 | Y40: 968269.1447 | Z40: 1085684.885 | AA40: 1212488.331 | AB40: 1349430.057 | AC40: 1497320.644 | AD40: 1657035.484 | AE40: 1829519.958 | AF40: 2015795.033 | AG40: 2216963.304 | AH40: 2434215.523 | AI40: 2668837.646 | AJ40: 2922218.443 | AK40: 3195857.72 | AL40: 3491375.199 | AM40: 3810520.101 | AN40: 4155181.501 | AO40: 4527399.514 | AP40: 4527399.514 | AQ40: 4527399.514 | AR40: 4527399.514 | AS40: 4527399.514 | AT40: 4527399.514 | AU40: 4527399.514 | AV40: 4527399.514 | AW40: 4527399.514 | AX40: 4527399.514 | AY40: 4527399.514 | AZ40: 4527399.514 | BA40: 4527399.514 | BB40: 4527399.514 | BC40: 4527399.514 | BD40: 4527399.514 | BE40: 4527399.514 | BF40: 4527399.514 | BG40: 4527399.514 | BH40: 4527399.514 | BI40: 4527399.514 | BJ40: 4527399.514 | BK40: 4527399.514 | BL40: 4527399.514 | BM40: 4527399.514 | BN40: 4527399.514 | BO40: 4527399.514 | BP40: 4527399.514 | BQ40: 4527399.514 | BR40: 4527399.514 | BS40: 4527399.514 | BT40: 4527399.514 | BU40: 4527399.514 | BV40: 4527399.514 | BW40: =BW37+BW38+BW39 -> 4527399.514 | BX40: 4527399.514 | BY40: 4527399.514 | BZ40: 4527399.514 | CA40: 4527399.514 | CB40: 4527399.514 | CC40: 4527399.514 | CD40: 4527399.514 | CE40: 4527399.514 | CF40: 4527399.514 | CG40: 4527399.514 | CH40: 4527399.514 | CI40: 4527399.514 | CJ40: 4527399.514 | CK40: 4527399.514 | CL40: 4527399.514 | CM40: 4527399.514 | CN40: 4527399.514 | CO40: 4527399.514 | CP40: 4527399.514 | CQ40: 4527399.514 | CR40: 4527399.514 | CS40: 4527399.514 | CT40: 4527399.514 | CU40: 4527399.514 | CV40: 4527399.514 | CW40: 4527399.514 | CX40: 4527399.514 | CY40: 4527399.514 | CZ40: 4527399.514 | DA40: 4527399.514 | DB40: 4527399.514 | DC40: 4527399.514 | DD40: 4527399.514 | DE40: 4527399.514 | DF40: 4527399.514 | DG40: 4527399.514 | DH40: 4527399.514 | DI40: 4527399.514 | DJ40: 4527399.514 | DK40: 4527399.514 | DL40: 4527399.514 | DM40: 4527399.514 | DN40: 4527399.514 | DO40: 4527399.514 | DP40: 4527399.514 | DQ40: 4527399.514 | DR40: 4527399.514 | DS40: 4527399.514 | DT40: 4527399.514 | DU40: 4527399.514 | DV40: 4527399.514 | DW40: 4527399.514 | DX40: 4527399.514 | DY40: 4527399.514 | DZ40: 4527399.514 | EA40: 4527399.514 | EB40: 4527399.514 | EC40: 4527399.514 | ED40: 4527399.514 | EE40: 4527399.514 | EF40: 4527399.514 | EG40: 4527399.514 | EH40: 4527399.514 | EI40: =EI37+EI38+EI39 -> 4527399.514 | EJ40: 4527399.514 | EK40: 4527399.514 | EL40: 4527399.514 | EM40: 4527399.514 | EN40: 4527399.514 | EO40: 4527399.514 | EP40: 4527399.514 | EQ40: 4527399.514 | ER40: 4527399.514 | ES40: 4527399.514 | ET40: 4527399.514 | EU40: 4527399.514 | EV40: 4527399.514 | EW40: 4527399.514 | EX40: 4527399.514 | EY40: 4527399.514 | EZ40: 4527399.514 | FA40: 4527399.514 | FB40: 4527399.514 | FC40: 4527399.514 | FD40: 4527399.514 | FE40: 4527399.514 | FF40: 4527399.514 | FG40: 4527399.514 | FH40: 4527399.514 | FI40: 4527399.514 | FJ40: 4527399.514 | FK40: 4527399.514 | FL40: 4527399.514 | FM40: 4527399.514 | FN40: 4527399.514 | FO40: 4527399.514 | FP40: 4527399.514 | FQ40: 4527399.514 | FR40: 4527399.514 | FS40: 4527399.514 | FT40: 4527399.514 | FU40: 4527399.514 | FV40: 4527399.514 | FW40: 4527399.514 | FX40: 4527399.514 | FY40: 4527399.514 | FZ40: 4527399.514 | GA40: 4527399.514 | GB40: 4527399.514 | GC40: 4527399.514 | GD40: 4527399.514 | GE40: 4527399.514 | GF40: 4527399.514 | GG40: 4527399.514 | GH40: 4527399.514 | GI40: 4527399.514 | GJ40: 4527399.514 | GK40: 4527399.514 | GL40: 4527399.514 | GM40: 4527399.514 | GN40: 4527399.514 | GO40: 4527399.514 | GP40: 4527399.514 | GQ40: 4527399.514 | GR40: 4527399.514 | GS40: 4527399.514 | GT40: 4527399.514 | GU40: =GU37+GU38+GU39 -> 4527399.514 | GV40: 4527399.514 | GW40: 4527399.514 | GX40: 4527399.514 | GY40: 4527399.514 | GZ40: 4527399.514 | HA40: 4527399.514
D42: Total Invested | E42: EUR | F42: =MIN(34:34)*-1 -> 450321.5179
D43: Total Received | E43: EUR | F43: =MAX(40:40) -> 4527399.514
D45: Ratio | E45: EUR | F45: =F43/F42 -> 10.0537046
D46: Annual Growth | E46: % p.a. | F46: =F45^(1/F6)-1 -> 0.07996795864
B48: Return on Invested Capital
C49: Return with Straight Line Depreciation | F49: Life | G49: Plant Value
D50: Straight Line Depreciation | E50: EUR | F50: =F6 -> 30 | G50: =F42 -> 450321.5179 | J50: =$G$50/$F$50*J6 -> 0 | K50: =$G$50/$F$50*K6 -> 0 | L50: =$G$50/$F$50*L6 -> 15010.71726 | M50: =$G$50/$F$50*M6 -> 15010.71726 | N50: =$G$50/$F$50*N6 -> 15010.71726 | O50: =$G$50/$F$50*O6 -> 15010.71726 | P50: =$G$50/$F$50*P6 -> 15010.71726 | Q50: =$G$50/$F$50*Q6 -> 15010.71726 | R50: =$G$50/$F$50*R6 -> 15010.71726 | S50: =$G$50/$F$50*S6 -> 15010.71726 | T50: =$G$50/$F$50*T6 -> 15010.71726 | U50: =$G$50/$F$50*U6 -> 15010.71726 | V50: =$G$50/$F$50*V6 -> 15010.71726 | W50: =$G$50/$F$50*W6 -> 15010.71726 | X50: =$G$50/$F$50*X6 -> 15010.71726 | Y50: =$G$50/$F$50*Y6 -> 15010.71726 | Z50: =$G$50/$F$50*Z6 -> 15010.71726 | AA50: =$G$50/$F$50*AA6 -> 15010.71726 | AB50: =$G$50/$F$50*AB6 -> 15010.71726 | AC50: =$G$50/$F$50*AC6 -> 15010.71726 | AD50: =$G$50/$F$50*AD6 -> 15010.71726 | AE50: =$G$50/$F$50*AE6 -> 15010.71726 | AF50: =$G$50/$F$50*AF6 -> 15010.71726 | AG50: =$G$50/$F$50*AG6 -> 15010.71726 | AH50: =$G$50/$F$50*AH6 -> 15010.71726 | AI50: =$G$50/$F$50*AI6 -> 15010.71726 | AJ50: =$G$50/$F$50*AJ6 -> 15010.71726 | AK50: =$G$50/$F$50*AK6 -> 15010.71726 | AL50: =$G$50/$F$50*AL6 -> 15010.71726 | AM50: =$G$50/$F$50*AM6 -> 15010.71726 | AN50: =$G$50/$F$50*AN6 -> 15010.71726 | AO50: =$G$50/$F$50*AO6 -> 15010.71726 | AP50: =$G$50/$F$50*AP6 -> 0 | AQ50: =$G$50/$F$50*AQ6 -> 0 | AR50: =$G$50/$F$50*AR6 -> 0 | AS50: =$G$50/$F$50*AS6 -> 0 | AT50: =$G$50/$F$50*AT6 -> 0 | AU50: =$G$50/$F$50*AU6 -> 0 | AV50: =$G$50/$F$50*AV6 -> 0 | AW50: =$G$50/$F$50*AW6 -> 0 | AX50: =$G$50/$F$50*AX6 -> 0 | AY50: =$G$50/$F$50*AY6 -> 0 | AZ50: =$G$50/$F$50*AZ6 -> 0 | BA50: =$G$50/$F$50*BA6 -> 0 | BB50: =$G$50/$F$50*BB6 -> 0 | BC50: =$G$50/$F$50*BC6 -> 0 | BD50: =$G$50/$F$50*BD6 -> 0 | BE50: =$G$50/$F$50*BE6 -> 0 | BF50: =$G$50/$F$50*BF6 -> 0 | BG50: =$G$50/$F$50*BG6 -> 0 | BH50: =$G$50/$F$50*BH6 -> 0 | BI50: =$G$50/$F$50*BI6 -> 0 | BJ50: =$G$50/$F$50*BJ6 -> 0 | BK50: =$G$50/$F$50*BK6 -> 0 | BL50: =$G$50/$F$50*BL6 -> 0 | BM50: =$G$50/$F$50*BM6 -> 0 | BN50: =$G$50/$F$50*BN6 -> 0 | BO50: =$G$50/$F$50*BO6 -> 0 | BP50: =$G$50/$F$50*BP6 -> 0 | BQ50: =$G$50/$F$50*BQ6 -> 0 | BR50: =$G$50/$F$50*BR6 -> 0 | BS50: =$G$50/$F$50*BS6 -> 0 | BT50: =$G$50/$F$50*BT6 -> 0 | BU50: =$G$50/$F$50*BU6 -> 0 | BV50: =$G$50/$F$50*BV6 -> 0 | BW50: =$G$50/$F$50*BW6 -> 0 | BX50: =$G$50/$F$50*BX6 -> 0 | BY50: =$G$50/$F$50*BY6 -> 0 | BZ50: =$G$50/$F$50*BZ6 -> 0 | CA50: =$G$50/$F$50*CA6 -> 0 | CB50: =$G$50/$F$50*CB6 -> 0 | CC50: =$G$50/$F$50*CC6 -> 0 | CD50: =$G$50/$F$50*CD6 -> 0 | CE50: =$G$50/$F$50*CE6 -> 0 | CF50: =$G$50/$F$50*CF6 -> 0 | CG50: =$G$50/$F$50*CG6 -> 0 | CH50: =$G$50/$F$50*CH6 -> 0 | CI50: =$G$50/$F$50*CI6 -> 0 | CJ50: =$G$50/$F$50*CJ6 -> 0 | CK50: =$G$50/$F$50*CK6 -> 0 | CL50: =$G$50/$F$50*CL6 -> 0 | CM50: =$G$50/$F$50*CM6 -> 0 | CN50: =$G$50/$F$50*CN6 -> 0 | CO50: =$G$50/$F$50*CO6 -> 0 | CP50: =$G$50/$F$50*CP6 -> 0 | CQ50: =$G$50/$F$50*CQ6 -> 0 | CR50: =$G$50/$F$50*CR6 -> 0 | CS50: =$G$50/$F$50*CS6 -> 0 | CT50: =$G$50/$F$50*CT6 -> 0 | CU50: =$G$50/$F$50*CU6 -> 0 | CV50: =$G$50/$F$50*CV6 -> 0 | CW50: =$G$50/$F$50*CW6 -> 0 | CX50: =$G$50/$F$50*CX6 -> 0 | CY50: =$G$50/$F$50*CY6 -> 0 | CZ50: =$G$50/$F$50*CZ6 -> 0 | DA50: =$G$50/$F$50*DA6 -> 0 | DB50: =$G$50/$F$50*DB6 -> 0 | DC50: =$G$50/$F$50*DC6 -> 0 | DD50: =$G$50/$F$50*DD6 -> 0 | DE50: =$G$50/$F$50*DE6 -> 0 | DF50: =$G$50/$F$50*DF6 -> 0 | DG50: =$G$50/$F$50*DG6 -> 0 | DH50: =$G$50/$F$50*DH6 -> 0 | DI50: =$G$50/$F$50*DI6 -> 0 | DJ50: =$G$50/$F$50*DJ6 -> 0 | DK50: =$G$50/$F$50*DK6 -> 0 | DL50: =$G$50/$F$50*DL6 -> 0 | DM50: =$G$50/$F$50*DM6 -> 0 | DN50: =$G$50/$F$50*DN6 -> 0 | DO50: =$G$50/$F$50*DO6 -> 0 | DP50: =$G$50/$F$50*DP6 -> 0 | DQ50: =$G$50/$F$50*DQ6 -> 0 | DR50: =$G$50/$F$50*DR6 -> 0 | DS50: =$G$50/$F$50*DS6 -> 0 | DT50: =$G$50/$F$50*DT6 -> 0 | DU50: =$G$50/$F$50*DU6 -> 0 | DV50: =$G$50/$F$50*DV6 -> 0 | DW50: =$G$50/$F$50*DW6 -> 0 | DX50: =$G$50/$F$50*DX6 -> 0 | DY50: =$G$50/$F$50*DY6 -> 0 | DZ50: =$G$50/$F$50*DZ6 -> 0 | EA50: =$G$50/$F$50*EA6 -> 0 | EB50: =$G$50/$F$50*EB6 -> 0 | EC50: =$G$50/$F$50*EC6 -> 0 | ED50: =$G$50/$F$50*ED6 -> 0 | EE50: =$G$50/$F$50*EE6 -> 0 | EF50: =$G$50/$F$50*EF6 -> 0 | EG50: =$G$50/$F$50*EG6 -> 0 | EH50: =$G$50/$F$50*EH6 -> 0 | EI50: =$G$50/$F$50*EI6 -> 0 | EJ50: =$G$50/$F$50*EJ6 -> 0 | EK50: =$G$50/$F$50*EK6 -> 0 | EL50: =$G$50/$F$50*EL6 -> 0 | EM50: =$G$50/$F$50*EM6 -> 0 | EN50: =$G$50/$F$50*EN6 -> 0 | EO50: =$G$50/$F$50*EO6 -> 0 | EP50: =$G$50/$F$50*EP6 -> 0 | EQ50: =$G$50/$F$50*EQ6 -> 0 | ER50: =$G$50/$F$50*ER6 -> 0 | ES50: =$G$50/$F$50*ES6 -> 0 | ET50: =$G$50/$F$50*ET6 -> 0 | EU50: =$G$50/$F$50*EU6 -> 0 | EV50: =$G$50/$F$50*EV6 -> 0 | EW50: =$G$50/$F$50*EW6 -> 0 | EX50: =$G$50/$F$50*EX6 -> 0 | EY50: =$G$50/$F$50*EY6 -> 0 | EZ50: =$G$50/$F$50*EZ6 -> 0 | FA50: =$G$50/$F$50*FA6 -> 0 | FB50: =$G$50/$F$50*FB6 -> 0 | FC50: =$G$50/$F$50*FC6 -> 0 | FD50: =$G$50/$F$50*FD6 -> 0 | FE50: =$G$50/$F$50*FE6 -> 0 | FF50: =$G$50/$F$50*FF6 -> 0 | FG50: =$G$50/$F$50*FG6 -> 0 | FH50: =$G$50/$F$50*FH6 -> 0 | FI50: =$G$50/$F$50*FI6 -> 0 | FJ50: =$G$50/$F$50*FJ6 -> 0 | FK50: =$G$50/$F$50*FK6 -> 0 | FL50: =$G$50/$F$50*FL6 -> 0 | FM50: =$G$50/$F$50*FM6 -> 0 | FN50: =$G$50/$F$50*FN6 -> 0 | FO50: =$G$50/$F$50*FO6 -> 0 | FP50: =$G$50/$F$50*FP6 -> 0 | FQ50: =$G$50/$F$50*FQ6 -> 0 | FR50: =$G$50/$F$50*FR6 -> 0 | FS50: =$G$50/$F$50*FS6 -> 0 | FT50: =$G$50/$F$50*FT6 -> 0 | FU50: =$G$50/$F$50*FU6 -> 0 | FV50: =$G$50/$F$50*FV6 -> 0 | FW50: =$G$50/$F$50*FW6 -> 0 | FX50: =$G$50/$F$50*FX6 -> 0 | FY50: =$G$50/$F$50*FY6 -> 0 | FZ50: =$G$50/$F$50*FZ6 -> 0 | GA50: =$G$50/$F$50*GA6 -> 0 | GB50: =$G$50/$F$50*GB6 -> 0 | GC50: =$G$50/$F$50*GC6 -> 0 | GD50: =$G$50/$F$50*GD6 -> 0 | GE50: =$G$50/$F$50*GE6 -> 0 | GF50: =$G$50/$F$50*GF6 -> 0 | GG50: =$G$50/$F$50*GG6 -> 0 | GH50: =$G$50/$F$50*GH6 -> 0 | GI50: =$G$50/$F$50*GI6 -> 0 | GJ50: =$G$50/$F$50*GJ6 -> 0 | GK50: =$G$50/$F$50*GK6 -> 0 | GL50: =$G$50/$F$50*GL6 -> 0 | GM50: =$G$50/$F$50*GM6 -> 0 | GN50: =$G$50/$F$50*GN6 -> 0 | GO50: =$G$50/$F$50*GO6 -> 0 | GP50: =$G$50/$F$50*GP6 -> 0 | GQ50: =$G$50/$F$50*GQ6 -> 0 | GR50: =$G$50/$F$50*GR6 -> 0 | GS50: =$G$50/$F$50*GS6 -> 0 | GT50: =$G$50/$F$50*GT6 -> 0 | GU50: =$G$50/$F$50*GU6 -> 0 | GV50: =$G$50/$F$50*GV6 -> 0 | GW50: =$G$50/$F$50*GW6 -> 0 | GX50: =$G$50/$F$50*GX6 -> 0 | GY50: =$G$50/$F$50*GY6 -> 0 | GZ50: =$G$50/$F$50*GZ6 -> 0 | HA50: =$G$50/$F$50*HA6 -> 0
D51: Accumulated Depreciation | E51: EUR | J51: =I51+J50 -> 0 | K51: =J51+K50 -> 0 | L51: 15010.71726 | M51: 30021.43452 | N51: 45032.15179 | O51: 60042.86905 | P51: 75053.58631 | Q51: 90064.30357 | R51: 105075.0208 | S51: 120085.7381 | T51: 135096.4554 | U51: 150107.1726 | V51: 165117.8899 | W51: 180128.6071 | X51: 195139.3244 | Y51: 210150.0417 | Z51: 225160.7589 | AA51: 240171.4762 | AB51: 255182.1935 | AC51: 270192.9107 | AD51: 285203.628 | AE51: 300214.3452 | AF51: 315225.0625 | AG51: 330235.7798 | AH51: 345246.497 | AI51: 360257.2143 | AJ51: 375267.9316 | AK51: 390278.6488 | AL51: 405289.3661 | AM51: 420300.0833 | AN51: 435310.8006 | AO51: 450321.5179 | AP51: 450321.5179 | AQ51: 450321.5179 | AR51: 450321.5179 | AS51: 450321.5179 | AT51: 450321.5179 | AU51: 450321.5179 | AV51: 450321.5179 | AW51: 450321.5179 | AX51: 450321.5179 | AY51: 450321.5179 | AZ51: 450321.5179 | BA51: 450321.5179 | BB51: 450321.5179 | BC51: 450321.5179 | BD51: 450321.5179 | BE51: 450321.5179 | BF51: 450321.5179 | BG51: 450321.5179 | BH51: 450321.5179 | BI51: 450321.5179 | BJ51: 450321.5179 | BK51: 450321.5179 | BL51: 450321.5179 | BM51: 450321.5179 | BN51: 450321.5179 | BO51: 450321.5179 | BP51: 450321.5179 | BQ51: 450321.5179 | BR51: 450321.5179 | BS51: 450321.5179 | BT51: 450321.5179 | BU51: 450321.5179 | BV51: 450321.5179 | BW51: =BV51+BW50 -> 450321.5179 | BX51: 450321.5179 | BY51: 450321.5179 | BZ51: 450321.5179 | CA51: 450321.5179 | CB51: 450321.5179 | CC51: 450321.5179 | CD51: 450321.5179 | CE51: 450321.5179 | CF51: 450321.5179 | CG51: 450321.5179 | CH51: 450321.5179 | CI51: 450321.5179 | CJ51: 450321.5179 | CK51: 450321.5179 | CL51: 450321.5179 | CM51: 450321.5179 | CN51: 450321.5179 | CO51: 450321.5179 | CP51: 450321.5179 | CQ51: 450321.5179 | CR51: 450321.5179 | CS51: 450321.5179 | CT51: 450321.5179 | CU51: 450321.5179 | CV51: 450321.5179 | CW51: 450321.5179 | CX51: 450321.5179 | CY51: 450321.5179 | CZ51: 450321.5179 | DA51: 450321.5179 | DB51: 450321.5179 | DC51: 450321.5179 | DD51: 450321.5179 | DE51: 450321.5179 | DF51: 450321.5179 | DG51: 450321.5179 | DH51: 450321.5179 | DI51: 450321.5179 | DJ51: 450321.5179 | DK51: 450321.5179 | DL51: 450321.5179 | DM51: 450321.5179 | DN51: 450321.5179 | DO51: 450321.5179 | DP51: 450321.5179 | DQ51: 450321.5179 | DR51: 450321.5179 | DS51: 450321.5179 | DT51: 450321.5179 | DU51: 450321.5179 | DV51: 450321.5179 | DW51: 450321.5179 | DX51: 450321.5179 | DY51: 450321.5179 | DZ51: 450321.5179 | EA51: 450321.5179 | EB51: 450321.5179 | EC51: 450321.5179 | ED51: 450321.5179 | EE51: 450321.5179 | EF51: 450321.5179 | EG51: 450321.5179 | EH51: 450321.5179 | EI51: =EH51+EI50 -> 450321.5179 | EJ51: 450321.5179 | EK51: 450321.5179 | EL51: 450321.5179 | EM51: 450321.5179 | EN51: 450321.5179 | EO51: 450321.5179 | EP51: 450321.5179 | EQ51: 450321.5179 | ER51: 450321.5179 | ES51: 450321.5179 | ET51: 450321.5179 | EU51: 450321.5179 | EV51: 450321.5179 | EW51: 450321.5179 | EX51: 450321.5179 | EY51: 450321.5179 | EZ51: 450321.5179 | FA51: 450321.5179 | FB51: 450321.5179 | FC51: 450321.5179 | FD51: 450321.5179 | FE51: 450321.5179 | FF51: 450321.5179 | FG51: 450321.5179 | FH51: 450321.5179 | FI51: 450321.5179 | FJ51: 450321.5179 | FK51: 450321.5179 | FL51: 450321.5179 | FM51: 450321.5179 | FN51: 450321.5179 | FO51: 450321.5179 | FP51: 450321.5179 | FQ51: 450321.5179 | FR51: 450321.5179 | FS51: 450321.5179 | FT51: 450321.5179 | FU51: 450321.5179 | FV51: 450321.5179 | FW51: 450321.5179 | FX51: 450321.5179 | FY51: 450321.5179 | FZ51: 450321.5179 | GA51: 450321.5179 | GB51: 450321.5179 | GC51: 450321.5179 | GD51: 450321.5179 | GE51: 450321.5179 | GF51: 450321.5179 | GG51: 450321.5179 | GH51: 450321.5179 | GI51: 450321.5179 | GJ51: 450321.5179 | GK51: 450321.5179 | GL51: 450321.5179 | GM51: 450321.5179 | GN51: 450321.5179 | GO51: 450321.5179 | GP51: 450321.5179 | GQ51: 450321.5179 | GR51: 450321.5179 | GS51: 450321.5179 | GT51: 450321.5179 | GU51: =GT51+GU50 -> 450321.5179 | GV51: 450321.5179 | GW51: 450321.5179 | GX51: 450321.5179 | GY51: 450321.5179 | GZ51: 450321.5179 | HA51: 450321.5179
D52: Net Plant | E52: EUR | J52: =$G$50-J51 -> 450321.5179 | K52: 450321.5179 | L52: 435310.8006 | M52: 420300.0833 | N52: 405289.3661 | O52: 390278.6488 | P52: 375267.9316 | Q52: 360257.2143 | R52: 345246.497 | S52: 330235.7798 | T52: 315225.0625 | U52: 300214.3452 | V52: 285203.628 | W52: 270192.9107 | X52: 255182.1935 | Y52: 240171.4762 | Z52: 225160.7589 | AA52: 210150.0417 | AB52: 195139.3244 | AC52: 180128.6071 | AD52: 165117.8899 | AE52: 150107.1726 | AF52: 135096.4554 | AG52: 120085.7381 | AH52: 105075.0208 | AI52: 90064.30357 | AJ52: 75053.58631 | AK52: 60042.86905 | AL52: 45032.15179 | AM52: 30021.43452 | AN52: 15010.71726 | AO52: 0 | AP52: =$G$50-AP51 -> 0 | AQ52: 0 | AR52: 0 | AS52: 0 | AT52: 0 | AU52: 0 | AV52: 0 | AW52: 0 | AX52: 0 | AY52: 0 | AZ52: 0 | BA52: 0 | BB52: 0 | BC52: 0 | BD52: 0 | BE52: 0 | BF52: 0 | BG52: 0 | BH52: 0 | BI52: 0 | BJ52: 0 | BK52: 0 | BL52: 0 | BM52: 0 | BN52: 0 | BO52: 0 | BP52: 0 | BQ52: 0 | BR52: 0 | BS52: 0 | BT52: 0 | BU52: 0 | BV52: =$G$50-BV51 -> 0 | BW52: 0 | BX52: 0 | BY52: 0 | BZ52: 0 | CA52: 0 | CB52: 0 | CC52: 0 | CD52: 0 | CE52: 0 | CF52: 0 | CG52: 0 | CH52: 0 | CI52: 0 | CJ52: 0 | CK52: 0 | CL52: 0 | CM52: 0 | CN52: 0 | CO52: 0 | CP52: 0 | CQ52: 0 | CR52: 0 | CS52: 0 | CT52: 0 | CU52: 0 | CV52: 0 | CW52: 0 | CX52: 0 | CY52: 0 | CZ52: 0 | DA52: 0 | DB52: =$G$50-DB51 -> 0 | DC52: 0 | DD52: 0 | DE52: 0 | DF52: 0 | DG52: 0 | DH52: 0 | DI52: 0 | DJ52: 0 | DK52: 0 | DL52: 0 | DM52: 0 | DN52: 0 | DO52: 0 | DP52: 0 | DQ52: 0 | DR52: 0 | DS52: 0 | DT52: 0 | DU52: 0 | DV52: 0 | DW52: 0 | DX52: 0 | DY52: 0 | DZ52: 0 | EA52: 0 | EB52: 0 | EC52: 0 | ED52: 0 | EE52: 0 | EF52: 0 | EG52: 0 | EH52: =$G$50-EH51 -> 0 | EI52: 0 | EJ52: 0 | EK52: 0 | EL52: 0 | EM52: 0 | EN52: 0 | EO52: 0 | EP52: 0 | EQ52: 0 | ER52: 0 | ES52: 0 | ET52: 0 | EU52: 0 | EV52: 0 | EW52: 0 | EX52: 0 | EY52: 0 | EZ52: 0 | FA52: 0 | FB52: 0 | FC52: 0 | FD52: 0 | FE52: 0 | FF52: 0 | FG52: 0 | FH52: 0 | FI52: 0 | FJ52: 0 | FK52: 0 | FL52: 0 | FM52: 0 | FN52: =$G$50-FN51 -> 0 | FO52: 0 | FP52: 0 | FQ52: 0 | FR52: 0 | FS52: 0 | FT52: 0 | FU52: 0 | FV52: 0 | FW52: 0 | FX52: 0 | FY52: 0 | FZ52: 0 | GA52: 0 | GB52: 0 | GC52: 0 | GD52: 0 | GE52: 0 | GF52: 0 | GG52: 0 | GH52: 0 | GI52: 0 | GJ52: 0 | GK52: 0 | GL52: 0 | GM52: 0 | GN52: 0 | GO52: 0 | GP52: 0 | GQ52: 0 | GR52: 0 | GS52: 0 | GT52: =$G$50-GT51 -> 0 | GU52: 0 | GV52: 0 | GW52: 0 | GX52: 0 | GY52: 0 | GZ52: 0 | HA52: 0
D53: EBIT | E53: EUR | J53: =J24-J50 -> 0 | K53: =K24-K50 -> 0 | L53: =L24-L50 -> 24989.28274 | M53: =M24-M50 -> 24989.28274 | N53: =N24-N50 -> 24989.28274 | O53: =O24-O50 -> 24989.28274 | P53: =P24-P50 -> 24989.28274 | Q53: =Q24-Q50 -> 24989.28274 | R53: =R24-R50 -> 24989.28274 | S53: =S24-S50 -> 24989.28274 | T53: =T24-T50 -> 24989.28274 | U53: =U24-U50 -> 24989.28274 | V53: =V24-V50 -> 24989.28274 | W53: =W24-W50 -> 24989.28274 | X53: =X24-X50 -> 24989.28274 | Y53: =Y24-Y50 -> 24989.28274 | Z53: =Z24-Z50 -> 24989.28274 | AA53: =AA24-AA50 -> 24989.28274 | AB53: =AB24-AB50 -> 24989.28274 | AC53: =AC24-AC50 -> 24989.28274 | AD53: =AD24-AD50 -> 24989.28274 | AE53: =AE24-AE50 -> 24989.28274 | AF53: =AF24-AF50 -> 24989.28274 | AG53: =AG24-AG50 -> 24989.28274 | AH53: =AH24-AH50 -> 24989.28274 | AI53: =AI24-AI50 -> 24989.28274 | AJ53: =AJ24-AJ50 -> 24989.28274 | AK53: =AK24-AK50 -> 24989.28274 | AL53: =AL24-AL50 -> 24989.28274 | AM53: =AM24-AM50 -> 24989.28274 | AN53: =AN24-AN50 -> 24989.28274 | AO53: =AO24-AO50 -> 24989.28274 | AP53: =AP24-AP50 -> 0 | AQ53: =AQ24-AQ50 -> 0 | AR53: =AR24-AR50 -> 0 | AS53: =AS24-AS50 -> 0 | AT53: =AT24-AT50 -> 0 | AU53: =AU24-AU50 -> 0 | AV53: =AV24-AV50 -> 0 | AW53: =AW24-AW50 -> 0 | AX53: =AX24-AX50 -> 0 | AY53: =AY24-AY50 -> 0 | AZ53: =AZ24-AZ50 -> 0 | BA53: =BA24-BA50 -> 0 | BB53: =BB24-BB50 -> 0 | BC53: =BC24-BC50 -> 0 | BD53: =BD24-BD50 -> 0 | BE53: =BE24-BE50 -> 0 | BF53: =BF24-BF50 -> 0 | BG53: =BG24-BG50 -> 0 | BH53: =BH24-BH50 -> 0 | BI53: =BI24-BI50 -> 0 | BJ53: =BJ24-BJ50 -> 0 | BK53: =BK24-BK50 -> 0 | BL53: =BL24-BL50 -> 0 | BM53: =BM24-BM50 -> 0 | BN53: =BN24-BN50 -> 0 | BO53: =BO24-BO50 -> 0 | BP53: =BP24-BP50 -> 0 | BQ53: =BQ24-BQ50 -> 0 | BR53: =BR24-BR50 -> 0 | BS53: =BS24-BS50 -> 0 | BT53: =BT24-BT50 -> 0 | BU53: =BU24-BU50 -> 0 | BV53: =BV24-BV50 -> 0 | BW53: =BW24-BW50 -> 0 | BX53: =BX24-BX50 -> 0 | BY53: =BY24-BY50 -> 0 | BZ53: =BZ24-BZ50 -> 0 | CA53: =CA24-CA50 -> 0 | CB53: =CB24-CB50 -> 0 | CC53: =CC24-CC50 -> 0 | CD53: =CD24-CD50 -> 0 | CE53: =CE24-CE50 -> 0 | CF53: =CF24-CF50 -> 0 | CG53: =CG24-CG50 -> 0 | CH53: =CH24-CH50 -> 0 | CI53: =CI24-CI50 -> 0 | CJ53: =CJ24-CJ50 -> 0 | CK53: =CK24-CK50 -> 0 | CL53: =CL24-CL50 -> 0 | CM53: =CM24-CM50 -> 0 | CN53: =CN24-CN50 -> 0 | CO53: =CO24-CO50 -> 0 | CP53: =CP24-CP50 -> 0 | CQ53: =CQ24-CQ50 -> 0 | CR53: =CR24-CR50 -> 0 | CS53: =CS24-CS50 -> 0 | CT53: =CT24-CT50 -> 0 | CU53: =CU24-CU50 -> 0 | CV53: =CV24-CV50 -> 0 | CW53: =CW24-CW50 -> 0 | CX53: =CX24-CX50 -> 0 | CY53: =CY24-CY50 -> 0 | CZ53: =CZ24-CZ50 -> 0 | DA53: =DA24-DA50 -> 0 | DB53: =DB24-DB50 -> 0 | DC53: =DC24-DC50 -> 0 | DD53: =DD24-DD50 -> 0 | DE53: =DE24-DE50 -> 0 | DF53: =DF24-DF50 -> 0 | DG53: =DG24-DG50 -> 0 | DH53: =DH24-DH50 -> 0 | DI53: =DI24-DI50 -> 0 | DJ53: =DJ24-DJ50 -> 0 | DK53: =DK24-DK50 -> 0 | DL53: =DL24-DL50 -> 0 | DM53: =DM24-DM50 -> 0 | DN53: =DN24-DN50 -> 0 | DO53: =DO24-DO50 -> 0 | DP53: =DP24-DP50 -> 0 | DQ53: =DQ24-DQ50 -> 0 | DR53: =DR24-DR50 -> 0 | DS53: =DS24-DS50 -> 0 | DT53: =DT24-DT50 -> 0 | DU53: =DU24-DU50 -> 0 | DV53: =DV24-DV50 -> 0 | DW53: =DW24-DW50 -> 0 | DX53: =DX24-DX50 -> 0 | DY53: =DY24-DY50 -> 0 | DZ53: =DZ24-DZ50 -> 0 | EA53: =EA24-EA50 -> 0 | EB53: =EB24-EB50 -> 0 | EC53: =EC24-EC50 -> 0 | ED53: =ED24-ED50 -> 0 | EE53: =EE24-EE50 -> 0 | EF53: =EF24-EF50 -> 0 | EG53: =EG24-EG50 -> 0 | EH53: =EH24-EH50 -> 0 | EI53: =EI24-EI50 -> 0 | EJ53: =EJ24-EJ50 -> 0 | EK53: =EK24-EK50 -> 0 | EL53: =EL24-EL50 -> 0 | EM53: =EM24-EM50 -> 0 | EN53: =EN24-EN50 -> 0 | EO53: =EO24-EO50 -> 0 | EP53: =EP24-EP50 -> 0 | EQ53: =EQ24-EQ50 -> 0 | ER53: =ER24-ER50 -> 0 | ES53: =ES24-ES50 -> 0 | ET53: =ET24-ET50 -> 0 | EU53: =EU24-EU50 -> 0 | EV53: =EV24-EV50 -> 0 | EW53: =EW24-EW50 -> 0 | EX53: =EX24-EX50 -> 0 | EY53: =EY24-EY50 -> 0 | EZ53: =EZ24-EZ50 -> 0 | FA53: =FA24-FA50 -> 0 | FB53: =FB24-FB50 -> 0 | FC53: =FC24-FC50 -> 0 | FD53: =FD24-FD50 -> 0 | FE53: =FE24-FE50 -> 0 | FF53: =FF24-FF50 -> 0 | FG53: =FG24-FG50 -> 0 | FH53: =FH24-FH50 -> 0 | FI53: =FI24-FI50 -> 0 | FJ53: =FJ24-FJ50 -> 0 | FK53: =FK24-FK50 -> 0 | FL53: =FL24-FL50 -> 0 | FM53: =FM24-FM50 -> 0 | FN53: =FN24-FN50 -> 0 | FO53: =FO24-FO50 -> 0 | FP53: =FP24-FP50 -> 0 | FQ53: =FQ24-FQ50 -> 0 | FR53: =FR24-FR50 -> 0 | FS53: =FS24-FS50 -> 0 | FT53: =FT24-FT50 -> 0 | FU53: =FU24-FU50 -> 0 | FV53: =FV24-FV50 -> 0 | FW53: =FW24-FW50 -> 0 | FX53: =FX24-FX50 -> 0 | FY53: =FY24-FY50 -> 0 | FZ53: =FZ24-FZ50 -> 0 | GA53: =GA24-GA50 -> 0 | GB53: =GB24-GB50 -> 0 | GC53: =GC24-GC50 -> 0 | GD53: =GD24-GD50 -> 0 | GE53: =GE24-GE50 -> 0 | GF53: =GF24-GF50 -> 0 | GG53: =GG24-GG50 -> 0 | GH53: =GH24-GH50 -> 0 | GI53: =GI24-GI50 -> 0 | GJ53: =GJ24-GJ50 -> 0 | GK53: =GK24-GK50 -> 0 | GL53: =GL24-GL50 -> 0 | GM53: =GM24-GM50 -> 0 | GN53: =GN24-GN50 -> 0 | GO53: =GO24-GO50 -> 0 | GP53: =GP24-GP50 -> 0 | GQ53: =GQ24-GQ50 -> 0 | GR53: =GR24-GR50 -> 0 | GS53: =GS24-GS50 -> 0 | GT53: =GT24-GT50 -> 0 | GU53: =GU24-GU50 -> 0 | GV53: =GV24-GV50 -> 0 | GW53: =GW24-GW50 -> 0 | GX53: =GX24-GX50 -> 0 | GY53: =GY24-GY50 -> 0 | GZ53: =GZ24-GZ50 -> 0 | HA53: =HA24-HA50 -> 0
D54: ROIC | E54: % | J54: =IFERROR(J53/I52,FALSE) -> FALSE | K54: =IFERROR(K53/J52,FALSE) -> 0 | L54: 0.0554920912 | M54: 0.05740561158 | N54: 0.059455812 | O54: 0.06165787911 | P54: 0.064029336 | Q54: 0.06659050944 | R54: 0.069365114 | S54: 0.07238098852 | T54: 0.07567103345 | U54: 0.07927441599 | V54: 0.08323813679 | W54: 0.08761909136 | X54: 0.09248681866 | Y54: 0.09792721976 | Z54: 0.104047671 | AA54: 0.1109841824 | AB54: 0.118911624 | AC54: 0.128058672 | AD54: 0.138730228 | AE54: 0.1513420669 | AF54: 0.1664762736 | AG54: 0.1849736373 | AH54: 0.208095342 | AI54: 0.237823248 | AJ54: 0.277460456 | AK54: 0.3329525472 | AL54: 0.416190684 | AM54: 0.554920912 | AN54: 0.8323813679 | AO54: 1.664762736 | AP54: FALSE | AQ54: FALSE | AR54: FALSE | AS54: FALSE | AT54: FALSE | AU54: FALSE | AV54: FALSE | AW54: FALSE | AX54: FALSE | AY54: FALSE | AZ54: FALSE | BA54: FALSE | BB54: FALSE | BC54: FALSE | BD54: FALSE | BE54: FALSE | BF54: FALSE | BG54: FALSE | BH54: FALSE | BI54: FALSE | BJ54: FALSE | BK54: FALSE | BL54: FALSE | BM54: FALSE | BN54: FALSE | BO54: FALSE | BP54: FALSE | BQ54: FALSE | BR54: FALSE | BS54: FALSE | BT54: FALSE | BU54: FALSE | BV54: FALSE | BW54: =IFERROR(BW53/BV52,FALSE) -> FALSE | BX54: FALSE | BY54: FALSE | BZ54: FALSE | CA54: FALSE | CB54: FALSE | CC54: FALSE | CD54: FALSE | CE54: FALSE | CF54: FALSE | CG54: FALSE | CH54: FALSE | CI54: FALSE | CJ54: FALSE | CK54: FALSE | CL54: FALSE | CM54: FALSE | CN54: FALSE | CO54: FALSE | CP54: FALSE | CQ54: FALSE | CR54: FALSE | CS54: FALSE | CT54: FALSE | CU54: FALSE | CV54: FALSE | CW54: FALSE | CX54: FALSE | CY54: FALSE | CZ54: FALSE | DA54: FALSE | DB54: FALSE | DC54: FALSE | DD54: FALSE | DE54: FALSE | DF54: FALSE | DG54: FALSE | DH54: FALSE | DI54: FALSE | DJ54: FALSE | DK54: FALSE | DL54: FALSE | DM54: FALSE | DN54: FALSE | DO54: FALSE | DP54: FALSE | DQ54: FALSE | DR54: FALSE | DS54: FALSE | DT54: FALSE | DU54: FALSE | DV54: FALSE | DW54: FALSE | DX54: FALSE | DY54: FALSE | DZ54: FALSE | EA54: FALSE | EB54: FALSE | EC54: FALSE | ED54: FALSE | EE54: FALSE | EF54: FALSE | EG54: FALSE | EH54: FALSE | EI54: =IFERROR(EI53/EH52,FALSE) -> FALSE | EJ54: FALSE | EK54: FALSE | EL54: FALSE | EM54: FALSE | EN54: FALSE | EO54: FALSE | EP54: FALSE | EQ54: FALSE | ER54: FALSE | ES54: FALSE | ET54: FALSE | EU54: FALSE | EV54: FALSE | EW54: FALSE | EX54: FALSE | EY54: FALSE | EZ54: FALSE | FA54: FALSE | FB54: FALSE | FC54: FALSE | FD54: FALSE | FE54: FALSE | FF54: FALSE | FG54: FALSE | FH54: FALSE | FI54: FALSE | FJ54: FALSE | FK54: FALSE | FL54: FALSE | FM54: FALSE | FN54: FALSE | FO54: FALSE | FP54: FALSE | FQ54: FALSE | FR54: FALSE | FS54: FALSE | FT54: FALSE | FU54: FALSE | FV54: FALSE | FW54: FALSE | FX54: FALSE | FY54: FALSE | FZ54: FALSE | GA54: FALSE | GB54: FALSE | GC54: FALSE | GD54: FALSE | GE54: FALSE | GF54: FALSE | GG54: FALSE | GH54: FALSE | GI54: FALSE | GJ54: FALSE | GK54: FALSE | GL54: FALSE | GM54: FALSE | GN54: FALSE | GO54: FALSE | GP54: FALSE | GQ54: FALSE | GR54: FALSE | GS54: FALSE | GT54: FALSE | GU54: =IFERROR(GU53/GT52,FALSE) -> FALSE | GV54: FALSE | GW54: FALSE | GX54: FALSE | GY54: FALSE | GZ54: FALSE | HA54: FALSE
C56: Project Value at IRR
D57: Project Cash Flow | E57: EUR | J57: =J27 -> -50000 | K57: =K27 -> -400000 | L57: =L27 -> 40000 | M57: =M27 -> 40000 | N57: =N27 -> 40000 | O57: =O27 -> 40000 | P57: =P27 -> 40000 | Q57: =Q27 -> 40000 | R57: =R27 -> 40000 | S57: =S27 -> 40000 | T57: =T27 -> 40000 | U57: =U27 -> 40000 | V57: =V27 -> 40000 | W57: =W27 -> 40000 | X57: =X27 -> 40000 | Y57: =Y27 -> 40000 | Z57: =Z27 -> 40000 | AA57: =AA27 -> 40000 | AB57: =AB27 -> 40000 | AC57: =AC27 -> 40000 | AD57: =AD27 -> 40000 | AE57: =AE27 -> 40000 | AF57: =AF27 -> 40000 | AG57: =AG27 -> 40000 | AH57: =AH27 -> 40000 | AI57: =AI27 -> 40000 | AJ57: =AJ27 -> 40000 | AK57: =AK27 -> 40000 | AL57: =AL27 -> 40000 | AM57: =AM27 -> 40000 | AN57: =AN27 -> 40000 | AO57: =AO27 -> 40000 | AP57: =AP27 -> -1e-07 | AQ57: =AQ27 -> 0 | AR57: =AR27 -> 0 | AS57: =AS27 -> 0 | AT57: =AT27 -> -1e-07 | AU57: =AU27 -> 0 | AV57: =AV27 -> 0 | AW57: =AW27 -> 0 | AX57: =AX27 -> -1e-07 | AY57: =AY27 -> 0 | AZ57: =AZ27 -> 0 | BA57: =BA27 -> 0 | BB57: =BB27 -> -1e-07 | BC57: =BC27 -> 0 | BD57: =BD27 -> 0 | BE57: =BE27 -> 0 | BF57: =BF27 -> -1e-07 | BG57: =BG27 -> 0 | BH57: =BH27 -> 0 | BI57: =BI27 -> 0 | BJ57: =BJ27 -> -1e-07 | BK57: =BK27 -> 0 | BL57: =BL27 -> 0 | BM57: =BM27 -> 0 | BN57: =BN27 -> -1e-07 | BO57: =BO27 -> 0 | BP57: =BP27 -> 0 | BQ57: =BQ27 -> 0 | BR57: =BR27 -> -1e-07 | BS57: =BS27 -> 0 | BT57: =BT27 -> 0 | BU57: =BU27 -> 0 | BV57: =BV27 -> -1e-07 | BW57: =BW27 -> 0 | BX57: =BX27 -> 0 | BY57: =BY27 -> 0 | BZ57: =BZ27 -> -1e-07 | CA57: =CA27 -> 0 | CB57: =CB27 -> 0 | CC57: =CC27 -> 0 | CD57: =CD27 -> -1e-07 | CE57: =CE27 -> 0 | CF57: =CF27 -> 0 | CG57: =CG27 -> 0 | CH57: =CH27 -> -1e-07 | CI57: =CI27 -> 0 | CJ57: =CJ27 -> 0 | CK57: =CK27 -> 0 | CL57: =CL27 -> -1e-07 | CM57: =CM27 -> 0 | CN57: =CN27 -> 0 | CO57: =CO27 -> 0 | CP57: =CP27 -> -1e-07 | CQ57: =CQ27 -> 0 | CR57: =CR27 -> 0 | CS57: =CS27 -> 0 | CT57: =CT27 -> -1e-07 | CU57: =CU27 -> 0 | CV57: =CV27 -> 0 | CW57: =CW27 -> 0 | CX57: =CX27 -> -1e-07 | CY57: =CY27 -> 0 | CZ57: =CZ27 -> 0 | DA57: =DA27 -> 0 | DB57: =DB27 -> -1e-07 | DC57: =DC27 -> 0 | DD57: =DD27 -> 0 | DE57: =DE27 -> 0 | DF57: =DF27 -> -1e-07 | DG57: =DG27 -> 0 | DH57: =DH27 -> 0 | DI57: =DI27 -> 0 | DJ57: =DJ27 -> -1e-07 | DK57: =DK27 -> 0 | DL57: =DL27 -> 0 | DM57: =DM27 -> 0 | DN57: =DN27 -> -1e-07 | DO57: =DO27 -> 0 | DP57: =DP27 -> 0 | DQ57: =DQ27 -> 0 | DR57: =DR27 -> -1e-07 | DS57: =DS27 -> 0 | DT57: =DT27 -> 0 | DU57: =DU27 -> 0 | DV57: =DV27 -> -1e-07 | DW57: =DW27 -> 0 | DX57: =DX27 -> 0 | DY57: =DY27 -> 0 | DZ57: =DZ27 -> -1e-07 | EA57: =EA27 -> 0 | EB57: =EB27 -> 0 | EC57: =EC27 -> 0 | ED57: =ED27 -> -1e-07 | EE57: =EE27 -> 0 | EF57: =EF27 -> 0 | EG57: =EG27 -> 0 | EH57: =EH27 -> -1e-07 | EI57: =EI27 -> 0 | EJ57: =EJ27 -> 0 | EK57: =EK27 -> 0 | EL57: =EL27 -> -1e-07 | EM57: =EM27 -> 0 | EN57: =EN27 -> 0 | EO57: =EO27 -> 0 | EP57: =EP27 -> -1e-07 | EQ57: =EQ27 -> 0 | ER57: =ER27 -> 0 | ES57: =ES27 -> 0 | ET57: =ET27 -> -1e-07 | EU57: =EU27 -> 0 | EV57: =EV27 -> 0 | EW57: =EW27 -> 0 | EX57: =EX27 -> -1e-07 | EY57: =EY27 -> 0 | EZ57: =EZ27 -> 0 | FA57: =FA27 -> 0 | FB57: =FB27 -> -1e-07 | FC57: =FC27 -> 0 | FD57: =FD27 -> 0 | FE57: =FE27 -> 0 | FF57: =FF27 -> -1e-07 | FG57: =FG27 -> 0 | FH57: =FH27 -> 0 | FI57: =FI27 -> 0 | FJ57: =FJ27 -> -1e-07 | FK57: =FK27 -> 0 | FL57: =FL27 -> 0 | FM57: =FM27 -> 0 | FN57: =FN27 -> -1e-07 | FO57: =FO27 -> 0 | FP57: =FP27 -> 0 | FQ57: =FQ27 -> 0 | FR57: =FR27 -> -1e-07 | FS57: =FS27 -> 0 | FT57: =FT27 -> 0 | FU57: =FU27 -> 0 | FV57: =FV27 -> -1e-07 | FW57: =FW27 -> 0 | FX57: =FX27 -> 0 | FY57: =FY27 -> 0 | FZ57: =FZ27 -> -1e-07 | GA57: =GA27 -> 0 | GB57: =GB27 -> 0 | GC57: =GC27 -> 0 | GD57: =GD27 -> -1e-07 | GE57: =GE27 -> 0 | GF57: =GF27 -> 0 | GG57: =GG27 -> 0 | GH57: =GH27 -> -1e-07 | GI57: =GI27 -> 0 | GJ57: =GJ27 -> 0 | GK57: =GK27 -> 0 | GL57: =GL27 -> -1e-07 | GM57: =GM27 -> 0 | GN57: =GN27 -> 0 | GO57: =GO27 -> 0 | GP57: =GP27 -> -1e-07 | GQ57: =GQ27 -> 0 | GR57: =GR27 -> 0 | GS57: =GS27 -> 0 | GT57: =GT27 -> -1e-07 | GU57: =GU27 -> 0 | GV57: =GV27 -> 0 | GW57: =GW27 -> 0 | GX57: =GX27 -> -1e-07 | GY57: =GY27 -> 0 | GZ57: =GZ27 -> 0 | HA57: =HA27 -> 0
D58: Value at Project IRR - Balance Sheet | E58: EUR | F58: =F46 -> 0.07996795864 | J58: =IF(K6,NPV($F$58,K57:HA57)) -> FALSE | K58: =IF(L6,NPV($F$58,L57:HB57)) -> 450447.5005 | L58: =IF(M6,NPV($F$58,M57:HC57)) -> 446468.8676 | M58: =IF(N6,NPV($F$58,N57:HD57)) -> 442172.0715 | N58: =IF(O6,NPV($F$58,O57:HE57)) -> 437531.6694 | O58: =IF(P6,NPV($F$58,P57:HF57)) -> 432520.1839 | P58: =IF(Q6,NPV($F$58,Q57:HG57)) -> 427107.94 | Q58: =IF(R6,NPV($F$58,R57:HH57)) -> 421262.8901 | R58: =IF(S6,NPV($F$58,S57:HI57)) -> 414950.4235 | S58: =IF(T6,NPV($F$58,T57:HJ57)) -> 408133.1618 | T58: =IF(U6,NPV($F$58,U57:HK57)) -> 400770.7376 | U58: =IF(V6,NPV($F$58,V57:HL57)) -> 392819.5554 | V58: =IF(W6,NPV($F$58,W57:HM57)) -> 384232.5333 | W58: =IF(X6,NPV($F$58,X57:HN57)) -> 374958.8247 | X58: =IF(Y6,NPV($F$58,Y57:HO57)) -> 364943.5164 | Y58: =IF(Z6,NPV($F$58,Z57:HP57)) -> 354127.3045 | Z58: =IF(AA6,NPV($F$58,AA57:HQ57)) -> 342446.1421 | AA58: =IF(AB6,NPV($F$58,AB57:HR57)) -> 329830.861 | AB58: =IF(AC6,NPV($F$58,AC57:HS57)) -> 316206.7617 | AC58: =IF(AD6,NPV($F$58,AD57:HT57)) -> 301493.1709 | AD58: =IF(AE6,NPV($F$58,AE57:HU57)) -> 285602.9644 | AE58: =IF(AF6,NPV($F$58,AF57:HV57)) -> 268442.0504 | AF58: =IF(AG6,NPV($F$58,AG57:HW57)) -> 249908.8132 | AG58: =IF(AH6,NPV($F$58,AH57:HX57)) -> 229893.5108 | AH58: =IF(AI6,NPV($F$58,AI57:HY57)) -> 208277.6256 | AI58: =IF(AJ6,NPV($F$58,AJ57:HZ57)) -> 184933.1621 | AJ58: =IF(AK6,NPV($F$58,AK57:IA57)) -> 159721.8896 | AK58: =IF(AL6,NPV($F$58,AL57:IB57)) -> 132494.5231 | AL58: =IF(AM6,NPV($F$58,AM57:IC57)) -> 103089.8396 | AM58: =IF(AN6,NPV($F$58,AN57:ID57)) -> 71333.72362 | AN58: =IF(AO6,NPV($F$58,AO57:IE57)) -> 37038.13588 | AO58: =IF(AP6,NPV($F$58,AP57:IF57)) -> FALSE | AP58: =IF(AQ6,NPV($F$58,AQ57:IG57)) -> FALSE | AQ58: =IF(AR6,NPV($F$58,AR57:IH57)) -> FALSE | AR58: =IF(AS6,NPV($F$58,AS57:II57)) -> FALSE | AS58: =IF(AT6,NPV($F$58,AT57:IJ57)) -> FALSE | AT58: =IF(AU6,NPV($F$58,AU57:IK57)) -> FALSE | AU58: =IF(AV6,NPV($F$58,AV57:IL57)) -> FALSE | AV58: =IF(AW6,NPV($F$58,AW57:IM57)) -> FALSE | AW58: =IF(AX6,NPV($F$58,AX57:IN57)) -> FALSE | AX58: =IF(AY6,NPV($F$58,AY57:IO57)) -> FALSE | AY58: =IF(AZ6,NPV($F$58,AZ57:IP57)) -> FALSE | AZ58: =IF(BA6,NPV($F$58,BA57:IQ57)) -> FALSE | BA58: =IF(BB6,NPV($F$58,BB57:IR57)) -> FALSE | BB58: =IF(BC6,NPV($F$58,BC57:IS57)) -> FALSE | BC58: =IF(BD6,NPV($F$58,BD57:IT57)) -> FALSE | BD58: =IF(BE6,NPV($F$58,BE57:IU57)) -> FALSE | BE58: =IF(BF6,NPV($F$58,BF57:IV57)) -> FALSE | BF58: =IF(BG6,NPV($F$58,BG57:IW57)) -> FALSE | BG58: =IF(BH6,NPV($F$58,BH57:IX57)) -> FALSE | BH58: =IF(BI6,NPV($F$58,BI57:IY57)) -> FALSE | BI58: =IF(BJ6,NPV($F$58,BJ57:IZ57)) -> FALSE | BJ58: =IF(BK6,NPV($F$58,BK57:JA57)) -> FALSE | BK58: =IF(BL6,NPV($F$58,BL57:JB57)) -> FALSE | BL58: =IF(BM6,NPV($F$58,BM57:JC57)) -> FALSE | BM58: =IF(BN6,NPV($F$58,BN57:JD57)) -> FALSE | BN58: =IF(BO6,NPV($F$58,BO57:JE57)) -> FALSE | BO58: =IF(BP6,NPV($F$58,BP57:JF57)) -> FALSE | BP58: =IF(BQ6,NPV($F$58,BQ57:JG57)) -> FALSE | BQ58: =IF(BR6,NPV($F$58,BR57:JH57)) -> FALSE | BR58: =IF(BS6,NPV($F$58,BS57:JI57)) -> FALSE | BS58: =IF(BT6,NPV($F$58,BT57:JJ57)) -> FALSE | BT58: =IF(BU6,NPV($F$58,BU57:JK57)) -> FALSE | BU58: =IF(BV6,NPV($F$58,BV57:JL57)) -> FALSE | BV58: =IF(BW6,NPV($F$58,BW57:JM57)) -> FALSE | BW58: =IF(BX6,NPV($F$58,BX57:JN57)) -> FALSE | BX58: =IF(BY6,NPV($F$58,BY57:JO57)) -> FALSE | BY58: =IF(BZ6,NPV($F$58,BZ57:JP57)) -> FALSE | BZ58: =IF(CA6,NPV($F$58,CA57:JQ57)) -> FALSE | CA58: =IF(CB6,NPV($F$58,CB57:JR57)) -> FALSE | CB58: =IF(CC6,NPV($F$58,CC57:JS57)) -> FALSE | CC58: =IF(CD6,NPV($F$58,CD57:JT57)) -> FALSE | CD58: =IF(CE6,NPV($F$58,CE57:JU57)) -> FALSE | CE58: =IF(CF6,NPV($F$58,CF57:JV57)) -> FALSE | CF58: =IF(CG6,NPV($F$58,CG57:JW57)) -> FALSE | CG58: =IF(CH6,NPV($F$58,CH57:JX57)) -> FALSE | CH58: =IF(CI6,NPV($F$58,CI57:JY57)) -> FALSE | CI58: =IF(CJ6,NPV($F$58,CJ57:JZ57)) -> FALSE | CJ58: =IF(CK6,NPV($F$58,CK57:KA57)) -> FALSE | CK58: =IF(CL6,NPV($F$58,CL57:KB57)) -> FALSE | CL58: =IF(CM6,NPV($F$58,CM57:KC57)) -> FALSE | CM58: =IF(CN6,NPV($F$58,CN57:KD57)) -> FALSE | CN58: =IF(CO6,NPV($F$58,CO57:KE57)) -> FALSE | CO58: =IF(CP6,NPV($F$58,CP57:KF57)) -> FALSE | CP58: =IF(CQ6,NPV($F$58,CQ57:KG57)) -> FALSE | CQ58: =IF(CR6,NPV($F$58,CR57:KH57)) -> FALSE | CR58: =IF(CS6,NPV($F$58,CS57:KI57)) -> FALSE | CS58: =IF(CT6,NPV($F$58,CT57:KJ57)) -> FALSE | CT58: =IF(CU6,NPV($F$58,CU57:KK57)) -> FALSE | CU58: =IF(CV6,NPV($F$58,CV57:KL57)) -> FALSE | CV58: =IF(CW6,NPV($F$58,CW57:KM57)) -> FALSE | CW58: =IF(CX6,NPV($F$58,CX57:KN57)) -> FALSE | CX58: =IF(CY6,NPV($F$58,CY57:KO57)) -> FALSE | CY58: =IF(CZ6,NPV($F$58,CZ57:KP57)) -> FALSE | CZ58: =IF(DA6,NPV($F$58,DA57:KQ57)) -> FALSE | DA58: =IF(DB6,NPV($F$58,DB57:KR57)) -> FALSE | DB58: =IF(DC6,NPV($F$58,DC57:KS57)) -> FALSE | DC58: =IF(DD6,NPV($F$58,DD57:KT57)) -> FALSE | DD58: =IF(DE6,NPV($F$58,DE57:KU57)) -> FALSE | DE58: =IF(DF6,NPV($F$58,DF57:KV57)) -> FALSE | DF58: =IF(DG6,NPV($F$58,DG57:KW57)) -> FALSE | DG58: =IF(DH6,NPV($F$58,DH57:KX57)) -> FALSE | DH58: =IF(DI6,NPV($F$58,DI57:KY57)) -> FALSE | DI58: =IF(DJ6,NPV($F$58,DJ57:KZ57)) -> FALSE | DJ58: =IF(DK6,NPV($F$58,DK57:LA57)) -> FALSE | DK58: =IF(DL6,NPV($F$58,DL57:LB57)) -> FALSE | DL58: =IF(DM6,NPV($F$58,DM57:LC57)) -> FALSE | DM58: =IF(DN6,NPV($F$58,DN57:LD57)) -> FALSE | DN58: =IF(DO6,NPV($F$58,DO57:LE57)) -> FALSE | DO58: =IF(DP6,NPV($F$58,DP57:LF57)) -> FALSE | DP58: =IF(DQ6,NPV($F$58,DQ57:LG57)) -> FALSE | DQ58: =IF(DR6,NPV($F$58,DR57:LH57)) -> FALSE | DR58: =IF(DS6,NPV($F$58,DS57:LI57)) -> FALSE | DS58: =IF(DT6,NPV($F$58,DT57:LJ57)) -> FALSE | DT58: =IF(DU6,NPV($F$58,DU57:LK57)) -> FALSE | DU58: =IF(DV6,NPV($F$58,DV57:LL57)) -> FALSE | DV58: =IF(DW6,NPV($F$58,DW57:LM57)) -> FALSE | DW58: =IF(DX6,NPV($F$58,DX57:LN57)) -> FALSE | DX58: =IF(DY6,NPV($F$58,DY57:LO57)) -> FALSE | DY58: =IF(DZ6,NPV($F$58,DZ57:LP57)) -> FALSE | DZ58: =IF(EA6,NPV($F$58,EA57:LQ57)) -> FALSE | EA58: =IF(EB6,NPV($F$58,EB57:LR57)) -> FALSE | EB58: =IF(EC6,NPV($F$58,EC57:LS57)) -> FALSE | EC58: =IF(ED6,NPV($F$58,ED57:LT57)) -> FALSE | ED58: =IF(EE6,NPV($F$58,EE57:LU57)) -> FALSE | EE58: =IF(EF6,NPV($F$58,EF57:LV57)) -> FALSE | EF58: =IF(EG6,NPV($F$58,EG57:LW57)) -> FALSE | EG58: =IF(EH6,NPV($F$58,EH57:LX57)) -> FALSE | EH58: =IF(EI6,NPV($F$58,EI57:LY57)) -> FALSE | EI58: =IF(EJ6,NPV($F$58,EJ57:LZ57)) -> FALSE | EJ58: =IF(EK6,NPV($F$58,EK57:MA57)) -> FALSE | EK58: =IF(EL6,NPV($F$58,EL57:MB57)) -> FALSE | EL58: =IF(EM6,NPV($F$58,EM57:MC57)) -> FALSE | EM58: =IF(EN6,NPV($F$58,EN57:MD57)) -> FALSE | EN58: =IF(EO6,NPV($F$58,EO57:ME57)) -> FALSE | EO58: =IF(EP6,NPV($F$58,EP57:MF57)) -> FALSE | EP58: =IF(EQ6,NPV($F$58,EQ57:MG57)) -> FALSE | EQ58: =IF(ER6,NPV($F$58,ER57:MH57)) -> FALSE | ER58: =IF(ES6,NPV($F$58,ES57:MI57)) -> FALSE | ES58: =IF(ET6,NPV($F$58,ET57:MJ57)) -> FALSE | ET58: =IF(EU6,NPV($F$58,EU57:MK57)) -> FALSE | EU58: =IF(EV6,NPV($F$58,EV57:ML57)) -> FALSE | EV58: =IF(EW6,NPV($F$58,EW57:MM57)) -> FALSE | EW58: =IF(EX6,NPV($F$58,EX57:MN57)) -> FALSE | EX58: =IF(EY6,NPV($F$58,EY57:MO57)) -> FALSE | EY58: =IF(EZ6,NPV($F$58,EZ57:MP57)) -> FALSE | EZ58: =IF(FA6,NPV($F$58,FA57:MQ57)) -> FALSE | FA58: =IF(FB6,NPV($F$58,FB57:MR57)) -> FALSE | FB58: =IF(FC6,NPV($F$58,FC57:MS57)) -> FALSE | FC58: =IF(FD6,NPV($F$58,FD57:MT57)) -> FALSE | FD58: =IF(FE6,NPV($F$58,FE57:MU57)) -> FALSE | FE58: =IF(FF6,NPV($F$58,FF57:MV57)) -> FALSE | FF58: =IF(FG6,NPV($F$58,FG57:MW57)) -> FALSE | FG58: =IF(FH6,NPV($F$58,FH57:MX57)) -> FALSE | FH58: =IF(FI6,NPV($F$58,FI57:MY57)) -> FALSE | FI58: =IF(FJ6,NPV($F$58,FJ57:MZ57)) -> FALSE | FJ58: =IF(FK6,NPV($F$58,FK57:NA57)) -> FALSE | FK58: =IF(FL6,NPV($F$58,FL57:NB57)) -> FALSE | FL58: =IF(FM6,NPV($F$58,FM57:NC57)) -> FALSE | FM58: =IF(FN6,NPV($F$58,FN57:ND57)) -> FALSE | FN58: =IF(FO6,NPV($F$58,FO57:NE57)) -> FALSE | FO58: =IF(FP6,NPV($F$58,FP57:NF57)) -> FALSE | FP58: =IF(FQ6,NPV($F$58,FQ57:NG57)) -> FALSE | FQ58: =IF(FR6,NPV($F$58,FR57:NH57)) -> FALSE | FR58: =IF(FS6,NPV($F$58,FS57:NI57)) -> FALSE | FS58: =IF(FT6,NPV($F$58,FT57:NJ57)) -> FALSE | FT58: =IF(FU6,NPV($F$58,FU57:NK57)) -> FALSE | FU58: =IF(FV6,NPV($F$58,FV57:NL57)) -> FALSE | FV58: =IF(FW6,NPV($F$58,FW57:NM57)) -> FALSE | FW58: =IF(FX6,NPV($F$58,FX57:NN57)) -> FALSE | FX58: =IF(FY6,NPV($F$58,FY57:NO57)) -> FALSE | FY58: =IF(FZ6,NPV($F$58,FZ57:NP57)) -> FALSE | FZ58: =IF(GA6,NPV($F$58,GA57:NQ57)) -> FALSE | GA58: =IF(GB6,NPV($F$58,GB57:NR57)) -> FALSE | GB58: =IF(GC6,NPV($F$58,GC57:NS57)) -> FALSE | GC58: =IF(GD6,NPV($F$58,GD57:NT57)) -> FALSE | GD58: =IF(GE6,NPV($F$58,GE57:NU57)) -> FALSE | GE58: =IF(GF6,NPV($F$58,GF57:NV57)) -> FALSE | GF58: =IF(GG6,NPV($F$58,GG57:NW57)) -> FALSE | GG58: =IF(GH6,NPV($F$58,GH57:NX57)) -> FALSE | GH58: =IF(GI6,NPV($F$58,GI57:NY57)) -> FALSE | GI58: =IF(GJ6,NPV($F$58,GJ57:NZ57)) -> FALSE | GJ58: =IF(GK6,NPV($F$58,GK57:OA57)) -> FALSE | GK58: =IF(GL6,NPV($F$58,GL57:OB57)) -> FALSE | GL58: =IF(GM6,NPV($F$58,GM57:OC57)) -> FALSE | GM58: =IF(GN6,NPV($F$58,GN57:OD57)) -> FALSE | GN58: =IF(GO6,NPV($F$58,GO57:OE57)) -> FALSE | GO58: =IF(GP6,NPV($F$58,GP57:OF57)) -> FALSE | GP58: =IF(GQ6,NPV($F$58,GQ57:OG57)) -> FALSE | GQ58: =IF(GR6,NPV($F$58,GR57:OH57)) -> FALSE | GR58: =IF(GS6,NPV($F$58,GS57:OI57)) -> FALSE | GS58: =IF(GT6,NPV($F$58,GT57:OJ57)) -> FALSE | GT58: =IF(GU6,NPV($F$58,GU57:OK57)) -> FALSE | GU58: =IF(GV6,NPV($F$58,GV57:OL57)) -> FALSE | GV58: =IF(GW6,NPV($F$58,GW57:OM57)) -> FALSE | GW58: =IF(GX6,NPV($F$58,GX57:ON57)) -> FALSE | GX58: =IF(GY6,NPV($F$58,GY57:OO57)) -> FALSE | GY58: =IF(GZ6,NPV($F$58,GZ57:OP57)) -> FALSE | GZ58: =IF(HA6,NPV($F$58,HA57:OQ57)) -> FALSE | HA58: =IF(HB6,NPV($F$58,HB57:OR57)) -> FALSE
